Workbook

Sheet GUIDE
C1: CDM Energy Efficiency Cost Effectiveness Tool
A4: BEFORE YOU BEGIN: ENABLE MACROS WITHIN EXCEL (Option 1: Click the security warning at the top of your worksheet and click "Enable Content", if this warning does not appear click "File" > "Options" > "Trust Center" > "Trust Center Settings" > "Macro Settings" and finally select "Enable all macros" Each section of the tool is grouped, linked, and colour coded for easy navigation. Simply click on the hyperlink to reach the worksheet you are looking for. Module worksheet dividers (i.e., the black tabs) provide high-level instructions for that module. Some tabs are locked or hidden where standard assumptions or key calculations are housed. Instructions are embedded throughout the Tool. Detailed instructions and procedures can be found in the User Guide that accompanies this Tool.
A7: Tool Structure: (click hyperlinks for easy navigation)
B8: Module | C8: Section | D8: Section Description | E8: Worksheet Name | F8: Worksheet Permissions
C9: Consolidated Summaries | D9: Contains summaries of the results of a 2015-2020 portfolio from various perspectives. The summaries reflect the portfolio (programs, measures, budget) specified within the "Program Design" section of the Tool for input into CDM plans | E9: Plan | F9: Tool Output
E10: Budget | F10: Tool Output
E11: Sector | F11: Tool Output
E12: Detail | F12: Tool Output
E13: BMG | F13: Tool Output
B14: PROGRAM DESIGN MODULE
C15: Program Design (User Inputs) | D15: Main input worksheets for the average user for program design purposes. Users create and select measures associated with programs, and input budgets | E15: Measures | F15: User Input
E16: Program Design | F16: User Input
E17: Budget Inputs | F17: User Input
E18: External Inputs | F18: User Input
B19: RESULTS MODULE
C20: Results | D20: Contains the results of the cost effectiveness analysis for the inputs specified by the user in the Program Design module. | E20: CE Results | F20: Tool Output
E21: Savings Results | F21: Tool Output
E22: Summary CE Results | F22: Tool Output
B24: ADMIN INPUT MODULE
C25: OPA/Admin Inputs | D25: Administrative users input assumptions within these worksheets, the average user does not need to interact with this module | E25: ADMIN OPTIONS | F25: Administrative Use only
E26: CE Parameters | F26: Administrative Use only
E27: Rates Table | F27: Administrative Use only
E28: Avoided Cost Table | F28: Administrative Use only
B29: DEFINED INPUTS MODULE
C30: Custom Input | D30: Users can create custom inputs to the Tool (load profiles and measures) that can be used when creating a new program/portfolio/measure. User defined load profiles available building blocks for the program design module are found here. | E30: Custom Load Profile Input | F30: User Input
E31: Custom Measure Input | F31: User Input
E32: Formatted Load Profiles | F32: Tool Output
B34: CALCULATION ENGINE
C35: Calculation Engine | D35: The worksheets in this module are required to calculate the cost effectiveness outputs and contain detailed calculations and reference information. Users do not need to interact with these worksheets. | E35: Measure CE Results | F35: Reference Only
E36: VBA References | F36: Reference Only
E37: Levelized Avoided Cost Table | F37: Reference Only
E38: Levelized Rates Table | F38: Reference Only
A41: Legend: (cells within the Tool are formatted according to the table below)
B42: Code | C42: Code Definition | D42: Description
B43: Blue Text | C43: User input (mandatory) | D43: These cells or columns provide the model with key user inputs required to complete the cost effectiveness calculations. If these cells are not populated, the Tool may return an error or the results will be incomplete.
B44: Black Text | C44: User input (optional) | D44: These cells or columns provide the Tool with parameters that may be populated through a user input form. However, the user can choose to manually override the information provided from the input form within these cells or columns.
B45: Black Text, Italics | C45: Description or Instructions | D45: These cells or columns contain information for the user to better understand the procedures and/or purpose associated with a particular worksheet.
B46: Black Text | C46: Calculated cell | D46: These cells or columns contain formulas that are essential to the calculation of the tool, in most cases these cells are locked and cannot be modified by the user.
B47: White Text | C47: Calculated columns
B48: Red Text | C48: Caution | D48: These instructions indicate a step that is critical or a mistake that is common that may result in an error in the Tool. Special care should be taken when these instructions are encountered.
A50: Cost Effectiveness Acronyms Used in the Tool:
B52: CDM | C52: Conservation And Demand Management
B53: CE | C53: Cost Effectiveness
B54: DR | C54: Demand Response
B55: Dx | C55: Distribution System
B56: EE | C56: Energy Efficiency
B57: EUL | C57: Effective Useful Life
B58: kW | C58: Kilowatt
B59: kWh | C59: Kilowatt Hour
B60: LC | C60: Levelized Delivery Cost
B61: MW | C61: Megawatt
B62: MWh | C62: Megawatt Hour
B63: NPV | C63: Net Present Value
B64: O&M | C64: Operations And Maintenance
B65: PAC | C65: Program Administrator Cost
B66: PV | C66: Present Value
B67: RIM | C67: Rate Impact Measure
B68: RUL | C68: Remaining Useful Life
B69: SC | C69: Societal Cost
B70: TRC | C70: Total Resource Cost
B72: Disclaimer: This Tool is provided solely for informational purposes and based on information currently available to the IESO. The Independent Electricity System Operator (“IESO”) expressly disclaims any responsibility or liability for any other use of the information in the Tool or any methods described. In particular, the information and outputs of the Tool are not meant to be relied on to determine actual electricity or cost savings. The IESO does not warrant the accuracy, reliability, completeness or timeliness of any of the information contained in the Tool, and undertakes no obligation to revise or update the Tool. Users of this Tool rely on the information contained therein at their own risk and remain responsible for seeking appropriate legal, technical or other professional advice with regard to their particular circumstances. The IESO and its respective officers, directors, employees, consultants, agents and subcontractors assume no liability or responsibility whatsoever to any person for damages of whatever kind and nature, which may occur or be suffered as a result of the use of this Tool or reliance on the information therein.

Sheet ARCHITECTURE (hidden)

Sheet SUMMARIES >>

Sheet Plan
A2: CDM Portfolio Summary for Inclusion in CDM Plans
A4: TABLE 1
A5: SUMMARY OF CDM PORTFOLIO COST EFFECTIVENESS
A6: Plan Cost Effectiveness | B6: Program Year | C6: TRC | F6: PACT | I6: Levelized Cost
C7: Benefits ($) | D7: Costs ($) | E7: Ratio | F7: Benefits ($) | G7: Costs ($) | H7: Ratio | I7: Benefits (Energy) | J7: Costs ($) | K7: ($/kWh)
B8: 2015 | C8: =SUMIFS('Program Design'!X:X,'Program Design'!$J:$J,$B8) -> 0 | D8: =SUMIFS('Program Design'!Y:Y,'Program Design'!$J:$J,$B8)+IFERROR(SUMIFS(INDEX(OFFSET('Budget Inputs'!$A$1,6,1,2000,560),0,MATCH(CONCATENATE($B8," Sub-Total"),OFFSET('Budget Inputs'!$A$1,6,1,1,560),0)),OFFSET('Budget Inputs'!$A$1,6,1,2000,1),"Total")*INDEX(OFFSET('Levelized Avoided Cost Table'!$A$1,7,1,900,20),MATCH(CONCATENATE($B8,"_",1),OFFSET('Levelized Avoided Cost Table'!$A$1,7,1,900,1),0),MATCH("Discount Factor",OFFSET('Levelized Avoided Cost Table'!$A$1,7,1,1,20),0)),0) -> 0 | E8: =IF(C8=0,"",C8/D8) ->  | F8: =SUMIFS('Program Design'!AF:AF,'Program Design'!$J:$J,$B8) -> 0 | G8: =SUMIFS('Program Design'!AG:AG,'Program Design'!$J:$J,$B8)+IFERROR(SUMIFS(INDEX(OFFSET('Budget Inputs'!$A$1,6,1,2000,560),0,MATCH(CONCATENATE($B8," Sub-Total"),OFFSET('Budget Inputs'!$A$1,6,1,1,560),0)),OFFSET('Budget Inputs'!$A$1,6,1,2000,1),"Total")*INDEX(OFFSET('Levelized Avoided Cost Table'!$A$1,7,1,900,20),MATCH(CONCATENATE($B8,"_",1),OFFSET('Levelized Avoided Cost Table'!$A$1,7,1,900,1),0),MATCH("Discount Factor",OFFSET('Levelized Avoided Cost Table'!$A$1,7,1,1,20),0)),0) -> 0 | H8: =IF(F8=0,"",F8/G8) ->  | I8: =SUMIFS('Program Design'!AS:AS,'Program Design'!$J:$J,$B8) -> 0 | J8: =IFERROR(SUMIFS('Program Design'!AT:AT,'Program Design'!$J:$J,$B8)+(SUMIFS(INDEX(OFFSET('Budget Inputs'!$A$1,6,1,2000,560),0,MATCH(CONCATENATE($B8," Sub-Total"),OFFSET('Budget Inputs'!$A$1,6,1,1,560),0)),OFFSET('Budget Inputs'!$A$1,6,1,2000,1),"Total")*INDEX(OFFSET('Levelized Avoided Cost Table'!$A$1,7,1,900,20),MATCH(CONCATENATE($B8,"_",1),OFFSET('Levelized Avoided Cost Table'!$A$1,7,1,900,1),0),MATCH("Discount Factor",OFFSET('Levelized Avoided Cost Table'!$A$1,7,1,1,20),0))),0) -> 0 | K8: =IF(I8=0,"",J8/I8) -> 
B9: 2016 | C9: =SUMIFS('Program Design'!X:X,'Program Design'!$J:$J,$B9) -> 0 | D9: =SUMIFS('Program Design'!Y:Y,'Program Design'!$J:$J,$B9)+IFERROR(SUMIFS(INDEX(OFFSET('Budget Inputs'!$A$1,6,1,2000,560),0,MATCH(CONCATENATE($B9," Sub-Total"),OFFSET('Budget Inputs'!$A$1,6,1,1,560),0)),OFFSET('Budget Inputs'!$A$1,6,1,2000,1),"Total")*INDEX(OFFSET('Levelized Avoided Cost Table'!$A$1,7,1,900,20),MATCH(CONCATENATE($B9,"_",1),OFFSET('Levelized Avoided Cost Table'!$A$1,7,1,900,1),0),MATCH("Discount Factor",OFFSET('Levelized Avoided Cost Table'!$A$1,7,1,1,20),0)),0) -> 0 | F9: =SUMIFS('Program Design'!AF:AF,'Program Design'!$J:$J,$B9) -> 0 | G9: =SUMIFS('Program Design'!AG:AG,'Program Design'!$J:$J,$B9)+IFERROR(SUMIFS(INDEX(OFFSET('Budget Inputs'!$A$1,6,1,2000,560),0,MATCH(CONCATENATE($B9," Sub-Total"),OFFSET('Budget Inputs'!$A$1,6,1,1,560),0)),OFFSET('Budget Inputs'!$A$1,6,1,2000,1),"Total")*INDEX(OFFSET('Levelized Avoided Cost Table'!$A$1,7,1,900,20),MATCH(CONCATENATE($B9,"_",1),OFFSET('Levelized Avoided Cost Table'!$A$1,7,1,900,1),0),MATCH("Discount Factor",OFFSET('Levelized Avoided Cost Table'!$A$1,7,1,1,20),0)),0) -> 0 | I9: =SUMIFS('Program Design'!AS:AS,'Program Design'!$J:$J,$B9) -> 0 | J9: =IFERROR(SUMIFS('Program Design'!AT:AT,'Program Design'!$J:$J,$B9)+(SUMIFS(INDEX(OFFSET('Budget Inputs'!$A$1,6,1,2000,560),0,MATCH(CONCATENATE($B9," Sub-Total"),OFFSET('Budget Inputs'!$A$1,6,1,1,560),0)),OFFSET('Budget Inputs'!$A$1,6,1,2000,1),"Total")*INDEX(OFFSET('Levelized Avoided Cost Table'!$A$1,7,1,900,20),MATCH(CONCATENATE($B9,"_",1),OFFSET('Levelized Avoided Cost Table'!$A$1,7,1,900,1),0),MATCH("Discount Factor",OFFSET('Levelized Avoided Cost Table'!$A$1,7,1,1,20),0))),0) -> 0
B10: 2017 | C10: =SUMIFS('Program Design'!X:X,'Program Design'!$J:$J,$B10) -> 10801704.73 | D10: =SUMIFS('Program Design'!Y:Y,'Program Design'!$J:$J,$B10)+IFERROR(SUMIFS(INDEX(OFFSET('Budget Inputs'!$A$1,6,1,2000,560),0,MATCH(CONCATENATE($B10," Sub-Total"),OFFSET('Budget Inputs'!$A$1,6,1,1,560),0)),OFFSET('Budget Inputs'!$A$1,6,1,2000,1),"Total")*INDEX(OFFSET('Levelized Avoided Cost Table'!$A$1,7,1,900,20),MATCH(CONCATENATE($B10,"_",1),OFFSET('Levelized Avoided Cost Table'!$A$1,7,1,900,1),0),MATCH("Discount Factor",OFFSET('Levelized Avoided Cost Table'!$A$1,7,1,1,20),0)),0) -> 10676817.09 | E10: 1.011697086 | F10: =SUMIFS('Program Design'!AF:AF,'Program Design'!$J:$J,$B10) -> 9392786.724 | G10: =SUMIFS('Program Design'!AG:AG,'Program Design'!$J:$J,$B10)+IFERROR(SUMIFS(INDEX(OFFSET('Budget Inputs'!$A$1,6,1,2000,560),0,MATCH(CONCATENATE($B10," Sub-Total"),OFFSET('Budget Inputs'!$A$1,6,1,1,560),0)),OFFSET('Budget Inputs'!$A$1,6,1,2000,1),"Total")*INDEX(OFFSET('Levelized Avoided Cost Table'!$A$1,7,1,900,20),MATCH(CONCATENATE($B10,"_",1),OFFSET('Levelized Avoided Cost Table'!$A$1,7,1,900,1),0),MATCH("Discount Factor",OFFSET('Levelized Avoided Cost Table'!$A$1,7,1,1,20),0)),0) -> 7409073.433 | H10: 1.267741076 | I10: =SUMIFS('Program Design'!AS:AS,'Program Design'!$J:$J,$B10) -> 93326377.16 | J10: =IFERROR(SUMIFS('Program Design'!AT:AT,'Program Design'!$J:$J,$B10)+(SUMIFS(INDEX(OFFSET('Budget Inputs'!$A$1,6,1,2000,560),0,MATCH(CONCATENATE($B10," Sub-Total"),OFFSET('Budget Inputs'!$A$1,6,1,1,560),0)),OFFSET('Budget Inputs'!$A$1,6,1,2000,1),"Total")*INDEX(OFFSET('Levelized Avoided Cost Table'!$A$1,7,1,900,20),MATCH(CONCATENATE($B10,"_",1),OFFSET('Levelized Avoided Cost Table'!$A$1,7,1,900,1),0),MATCH("Discount Factor",OFFSET('Levelized Avoided Cost Table'!$A$1,7,1,1,20),0))),0) -> 7409073.433 | K10: 0.07938884653
B11: 2018 | C11: =SUMIFS('Program Design'!X:X,'Program Design'!$J:$J,$B11) -> 0 | D11: =SUMIFS('Program Design'!Y:Y,'Program Design'!$J:$J,$B11)+IFERROR(SUMIFS(INDEX(OFFSET('Budget Inputs'!$A$1,6,1,2000,560),0,MATCH(CONCATENATE($B11," Sub-Total"),OFFSET('Budget Inputs'!$A$1,6,1,1,560),0)),OFFSET('Budget Inputs'!$A$1,6,1,2000,1),"Total")*INDEX(OFFSET('Levelized Avoided Cost Table'!$A$1,7,1,900,20),MATCH(CONCATENATE($B11,"_",1),OFFSET('Levelized Avoided Cost Table'!$A$1,7,1,900,1),0),MATCH("Discount Factor",OFFSET('Levelized Avoided Cost Table'!$A$1,7,1,1,20),0)),0) -> 0 | F11: =SUMIFS('Program Design'!AF:AF,'Program Design'!$J:$J,$B11) -> 0 | G11: =SUMIFS('Program Design'!AG:AG,'Program Design'!$J:$J,$B11)+IFERROR(SUMIFS(INDEX(OFFSET('Budget Inputs'!$A$1,6,1,2000,560),0,MATCH(CONCATENATE($B11," Sub-Total"),OFFSET('Budget Inputs'!$A$1,6,1,1,560),0)),OFFSET('Budget Inputs'!$A$1,6,1,2000,1),"Total")*INDEX(OFFSET('Levelized Avoided Cost Table'!$A$1,7,1,900,20),MATCH(CONCATENATE($B11,"_",1),OFFSET('Levelized Avoided Cost Table'!$A$1,7,1,900,1),0),MATCH("Discount Factor",OFFSET('Levelized Avoided Cost Table'!$A$1,7,1,1,20),0)),0) -> 0 | H11: =IF(F11=0,"",F11/G11) ->  | I11: =SUMIFS('Program Design'!AS:AS,'Program Design'!$J:$J,$B11) -> 0 | J11: =IFERROR(SUMIFS('Program Design'!AT:AT,'Program Design'!$J:$J,$B11)+(SUMIFS(INDEX(OFFSET('Budget Inputs'!$A$1,6,1,2000,560),0,MATCH(CONCATENATE($B11," Sub-Total"),OFFSET('Budget Inputs'!$A$1,6,1,1,560),0)),OFFSET('Budget Inputs'!$A$1,6,1,2000,1),"Total")*INDEX(OFFSET('Levelized Avoided Cost Table'!$A$1,7,1,900,20),MATCH(CONCATENATE($B11,"_",1),OFFSET('Levelized Avoided Cost Table'!$A$1,7,1,900,1),0),MATCH("Discount Factor",OFFSET('Levelized Avoided Cost Table'!$A$1,7,1,1,20),0))),0) -> 0
B12: 2019 | C12: =SUMIFS('Program Design'!X:X,'Program Design'!$J:$J,$B12) -> 0 | D12: =SUMIFS('Program Design'!Y:Y,'Program Design'!$J:$J,$B12)+IFERROR(SUMIFS(INDEX(OFFSET('Budget Inputs'!$A$1,6,1,2000,560),0,MATCH(CONCATENATE($B12," Sub-Total"),OFFSET('Budget Inputs'!$A$1,6,1,1,560),0)),OFFSET('Budget Inputs'!$A$1,6,1,2000,1),"Total")*INDEX(OFFSET('Levelized Avoided Cost Table'!$A$1,7,1,900,20),MATCH(CONCATENATE($B12,"_",1),OFFSET('Levelized Avoided Cost Table'!$A$1,7,1,900,1),0),MATCH("Discount Factor",OFFSET('Levelized Avoided Cost Table'!$A$1,7,1,1,20),0)),0) -> 0 | F12: =SUMIFS('Program Design'!AF:AF,'Program Design'!$J:$J,$B12) -> 0 | G12: =SUMIFS('Program Design'!AG:AG,'Program Design'!$J:$J,$B12)+IFERROR(SUMIFS(INDEX(OFFSET('Budget Inputs'!$A$1,6,1,2000,560),0,MATCH(CONCATENATE($B12," Sub-Total"),OFFSET('Budget Inputs'!$A$1,6,1,1,560),0)),OFFSET('Budget Inputs'!$A$1,6,1,2000,1),"Total")*INDEX(OFFSET('Levelized Avoided Cost Table'!$A$1,7,1,900,20),MATCH(CONCATENATE($B12,"_",1),OFFSET('Levelized Avoided Cost Table'!$A$1,7,1,900,1),0),MATCH("Discount Factor",OFFSET('Levelized Avoided Cost Table'!$A$1,7,1,1,20),0)),0) -> 0 | I12: =SUMIFS('Program Design'!AS:AS,'Program Design'!$J:$J,$B12) -> 0 | J12: =IFERROR(SUMIFS('Program Design'!AT:AT,'Program Design'!$J:$J,$B12)+(SUMIFS(INDEX(OFFSET('Budget Inputs'!$A$1,6,1,2000,560),0,MATCH(CONCATENATE($B12," Sub-Total"),OFFSET('Budget Inputs'!$A$1,6,1,1,560),0)),OFFSET('Budget Inputs'!$A$1,6,1,2000,1),"Total")*INDEX(OFFSET('Levelized Avoided Cost Table'!$A$1,7,1,900,20),MATCH(CONCATENATE($B12,"_",1),OFFSET('Levelized Avoided Cost Table'!$A$1,7,1,900,1),0),MATCH("Discount Factor",OFFSET('Levelized Avoided Cost Table'!$A$1,7,1,1,20),0))),0) -> 0
B13: 2020 | C13: =SUMIFS('Program Design'!X:X,'Program Design'!$J:$J,$B13) -> 0 | D13: =SUMIFS('Program Design'!Y:Y,'Program Design'!$J:$J,$B13)+IFERROR(SUMIFS(INDEX(OFFSET('Budget Inputs'!$A$1,6,1,2000,560),0,MATCH(CONCATENATE($B13," Sub-Total"),OFFSET('Budget Inputs'!$A$1,6,1,1,560),0)),OFFSET('Budget Inputs'!$A$1,6,1,2000,1),"Total")*INDEX(OFFSET('Levelized Avoided Cost Table'!$A$1,7,1,900,20),MATCH(CONCATENATE($B13,"_",1),OFFSET('Levelized Avoided Cost Table'!$A$1,7,1,900,1),0),MATCH("Discount Factor",OFFSET('Levelized Avoided Cost Table'!$A$1,7,1,1,20),0)),0) -> 0 | F13: =SUMIFS('Program Design'!AF:AF,'Program Design'!$J:$J,$B13) -> 0 | G13: =SUMIFS('Program Design'!AG:AG,'Program Design'!$J:$J,$B13)+IFERROR(SUMIFS(INDEX(OFFSET('Budget Inputs'!$A$1,6,1,2000,560),0,MATCH(CONCATENATE($B13," Sub-Total"),OFFSET('Budget Inputs'!$A$1,6,1,1,560),0)),OFFSET('Budget Inputs'!$A$1,6,1,2000,1),"Total")*INDEX(OFFSET('Levelized Avoided Cost Table'!$A$1,7,1,900,20),MATCH(CONCATENATE($B13,"_",1),OFFSET('Levelized Avoided Cost Table'!$A$1,7,1,900,1),0),MATCH("Discount Factor",OFFSET('Levelized Avoided Cost Table'!$A$1,7,1,1,20),0)),0) -> 0 | I13: =SUMIFS('Program Design'!AS:AS,'Program Design'!$J:$J,$B13) -> 0 | J13: =IFERROR(SUMIFS('Program Design'!AT:AT,'Program Design'!$J:$J,$B13)+(SUMIFS(INDEX(OFFSET('Budget Inputs'!$A$1,6,1,2000,560),0,MATCH(CONCATENATE($B13," Sub-Total"),OFFSET('Budget Inputs'!$A$1,6,1,1,560),0)),OFFSET('Budget Inputs'!$A$1,6,1,2000,1),"Total")*INDEX(OFFSET('Levelized Avoided Cost Table'!$A$1,7,1,900,20),MATCH(CONCATENATE($B13,"_",1),OFFSET('Levelized Avoided Cost Table'!$A$1,7,1,900,1),0),MATCH("Discount Factor",OFFSET('Levelized Avoided Cost Table'!$A$1,7,1,1,20),0))),0) -> 0
B14: Plan Total | C14: =SUM(C8:C13) -> 10801704.73 | D14: =SUM(D8:D13) -> 10676817.09 | E14: =IF(C14="","",C14/D14) -> 1.011697086 | F14: =SUM(F8:F13) -> 9392786.724 | G14: =SUM(G8:G13) -> 7409073.433 | H14: =IF(F14="","",F14/G14) -> 1.267741076 | I14: =SUM(I8:I13) -> 93326377.16 | J14: =SUM(J8:J13) -> 7409073.433 | K14: =IF(I14="","",J14/I14) -> 0.07938884653
A16: TABLE 2
A17: SUMMARY OF PERSISTING CDM PORTFOLIO SAVINGS
A18: Plan Persisting Savings (end-user level) | C18: MW | D18: MWh
B19: 2015 | C19: =SUMIFS(OFFSET('Savings Results'!$A$1,6,16+2020-MIN('Program Design'!J:J),2000),OFFSET('Savings Results'!$A$1,6,6,2000),Plan!$B19,OFFSET('Savings Results'!$A$1,6,4,2000),"Dx")/(1/(1-SUM('CE Parameters'!$F$10:$F$11)))/1000 -> 0 | D19: =SUMIFS(OFFSET('Savings Results'!$A$1,6,16+2020-MIN('Program Design'!J:J)+2020 -MIN('Program Design'!J:J)+ MAX('Savings Results'!J:J),2000),OFFSET('Savings Results'!$A$1,6,6,2000),Plan!$B19,OFFSET('Savings Results'!$A$1,6,4,2000),"Dx")/(1/(1-SUM('CE Parameters'!$F$10:$F$11)))/1000 -> 0
B20: 2016 | C20: =SUMIFS(OFFSET('Savings Results'!$A$1,6,16+2020-MIN('Program Design'!J:J),2000),OFFSET('Savings Results'!$A$1,6,6,2000),Plan!$B20,OFFSET('Savings Results'!$A$1,6,4,2000),"Dx")/(1/(1-SUM('CE Parameters'!$F$10:$F$11)))/1000 -> 0 | D20: =SUMIFS(OFFSET('Savings Results'!$A$1,6,16+2020-MIN('Program Design'!J:J)+2020 -MIN('Program Design'!J:J)+ MAX('Savings Results'!J:J),2000),OFFSET('Savings Results'!$A$1,6,6,2000),Plan!$B20,OFFSET('Savings Results'!$A$1,6,4,2000),"Dx")/(1/(1-SUM('CE Parameters'!$F$10:$F$11)))/1000 -> 0
B21: 2017 | C21: =SUMIFS(OFFSET('Savings Results'!$A$1,6,16+2020-MIN('Program Design'!J:J),2000),OFFSET('Savings Results'!$A$1,6,6,2000),Plan!$B21,OFFSET('Savings Results'!$A$1,6,4,2000),"Dx")/(1/(1-SUM('CE Parameters'!$F$10:$F$11)))/1000 -> 0 | D21: =SUMIFS(OFFSET('Savings Results'!$A$1,6,16+2020-MIN('Program Design'!J:J)+2020 -MIN('Program Design'!J:J)+ MAX('Savings Results'!J:J),2000),OFFSET('Savings Results'!$A$1,6,6,2000),Plan!$B21,OFFSET('Savings Results'!$A$1,6,4,2000),"Dx")/(1/(1-SUM('CE Parameters'!$F$10:$F$11)))/1000 -> 0
B22: 2018 | C22: =SUMIFS(OFFSET('Savings Results'!$A$1,6,16+2020-MIN('Program Design'!J:J),2000),OFFSET('Savings Results'!$A$1,6,6,2000),Plan!$B22,OFFSET('Savings Results'!$A$1,6,4,2000),"Dx")/(1/(1-SUM('CE Parameters'!$F$10:$F$11)))/1000 -> 0 | D22: =SUMIFS(OFFSET('Savings Results'!$A$1,6,16+2020-MIN('Program Design'!J:J)+2020 -MIN('Program Design'!J:J)+ MAX('Savings Results'!J:J),2000),OFFSET('Savings Results'!$A$1,6,6,2000),Plan!$B22,OFFSET('Savings Results'!$A$1,6,4,2000),"Dx")/(1/(1-SUM('CE Parameters'!$F$10:$F$11)))/1000 -> 0
B23: 2019 | C23: =SUMIFS(OFFSET('Savings Results'!$A$1,6,16+2020-MIN('Program Design'!J:J),2000),OFFSET('Savings Results'!$A$1,6,6,2000),Plan!$B23,OFFSET('Savings Results'!$A$1,6,4,2000),"Dx")/(1/(1-SUM('CE Parameters'!$F$10:$F$11)))/1000 -> 0 | D23: =SUMIFS(OFFSET('Savings Results'!$A$1,6,16+2020-MIN('Program Design'!J:J)+2020 -MIN('Program Design'!J:J)+ MAX('Savings Results'!J:J),2000),OFFSET('Savings Results'!$A$1,6,6,2000),Plan!$B23,OFFSET('Savings Results'!$A$1,6,4,2000),"Dx")/(1/(1-SUM('CE Parameters'!$F$10:$F$11)))/1000 -> 0
B24: 2020 | C24: =SUMIFS(OFFSET('Savings Results'!$A$1,6,16+2020-MIN('Program Design'!J:J),2000),OFFSET('Savings Results'!$A$1,6,6,2000),Plan!$B24,OFFSET('Savings Results'!$A$1,6,4,2000),"Dx")/(1/(1-SUM('CE Parameters'!$F$10:$F$11)))/1000 -> 0 | D24: =SUMIFS(OFFSET('Savings Results'!$A$1,6,16+2020-MIN('Program Design'!J:J)+2020 -MIN('Program Design'!J:J)+ MAX('Savings Results'!J:J),2000),OFFSET('Savings Results'!$A$1,6,6,2000),Plan!$B24,OFFSET('Savings Results'!$A$1,6,4,2000),"Dx")/(1/(1-SUM('CE Parameters'!$F$10:$F$11)))/1000 -> 0
B25: Plan Total | C25: =SUM(C19:C24) -> 0 | D25: =SUM(D19:D24) -> 0
A27: TABLE 3
A28: PROGRAM ROLL OUT SCHEDULE (ANNUAL ANTICIPATED BUDGET & INCREMENTAL ANNUAL ENERGY SAVINGS BY PROGRAM)
C29: 2015 | E29: 2016 | G29: 2017 | I29: 2018 | K29: 2019 | M29: 2020 | O29: Total 2015 - 2020
A31: Sector | B31: Program | C31: Anticipated Annual Budget ($) | D31: Energy Savings (MWh) | E31: Anticipated Annual Budget ($) | F31: Energy Savings (MWh) | G31: Anticipated Annual Budget ($) | H31: Energy Savings (MWh) | I31: Anticipated Annual Budget ($) | J31: Energy Savings (MWh) | K31: Anticipated Annual Budget ($) | L31: Energy Savings (MWh) | M31: Anticipated Annual Budget ($) | N31: Energy Savings (MWh) | O31: Total Plan Budget ($) | P31: Total Persisting Energy Savings in 2020 (MWh)
A32: Whole Home | B32: Whole Home | C32: =IFERROR(SUMIFS('Program Design'!$U:$U,'Program Design'!$C:$C,$A32,'Program Design'!$D:$D,$B32,'Program Design'!$J:$J,C$29)+SUMIFS('Program Design'!$V:$V,'Program Design'!$C:$C,$A32,'Program Design'!$D:$D,$B32,'Program Design'!$J:$J,C$29)+SUMIFS('Program Design'!$W:$W,'Program Design'!$C:$C,$A32,'Program Design'!$D:$D,$B32,'Program Design'!$J:$J,C$29)+SUMIFS(INDEX(OFFSET('Budget Inputs'!$A$1,6,1,2000,560),0,MATCH(CONCATENATE(C$29," Sub-Total"),OFFSET('Budget Inputs'!$A$1,6,1,1,560),0)),OFFSET('Budget Inputs'!$A$1,6,1,2000,1),$A32,OFFSET('Budget Inputs'!$A$1,6,2,2000,1),$B32),0) -> 0 | D32: =(SUMIFS(OFFSET('Savings Results'!$A$1,6,16 +MAX('Savings Results'!$G:$G)-MIN('Savings Results'!$G:$G)+MAX('Savings Results'!$J:$J)+C$29-MIN('Savings Results'!$G:$G),2000),OFFSET('Savings Results'!$A$1,6,6,2000),C$29,OFFSET('Savings Results'!$A$1,6,4,2000),"Dx",OFFSET('Savings Results'!$A$1,6,1,2000),$A32,OFFSET('Savings Results'!$A$1,6,2,2000),$B32)/(1/(1-SUM('CE Parameters'!$F$10:$F$11))))/1000 -> 0 | E32: =IFERROR(SUMIFS('Program Design'!$U:$U,'Program Design'!$C:$C,$A32,'Program Design'!$D:$D,$B32,'Program Design'!$J:$J,E$29)+SUMIFS('Program Design'!$V:$V,'Program Design'!$C:$C,$A32,'Program Design'!$D:$D,$B32,'Program Design'!$J:$J,E$29)+SUMIFS('Program Design'!$W:$W,'Program Design'!$C:$C,$A32,'Program Design'!$D:$D,$B32,'Program Design'!$J:$J,E$29)+SUMIFS(INDEX(OFFSET('Budget Inputs'!$A$1,6,1,2000,560),0,MATCH(CONCATENATE(E$29," Sub-Total"),OFFSET('Budget Inputs'!$A$1,6,1,1,560),0)),OFFSET('Budget Inputs'!$A$1,6,1,2000,1),$A32,OFFSET('Budget Inputs'!$A$1,6,2,2000,1),$B32),0) -> 0 | F32: =(SUMIFS(OFFSET('Savings Results'!$A$1,6,16 +MAX('Savings Results'!$G:$G)-MIN('Savings Results'!$G:$G)+MAX('Savings Results'!$J:$J)+E$29-MIN('Savings Results'!$G:$G),2000),OFFSET('Savings Results'!$A$1,6,6,2000),E$29,OFFSET('Savings Results'!$A$1,6,4,2000),"Dx",OFFSET('Savings Results'!$A$1,6,1,2000),$A32,OFFSET('Savings Results'!$A$1,6,2,2000),$B32)/(1/(1-SUM('CE Parameters'!$F$10:$F$11))))/1000 -> 0 | G32: =IFERROR(SUMIFS('Program Design'!$U:$U,'Program Design'!$C:$C,$A32,'Program Design'!$D:$D,$B32,'Program Design'!$J:$J,G$29)+SUMIFS('Program Design'!$V:$V,'Program Design'!$C:$C,$A32,'Program Design'!$D:$D,$B32,'Program Design'!$J:$J,G$29)+SUMIFS('Program Design'!$W:$W,'Program Design'!$C:$C,$A32,'Program Design'!$D:$D,$B32,'Program Design'!$J:$J,G$29)+SUMIFS(INDEX(OFFSET('Budget Inputs'!$A$1,6,1,2000,560),0,MATCH(CONCATENATE(G$29," Sub-Total"),OFFSET('Budget Inputs'!$A$1,6,1,1,560),0)),OFFSET('Budget Inputs'!$A$1,6,1,2000,1),$A32,OFFSET('Budget Inputs'!$A$1,6,2,2000,1),$B32),0) -> 7708400 | H32: =(SUMIFS(OFFSET('Savings Results'!$A$1,6,16 +MAX('Savings Results'!$G:$G)-MIN('Savings Results'!$G:$G)+MAX('Savings Results'!$J:$J)+G$29-MIN('Savings Results'!$G:$G),2000),OFFSET('Savings Results'!$A$1,6,6,2000),G$29,OFFSET('Savings Results'!$A$1,6,4,2000),"Dx",OFFSET('Savings Results'!$A$1,6,1,2000),$A32,OFFSET('Savings Results'!$A$1,6,2,2000),$B32)/(1/(1-SUM('CE Parameters'!$F$10:$F$11))))/1000 -> 0 | I32: =IFERROR(SUMIFS('Program Design'!$U:$U,'Program Design'!$C:$C,$A32,'Program Design'!$D:$D,$B32,'Program Design'!$J:$J,I$29)+SUMIFS('Program Design'!$V:$V,'Program Design'!$C:$C,$A32,'Program Design'!$D:$D,$B32,'Program Design'!$J:$J,I$29)+SUMIFS('Program Design'!$W:$W,'Program Design'!$C:$C,$A32,'Program Design'!$D:$D,$B32,'Program Design'!$J:$J,I$29)+SUMIFS(INDEX(OFFSET('Budget Inputs'!$A$1,6,1,2000,560),0,MATCH(CONCATENATE(I$29," Sub-Total"),OFFSET('Budget Inputs'!$A$1,6,1,1,560),0)),OFFSET('Budget Inputs'!$A$1,6,1,2000,1),$A32,OFFSET('Budget Inputs'!$A$1,6,2,2000,1),$B32),0) -> 0 | J32: =(SUMIFS(OFFSET('Savings Results'!$A$1,6,16 +MAX('Savings Results'!$G:$G)-MIN('Savings Results'!$G:$G)+MAX('Savings Results'!$J:$J)+I$29-MIN('Savings Results'!$G:$G),2000),OFFSET('Savings Results'!$A$1,6,6,2000),I$29,OFFSET('Savings Results'!$A$1,6,4,2000),"Dx",OFFSET('Savings Results'!$A$1,6,1,2000),$A32,OFFSET('Savings Results'!$A$1,6,2,2000),$B32)/(1/(1-SUM('CE Parameters'!$F$10:$F$11))))/1000 -> 0 | K32: =IFERROR(SUMIFS('Program Design'!$U:$U,'Program Design'!$C:$C,$A32,'Program Design'!$D:$D,$B32,'Program Design'!$J:$J,K$29)+SUMIFS('Program Design'!$V:$V,'Program Design'!$C:$C,$A32,'Program Design'!$D:$D,$B32,'Program Design'!$J:$J,K$29)+SUMIFS('Program Design'!$W:$W,'Program Design'!$C:$C,$A32,'Program Design'!$D:$D,$B32,'Program Design'!$J:$J,K$29)+SUMIFS(INDEX(OFFSET('Budget Inputs'!$A$1,6,1,2000,560),0,MATCH(CONCATENATE(K$29," Sub-Total"),OFFSET('Budget Inputs'!$A$1,6,1,1,560),0)),OFFSET('Budget Inputs'!$A$1,6,1,2000,1),$A32,OFFSET('Budget Inputs'!$A$1,6,2,2000,1),$B32),0) -> 0 | L32: =(SUMIFS(OFFSET('Savings Results'!$A$1,6,16 +MAX('Savings Results'!$G:$G)-MIN('Savings Results'!$G:$G)+MAX('Savings Results'!$J:$J)+K$29-MIN('Savings Results'!$G:$G),2000),OFFSET('Savings Results'!$A$1,6,6,2000),K$29,OFFSET('Savings Results'!$A$1,6,4,2000),"Dx",OFFSET('Savings Results'!$A$1,6,1,2000),$A32,OFFSET('Savings Results'!$A$1,6,2,2000),$B32)/(1/(1-SUM('CE Parameters'!$F$10:$F$11))))/1000 -> 0 | M32: =IFERROR(SUMIFS('Program Design'!$U:$U,'Program Design'!$C:$C,$A32,'Program Design'!$D:$D,$B32,'Program Design'!$J:$J,M$29)+SUMIFS('Program Design'!$V:$V,'Program Design'!$C:$C,$A32,'Program Design'!$D:$D,$B32,'Program Design'!$J:$J,M$29)+SUMIFS('Program Design'!$W:$W,'Program Design'!$C:$C,$A32,'Program Design'!$D:$D,$B32,'Program Design'!$J:$J,M$29)+SUMIFS(INDEX(OFFSET('Budget Inputs'!$A$1,6,1,2000,560),0,MATCH(CONCATENATE(M$29," Sub-Total"),OFFSET('Budget Inputs'!$A$1,6,1,1,560),0)),OFFSET('Budget Inputs'!$A$1,6,1,2000,1),$A32,OFFSET('Budget Inputs'!$A$1,6,2,2000,1),$B32),0) -> 0 | N32: =(SUMIFS(OFFSET('Savings Results'!$A$1,6,16 +MAX('Savings Results'!$G:$G)-MIN('Savings Results'!$G:$G)+MAX('Savings Results'!$J:$J)+M$29-MIN('Savings Results'!$G:$G),2000),OFFSET('Savings Results'!$A$1,6,6,2000),M$29,OFFSET('Savings Results'!$A$1,6,4,2000),"Dx",OFFSET('Savings Results'!$A$1,6,1,2000),$A32,OFFSET('Savings Results'!$A$1,6,2,2000),$B32)/(1/(1-SUM('CE Parameters'!$F$10:$F$11))))/1000 -> 0 | O32: =IFERROR(SUMIFS('Program Design'!$U:$U,'Program Design'!$C:$C,$A32,'Program Design'!$D:$D,$B32)+SUMIFS('Program Design'!$V:$V,'Program Design'!$C:$C,$A32,'Program Design'!$D:$D,$B32)+SUMIFS('Program Design'!$W:$W,'Program Design'!$C:$C,$A32,'Program Design'!$D:$D,$B32)+SUMIFS(INDEX(OFFSET('Budget Inputs'!$A$1,6,1,2000,560),0,MATCH("Total",OFFSET('Budget Inputs'!$A$1,6,1,1,560),0)),OFFSET('Budget Inputs'!$A$1,6,1,2000,1),$A32,OFFSET('Budget Inputs'!$A$1,6,2,2000,1),$B32),0) -> 7708400 | P32: =(SUMIFS(OFFSET('Savings Results'!$A$1,6,16+2020-MIN('Program Design'!J:J)+2020 -MIN('Program Design'!J:J)+ MAX('Savings Results'!J:J),2000),OFFSET('Savings Results'!$A$1,6,4,2000),"Dx",OFFSET('Savings Results'!$A$1,6,1,2000),$A32,OFFSET('Savings Results'!$A$1,6,2,2000),$B32)/(1/(1-SUM('CE Parameters'!$F$10:$F$11))))/1000 -> 0
A33: TOTAL | C33: =SUM($C32) -> 0 | D33: =SUM($D32) -> 0 | E33: =SUM($E32) -> 0 | F33: =SUM($F32) -> 0 | G33: =SUM($G32) -> 7708400 | H33: =SUM($H32) -> 0 | I33: =SUM($I32) -> 0 | J33: =SUM($J32) -> 0 | K33: =SUM($K32) -> 0 | L33: =SUM($L32) -> 0 | M33: =SUM($M32) -> 0 | N33: =SUM($N32) -> 0 | O33: =SUM($O32) -> 7708400 | P33: =SUM($P32) -> 0

Sheet Budget
B3: TABLE 4
B4: Budget Result Summary
D5: PROGRAM YEAR
D6: 2017 | E6: 2017 | F6: 2017 | G6: 2017 | H6: 2017
B7: SECTOR | C7: PROGRAM | D7: Incentives | E7: Program Admin | F7: LDC Variable Costs | G7: Central Service Costs | H7: 2017 Sub-Total | I7: Total
B8: Whole Home | C8: Whole Home | D8: 6005200 | E8: 2291000 | F8: 0 | G8: 0 | H8: =SUM($D8:$G8) -> 8296200 | I8: =SUM($D8:$H8)/2 -> 8296200
B9: Total | D9: =SUM(D8) -> 6005200 | E9: =SUM(E8) -> 2291000 | F9: 0 | G9: 0 | H9: 8296200 | I9: 8296200

Sheet Sector
A1: TABLE 5: Sector Summary
A2: Metric | B2: Residential | C2: Non-Residential
A3: % of 2020 Annual Savings (target) | B3: =G9/G21 ->  | C3: =G15/G21 ->  | D3: =IFERROR(IF(SUM(B3:C3)=100%,"","FLAG: some programs are not correctly assigned to either Residential or Non-Residential Sector"),"") -> 
A4: % of Total Incentives | B4: =SUM(B10:G10)/SUM(B22:G22) ->  | C4: =SUM(B16:G16)/SUM(B22:G22) -> 
A5: % of Total Budget | B5: =SUM(B11:G11)/SUM(B23:G23) ->  | C5: =SUM(B17:G17)/SUM(B23:G23) -> 
A7: TABLE 6: Residential Sector Summary
A8: Metric | B8: 2015 | C8: 2016 | D8: 2017 | E8: 2018 | F8: 2019 | G8: 2020
A9: Annual Savings (kWh) | B9: =IF(MIN('Savings Results'!$G:$G)<=B8,(SUMIFS(OFFSET('Savings Results'!$A$1,6,16+MAX('Savings Results'!$G:$G)-MIN('Savings Results'!$G:$G)+MAX('Savings Results'!$J:$J)+B$8-MIN('Savings Results'!$G:$G),2000),OFFSET('Savings Results'!$A$1,6,1,2000),"Residential")/(1/(1-SUM('CE Parameters'!$F$10:$F$11)))),0)/1000 -> 0 | C9: =IF(MIN('Savings Results'!$G:$G)<=C8,(SUMIFS(OFFSET('Savings Results'!$A$1,6,16+MAX('Savings Results'!$G:$G)-MIN('Savings Results'!$G:$G)+MAX('Savings Results'!$J:$J)+C$8-MIN('Savings Results'!$G:$G),2000),OFFSET('Savings Results'!$A$1,6,1,2000),"Residential")/(1/(1-SUM('CE Parameters'!$F$10:$F$11)))),0)/1000 -> 0 | D9: =IF(MIN('Savings Results'!$G:$G)<=D8,(SUMIFS(OFFSET('Savings Results'!$A$1,6,16+MAX('Savings Results'!$G:$G)-MIN('Savings Results'!$G:$G)+MAX('Savings Results'!$J:$J)+D$8-MIN('Savings Results'!$G:$G),2000),OFFSET('Savings Results'!$A$1,6,1,2000),"Residential")/(1/(1-SUM('CE Parameters'!$F$10:$F$11)))),0)/1000 -> 0 | E9: =IF(MIN('Savings Results'!$G:$G)<=E8,(SUMIFS(OFFSET('Savings Results'!$A$1,6,16+MAX('Savings Results'!$G:$G)-MIN('Savings Results'!$G:$G)+MAX('Savings Results'!$J:$J)+E$8-MIN('Savings Results'!$G:$G),2000),OFFSET('Savings Results'!$A$1,6,1,2000),"Residential")/(1/(1-SUM('CE Parameters'!$F$10:$F$11)))),0)/1000 -> 0 | F9: =IF(MIN('Savings Results'!$G:$G)<=F8,(SUMIFS(OFFSET('Savings Results'!$A$1,6,16+MAX('Savings Results'!$G:$G)-MIN('Savings Results'!$G:$G)+MAX('Savings Results'!$J:$J)+F$8-MIN('Savings Results'!$G:$G),2000),OFFSET('Savings Results'!$A$1,6,1,2000),"Residential")/(1/(1-SUM('CE Parameters'!$F$10:$F$11)))),0)/1000 -> 0 | G9: =IF(MIN('Savings Results'!$G:$G)<=G8,(SUMIFS(OFFSET('Savings Results'!$A$1,6,16+MAX('Savings Results'!$G:$G)-MIN('Savings Results'!$G:$G)+MAX('Savings Results'!$J:$J)+G$8-MIN('Savings Results'!$G:$G),2000),OFFSET('Savings Results'!$A$1,6,1,2000),"Residential")/(1/(1-SUM('CE Parameters'!$F$10:$F$11)))),0)/1000 -> 0
A10: Incentive Costs ($) | B10: =SUMIFS('Program Design'!$U:$U,'Program Design'!$C:$C,Sector!$B$2,'Program Design'!$J:$J,Sector!B$8) -> 0 | C10: =SUMIFS('Program Design'!$U:$U,'Program Design'!$C:$C,Sector!$B$2,'Program Design'!$J:$J,Sector!C$8) -> 0 | D10: =SUMIFS('Program Design'!$U:$U,'Program Design'!$C:$C,Sector!$B$2,'Program Design'!$J:$J,Sector!D$8) -> 0 | E10: =SUMIFS('Program Design'!$U:$U,'Program Design'!$C:$C,Sector!$B$2,'Program Design'!$J:$J,Sector!E$8) -> 0 | F10: =SUMIFS('Program Design'!$U:$U,'Program Design'!$C:$C,Sector!$B$2,'Program Design'!$J:$J,Sector!F$8) -> 0 | G10: =SUMIFS('Program Design'!$U:$U,'Program Design'!$C:$C,Sector!$B$2,'Program Design'!$J:$J,Sector!G$8) -> 0
A11: Total Budget ($) | B11: =IFERROR(SUMIF(Budget!$B:$B,Sector!$B$2,INDEX(Budget!$B:$ZP,0,MATCH(Sector!B$8&" Sub-Total",Budget!$B7:$ZP7,0))),0) -> 0 | C11: =IFERROR(SUMIF(Budget!$B:$B,Sector!$B$2,INDEX(Budget!$B:$ZP,0,MATCH(Sector!C$8&" Sub-Total",Budget!$B7:$ZP7,0))),0) -> 0 | D11: =IFERROR(SUMIF(Budget!$B:$B,Sector!$B$2,INDEX(Budget!$B:$ZP,0,MATCH(Sector!D$8&" Sub-Total",Budget!$B7:$ZP7,0))),0) -> 0 | E11: =IFERROR(SUMIF(Budget!$B:$B,Sector!$B$2,INDEX(Budget!$B:$ZP,0,MATCH(Sector!E$8&" Sub-Total",Budget!$B7:$ZP7,0))),0) -> 0 | F11: =IFERROR(SUMIF(Budget!$B:$B,Sector!$B$2,INDEX(Budget!$B:$ZP,0,MATCH(Sector!F$8&" Sub-Total",Budget!$B7:$ZP7,0))),0) -> 0 | G11: =IFERROR(SUMIF(Budget!$B:$B,Sector!$B$2,INDEX(Budget!$B:$ZP,0,MATCH(Sector!G$8&" Sub-Total",Budget!$B7:$ZP7,0))),0) -> 0
A13: TABLE 7: Non-Residential Sector Summary
A14: Metric | B14: 2015 | C14: 2016 | D14: 2017 | E14: 2018 | F14: 2019 | G14: 2020
A15: Annual Savings (kWh) | B15: =IF(MIN('Savings Results'!$G:$G)<=B14,(SUMIFS(OFFSET('Savings Results'!$A$1,6,16+MAX('Savings Results'!$G:$G)-MIN('Savings Results'!$G:$G)+MAX('Savings Results'!$J:$J)+B$14-MIN('Savings Results'!$G:$G),2000),OFFSET('Savings Results'!$A$1,6,1,2000),"Non-Residential")/(1/(1-SUM('CE Parameters'!$F$10:$F$11)))),0)/1000 -> 0 | C15: =IF(MIN('Savings Results'!$G:$G)<=C14,(SUMIFS(OFFSET('Savings Results'!$A$1,6,16+MAX('Savings Results'!$G:$G)-MIN('Savings Results'!$G:$G)+MAX('Savings Results'!$J:$J)+C$14-MIN('Savings Results'!$G:$G),2000),OFFSET('Savings Results'!$A$1,6,1,2000),"Non-Residential")/(1/(1-SUM('CE Parameters'!$F$10:$F$11)))),0)/1000 -> 0 | D15: =IF(MIN('Savings Results'!$G:$G)<=D14,(SUMIFS(OFFSET('Savings Results'!$A$1,6,16+MAX('Savings Results'!$G:$G)-MIN('Savings Results'!$G:$G)+MAX('Savings Results'!$J:$J)+D$14-MIN('Savings Results'!$G:$G),2000),OFFSET('Savings Results'!$A$1,6,1,2000),"Non-Residential")/(1/(1-SUM('CE Parameters'!$F$10:$F$11)))),0)/1000 -> 0 | E15: =IF(MIN('Savings Results'!$G:$G)<=E14,(SUMIFS(OFFSET('Savings Results'!$A$1,6,16+MAX('Savings Results'!$G:$G)-MIN('Savings Results'!$G:$G)+MAX('Savings Results'!$J:$J)+E$14-MIN('Savings Results'!$G:$G),2000),OFFSET('Savings Results'!$A$1,6,1,2000),"Non-Residential")/(1/(1-SUM('CE Parameters'!$F$10:$F$11)))),0)/1000 -> 0 | F15: =IF(MIN('Savings Results'!$G:$G)<=F14,(SUMIFS(OFFSET('Savings Results'!$A$1,6,16+MAX('Savings Results'!$G:$G)-MIN('Savings Results'!$G:$G)+MAX('Savings Results'!$J:$J)+F$14-MIN('Savings Results'!$G:$G),2000),OFFSET('Savings Results'!$A$1,6,1,2000),"Non-Residential")/(1/(1-SUM('CE Parameters'!$F$10:$F$11)))),0)/1000 -> 0 | G15: =IF(MIN('Savings Results'!$G:$G)<=G14,(SUMIFS(OFFSET('Savings Results'!$A$1,6,16+MAX('Savings Results'!$G:$G)-MIN('Savings Results'!$G:$G)+MAX('Savings Results'!$J:$J)+G$14-MIN('Savings Results'!$G:$G),2000),OFFSET('Savings Results'!$A$1,6,1,2000),"Non-Residential")/(1/(1-SUM('CE Parameters'!$F$10:$F$11)))),0)/1000 -> 0
A16: Incentive Costs ($) | B16: =SUMIFS('Program Design'!$U:$U,'Program Design'!$C:$C,Sector!$C$2,'Program Design'!$J:$J,Sector!B$8) -> 0 | C16: =SUMIFS('Program Design'!$U:$U,'Program Design'!$C:$C,Sector!$C$2,'Program Design'!$J:$J,Sector!C$8) -> 0 | D16: =SUMIFS('Program Design'!$U:$U,'Program Design'!$C:$C,Sector!$C$2,'Program Design'!$J:$J,Sector!D$8) -> 0 | E16: =SUMIFS('Program Design'!$U:$U,'Program Design'!$C:$C,Sector!$C$2,'Program Design'!$J:$J,Sector!E$8) -> 0 | F16: =SUMIFS('Program Design'!$U:$U,'Program Design'!$C:$C,Sector!$C$2,'Program Design'!$J:$J,Sector!F$8) -> 0 | G16: =SUMIFS('Program Design'!$U:$U,'Program Design'!$C:$C,Sector!$C$2,'Program Design'!$J:$J,Sector!G$8) -> 0
A17: Total Budget ($) | B17: =IFERROR(SUMIF(Budget!$B:$B,Sector!$C$2,INDEX(Budget!$B:$ZP,0,MATCH(Sector!B$8&" Sub-Total",Budget!$B7:$ZP7,0))),0) -> 0 | C17: =IFERROR(SUMIF(Budget!$B:$B,Sector!$C$2,INDEX(Budget!$B:$ZP,0,MATCH(Sector!C$8&" Sub-Total",Budget!$B7:$ZP7,0))),0) -> 0 | D17: =IFERROR(SUMIF(Budget!$B:$B,Sector!$C$2,INDEX(Budget!$B:$ZP,0,MATCH(Sector!D$8&" Sub-Total",Budget!$B7:$ZP7,0))),0) -> 0 | E17: =IFERROR(SUMIF(Budget!$B:$B,Sector!$C$2,INDEX(Budget!$B:$ZP,0,MATCH(Sector!E$8&" Sub-Total",Budget!$B7:$ZP7,0))),0) -> 0 | F17: =IFERROR(SUMIF(Budget!$B:$B,Sector!$C$2,INDEX(Budget!$B:$ZP,0,MATCH(Sector!F$8&" Sub-Total",Budget!$B7:$ZP7,0))),0) -> 0 | G17: =IFERROR(SUMIF(Budget!$B:$B,Sector!$C$2,INDEX(Budget!$B:$ZP,0,MATCH(Sector!G$8&" Sub-Total",Budget!$B7:$ZP7,0))),0) -> 0
A19: TABLE 8: Total Portfolio Summary
A20: Metric | B20: 2015 | C20: 2016 | D20: 2017 | E20: 2018 | F20: 2019 | G20: 2020
A21: Annual Savings (kWh) | B21: =B9+B15 -> 0 | C21: 0 | D21: 0 | E21: 0 | F21: 0 | G21: 0
A22: Incentive Costs ($) | B22: =B10+B16 -> 0 | C22: 0 | D22: 0 | E22: 0 | F22: 0 | G22: 0
A23: Total Budget ($) | B23: 0 | C23: 0 | D23: 0 | E23: 0 | F23: 0 | G23: 0
A25: TABLE 9: Home Assistance Program Summary
A26: Metric | B26: Home Assistance Program (HAP)
A27: % of 2020 Annual Savings (target) | B27: =G34/G21 -> 
A28: % of Total Incentives | B28: =SUM(B35:G35)/SUM(B22:G22) -> 
A29: % of Total Budget | B29: =SUM(B36:G36)/SUM(B23:G23) -> 
A31: TABLE 10: Home Assistance Program by Year
A32: Metric | B32: 2015 | C32: 2016 | D32: 2017 | E32: 2018 | F32: 2019 | G32: 2020
A33: Number of Projects | B33: =SUMIFS('Program Design'!$K:$K,'Program Design'!$J:$J,Sector!B$8,'Program Design'!$D:$D,$B26) -> 0 | C33: =SUMIFS('Program Design'!$K:$K,'Program Design'!$J:$J,Sector!C$8,'Program Design'!$D:$D,$B26) -> 0 | D33: =SUMIFS('Program Design'!$K:$K,'Program Design'!$J:$J,Sector!D$8,'Program Design'!$D:$D,$B26) -> 0 | E33: =SUMIFS('Program Design'!$K:$K,'Program Design'!$J:$J,Sector!E$8,'Program Design'!$D:$D,$B26) -> 0 | F33: =SUMIFS('Program Design'!$K:$K,'Program Design'!$J:$J,Sector!F$8,'Program Design'!$D:$D,$B26) -> 0 | G33: =SUMIFS('Program Design'!$K:$K,'Program Design'!$J:$J,Sector!G$8,'Program Design'!$D:$D,$B26) -> 0
A34: Annual Savings (kWh) | B34: =IF(MIN('Savings Results'!$G:$G)<=B32,(SUMIFS(OFFSET('Savings Results'!$A$1,6,16+MAX('Savings Results'!$G:$G)-MIN('Savings Results'!$G:$G)+MAX('Savings Results'!$J:$J)+B$32-MIN('Savings Results'!$G:$G),2000),OFFSET('Savings Results'!$A$1,6,2,2000),$B$26)/(1/(1-SUM('CE Parameters'!$F$10:$F$11)))),0)/1000 -> 0 | C34: =IF(MIN('Savings Results'!$G:$G)<=C32,(SUMIFS(OFFSET('Savings Results'!$A$1,6,16+MAX('Savings Results'!$G:$G)-MIN('Savings Results'!$G:$G)+MAX('Savings Results'!$J:$J)+C$32-MIN('Savings Results'!$G:$G),2000),OFFSET('Savings Results'!$A$1,6,2,2000),$B$26)/(1/(1-SUM('CE Parameters'!$F$10:$F$11)))),0)/1000 -> 0 | D34: =IF(MIN('Savings Results'!$G:$G)<=D32,(SUMIFS(OFFSET('Savings Results'!$A$1,6,16+MAX('Savings Results'!$G:$G)-MIN('Savings Results'!$G:$G)+MAX('Savings Results'!$J:$J)+D$32-MIN('Savings Results'!$G:$G),2000),OFFSET('Savings Results'!$A$1,6,2,2000),$B$26)/(1/(1-SUM('CE Parameters'!$F$10:$F$11)))),0)/1000 -> 0 | E34: =IF(MIN('Savings Results'!$G:$G)<=E32,(SUMIFS(OFFSET('Savings Results'!$A$1,6,16+MAX('Savings Results'!$G:$G)-MIN('Savings Results'!$G:$G)+MAX('Savings Results'!$J:$J)+E$32-MIN('Savings Results'!$G:$G),2000),OFFSET('Savings Results'!$A$1,6,2,2000),$B$26)/(1/(1-SUM('CE Parameters'!$F$10:$F$11)))),0)/1000 -> 0 | F34: =IF(MIN('Savings Results'!$G:$G)<=F32,(SUMIFS(OFFSET('Savings Results'!$A$1,6,16+MAX('Savings Results'!$G:$G)-MIN('Savings Results'!$G:$G)+MAX('Savings Results'!$J:$J)+F$32-MIN('Savings Results'!$G:$G),2000),OFFSET('Savings Results'!$A$1,6,2,2000),$B$26)/(1/(1-SUM('CE Parameters'!$F$10:$F$11)))),0)/1000 -> 0 | G34: =IF(MIN('Savings Results'!$G:$G)<=G32,(SUMIFS(OFFSET('Savings Results'!$A$1,6,16+MAX('Savings Results'!$G:$G)-MIN('Savings Results'!$G:$G)+MAX('Savings Results'!$J:$J)+G$32-MIN('Savings Results'!$G:$G),2000),OFFSET('Savings Results'!$A$1,6,2,2000),$B$26)/(1/(1-SUM('CE Parameters'!$F$10:$F$11)))),0)/1000 -> 0
A35: Incentive Costs ($) | B35: =SUMIFS('Program Design'!$U:$U,'Program Design'!$D:$D,$B$26,'Program Design'!$J:$J,Sector!B$8) -> 0 | C35: =SUMIFS('Program Design'!$U:$U,'Program Design'!$D:$D,$B$26,'Program Design'!$J:$J,Sector!C$8) -> 0 | D35: =SUMIFS('Program Design'!$U:$U,'Program Design'!$D:$D,$B$26,'Program Design'!$J:$J,Sector!D$8) -> 0 | E35: =SUMIFS('Program Design'!$U:$U,'Program Design'!$D:$D,$B$26,'Program Design'!$J:$J,Sector!E$8) -> 0 | F35: =SUMIFS('Program Design'!$U:$U,'Program Design'!$D:$D,$B$26,'Program Design'!$J:$J,Sector!F$8) -> 0 | G35: =SUMIFS('Program Design'!$U:$U,'Program Design'!$D:$D,$B$26,'Program Design'!$J:$J,Sector!G$8) -> 0
A36: Total Budget ($) | B36: =IFERROR(SUMIF(Budget!$C:$C,"Home Assistance Program (HAP)",INDEX(Budget!$B:$ZP,0,MATCH(Sector!B$8&" Sub-Total",Budget!$B7:$ZP7,0))),0) -> 0 | C36: =IFERROR(SUMIF(Budget!$C:$C,"Home Assistance Program (HAP)",INDEX(Budget!$B:$ZP,0,MATCH(Sector!C$8&" Sub-Total",Budget!$B7:$ZP7,0))),0) -> 0 | D36: =IFERROR(SUMIF(Budget!$C:$C,"Home Assistance Program (HAP)",INDEX(Budget!$B:$ZP,0,MATCH(Sector!D$8&" Sub-Total",Budget!$B7:$ZP7,0))),0) -> 0 | E36: =IFERROR(SUMIF(Budget!$C:$C,"Home Assistance Program (HAP)",INDEX(Budget!$B:$ZP,0,MATCH(Sector!E$8&" Sub-Total",Budget!$B7:$ZP7,0))),0) -> 0 | F36: =IFERROR(SUMIF(Budget!$C:$C,"Home Assistance Program (HAP)",INDEX(Budget!$B:$ZP,0,MATCH(Sector!F$8&" Sub-Total",Budget!$B7:$ZP7,0))),0) -> 0 | G36: =IFERROR(SUMIF(Budget!$C:$C,"Home Assistance Program (HAP)",INDEX(Budget!$B:$ZP,0,MATCH(Sector!G$8&" Sub-Total",Budget!$B7:$ZP7,0))),0) -> 0

Sheet Detail
B1: Detailed CDM Portfolio Summary
B3: TABLE 11:
B4: SUMMARY OF CDM PORTFOLIO COST EFFECTIVENESS
C5: Plan Cost Effectiveness | D5: Implementation Year | E5: TRC | H5: PACT | K5: Levelized Cost
E6: Benefits ($) | F6: Costs ($) | G6: Ratio | H6: Benefits ($) | I6: Costs ($) | J6: Ratio | K6: PV of Lifetime Net Energy Savings (kWh) | L6: Costs ($) | M6: ($/kWh)
D7: 2015 | E7: =SUMIFS('Program Design'!$X:$X,'Program Design'!$J:$J,$D7) -> 0 | F7: =SUMIFS('Program Design'!$Y:$Y,'Program Design'!$J:$J,$D7)+IFERROR(SUMIFS(INDEX(OFFSET('Budget Inputs'!$A$1,6,1,2000,560),0,MATCH(CONCATENATE($D7," Sub-Total"),OFFSET('Budget Inputs'!$A$1,6,1,1,560),0)),OFFSET('Budget Inputs'!$A$1,6,1,2000,1),"Total")*INDEX(OFFSET('Levelized Avoided Cost Table'!$A$1,7,1,900,20),MATCH(CONCATENATE($D7,"_",1),OFFSET('Levelized Avoided Cost Table'!$A$1,7,1,900,1),0),MATCH("Discount Factor",OFFSET('Levelized Avoided Cost Table'!$A$1,7,1,1,20),0)),0) -> 0 | G7: =IF(E7=0,"",E7/F7) ->  | H7: =SUMIFS('Program Design'!$AF:$AF,'Program Design'!$J:$J,$D7) -> 0 | I7: =SUMIFS('Program Design'!$AG:$AG,'Program Design'!$J:$J,$D7)+IFERROR(SUMIFS(INDEX(OFFSET('Budget Inputs'!$A$1,6,1,2000,560),0,MATCH(CONCATENATE($D7," Sub-Total"),OFFSET('Budget Inputs'!$A$1,6,1,1,560),0)),OFFSET('Budget Inputs'!$A$1,6,1,2000,1),"Total")*INDEX(OFFSET('Levelized Avoided Cost Table'!$A$1,7,1,900,20),MATCH(CONCATENATE($D7,"_",1),OFFSET('Levelized Avoided Cost Table'!$A$1,7,1,900,1),0),MATCH("Discount Factor",OFFSET('Levelized Avoided Cost Table'!$A$1,7,1,1,20),0)),0) -> 0 | J7: =IF(H7=0,"",H7/I7) ->  | K7: =SUMIFS('Program Design'!$AS:$AS,'Program Design'!$J:$J,$D7) -> 0 | L7: =IFERROR(SUMIFS('Program Design'!$AT:$AT,'Program Design'!$J:$J,$D7)+(SUMIFS(INDEX(OFFSET('Budget Inputs'!$A$1,6,1,2000,560),0,MATCH(CONCATENATE($D7," Sub-Total"),OFFSET('Budget Inputs'!$A$1,6,1,1,560),0)),OFFSET('Budget Inputs'!$A$1,6,1,2000,1),"Total")*INDEX(OFFSET('Levelized Avoided Cost Table'!$A$1,7,1,900,20),MATCH(CONCATENATE($D7,"_",1),OFFSET('Levelized Avoided Cost Table'!$A$1,7,1,900,1),0),MATCH("Discount Factor",OFFSET('Levelized Avoided Cost Table'!$A$1,7,1,1,20),0))),0) -> 0 | M7: =IF(K7=0,"",L7/K7) -> 
D8: 2016 | E8: =SUMIFS('Program Design'!$X:$X,'Program Design'!$J:$J,$D8) -> 0 | F8: =SUMIFS('Program Design'!$Y:$Y,'Program Design'!$J:$J,$D8)+IFERROR(SUMIFS(INDEX(OFFSET('Budget Inputs'!$A$1,6,1,2000,560),0,MATCH(CONCATENATE($D8," Sub-Total"),OFFSET('Budget Inputs'!$A$1,6,1,1,560),0)),OFFSET('Budget Inputs'!$A$1,6,1,2000,1),"Total")*INDEX(OFFSET('Levelized Avoided Cost Table'!$A$1,7,1,900,20),MATCH(CONCATENATE($D8,"_",1),OFFSET('Levelized Avoided Cost Table'!$A$1,7,1,900,1),0),MATCH("Discount Factor",OFFSET('Levelized Avoided Cost Table'!$A$1,7,1,1,20),0)),0) -> 0 | H8: =SUMIFS('Program Design'!$AF:$AF,'Program Design'!$J:$J,$D8) -> 0 | I8: =SUMIFS('Program Design'!$AG:$AG,'Program Design'!$J:$J,$D8)+IFERROR(SUMIFS(INDEX(OFFSET('Budget Inputs'!$A$1,6,1,2000,560),0,MATCH(CONCATENATE($D8," Sub-Total"),OFFSET('Budget Inputs'!$A$1,6,1,1,560),0)),OFFSET('Budget Inputs'!$A$1,6,1,2000,1),"Total")*INDEX(OFFSET('Levelized Avoided Cost Table'!$A$1,7,1,900,20),MATCH(CONCATENATE($D8,"_",1),OFFSET('Levelized Avoided Cost Table'!$A$1,7,1,900,1),0),MATCH("Discount Factor",OFFSET('Levelized Avoided Cost Table'!$A$1,7,1,1,20),0)),0) -> 0 | K8: =SUMIFS('Program Design'!$AS:$AS,'Program Design'!$J:$J,$D8) -> 0 | L8: =IFERROR(SUMIFS('Program Design'!$AT:$AT,'Program Design'!$J:$J,$D8)+(SUMIFS(INDEX(OFFSET('Budget Inputs'!$A$1,6,1,2000,560),0,MATCH(CONCATENATE($D8," Sub-Total"),OFFSET('Budget Inputs'!$A$1,6,1,1,560),0)),OFFSET('Budget Inputs'!$A$1,6,1,2000,1),"Total")*INDEX(OFFSET('Levelized Avoided Cost Table'!$A$1,7,1,900,20),MATCH(CONCATENATE($D8,"_",1),OFFSET('Levelized Avoided Cost Table'!$A$1,7,1,900,1),0),MATCH("Discount Factor",OFFSET('Levelized Avoided Cost Table'!$A$1,7,1,1,20),0))),0) -> 0
D9: 2017 | E9: =SUMIFS('Program Design'!$X:$X,'Program Design'!$J:$J,$D9) -> 10801704.73 | F9: =SUMIFS('Program Design'!$Y:$Y,'Program Design'!$J:$J,$D9)+IFERROR(SUMIFS(INDEX(OFFSET('Budget Inputs'!$A$1,6,1,2000,560),0,MATCH(CONCATENATE($D9," Sub-Total"),OFFSET('Budget Inputs'!$A$1,6,1,1,560),0)),OFFSET('Budget Inputs'!$A$1,6,1,2000,1),"Total")*INDEX(OFFSET('Levelized Avoided Cost Table'!$A$1,7,1,900,20),MATCH(CONCATENATE($D9,"_",1),OFFSET('Levelized Avoided Cost Table'!$A$1,7,1,900,1),0),MATCH("Discount Factor",OFFSET('Levelized Avoided Cost Table'!$A$1,7,1,1,20),0)),0) -> 10676817.09 | G9: 1.011697086 | H9: =SUMIFS('Program Design'!$AF:$AF,'Program Design'!$J:$J,$D9) -> 9392786.724 | I9: =SUMIFS('Program Design'!$AG:$AG,'Program Design'!$J:$J,$D9)+IFERROR(SUMIFS(INDEX(OFFSET('Budget Inputs'!$A$1,6,1,2000,560),0,MATCH(CONCATENATE($D9," Sub-Total"),OFFSET('Budget Inputs'!$A$1,6,1,1,560),0)),OFFSET('Budget Inputs'!$A$1,6,1,2000,1),"Total")*INDEX(OFFSET('Levelized Avoided Cost Table'!$A$1,7,1,900,20),MATCH(CONCATENATE($D9,"_",1),OFFSET('Levelized Avoided Cost Table'!$A$1,7,1,900,1),0),MATCH("Discount Factor",OFFSET('Levelized Avoided Cost Table'!$A$1,7,1,1,20),0)),0) -> 7409073.433 | J9: 1.267741076 | K9: =SUMIFS('Program Design'!$AS:$AS,'Program Design'!$J:$J,$D9) -> 93326377.16 | L9: =IFERROR(SUMIFS('Program Design'!$AT:$AT,'Program Design'!$J:$J,$D9)+(SUMIFS(INDEX(OFFSET('Budget Inputs'!$A$1,6,1,2000,560),0,MATCH(CONCATENATE($D9," Sub-Total"),OFFSET('Budget Inputs'!$A$1,6,1,1,560),0)),OFFSET('Budget Inputs'!$A$1,6,1,2000,1),"Total")*INDEX(OFFSET('Levelized Avoided Cost Table'!$A$1,7,1,900,20),MATCH(CONCATENATE($D9,"_",1),OFFSET('Levelized Avoided Cost Table'!$A$1,7,1,900,1),0),MATCH("Discount Factor",OFFSET('Levelized Avoided Cost Table'!$A$1,7,1,1,20),0))),0) -> 7409073.433 | M9: 0.07938884653
D10: 2018 | E10: =SUMIFS('Program Design'!$X:$X,'Program Design'!$J:$J,$D10) -> 0 | F10: =SUMIFS('Program Design'!$Y:$Y,'Program Design'!$J:$J,$D10)+IFERROR(SUMIFS(INDEX(OFFSET('Budget Inputs'!$A$1,6,1,2000,560),0,MATCH(CONCATENATE($D10," Sub-Total"),OFFSET('Budget Inputs'!$A$1,6,1,1,560),0)),OFFSET('Budget Inputs'!$A$1,6,1,2000,1),"Total")*INDEX(OFFSET('Levelized Avoided Cost Table'!$A$1,7,1,900,20),MATCH(CONCATENATE($D10,"_",1),OFFSET('Levelized Avoided Cost Table'!$A$1,7,1,900,1),0),MATCH("Discount Factor",OFFSET('Levelized Avoided Cost Table'!$A$1,7,1,1,20),0)),0) -> 0 | H10: =SUMIFS('Program Design'!$AF:$AF,'Program Design'!$J:$J,$D10) -> 0 | I10: =SUMIFS('Program Design'!$AG:$AG,'Program Design'!$J:$J,$D10)+IFERROR(SUMIFS(INDEX(OFFSET('Budget Inputs'!$A$1,6,1,2000,560),0,MATCH(CONCATENATE($D10," Sub-Total"),OFFSET('Budget Inputs'!$A$1,6,1,1,560),0)),OFFSET('Budget Inputs'!$A$1,6,1,2000,1),"Total")*INDEX(OFFSET('Levelized Avoided Cost Table'!$A$1,7,1,900,20),MATCH(CONCATENATE($D10,"_",1),OFFSET('Levelized Avoided Cost Table'!$A$1,7,1,900,1),0),MATCH("Discount Factor",OFFSET('Levelized Avoided Cost Table'!$A$1,7,1,1,20),0)),0) -> 0 | K10: =SUMIFS('Program Design'!$AS:$AS,'Program Design'!$J:$J,$D10) -> 0 | L10: =IFERROR(SUMIFS('Program Design'!$AT:$AT,'Program Design'!$J:$J,$D10)+(SUMIFS(INDEX(OFFSET('Budget Inputs'!$A$1,6,1,2000,560),0,MATCH(CONCATENATE($D10," Sub-Total"),OFFSET('Budget Inputs'!$A$1,6,1,1,560),0)),OFFSET('Budget Inputs'!$A$1,6,1,2000,1),"Total")*INDEX(OFFSET('Levelized Avoided Cost Table'!$A$1,7,1,900,20),MATCH(CONCATENATE($D10,"_",1),OFFSET('Levelized Avoided Cost Table'!$A$1,7,1,900,1),0),MATCH("Discount Factor",OFFSET('Levelized Avoided Cost Table'!$A$1,7,1,1,20),0))),0) -> 0
D11: 2019 | E11: =SUMIFS('Program Design'!$X:$X,'Program Design'!$J:$J,$D11) -> 0 | F11: =SUMIFS('Program Design'!$Y:$Y,'Program Design'!$J:$J,$D11)+IFERROR(SUMIFS(INDEX(OFFSET('Budget Inputs'!$A$1,6,1,2000,560),0,MATCH(CONCATENATE($D11," Sub-Total"),OFFSET('Budget Inputs'!$A$1,6,1,1,560),0)),OFFSET('Budget Inputs'!$A$1,6,1,2000,1),"Total")*INDEX(OFFSET('Levelized Avoided Cost Table'!$A$1,7,1,900,20),MATCH(CONCATENATE($D11,"_",1),OFFSET('Levelized Avoided Cost Table'!$A$1,7,1,900,1),0),MATCH("Discount Factor",OFFSET('Levelized Avoided Cost Table'!$A$1,7,1,1,20),0)),0) -> 0 | H11: =SUMIFS('Program Design'!$AF:$AF,'Program Design'!$J:$J,$D11) -> 0 | I11: =SUMIFS('Program Design'!$AG:$AG,'Program Design'!$J:$J,$D11)+IFERROR(SUMIFS(INDEX(OFFSET('Budget Inputs'!$A$1,6,1,2000,560),0,MATCH(CONCATENATE($D11," Sub-Total"),OFFSET('Budget Inputs'!$A$1,6,1,1,560),0)),OFFSET('Budget Inputs'!$A$1,6,1,2000,1),"Total")*INDEX(OFFSET('Levelized Avoided Cost Table'!$A$1,7,1,900,20),MATCH(CONCATENATE($D11,"_",1),OFFSET('Levelized Avoided Cost Table'!$A$1,7,1,900,1),0),MATCH("Discount Factor",OFFSET('Levelized Avoided Cost Table'!$A$1,7,1,1,20),0)),0) -> 0 | K11: =SUMIFS('Program Design'!$AS:$AS,'Program Design'!$J:$J,$D11) -> 0 | L11: =IFERROR(SUMIFS('Program Design'!$AT:$AT,'Program Design'!$J:$J,$D11)+(SUMIFS(INDEX(OFFSET('Budget Inputs'!$A$1,6,1,2000,560),0,MATCH(CONCATENATE($D11," Sub-Total"),OFFSET('Budget Inputs'!$A$1,6,1,1,560),0)),OFFSET('Budget Inputs'!$A$1,6,1,2000,1),"Total")*INDEX(OFFSET('Levelized Avoided Cost Table'!$A$1,7,1,900,20),MATCH(CONCATENATE($D11,"_",1),OFFSET('Levelized Avoided Cost Table'!$A$1,7,1,900,1),0),MATCH("Discount Factor",OFFSET('Levelized Avoided Cost Table'!$A$1,7,1,1,20),0))),0) -> 0
D12: 2020 | E12: =SUMIFS('Program Design'!$X:$X,'Program Design'!$J:$J,$D12) -> 0 | F12: =SUMIFS('Program Design'!$Y:$Y,'Program Design'!$J:$J,$D12)+IFERROR(SUMIFS(INDEX(OFFSET('Budget Inputs'!$A$1,6,1,2000,560),0,MATCH(CONCATENATE($D12," Sub-Total"),OFFSET('Budget Inputs'!$A$1,6,1,1,560),0)),OFFSET('Budget Inputs'!$A$1,6,1,2000,1),"Total")*INDEX(OFFSET('Levelized Avoided Cost Table'!$A$1,7,1,900,20),MATCH(CONCATENATE($D12,"_",1),OFFSET('Levelized Avoided Cost Table'!$A$1,7,1,900,1),0),MATCH("Discount Factor",OFFSET('Levelized Avoided Cost Table'!$A$1,7,1,1,20),0)),0) -> 0 | H12: =SUMIFS('Program Design'!$AF:$AF,'Program Design'!$J:$J,$D12) -> 0 | I12: =SUMIFS('Program Design'!$AG:$AG,'Program Design'!$J:$J,$D12)+IFERROR(SUMIFS(INDEX(OFFSET('Budget Inputs'!$A$1,6,1,2000,560),0,MATCH(CONCATENATE($D12," Sub-Total"),OFFSET('Budget Inputs'!$A$1,6,1,1,560),0)),OFFSET('Budget Inputs'!$A$1,6,1,2000,1),"Total")*INDEX(OFFSET('Levelized Avoided Cost Table'!$A$1,7,1,900,20),MATCH(CONCATENATE($D12,"_",1),OFFSET('Levelized Avoided Cost Table'!$A$1,7,1,900,1),0),MATCH("Discount Factor",OFFSET('Levelized Avoided Cost Table'!$A$1,7,1,1,20),0)),0) -> 0 | K12: =SUMIFS('Program Design'!$AS:$AS,'Program Design'!$J:$J,$D12) -> 0 | L12: =IFERROR(SUMIFS('Program Design'!$AT:$AT,'Program Design'!$J:$J,$D12)+(SUMIFS(INDEX(OFFSET('Budget Inputs'!$A$1,6,1,2000,560),0,MATCH(CONCATENATE($D12," Sub-Total"),OFFSET('Budget Inputs'!$A$1,6,1,1,560),0)),OFFSET('Budget Inputs'!$A$1,6,1,2000,1),"Total")*INDEX(OFFSET('Levelized Avoided Cost Table'!$A$1,7,1,900,20),MATCH(CONCATENATE($D12,"_",1),OFFSET('Levelized Avoided Cost Table'!$A$1,7,1,900,1),0),MATCH("Discount Factor",OFFSET('Levelized Avoided Cost Table'!$A$1,7,1,1,20),0))),0) -> 0
D13: Plan Total | E13: =SUM(E7:E12) -> 10801704.73 | F13: =SUM(F7:F12) -> 10676817.09 | G13: =IF(E13="","",E13/F13) -> 1.011697086 | H13: =SUM(H7:H12) -> 9392786.724 | I13: =SUM(I7:I12) -> 7409073.433 | J13: =IF(H13="","",H13/I13) -> 1.267741076 | K13: =SUM(K7:K12) -> 93326377.16 | L13: =SUM(L7:L12) -> 7409073.433 | M13: =IF(K13="","",L13/K13) -> 0.07938884653
B15: TABLE 12:
B16: SUMMARY OF PERSISTING CDM PORTFOLIO SAVINGS
C17: Plan Persisting Savings (end-user level) | D17: Implementation Year | E17: 2015 | G17: 2016 | I17: 2017 | K17: 2018 | M17: 2019 | O17: 2020 | Q17: 2021 | S17: 2022 | U17: 2023 | W17: 2024 | Y17: 2025 | AA17: 2026 | AC17: 2027 | AE17: 2028 | AG17: 2029 | AI17: 2030 | AK17: 2031 | AM17: 2032
E18: MW | F18: MWh | G18: MW | H18: MWh | I18: MW | J18: MWh | K18: MW | L18: MWh | M18: MW | N18: MWh | O18: MW | P18: MWh | Q18: MW | R18: MWh | S18: MW | T18: MWh | U18: MW | V18: MWh | W18: MW | X18: MWh | Y18: MW | Z18: MWh | AA18: MW | AB18: MWh | AC18: MW | AD18: MWh | AE18: MW | AF18: MWh | AG18: MW | AH18: MWh | AI18: MW | AJ18: MWh | AK18: MW | AL18: MWh | AM18: MW | AN18: MWh
D19: 2015 | E19: =IF(OFFSET('Savings Results'!$A$1,5,16 +E$17-MIN('Savings Results'!$G:$G))=E$17,(SUMIFS(OFFSET('Savings Results'!$A$1,6,16 +E$17-MIN('Savings Results'!$G:$G),2000),OFFSET('Savings Results'!$A$1,6,4,2000),"Dx",OFFSET('Savings Results'!$A$1,6,6,2000),$D19)/(1/(1-SUM('CE Parameters'!$F$10:$F$11))))/1000,0) -> 0 | F19: =IF(OFFSET('Savings Results'!$A$1,5,16 +MAX('Savings Results'!$G:$G)-MIN('Savings Results'!$G:$G)+MAX('Savings Results'!$J:$J)+E$17-MIN('Savings Results'!$G:$G))=E$17,(SUMIFS(OFFSET('Savings Results'!$A$1,6,16 +MAX('Savings Results'!$G:$G)-MIN('Savings Results'!$G:$G)+MAX('Savings Results'!$J:$J)+E$17-MIN('Savings Results'!$G:$G),2000),OFFSET('Savings Results'!$A$1,6,4,2000),"Dx",OFFSET('Savings Results'!$A$1,6,6,2000),$D19)/(1/(1-SUM('CE Parameters'!$F$10:$F$11))))/1000,0) -> 0 | G19: =IF(OFFSET('Savings Results'!$A$1,5,16 +G$17-MIN('Savings Results'!$G:$G))=G$17,(SUMIFS(OFFSET('Savings Results'!$A$1,6,16 +G$17-MIN('Savings Results'!$G:$G),2000),OFFSET('Savings Results'!$A$1,6,4,2000),"Dx",OFFSET('Savings Results'!$A$1,6,6,2000),$D19)/(1/(1-SUM('CE Parameters'!$F$10:$F$11))))/1000,0) -> 0 | H19: =IF(OFFSET('Savings Results'!$A$1,5,16 +MAX('Savings Results'!$G:$G)-MIN('Savings Results'!$G:$G)+MAX('Savings Results'!$J:$J)+G$17-MIN('Savings Results'!$G:$G))=G$17,(SUMIFS(OFFSET('Savings Results'!$A$1,6,16 +MAX('Savings Results'!$G:$G)-MIN('Savings Results'!$G:$G)+MAX('Savings Results'!$J:$J)+G$17-MIN('Savings Results'!$G:$G),2000),OFFSET('Savings Results'!$A$1,6,4,2000),"Dx",OFFSET('Savings Results'!$A$1,6,6,2000),$D19)/(1/(1-SUM('CE Parameters'!$F$10:$F$11))))/1000,0) -> 0 | I19: =IF(OFFSET('Savings Results'!$A$1,5,16 +I$17-MIN('Savings Results'!$G:$G))=I$17,(SUMIFS(OFFSET('Savings Results'!$A$1,6,16 +I$17-MIN('Savings Results'!$G:$G),2000),OFFSET('Savings Results'!$A$1,6,4,2000),"Dx",OFFSET('Savings Results'!$A$1,6,6,2000),$D19)/(1/(1-SUM('CE Parameters'!$F$10:$F$11))))/1000,0) -> 0 | J19: =IF(OFFSET('Savings Results'!$A$1,5,16 +MAX('Savings Results'!$G:$G)-MIN('Savings Results'!$G:$G)+MAX('Savings Results'!$J:$J)+I$17-MIN('Savings Results'!$G:$G))=I$17,(SUMIFS(OFFSET('Savings Results'!$A$1,6,16 +MAX('Savings Results'!$G:$G)-MIN('Savings Results'!$G:$G)+MAX('Savings Results'!$J:$J)+I$17-MIN('Savings Results'!$G:$G),2000),OFFSET('Savings Results'!$A$1,6,4,2000),"Dx",OFFSET('Savings Results'!$A$1,6,6,2000),$D19)/(1/(1-SUM('CE Parameters'!$F$10:$F$11))))/1000,0) -> 0 | K19: =IF(OFFSET('Savings Results'!$A$1,5,16 +K$17-MIN('Savings Results'!$G:$G))=K$17,(SUMIFS(OFFSET('Savings Results'!$A$1,6,16 +K$17-MIN('Savings Results'!$G:$G),2000),OFFSET('Savings Results'!$A$1,6,4,2000),"Dx",OFFSET('Savings Results'!$A$1,6,6,2000),$D19)/(1/(1-SUM('CE Parameters'!$F$10:$F$11))))/1000,0) -> 0 | L19: =IF(OFFSET('Savings Results'!$A$1,5,16 +MAX('Savings Results'!$G:$G)-MIN('Savings Results'!$G:$G)+MAX('Savings Results'!$J:$J)+K$17-MIN('Savings Results'!$G:$G))=K$17,(SUMIFS(OFFSET('Savings Results'!$A$1,6,16 +MAX('Savings Results'!$G:$G)-MIN('Savings Results'!$G:$G)+MAX('Savings Results'!$J:$J)+K$17-MIN('Savings Results'!$G:$G),2000),OFFSET('Savings Results'!$A$1,6,4,2000),"Dx",OFFSET('Savings Results'!$A$1,6,6,2000),$D19)/(1/(1-SUM('CE Parameters'!$F$10:$F$11))))/1000,0) -> 0 | M19: =IF(OFFSET('Savings Results'!$A$1,5,16 +M$17-MIN('Savings Results'!$G:$G))=M$17,(SUMIFS(OFFSET('Savings Results'!$A$1,6,16 +M$17-MIN('Savings Results'!$G:$G),2000),OFFSET('Savings Results'!$A$1,6,4,2000),"Dx",OFFSET('Savings Results'!$A$1,6,6,2000),$D19)/(1/(1-SUM('CE Parameters'!$F$10:$F$11))))/1000,0) -> 0 | N19: =IF(OFFSET('Savings Results'!$A$1,5,16 +MAX('Savings Results'!$G:$G)-MIN('Savings Results'!$G:$G)+MAX('Savings Results'!$J:$J)+M$17-MIN('Savings Results'!$G:$G))=M$17,(SUMIFS(OFFSET('Savings Results'!$A$1,6,16 +MAX('Savings Results'!$G:$G)-MIN('Savings Results'!$G:$G)+MAX('Savings Results'!$J:$J)+M$17-MIN('Savings Results'!$G:$G),2000),OFFSET('Savings Results'!$A$1,6,4,2000),"Dx",OFFSET('Savings Results'!$A$1,6,6,2000),$D19)/(1/(1-SUM('CE Parameters'!$F$10:$F$11))))/1000,0) -> 0 | O19: =IF(OFFSET('Savings Results'!$A$1,5,16 +O$17-MIN('Savings Results'!$G:$G))=O$17,(SUMIFS(OFFSET('Savings Results'!$A$1,6,16 +O$17-MIN('Savings Results'!$G:$G),2000),OFFSET('Savings Results'!$A$1,6,4,2000),"Dx",OFFSET('Savings Results'!$A$1,6,6,2000),$D19)/(1/(1-SUM('CE Parameters'!$F$10:$F$11))))/1000,0) -> 0 | P19: =IF(OFFSET('Savings Results'!$A$1,5,16 +MAX('Savings Results'!$G:$G)-MIN('Savings Results'!$G:$G)+MAX('Savings Results'!$J:$J)+O$17-MIN('Savings Results'!$G:$G))=O$17,(SUMIFS(OFFSET('Savings Results'!$A$1,6,16 +MAX('Savings Results'!$G:$G)-MIN('Savings Results'!$G:$G)+MAX('Savings Results'!$J:$J)+O$17-MIN('Savings Results'!$G:$G),2000),OFFSET('Savings Results'!$A$1,6,4,2000),"Dx",OFFSET('Savings Results'!$A$1,6,6,2000),$D19)/(1/(1-SUM('CE Parameters'!$F$10:$F$11))))/1000,0) -> 0 | Q19: =IF(OFFSET('Savings Results'!$A$1,5,16 +Q$17-MIN('Savings Results'!$G:$G))=Q$17,(SUMIFS(OFFSET('Savings Results'!$A$1,6,16 +Q$17-MIN('Savings Results'!$G:$G),2000),OFFSET('Savings Results'!$A$1,6,4,2000),"Dx",OFFSET('Savings Results'!$A$1,6,6,2000),$D19)/(1/(1-SUM('CE Parameters'!$F$10:$F$11))))/1000,0) -> 0 | R19: =IF(OFFSET('Savings Results'!$A$1,5,16 +MAX('Savings Results'!$G:$G)-MIN('Savings Results'!$G:$G)+MAX('Savings Results'!$J:$J)+Q$17-MIN('Savings Results'!$G:$G))=Q$17,(SUMIFS(OFFSET('Savings Results'!$A$1,6,16 +MAX('Savings Results'!$G:$G)-MIN('Savings Results'!$G:$G)+MAX('Savings Results'!$J:$J)+Q$17-MIN('Savings Results'!$G:$G),2000),OFFSET('Savings Results'!$A$1,6,4,2000),"Dx",OFFSET('Savings Results'!$A$1,6,6,2000),$D19)/(1/(1-SUM('CE Parameters'!$F$10:$F$11))))/1000,0) -> 0 | S19: =IF(OFFSET('Savings Results'!$A$1,5,16 +S$17-MIN('Savings Results'!$G:$G))=S$17,(SUMIFS(OFFSET('Savings Results'!$A$1,6,16 +S$17-MIN('Savings Results'!$G:$G),2000),OFFSET('Savings Results'!$A$1,6,4,2000),"Dx",OFFSET('Savings Results'!$A$1,6,6,2000),$D19)/(1/(1-SUM('CE Parameters'!$F$10:$F$11))))/1000,0) -> 0 | T19: =IF(OFFSET('Savings Results'!$A$1,5,16 +MAX('Savings Results'!$G:$G)-MIN('Savings Results'!$G:$G)+MAX('Savings Results'!$J:$J)+S$17-MIN('Savings Results'!$G:$G))=S$17,(SUMIFS(OFFSET('Savings Results'!$A$1,6,16 +MAX('Savings Results'!$G:$G)-MIN('Savings Results'!$G:$G)+MAX('Savings Results'!$J:$J)+S$17-MIN('Savings Results'!$G:$G),2000),OFFSET('Savings Results'!$A$1,6,4,2000),"Dx",OFFSET('Savings Results'!$A$1,6,6,2000),$D19)/(1/(1-SUM('CE Parameters'!$F$10:$F$11))))/1000,0) -> 0 | U19: =IF(OFFSET('Savings Results'!$A$1,5,16 +U$17-MIN('Savings Results'!$G:$G))=U$17,(SUMIFS(OFFSET('Savings Results'!$A$1,6,16 +U$17-MIN('Savings Results'!$G:$G),2000),OFFSET('Savings Results'!$A$1,6,4,2000),"Dx",OFFSET('Savings Results'!$A$1,6,6,2000),$D19)/(1/(1-SUM('CE Parameters'!$F$10:$F$11))))/1000,0) -> 0 | V19: =IF(OFFSET('Savings Results'!$A$1,5,16 +MAX('Savings Results'!$G:$G)-MIN('Savings Results'!$G:$G)+MAX('Savings Results'!$J:$J)+U$17-MIN('Savings Results'!$G:$G))=U$17,(SUMIFS(OFFSET('Savings Results'!$A$1,6,16 +MAX('Savings Results'!$G:$G)-MIN('Savings Results'!$G:$G)+MAX('Savings Results'!$J:$J)+U$17-MIN('Savings Results'!$G:$G),2000),OFFSET('Savings Results'!$A$1,6,4,2000),"Dx",OFFSET('Savings Results'!$A$1,6,6,2000),$D19)/(1/(1-SUM('CE Parameters'!$F$10:$F$11))))/1000,0) -> 0 | W19: =IF(OFFSET('Savings Results'!$A$1,5,16 +W$17-MIN('Savings Results'!$G:$G))=W$17,(SUMIFS(OFFSET('Savings Results'!$A$1,6,16 +W$17-MIN('Savings Results'!$G:$G),2000),OFFSET('Savings Results'!$A$1,6,4,2000),"Dx",OFFSET('Savings Results'!$A$1,6,6,2000),$D19)/(1/(1-SUM('CE Parameters'!$F$10:$F$11))))/1000,0) -> 0 | X19: =IF(OFFSET('Savings Results'!$A$1,5,16 +MAX('Savings Results'!$G:$G)-MIN('Savings Results'!$G:$G)+MAX('Savings Results'!$J:$J)+W$17-MIN('Savings Results'!$G:$G))=W$17,(SUMIFS(OFFSET('Savings Results'!$A$1,6,16 +MAX('Savings Results'!$G:$G)-MIN('Savings Results'!$G:$G)+MAX('Savings Results'!$J:$J)+W$17-MIN('Savings Results'!$G:$G),2000),OFFSET('Savings Results'!$A$1,6,4,2000),"Dx",OFFSET('Savings Results'!$A$1,6,6,2000),$D19)/(1/(1-SUM('CE Parameters'!$F$10:$F$11))))/1000,0) -> 0 | Y19: =IF(OFFSET('Savings Results'!$A$1,5,16 +Y$17-MIN('Savings Results'!$G:$G))=Y$17,(SUMIFS(OFFSET('Savings Results'!$A$1,6,16 +Y$17-MIN('Savings Results'!$G:$G),2000),OFFSET('Savings Results'!$A$1,6,4,2000),"Dx",OFFSET('Savings Results'!$A$1,6,6,2000),$D19)/(1/(1-SUM('CE Parameters'!$F$10:$F$11))))/1000,0) -> 0 | Z19: =IF(OFFSET('Savings Results'!$A$1,5,16 +MAX('Savings Results'!$G:$G)-MIN('Savings Results'!$G:$G)+MAX('Savings Results'!$J:$J)+Y$17-MIN('Savings Results'!$G:$G))=Y$17,(SUMIFS(OFFSET('Savings Results'!$A$1,6,16 +MAX('Savings Results'!$G:$G)-MIN('Savings Results'!$G:$G)+MAX('Savings Results'!$J:$J)+Y$17-MIN('Savings Results'!$G:$G),2000),OFFSET('Savings Results'!$A$1,6,4,2000),"Dx",OFFSET('Savings Results'!$A$1,6,6,2000),$D19)/(1/(1-SUM('CE Parameters'!$F$10:$F$11))))/1000,0) -> 0 | AA19: =IF(OFFSET('Savings Results'!$A$1,5,16 +AA$17-MIN('Savings Results'!$G:$G))=AA$17,(SUMIFS(OFFSET('Savings Results'!$A$1,6,16 +AA$17-MIN('Savings Results'!$G:$G),2000),OFFSET('Savings Results'!$A$1,6,4,2000),"Dx",OFFSET('Savings Results'!$A$1,6,6,2000),$D19)/(1/(1-SUM('CE Parameters'!$F$10:$F$11))))/1000,0) -> 0 | AB19: =IF(OFFSET('Savings Results'!$A$1,5,16 +MAX('Savings Results'!$G:$G)-MIN('Savings Results'!$G:$G)+MAX('Savings Results'!$J:$J)+AA$17-MIN('Savings Results'!$G:$G))=AA$17,(SUMIFS(OFFSET('Savings Results'!$A$1,6,16 +MAX('Savings Results'!$G:$G)-MIN('Savings Results'!$G:$G)+MAX('Savings Results'!$J:$J)+AA$17-MIN('Savings Results'!$G:$G),2000),OFFSET('Savings Results'!$A$1,6,4,2000),"Dx",OFFSET('Savings Results'!$A$1,6,6,2000),$D19)/(1/(1-SUM('CE Parameters'!$F$10:$F$11))))/1000,0) -> 0 | AC19: =IF(OFFSET('Savings Results'!$A$1,5,16 +AC$17-MIN('Savings Results'!$G:$G))=AC$17,(SUMIFS(OFFSET('Savings Results'!$A$1,6,16 +AC$17-MIN('Savings Results'!$G:$G),2000),OFFSET('Savings Results'!$A$1,6,4,2000),"Dx",OFFSET('Savings Results'!$A$1,6,6,2000),$D19)/(1/(1-SUM('CE Parameters'!$F$10:$F$11))))/1000,0) -> 0 | AD19: =IF(OFFSET('Savings Results'!$A$1,5,16 +MAX('Savings Results'!$G:$G)-MIN('Savings Results'!$G:$G)+MAX('Savings Results'!$J:$J)+AC$17-MIN('Savings Results'!$G:$G))=AC$17,(SUMIFS(OFFSET('Savings Results'!$A$1,6,16 +MAX('Savings Results'!$G:$G)-MIN('Savings Results'!$G:$G)+MAX('Savings Results'!$J:$J)+AC$17-MIN('Savings Results'!$G:$G),2000),OFFSET('Savings Results'!$A$1,6,4,2000),"Dx",OFFSET('Savings Results'!$A$1,6,6,2000),$D19)/(1/(1-SUM('CE Parameters'!$F$10:$F$11))))/1000,0) -> 0 | AE19: =IF(OFFSET('Savings Results'!$A$1,5,16 +AE$17-MIN('Savings Results'!$G:$G))=AE$17,(SUMIFS(OFFSET('Savings Results'!$A$1,6,16 +AE$17-MIN('Savings Results'!$G:$G),2000),OFFSET('Savings Results'!$A$1,6,4,2000),"Dx",OFFSET('Savings Results'!$A$1,6,6,2000),$D19)/(1/(1-SUM('CE Parameters'!$F$10:$F$11))))/1000,0) -> 0 | AF19: =IF(OFFSET('Savings Results'!$A$1,5,16 +MAX('Savings Results'!$G:$G)-MIN('Savings Results'!$G:$G)+MAX('Savings Results'!$J:$J)+AE$17-MIN('Savings Results'!$G:$G))=AE$17,(SUMIFS(OFFSET('Savings Results'!$A$1,6,16 +MAX('Savings Results'!$G:$G)-MIN('Savings Results'!$G:$G)+MAX('Savings Results'!$J:$J)+AE$17-MIN('Savings Results'!$G:$G),2000),OFFSET('Savings Results'!$A$1,6,4,2000),"Dx",OFFSET('Savings Results'!$A$1,6,6,2000),$D19)/(1/(1-SUM('CE Parameters'!$F$10:$F$11))))/1000,0) -> 0 | AG19: =IF(OFFSET('Savings Results'!$A$1,5,16 +AG$17-MIN('Savings Results'!$G:$G))=AG$17,(SUMIFS(OFFSET('Savings Results'!$A$1,6,16 +AG$17-MIN('Savings Results'!$G:$G),2000),OFFSET('Savings Results'!$A$1,6,4,2000),"Dx",OFFSET('Savings Results'!$A$1,6,6,2000),$D19)/(1/(1-SUM('CE Parameters'!$F$10:$F$11))))/1000,0) -> 0 | AH19: =IF(OFFSET('Savings Results'!$A$1,5,16 +MAX('Savings Results'!$G:$G)-MIN('Savings Results'!$G:$G)+MAX('Savings Results'!$J:$J)+AG$17-MIN('Savings Results'!$G:$G))=AG$17,(SUMIFS(OFFSET('Savings Results'!$A$1,6,16 +MAX('Savings Results'!$G:$G)-MIN('Savings Results'!$G:$G)+MAX('Savings Results'!$J:$J)+AG$17-MIN('Savings Results'!$G:$G),2000),OFFSET('Savings Results'!$A$1,6,4,2000),"Dx",OFFSET('Savings Results'!$A$1,6,6,2000),$D19)/(1/(1-SUM('CE Parameters'!$F$10:$F$11))))/1000,0) -> 0 | AI19: =IF(OFFSET('Savings Results'!$A$1,5,16 +AI$17-MIN('Savings Results'!$G:$G))=AI$17,(SUMIFS(OFFSET('Savings Results'!$A$1,6,16 +AI$17-MIN('Savings Results'!$G:$G),2000),OFFSET('Savings Results'!$A$1,6,4,2000),"Dx",OFFSET('Savings Results'!$A$1,6,6,2000),$D19)/(1/(1-SUM('CE Parameters'!$F$10:$F$11))))/1000,0) -> 0 | AJ19: =IF(OFFSET('Savings Results'!$A$1,5,16 +MAX('Savings Results'!$G:$G)-MIN('Savings Results'!$G:$G)+MAX('Savings Results'!$J:$J)+AI$17-MIN('Savings Results'!$G:$G))=AI$17,(SUMIFS(OFFSET('Savings Results'!$A$1,6,16 +MAX('Savings Results'!$G:$G)-MIN('Savings Results'!$G:$G)+MAX('Savings Results'!$J:$J)+AI$17-MIN('Savings Results'!$G:$G),2000),OFFSET('Savings Results'!$A$1,6,4,2000),"Dx",OFFSET('Savings Results'!$A$1,6,6,2000),$D19)/(1/(1-SUM('CE Parameters'!$F$10:$F$11))))/1000,0) -> 0 | AK19: =IF(OFFSET('Savings Results'!$A$1,5,16 +AK$17-MIN('Savings Results'!$G:$G))=AK$17,(SUMIFS(OFFSET('Savings Results'!$A$1,6,16 +AK$17-MIN('Savings Results'!$G:$G),2000),OFFSET('Savings Results'!$A$1,6,4,2000),"Dx",OFFSET('Savings Results'!$A$1,6,6,2000),$D19)/(1/(1-SUM('CE Parameters'!$F$10:$F$11))))/1000,0) -> 0 | AL19: =IF(OFFSET('Savings Results'!$A$1,5,16 +MAX('Savings Results'!$G:$G)-MIN('Savings Results'!$G:$G)+MAX('Savings Results'!$J:$J)+AK$17-MIN('Savings Results'!$G:$G))=AK$17,(SUMIFS(OFFSET('Savings Results'!$A$1,6,16 +MAX('Savings Results'!$G:$G)-MIN('Savings Results'!$G:$G)+MAX('Savings Results'!$J:$J)+AK$17-MIN('Savings Results'!$G:$G),2000),OFFSET('Savings Results'!$A$1,6,4,2000),"Dx",OFFSET('Savings Results'!$A$1,6,6,2000),$D19)/(1/(1-SUM('CE Parameters'!$F$10:$F$11))))/1000,0) -> 0 | AM19: =IF(OFFSET('Savings Results'!$A$1,5,16 +AM$17-MIN('Savings Results'!$G:$G))=AM$17,(SUMIFS(OFFSET('Savings Results'!$A$1,6,16 +AM$17-MIN('Savings Results'!$G:$G),2000),OFFSET('Savings Results'!$A$1,6,4,2000),"Dx",OFFSET('Savings Results'!$A$1,6,6,2000),$D19)/(1/(1-SUM('CE Parameters'!$F$10:$F$11))))/1000,0) -> 0 | AN19: =IF(OFFSET('Savings Results'!$A$1,5,16 +MAX('Savings Results'!$G:$G)-MIN('Savings Results'!$G:$G)+MAX('Savings Results'!$J:$J)+AM$17-MIN('Savings Results'!$G:$G))=AM$17,(SUMIFS(OFFSET('Savings Results'!$A$1,6,16 +MAX('Savings Results'!$G:$G)-MIN('Savings Results'!$G:$G)+MAX('Savings Results'!$J:$J)+AM$17-MIN('Savings Results'!$G:$G),2000),OFFSET('Savings Results'!$A$1,6,4,2000),"Dx",OFFSET('Savings Results'!$A$1,6,6,2000),$D19)/(1/(1-SUM('CE Parameters'!$F$10:$F$11))))/1000,0) -> 0
D20: 2016 | E20: =IF(OFFSET('Savings Results'!$A$1,5,16 +E$17-MIN('Savings Results'!$G:$G))=E$17,(SUMIFS(OFFSET('Savings Results'!$A$1,6,16 +E$17-MIN('Savings Results'!$G:$G),2000),OFFSET('Savings Results'!$A$1,6,4,2000),"Dx",OFFSET('Savings Results'!$A$1,6,6,2000),$D20)/(1/(1-SUM('CE Parameters'!$F$10:$F$11))))/1000,0) -> 0 | F20: =IF(OFFSET('Savings Results'!$A$1,5,16 +MAX('Savings Results'!$G:$G)-MIN('Savings Results'!$G:$G)+MAX('Savings Results'!$J:$J)+E$17-MIN('Savings Results'!$G:$G))=E$17,(SUMIFS(OFFSET('Savings Results'!$A$1,6,16 +MAX('Savings Results'!$G:$G)-MIN('Savings Results'!$G:$G)+MAX('Savings Results'!$J:$J)+E$17-MIN('Savings Results'!$G:$G),2000),OFFSET('Savings Results'!$A$1,6,4,2000),"Dx",OFFSET('Savings Results'!$A$1,6,6,2000),$D20)/(1/(1-SUM('CE Parameters'!$F$10:$F$11))))/1000,0) -> 0 | G20: =IF(OFFSET('Savings Results'!$A$1,5,16 +G$17-MIN('Savings Results'!$G:$G))=G$17,(SUMIFS(OFFSET('Savings Results'!$A$1,6,16 +G$17-MIN('Savings Results'!$G:$G),2000),OFFSET('Savings Results'!$A$1,6,4,2000),"Dx",OFFSET('Savings Results'!$A$1,6,6,2000),$D20)/(1/(1-SUM('CE Parameters'!$F$10:$F$11))))/1000,0) -> 0 | H20: =IF(OFFSET('Savings Results'!$A$1,5,16 +MAX('Savings Results'!$G:$G)-MIN('Savings Results'!$G:$G)+MAX('Savings Results'!$J:$J)+G$17-MIN('Savings Results'!$G:$G))=G$17,(SUMIFS(OFFSET('Savings Results'!$A$1,6,16 +MAX('Savings Results'!$G:$G)-MIN('Savings Results'!$G:$G)+MAX('Savings Results'!$J:$J)+G$17-MIN('Savings Results'!$G:$G),2000),OFFSET('Savings Results'!$A$1,6,4,2000),"Dx",OFFSET('Savings Results'!$A$1,6,6,2000),$D20)/(1/(1-SUM('CE Parameters'!$F$10:$F$11))))/1000,0) -> 0 | I20: =IF(OFFSET('Savings Results'!$A$1,5,16 +I$17-MIN('Savings Results'!$G:$G))=I$17,(SUMIFS(OFFSET('Savings Results'!$A$1,6,16 +I$17-MIN('Savings Results'!$G:$G),2000),OFFSET('Savings Results'!$A$1,6,4,2000),"Dx",OFFSET('Savings Results'!$A$1,6,6,2000),$D20)/(1/(1-SUM('CE Parameters'!$F$10:$F$11))))/1000,0) -> 0 | J20: =IF(OFFSET('Savings Results'!$A$1,5,16 +MAX('Savings Results'!$G:$G)-MIN('Savings Results'!$G:$G)+MAX('Savings Results'!$J:$J)+I$17-MIN('Savings Results'!$G:$G))=I$17,(SUMIFS(OFFSET('Savings Results'!$A$1,6,16 +MAX('Savings Results'!$G:$G)-MIN('Savings Results'!$G:$G)+MAX('Savings Results'!$J:$J)+I$17-MIN('Savings Results'!$G:$G),2000),OFFSET('Savings Results'!$A$1,6,4,2000),"Dx",OFFSET('Savings Results'!$A$1,6,6,2000),$D20)/(1/(1-SUM('CE Parameters'!$F$10:$F$11))))/1000,0) -> 0 | K20: =IF(OFFSET('Savings Results'!$A$1,5,16 +K$17-MIN('Savings Results'!$G:$G))=K$17,(SUMIFS(OFFSET('Savings Results'!$A$1,6,16 +K$17-MIN('Savings Results'!$G:$G),2000),OFFSET('Savings Results'!$A$1,6,4,2000),"Dx",OFFSET('Savings Results'!$A$1,6,6,2000),$D20)/(1/(1-SUM('CE Parameters'!$F$10:$F$11))))/1000,0) -> 0 | L20: =IF(OFFSET('Savings Results'!$A$1,5,16 +MAX('Savings Results'!$G:$G)-MIN('Savings Results'!$G:$G)+MAX('Savings Results'!$J:$J)+K$17-MIN('Savings Results'!$G:$G))=K$17,(SUMIFS(OFFSET('Savings Results'!$A$1,6,16 +MAX('Savings Results'!$G:$G)-MIN('Savings Results'!$G:$G)+MAX('Savings Results'!$J:$J)+K$17-MIN('Savings Results'!$G:$G),2000),OFFSET('Savings Results'!$A$1,6,4,2000),"Dx",OFFSET('Savings Results'!$A$1,6,6,2000),$D20)/(1/(1-SUM('CE Parameters'!$F$10:$F$11))))/1000,0) -> 0 | M20: =IF(OFFSET('Savings Results'!$A$1,5,16 +M$17-MIN('Savings Results'!$G:$G))=M$17,(SUMIFS(OFFSET('Savings Results'!$A$1,6,16 +M$17-MIN('Savings Results'!$G:$G),2000),OFFSET('Savings Results'!$A$1,6,4,2000),"Dx",OFFSET('Savings Results'!$A$1,6,6,2000),$D20)/(1/(1-SUM('CE Parameters'!$F$10:$F$11))))/1000,0) -> 0 | N20: =IF(OFFSET('Savings Results'!$A$1,5,16 +MAX('Savings Results'!$G:$G)-MIN('Savings Results'!$G:$G)+MAX('Savings Results'!$J:$J)+M$17-MIN('Savings Results'!$G:$G))=M$17,(SUMIFS(OFFSET('Savings Results'!$A$1,6,16 +MAX('Savings Results'!$G:$G)-MIN('Savings Results'!$G:$G)+MAX('Savings Results'!$J:$J)+M$17-MIN('Savings Results'!$G:$G),2000),OFFSET('Savings Results'!$A$1,6,4,2000),"Dx",OFFSET('Savings Results'!$A$1,6,6,2000),$D20)/(1/(1-SUM('CE Parameters'!$F$10:$F$11))))/1000,0) -> 0 | O20: =IF(OFFSET('Savings Results'!$A$1,5,16 +O$17-MIN('Savings Results'!$G:$G))=O$17,(SUMIFS(OFFSET('Savings Results'!$A$1,6,16 +O$17-MIN('Savings Results'!$G:$G),2000),OFFSET('Savings Results'!$A$1,6,4,2000),"Dx",OFFSET('Savings Results'!$A$1,6,6,2000),$D20)/(1/(1-SUM('CE Parameters'!$F$10:$F$11))))/1000,0) -> 0 | P20: =IF(OFFSET('Savings Results'!$A$1,5,16 +MAX('Savings Results'!$G:$G)-MIN('Savings Results'!$G:$G)+MAX('Savings Results'!$J:$J)+O$17-MIN('Savings Results'!$G:$G))=O$17,(SUMIFS(OFFSET('Savings Results'!$A$1,6,16 +MAX('Savings Results'!$G:$G)-MIN('Savings Results'!$G:$G)+MAX('Savings Results'!$J:$J)+O$17-MIN('Savings Results'!$G:$G),2000),OFFSET('Savings Results'!$A$1,6,4,2000),"Dx",OFFSET('Savings Results'!$A$1,6,6,2000),$D20)/(1/(1-SUM('CE Parameters'!$F$10:$F$11))))/1000,0) -> 0 | Q20: =IF(OFFSET('Savings Results'!$A$1,5,16 +Q$17-MIN('Savings Results'!$G:$G))=Q$17,(SUMIFS(OFFSET('Savings Results'!$A$1,6,16 +Q$17-MIN('Savings Results'!$G:$G),2000),OFFSET('Savings Results'!$A$1,6,4,2000),"Dx",OFFSET('Savings Results'!$A$1,6,6,2000),$D20)/(1/(1-SUM('CE Parameters'!$F$10:$F$11))))/1000,0) -> 0 | R20: =IF(OFFSET('Savings Results'!$A$1,5,16 +MAX('Savings Results'!$G:$G)-MIN('Savings Results'!$G:$G)+MAX('Savings Results'!$J:$J)+Q$17-MIN('Savings Results'!$G:$G))=Q$17,(SUMIFS(OFFSET('Savings Results'!$A$1,6,16 +MAX('Savings Results'!$G:$G)-MIN('Savings Results'!$G:$G)+MAX('Savings Results'!$J:$J)+Q$17-MIN('Savings Results'!$G:$G),2000),OFFSET('Savings Results'!$A$1,6,4,2000),"Dx",OFFSET('Savings Results'!$A$1,6,6,2000),$D20)/(1/(1-SUM('CE Parameters'!$F$10:$F$11))))/1000,0) -> 0 | S20: =IF(OFFSET('Savings Results'!$A$1,5,16 +S$17-MIN('Savings Results'!$G:$G))=S$17,(SUMIFS(OFFSET('Savings Results'!$A$1,6,16 +S$17-MIN('Savings Results'!$G:$G),2000),OFFSET('Savings Results'!$A$1,6,4,2000),"Dx",OFFSET('Savings Results'!$A$1,6,6,2000),$D20)/(1/(1-SUM('CE Parameters'!$F$10:$F$11))))/1000,0) -> 0 | T20: =IF(OFFSET('Savings Results'!$A$1,5,16 +MAX('Savings Results'!$G:$G)-MIN('Savings Results'!$G:$G)+MAX('Savings Results'!$J:$J)+S$17-MIN('Savings Results'!$G:$G))=S$17,(SUMIFS(OFFSET('Savings Results'!$A$1,6,16 +MAX('Savings Results'!$G:$G)-MIN('Savings Results'!$G:$G)+MAX('Savings Results'!$J:$J)+S$17-MIN('Savings Results'!$G:$G),2000),OFFSET('Savings Results'!$A$1,6,4,2000),"Dx",OFFSET('Savings Results'!$A$1,6,6,2000),$D20)/(1/(1-SUM('CE Parameters'!$F$10:$F$11))))/1000,0) -> 0 | U20: =IF(OFFSET('Savings Results'!$A$1,5,16 +U$17-MIN('Savings Results'!$G:$G))=U$17,(SUMIFS(OFFSET('Savings Results'!$A$1,6,16 +U$17-MIN('Savings Results'!$G:$G),2000),OFFSET('Savings Results'!$A$1,6,4,2000),"Dx",OFFSET('Savings Results'!$A$1,6,6,2000),$D20)/(1/(1-SUM('CE Parameters'!$F$10:$F$11))))/1000,0) -> 0 | V20: =IF(OFFSET('Savings Results'!$A$1,5,16 +MAX('Savings Results'!$G:$G)-MIN('Savings Results'!$G:$G)+MAX('Savings Results'!$J:$J)+U$17-MIN('Savings Results'!$G:$G))=U$17,(SUMIFS(OFFSET('Savings Results'!$A$1,6,16 +MAX('Savings Results'!$G:$G)-MIN('Savings Results'!$G:$G)+MAX('Savings Results'!$J:$J)+U$17-MIN('Savings Results'!$G:$G),2000),OFFSET('Savings Results'!$A$1,6,4,2000),"Dx",OFFSET('Savings Results'!$A$1,6,6,2000),$D20)/(1/(1-SUM('CE Parameters'!$F$10:$F$11))))/1000,0) -> 0 | W20: =IF(OFFSET('Savings Results'!$A$1,5,16 +W$17-MIN('Savings Results'!$G:$G))=W$17,(SUMIFS(OFFSET('Savings Results'!$A$1,6,16 +W$17-MIN('Savings Results'!$G:$G),2000),OFFSET('Savings Results'!$A$1,6,4,2000),"Dx",OFFSET('Savings Results'!$A$1,6,6,2000),$D20)/(1/(1-SUM('CE Parameters'!$F$10:$F$11))))/1000,0) -> 0 | X20: =IF(OFFSET('Savings Results'!$A$1,5,16 +MAX('Savings Results'!$G:$G)-MIN('Savings Results'!$G:$G)+MAX('Savings Results'!$J:$J)+W$17-MIN('Savings Results'!$G:$G))=W$17,(SUMIFS(OFFSET('Savings Results'!$A$1,6,16 +MAX('Savings Results'!$G:$G)-MIN('Savings Results'!$G:$G)+MAX('Savings Results'!$J:$J)+W$17-MIN('Savings Results'!$G:$G),2000),OFFSET('Savings Results'!$A$1,6,4,2000),"Dx",OFFSET('Savings Results'!$A$1,6,6,2000),$D20)/(1/(1-SUM('CE Parameters'!$F$10:$F$11))))/1000,0) -> 0 | Y20: =IF(OFFSET('Savings Results'!$A$1,5,16 +Y$17-MIN('Savings Results'!$G:$G))=Y$17,(SUMIFS(OFFSET('Savings Results'!$A$1,6,16 +Y$17-MIN('Savings Results'!$G:$G),2000),OFFSET('Savings Results'!$A$1,6,4,2000),"Dx",OFFSET('Savings Results'!$A$1,6,6,2000),$D20)/(1/(1-SUM('CE Parameters'!$F$10:$F$11))))/1000,0) -> 0 | Z20: =IF(OFFSET('Savings Results'!$A$1,5,16 +MAX('Savings Results'!$G:$G)-MIN('Savings Results'!$G:$G)+MAX('Savings Results'!$J:$J)+Y$17-MIN('Savings Results'!$G:$G))=Y$17,(SUMIFS(OFFSET('Savings Results'!$A$1,6,16 +MAX('Savings Results'!$G:$G)-MIN('Savings Results'!$G:$G)+MAX('Savings Results'!$J:$J)+Y$17-MIN('Savings Results'!$G:$G),2000),OFFSET('Savings Results'!$A$1,6,4,2000),"Dx",OFFSET('Savings Results'!$A$1,6,6,2000),$D20)/(1/(1-SUM('CE Parameters'!$F$10:$F$11))))/1000,0) -> 0 | AA20: =IF(OFFSET('Savings Results'!$A$1,5,16 +AA$17-MIN('Savings Results'!$G:$G))=AA$17,(SUMIFS(OFFSET('Savings Results'!$A$1,6,16 +AA$17-MIN('Savings Results'!$G:$G),2000),OFFSET('Savings Results'!$A$1,6,4,2000),"Dx",OFFSET('Savings Results'!$A$1,6,6,2000),$D20)/(1/(1-SUM('CE Parameters'!$F$10:$F$11))))/1000,0) -> 0 | AB20: =IF(OFFSET('Savings Results'!$A$1,5,16 +MAX('Savings Results'!$G:$G)-MIN('Savings Results'!$G:$G)+MAX('Savings Results'!$J:$J)+AA$17-MIN('Savings Results'!$G:$G))=AA$17,(SUMIFS(OFFSET('Savings Results'!$A$1,6,16 +MAX('Savings Results'!$G:$G)-MIN('Savings Results'!$G:$G)+MAX('Savings Results'!$J:$J)+AA$17-MIN('Savings Results'!$G:$G),2000),OFFSET('Savings Results'!$A$1,6,4,2000),"Dx",OFFSET('Savings Results'!$A$1,6,6,2000),$D20)/(1/(1-SUM('CE Parameters'!$F$10:$F$11))))/1000,0) -> 0 | AC20: =IF(OFFSET('Savings Results'!$A$1,5,16 +AC$17-MIN('Savings Results'!$G:$G))=AC$17,(SUMIFS(OFFSET('Savings Results'!$A$1,6,16 +AC$17-MIN('Savings Results'!$G:$G),2000),OFFSET('Savings Results'!$A$1,6,4,2000),"Dx",OFFSET('Savings Results'!$A$1,6,6,2000),$D20)/(1/(1-SUM('CE Parameters'!$F$10:$F$11))))/1000,0) -> 0 | AD20: =IF(OFFSET('Savings Results'!$A$1,5,16 +MAX('Savings Results'!$G:$G)-MIN('Savings Results'!$G:$G)+MAX('Savings Results'!$J:$J)+AC$17-MIN('Savings Results'!$G:$G))=AC$17,(SUMIFS(OFFSET('Savings Results'!$A$1,6,16 +MAX('Savings Results'!$G:$G)-MIN('Savings Results'!$G:$G)+MAX('Savings Results'!$J:$J)+AC$17-MIN('Savings Results'!$G:$G),2000),OFFSET('Savings Results'!$A$1,6,4,2000),"Dx",OFFSET('Savings Results'!$A$1,6,6,2000),$D20)/(1/(1-SUM('CE Parameters'!$F$10:$F$11))))/1000,0) -> 0 | AE20: =IF(OFFSET('Savings Results'!$A$1,5,16 +AE$17-MIN('Savings Results'!$G:$G))=AE$17,(SUMIFS(OFFSET('Savings Results'!$A$1,6,16 +AE$17-MIN('Savings Results'!$G:$G),2000),OFFSET('Savings Results'!$A$1,6,4,2000),"Dx",OFFSET('Savings Results'!$A$1,6,6,2000),$D20)/(1/(1-SUM('CE Parameters'!$F$10:$F$11))))/1000,0) -> 0 | AF20: =IF(OFFSET('Savings Results'!$A$1,5,16 +MAX('Savings Results'!$G:$G)-MIN('Savings Results'!$G:$G)+MAX('Savings Results'!$J:$J)+AE$17-MIN('Savings Results'!$G:$G))=AE$17,(SUMIFS(OFFSET('Savings Results'!$A$1,6,16 +MAX('Savings Results'!$G:$G)-MIN('Savings Results'!$G:$G)+MAX('Savings Results'!$J:$J)+AE$17-MIN('Savings Results'!$G:$G),2000),OFFSET('Savings Results'!$A$1,6,4,2000),"Dx",OFFSET('Savings Results'!$A$1,6,6,2000),$D20)/(1/(1-SUM('CE Parameters'!$F$10:$F$11))))/1000,0) -> 0 | AG20: =IF(OFFSET('Savings Results'!$A$1,5,16 +AG$17-MIN('Savings Results'!$G:$G))=AG$17,(SUMIFS(OFFSET('Savings Results'!$A$1,6,16 +AG$17-MIN('Savings Results'!$G:$G),2000),OFFSET('Savings Results'!$A$1,6,4,2000),"Dx",OFFSET('Savings Results'!$A$1,6,6,2000),$D20)/(1/(1-SUM('CE Parameters'!$F$10:$F$11))))/1000,0) -> 0 | AH20: =IF(OFFSET('Savings Results'!$A$1,5,16 +MAX('Savings Results'!$G:$G)-MIN('Savings Results'!$G:$G)+MAX('Savings Results'!$J:$J)+AG$17-MIN('Savings Results'!$G:$G))=AG$17,(SUMIFS(OFFSET('Savings Results'!$A$1,6,16 +MAX('Savings Results'!$G:$G)-MIN('Savings Results'!$G:$G)+MAX('Savings Results'!$J:$J)+AG$17-MIN('Savings Results'!$G:$G),2000),OFFSET('Savings Results'!$A$1,6,4,2000),"Dx",OFFSET('Savings Results'!$A$1,6,6,2000),$D20)/(1/(1-SUM('CE Parameters'!$F$10:$F$11))))/1000,0) -> 0 | AI20: =IF(OFFSET('Savings Results'!$A$1,5,16 +AI$17-MIN('Savings Results'!$G:$G))=AI$17,(SUMIFS(OFFSET('Savings Results'!$A$1,6,16 +AI$17-MIN('Savings Results'!$G:$G),2000),OFFSET('Savings Results'!$A$1,6,4,2000),"Dx",OFFSET('Savings Results'!$A$1,6,6,2000),$D20)/(1/(1-SUM('CE Parameters'!$F$10:$F$11))))/1000,0) -> 0 | AJ20: =IF(OFFSET('Savings Results'!$A$1,5,16 +MAX('Savings Results'!$G:$G)-MIN('Savings Results'!$G:$G)+MAX('Savings Results'!$J:$J)+AI$17-MIN('Savings Results'!$G:$G))=AI$17,(SUMIFS(OFFSET('Savings Results'!$A$1,6,16 +MAX('Savings Results'!$G:$G)-MIN('Savings Results'!$G:$G)+MAX('Savings Results'!$J:$J)+AI$17-MIN('Savings Results'!$G:$G),2000),OFFSET('Savings Results'!$A$1,6,4,2000),"Dx",OFFSET('Savings Results'!$A$1,6,6,2000),$D20)/(1/(1-SUM('CE Parameters'!$F$10:$F$11))))/1000,0) -> 0 | AK20: =IF(OFFSET('Savings Results'!$A$1,5,16 +AK$17-MIN('Savings Results'!$G:$G))=AK$17,(SUMIFS(OFFSET('Savings Results'!$A$1,6,16 +AK$17-MIN('Savings Results'!$G:$G),2000),OFFSET('Savings Results'!$A$1,6,4,2000),"Dx",OFFSET('Savings Results'!$A$1,6,6,2000),$D20)/(1/(1-SUM('CE Parameters'!$F$10:$F$11))))/1000,0) -> 0 | AL20: =IF(OFFSET('Savings Results'!$A$1,5,16 +MAX('Savings Results'!$G:$G)-MIN('Savings Results'!$G:$G)+MAX('Savings Results'!$J:$J)+AK$17-MIN('Savings Results'!$G:$G))=AK$17,(SUMIFS(OFFSET('Savings Results'!$A$1,6,16 +MAX('Savings Results'!$G:$G)-MIN('Savings Results'!$G:$G)+MAX('Savings Results'!$J:$J)+AK$17-MIN('Savings Results'!$G:$G),2000),OFFSET('Savings Results'!$A$1,6,4,2000),"Dx",OFFSET('Savings Results'!$A$1,6,6,2000),$D20)/(1/(1-SUM('CE Parameters'!$F$10:$F$11))))/1000,0) -> 0 | AM20: =IF(OFFSET('Savings Results'!$A$1,5,16 +AM$17-MIN('Savings Results'!$G:$G))=AM$17,(SUMIFS(OFFSET('Savings Results'!$A$1,6,16 +AM$17-MIN('Savings Results'!$G:$G),2000),OFFSET('Savings Results'!$A$1,6,4,2000),"Dx",OFFSET('Savings Results'!$A$1,6,6,2000),$D20)/(1/(1-SUM('CE Parameters'!$F$10:$F$11))))/1000,0) -> 0 | AN20: =IF(OFFSET('Savings Results'!$A$1,5,16 +MAX('Savings Results'!$G:$G)-MIN('Savings Results'!$G:$G)+MAX('Savings Results'!$J:$J)+AM$17-MIN('Savings Results'!$G:$G))=AM$17,(SUMIFS(OFFSET('Savings Results'!$A$1,6,16 +MAX('Savings Results'!$G:$G)-MIN('Savings Results'!$G:$G)+MAX('Savings Results'!$J:$J)+AM$17-MIN('Savings Results'!$G:$G),2000),OFFSET('Savings Results'!$A$1,6,4,2000),"Dx",OFFSET('Savings Results'!$A$1,6,6,2000),$D20)/(1/(1-SUM('CE Parameters'!$F$10:$F$11))))/1000,0) -> 0
D21: 2017 | E21: =IF(OFFSET('Savings Results'!$A$1,5,16 +E$17-MIN('Savings Results'!$G:$G))=E$17,(SUMIFS(OFFSET('Savings Results'!$A$1,6,16 +E$17-MIN('Savings Results'!$G:$G),2000),OFFSET('Savings Results'!$A$1,6,4,2000),"Dx",OFFSET('Savings Results'!$A$1,6,6,2000),$D21)/(1/(1-SUM('CE Parameters'!$F$10:$F$11))))/1000,0) -> 0 | F21: =IF(OFFSET('Savings Results'!$A$1,5,16 +MAX('Savings Results'!$G:$G)-MIN('Savings Results'!$G:$G)+MAX('Savings Results'!$J:$J)+E$17-MIN('Savings Results'!$G:$G))=E$17,(SUMIFS(OFFSET('Savings Results'!$A$1,6,16 +MAX('Savings Results'!$G:$G)-MIN('Savings Results'!$G:$G)+MAX('Savings Results'!$J:$J)+E$17-MIN('Savings Results'!$G:$G),2000),OFFSET('Savings Results'!$A$1,6,4,2000),"Dx",OFFSET('Savings Results'!$A$1,6,6,2000),$D21)/(1/(1-SUM('CE Parameters'!$F$10:$F$11))))/1000,0) -> 0 | G21: =IF(OFFSET('Savings Results'!$A$1,5,16 +G$17-MIN('Savings Results'!$G:$G))=G$17,(SUMIFS(OFFSET('Savings Results'!$A$1,6,16 +G$17-MIN('Savings Results'!$G:$G),2000),OFFSET('Savings Results'!$A$1,6,4,2000),"Dx",OFFSET('Savings Results'!$A$1,6,6,2000),$D21)/(1/(1-SUM('CE Parameters'!$F$10:$F$11))))/1000,0) -> 0 | H21: =IF(OFFSET('Savings Results'!$A$1,5,16 +MAX('Savings Results'!$G:$G)-MIN('Savings Results'!$G:$G)+MAX('Savings Results'!$J:$J)+G$17-MIN('Savings Results'!$G:$G))=G$17,(SUMIFS(OFFSET('Savings Results'!$A$1,6,16 +MAX('Savings Results'!$G:$G)-MIN('Savings Results'!$G:$G)+MAX('Savings Results'!$J:$J)+G$17-MIN('Savings Results'!$G:$G),2000),OFFSET('Savings Results'!$A$1,6,4,2000),"Dx",OFFSET('Savings Results'!$A$1,6,6,2000),$D21)/(1/(1-SUM('CE Parameters'!$F$10:$F$11))))/1000,0) -> 0 | I21: =IF(OFFSET('Savings Results'!$A$1,5,16 +I$17-MIN('Savings Results'!$G:$G))=I$17,(SUMIFS(OFFSET('Savings Results'!$A$1,6,16 +I$17-MIN('Savings Results'!$G:$G),2000),OFFSET('Savings Results'!$A$1,6,4,2000),"Dx",OFFSET('Savings Results'!$A$1,6,6,2000),$D21)/(1/(1-SUM('CE Parameters'!$F$10:$F$11))))/1000,0) -> 0 | J21: =IF(OFFSET('Savings Results'!$A$1,5,16 +MAX('Savings Results'!$G:$G)-MIN('Savings Results'!$G:$G)+MAX('Savings Results'!$J:$J)+I$17-MIN('Savings Results'!$G:$G))=I$17,(SUMIFS(OFFSET('Savings Results'!$A$1,6,16 +MAX('Savings Results'!$G:$G)-MIN('Savings Results'!$G:$G)+MAX('Savings Results'!$J:$J)+I$17-MIN('Savings Results'!$G:$G),2000),OFFSET('Savings Results'!$A$1,6,4,2000),"Dx",OFFSET('Savings Results'!$A$1,6,6,2000),$D21)/(1/(1-SUM('CE Parameters'!$F$10:$F$11))))/1000,0) -> 0 | K21: =IF(OFFSET('Savings Results'!$A$1,5,16 +K$17-MIN('Savings Results'!$G:$G))=K$17,(SUMIFS(OFFSET('Savings Results'!$A$1,6,16 +K$17-MIN('Savings Results'!$G:$G),2000),OFFSET('Savings Results'!$A$1,6,4,2000),"Dx",OFFSET('Savings Results'!$A$1,6,6,2000),$D21)/(1/(1-SUM('CE Parameters'!$F$10:$F$11))))/1000,0) -> 0 | L21: =IF(OFFSET('Savings Results'!$A$1,5,16 +MAX('Savings Results'!$G:$G)-MIN('Savings Results'!$G:$G)+MAX('Savings Results'!$J:$J)+K$17-MIN('Savings Results'!$G:$G))=K$17,(SUMIFS(OFFSET('Savings Results'!$A$1,6,16 +MAX('Savings Results'!$G:$G)-MIN('Savings Results'!$G:$G)+MAX('Savings Results'!$J:$J)+K$17-MIN('Savings Results'!$G:$G),2000),OFFSET('Savings Results'!$A$1,6,4,2000),"Dx",OFFSET('Savings Results'!$A$1,6,6,2000),$D21)/(1/(1-SUM('CE Parameters'!$F$10:$F$11))))/1000,0) -> 0 | M21: =IF(OFFSET('Savings Results'!$A$1,5,16 +M$17-MIN('Savings Results'!$G:$G))=M$17,(SUMIFS(OFFSET('Savings Results'!$A$1,6,16 +M$17-MIN('Savings Results'!$G:$G),2000),OFFSET('Savings Results'!$A$1,6,4,2000),"Dx",OFFSET('Savings Results'!$A$1,6,6,2000),$D21)/(1/(1-SUM('CE Parameters'!$F$10:$F$11))))/1000,0) -> 0 | N21: =IF(OFFSET('Savings Results'!$A$1,5,16 +MAX('Savings Results'!$G:$G)-MIN('Savings Results'!$G:$G)+MAX('Savings Results'!$J:$J)+M$17-MIN('Savings Results'!$G:$G))=M$17,(SUMIFS(OFFSET('Savings Results'!$A$1,6,16 +MAX('Savings Results'!$G:$G)-MIN('Savings Results'!$G:$G)+MAX('Savings Results'!$J:$J)+M$17-MIN('Savings Results'!$G:$G),2000),OFFSET('Savings Results'!$A$1,6,4,2000),"Dx",OFFSET('Savings Results'!$A$1,6,6,2000),$D21)/(1/(1-SUM('CE Parameters'!$F$10:$F$11))))/1000,0) -> 0 | O21: =IF(OFFSET('Savings Results'!$A$1,5,16 +O$17-MIN('Savings Results'!$G:$G))=O$17,(SUMIFS(OFFSET('Savings Results'!$A$1,6,16 +O$17-MIN('Savings Results'!$G:$G),2000),OFFSET('Savings Results'!$A$1,6,4,2000),"Dx",OFFSET('Savings Results'!$A$1,6,6,2000),$D21)/(1/(1-SUM('CE Parameters'!$F$10:$F$11))))/1000,0) -> 0 | P21: =IF(OFFSET('Savings Results'!$A$1,5,16 +MAX('Savings Results'!$G:$G)-MIN('Savings Results'!$G:$G)+MAX('Savings Results'!$J:$J)+O$17-MIN('Savings Results'!$G:$G))=O$17,(SUMIFS(OFFSET('Savings Results'!$A$1,6,16 +MAX('Savings Results'!$G:$G)-MIN('Savings Results'!$G:$G)+MAX('Savings Results'!$J:$J)+O$17-MIN('Savings Results'!$G:$G),2000),OFFSET('Savings Results'!$A$1,6,4,2000),"Dx",OFFSET('Savings Results'!$A$1,6,6,2000),$D21)/(1/(1-SUM('CE Parameters'!$F$10:$F$11))))/1000,0) -> 0 | Q21: =IF(OFFSET('Savings Results'!$A$1,5,16 +Q$17-MIN('Savings Results'!$G:$G))=Q$17,(SUMIFS(OFFSET('Savings Results'!$A$1,6,16 +Q$17-MIN('Savings Results'!$G:$G),2000),OFFSET('Savings Results'!$A$1,6,4,2000),"Dx",OFFSET('Savings Results'!$A$1,6,6,2000),$D21)/(1/(1-SUM('CE Parameters'!$F$10:$F$11))))/1000,0) -> 0 | R21: =IF(OFFSET('Savings Results'!$A$1,5,16 +MAX('Savings Results'!$G:$G)-MIN('Savings Results'!$G:$G)+MAX('Savings Results'!$J:$J)+Q$17-MIN('Savings Results'!$G:$G))=Q$17,(SUMIFS(OFFSET('Savings Results'!$A$1,6,16 +MAX('Savings Results'!$G:$G)-MIN('Savings Results'!$G:$G)+MAX('Savings Results'!$J:$J)+Q$17-MIN('Savings Results'!$G:$G),2000),OFFSET('Savings Results'!$A$1,6,4,2000),"Dx",OFFSET('Savings Results'!$A$1,6,6,2000),$D21)/(1/(1-SUM('CE Parameters'!$F$10:$F$11))))/1000,0) -> 0 | S21: =IF(OFFSET('Savings Results'!$A$1,5,16 +S$17-MIN('Savings Results'!$G:$G))=S$17,(SUMIFS(OFFSET('Savings Results'!$A$1,6,16 +S$17-MIN('Savings Results'!$G:$G),2000),OFFSET('Savings Results'!$A$1,6,4,2000),"Dx",OFFSET('Savings Results'!$A$1,6,6,2000),$D21)/(1/(1-SUM('CE Parameters'!$F$10:$F$11))))/1000,0) -> 0 | T21: =IF(OFFSET('Savings Results'!$A$1,5,16 +MAX('Savings Results'!$G:$G)-MIN('Savings Results'!$G:$G)+MAX('Savings Results'!$J:$J)+S$17-MIN('Savings Results'!$G:$G))=S$17,(SUMIFS(OFFSET('Savings Results'!$A$1,6,16 +MAX('Savings Results'!$G:$G)-MIN('Savings Results'!$G:$G)+MAX('Savings Results'!$J:$J)+S$17-MIN('Savings Results'!$G:$G),2000),OFFSET('Savings Results'!$A$1,6,4,2000),"Dx",OFFSET('Savings Results'!$A$1,6,6,2000),$D21)/(1/(1-SUM('CE Parameters'!$F$10:$F$11))))/1000,0) -> 0 | U21: =IF(OFFSET('Savings Results'!$A$1,5,16 +U$17-MIN('Savings Results'!$G:$G))=U$17,(SUMIFS(OFFSET('Savings Results'!$A$1,6,16 +U$17-MIN('Savings Results'!$G:$G),2000),OFFSET('Savings Results'!$A$1,6,4,2000),"Dx",OFFSET('Savings Results'!$A$1,6,6,2000),$D21)/(1/(1-SUM('CE Parameters'!$F$10:$F$11))))/1000,0) -> 0 | V21: =IF(OFFSET('Savings Results'!$A$1,5,16 +MAX('Savings Results'!$G:$G)-MIN('Savings Results'!$G:$G)+MAX('Savings Results'!$J:$J)+U$17-MIN('Savings Results'!$G:$G))=U$17,(SUMIFS(OFFSET('Savings Results'!$A$1,6,16 +MAX('Savings Results'!$G:$G)-MIN('Savings Results'!$G:$G)+MAX('Savings Results'!$J:$J)+U$17-MIN('Savings Results'!$G:$G),2000),OFFSET('Savings Results'!$A$1,6,4,2000),"Dx",OFFSET('Savings Results'!$A$1,6,6,2000),$D21)/(1/(1-SUM('CE Parameters'!$F$10:$F$11))))/1000,0) -> 0 | W21: =IF(OFFSET('Savings Results'!$A$1,5,16 +W$17-MIN('Savings Results'!$G:$G))=W$17,(SUMIFS(OFFSET('Savings Results'!$A$1,6,16 +W$17-MIN('Savings Results'!$G:$G),2000),OFFSET('Savings Results'!$A$1,6,4,2000),"Dx",OFFSET('Savings Results'!$A$1,6,6,2000),$D21)/(1/(1-SUM('CE Parameters'!$F$10:$F$11))))/1000,0) -> 0 | X21: =IF(OFFSET('Savings Results'!$A$1,5,16 +MAX('Savings Results'!$G:$G)-MIN('Savings Results'!$G:$G)+MAX('Savings Results'!$J:$J)+W$17-MIN('Savings Results'!$G:$G))=W$17,(SUMIFS(OFFSET('Savings Results'!$A$1,6,16 +MAX('Savings Results'!$G:$G)-MIN('Savings Results'!$G:$G)+MAX('Savings Results'!$J:$J)+W$17-MIN('Savings Results'!$G:$G),2000),OFFSET('Savings Results'!$A$1,6,4,2000),"Dx",OFFSET('Savings Results'!$A$1,6,6,2000),$D21)/(1/(1-SUM('CE Parameters'!$F$10:$F$11))))/1000,0) -> 0 | Y21: =IF(OFFSET('Savings Results'!$A$1,5,16 +Y$17-MIN('Savings Results'!$G:$G))=Y$17,(SUMIFS(OFFSET('Savings Results'!$A$1,6,16 +Y$17-MIN('Savings Results'!$G:$G),2000),OFFSET('Savings Results'!$A$1,6,4,2000),"Dx",OFFSET('Savings Results'!$A$1,6,6,2000),$D21)/(1/(1-SUM('CE Parameters'!$F$10:$F$11))))/1000,0) -> 0 | Z21: =IF(OFFSET('Savings Results'!$A$1,5,16 +MAX('Savings Results'!$G:$G)-MIN('Savings Results'!$G:$G)+MAX('Savings Results'!$J:$J)+Y$17-MIN('Savings Results'!$G:$G))=Y$17,(SUMIFS(OFFSET('Savings Results'!$A$1,6,16 +MAX('Savings Results'!$G:$G)-MIN('Savings Results'!$G:$G)+MAX('Savings Results'!$J:$J)+Y$17-MIN('Savings Results'!$G:$G),2000),OFFSET('Savings Results'!$A$1,6,4,2000),"Dx",OFFSET('Savings Results'!$A$1,6,6,2000),$D21)/(1/(1-SUM('CE Parameters'!$F$10:$F$11))))/1000,0) -> 0 | AA21: =IF(OFFSET('Savings Results'!$A$1,5,16 +AA$17-MIN('Savings Results'!$G:$G))=AA$17,(SUMIFS(OFFSET('Savings Results'!$A$1,6,16 +AA$17-MIN('Savings Results'!$G:$G),2000),OFFSET('Savings Results'!$A$1,6,4,2000),"Dx",OFFSET('Savings Results'!$A$1,6,6,2000),$D21)/(1/(1-SUM('CE Parameters'!$F$10:$F$11))))/1000,0) -> 0 | AB21: =IF(OFFSET('Savings Results'!$A$1,5,16 +MAX('Savings Results'!$G:$G)-MIN('Savings Results'!$G:$G)+MAX('Savings Results'!$J:$J)+AA$17-MIN('Savings Results'!$G:$G))=AA$17,(SUMIFS(OFFSET('Savings Results'!$A$1,6,16 +MAX('Savings Results'!$G:$G)-MIN('Savings Results'!$G:$G)+MAX('Savings Results'!$J:$J)+AA$17-MIN('Savings Results'!$G:$G),2000),OFFSET('Savings Results'!$A$1,6,4,2000),"Dx",OFFSET('Savings Results'!$A$1,6,6,2000),$D21)/(1/(1-SUM('CE Parameters'!$F$10:$F$11))))/1000,0) -> 0 | AC21: =IF(OFFSET('Savings Results'!$A$1,5,16 +AC$17-MIN('Savings Results'!$G:$G))=AC$17,(SUMIFS(OFFSET('Savings Results'!$A$1,6,16 +AC$17-MIN('Savings Results'!$G:$G),2000),OFFSET('Savings Results'!$A$1,6,4,2000),"Dx",OFFSET('Savings Results'!$A$1,6,6,2000),$D21)/(1/(1-SUM('CE Parameters'!$F$10:$F$11))))/1000,0) -> 0 | AD21: =IF(OFFSET('Savings Results'!$A$1,5,16 +MAX('Savings Results'!$G:$G)-MIN('Savings Results'!$G:$G)+MAX('Savings Results'!$J:$J)+AC$17-MIN('Savings Results'!$G:$G))=AC$17,(SUMIFS(OFFSET('Savings Results'!$A$1,6,16 +MAX('Savings Results'!$G:$G)-MIN('Savings Results'!$G:$G)+MAX('Savings Results'!$J:$J)+AC$17-MIN('Savings Results'!$G:$G),2000),OFFSET('Savings Results'!$A$1,6,4,2000),"Dx",OFFSET('Savings Results'!$A$1,6,6,2000),$D21)/(1/(1-SUM('CE Parameters'!$F$10:$F$11))))/1000,0) -> 0 | AE21: =IF(OFFSET('Savings Results'!$A$1,5,16 +AE$17-MIN('Savings Results'!$G:$G))=AE$17,(SUMIFS(OFFSET('Savings Results'!$A$1,6,16 +AE$17-MIN('Savings Results'!$G:$G),2000),OFFSET('Savings Results'!$A$1,6,4,2000),"Dx",OFFSET('Savings Results'!$A$1,6,6,2000),$D21)/(1/(1-SUM('CE Parameters'!$F$10:$F$11))))/1000,0) -> 0 | AF21: =IF(OFFSET('Savings Results'!$A$1,5,16 +MAX('Savings Results'!$G:$G)-MIN('Savings Results'!$G:$G)+MAX('Savings Results'!$J:$J)+AE$17-MIN('Savings Results'!$G:$G))=AE$17,(SUMIFS(OFFSET('Savings Results'!$A$1,6,16 +MAX('Savings Results'!$G:$G)-MIN('Savings Results'!$G:$G)+MAX('Savings Results'!$J:$J)+AE$17-MIN('Savings Results'!$G:$G),2000),OFFSET('Savings Results'!$A$1,6,4,2000),"Dx",OFFSET('Savings Results'!$A$1,6,6,2000),$D21)/(1/(1-SUM('CE Parameters'!$F$10:$F$11))))/1000,0) -> 0 | AG21: =IF(OFFSET('Savings Results'!$A$1,5,16 +AG$17-MIN('Savings Results'!$G:$G))=AG$17,(SUMIFS(OFFSET('Savings Results'!$A$1,6,16 +AG$17-MIN('Savings Results'!$G:$G),2000),OFFSET('Savings Results'!$A$1,6,4,2000),"Dx",OFFSET('Savings Results'!$A$1,6,6,2000),$D21)/(1/(1-SUM('CE Parameters'!$F$10:$F$11))))/1000,0) -> 0 | AH21: =IF(OFFSET('Savings Results'!$A$1,5,16 +MAX('Savings Results'!$G:$G)-MIN('Savings Results'!$G:$G)+MAX('Savings Results'!$J:$J)+AG$17-MIN('Savings Results'!$G:$G))=AG$17,(SUMIFS(OFFSET('Savings Results'!$A$1,6,16 +MAX('Savings Results'!$G:$G)-MIN('Savings Results'!$G:$G)+MAX('Savings Results'!$J:$J)+AG$17-MIN('Savings Results'!$G:$G),2000),OFFSET('Savings Results'!$A$1,6,4,2000),"Dx",OFFSET('Savings Results'!$A$1,6,6,2000),$D21)/(1/(1-SUM('CE Parameters'!$F$10:$F$11))))/1000,0) -> 0 | AI21: =IF(OFFSET('Savings Results'!$A$1,5,16 +AI$17-MIN('Savings Results'!$G:$G))=AI$17,(SUMIFS(OFFSET('Savings Results'!$A$1,6,16 +AI$17-MIN('Savings Results'!$G:$G),2000),OFFSET('Savings Results'!$A$1,6,4,2000),"Dx",OFFSET('Savings Results'!$A$1,6,6,2000),$D21)/(1/(1-SUM('CE Parameters'!$F$10:$F$11))))/1000,0) -> 0 | AJ21: =IF(OFFSET('Savings Results'!$A$1,5,16 +MAX('Savings Results'!$G:$G)-MIN('Savings Results'!$G:$G)+MAX('Savings Results'!$J:$J)+AI$17-MIN('Savings Results'!$G:$G))=AI$17,(SUMIFS(OFFSET('Savings Results'!$A$1,6,16 +MAX('Savings Results'!$G:$G)-MIN('Savings Results'!$G:$G)+MAX('Savings Results'!$J:$J)+AI$17-MIN('Savings Results'!$G:$G),2000),OFFSET('Savings Results'!$A$1,6,4,2000),"Dx",OFFSET('Savings Results'!$A$1,6,6,2000),$D21)/(1/(1-SUM('CE Parameters'!$F$10:$F$11))))/1000,0) -> 0 | AK21: =IF(OFFSET('Savings Results'!$A$1,5,16 +AK$17-MIN('Savings Results'!$G:$G))=AK$17,(SUMIFS(OFFSET('Savings Results'!$A$1,6,16 +AK$17-MIN('Savings Results'!$G:$G),2000),OFFSET('Savings Results'!$A$1,6,4,2000),"Dx",OFFSET('Savings Results'!$A$1,6,6,2000),$D21)/(1/(1-SUM('CE Parameters'!$F$10:$F$11))))/1000,0) -> 0 | AL21: =IF(OFFSET('Savings Results'!$A$1,5,16 +MAX('Savings Results'!$G:$G)-MIN('Savings Results'!$G:$G)+MAX('Savings Results'!$J:$J)+AK$17-MIN('Savings Results'!$G:$G))=AK$17,(SUMIFS(OFFSET('Savings Results'!$A$1,6,16 +MAX('Savings Results'!$G:$G)-MIN('Savings Results'!$G:$G)+MAX('Savings Results'!$J:$J)+AK$17-MIN('Savings Results'!$G:$G),2000),OFFSET('Savings Results'!$A$1,6,4,2000),"Dx",OFFSET('Savings Results'!$A$1,6,6,2000),$D21)/(1/(1-SUM('CE Parameters'!$F$10:$F$11))))/1000,0) -> 0 | AM21: =IF(OFFSET('Savings Results'!$A$1,5,16 +AM$17-MIN('Savings Results'!$G:$G))=AM$17,(SUMIFS(OFFSET('Savings Results'!$A$1,6,16 +AM$17-MIN('Savings Results'!$G:$G),2000),OFFSET('Savings Results'!$A$1,6,4,2000),"Dx",OFFSET('Savings Results'!$A$1,6,6,2000),$D21)/(1/(1-SUM('CE Parameters'!$F$10:$F$11))))/1000,0) -> 0 | AN21: =IF(OFFSET('Savings Results'!$A$1,5,16 +MAX('Savings Results'!$G:$G)-MIN('Savings Results'!$G:$G)+MAX('Savings Results'!$J:$J)+AM$17-MIN('Savings Results'!$G:$G))=AM$17,(SUMIFS(OFFSET('Savings Results'!$A$1,6,16 +MAX('Savings Results'!$G:$G)-MIN('Savings Results'!$G:$G)+MAX('Savings Results'!$J:$J)+AM$17-MIN('Savings Results'!$G:$G),2000),OFFSET('Savings Results'!$A$1,6,4,2000),"Dx",OFFSET('Savings Results'!$A$1,6,6,2000),$D21)/(1/(1-SUM('CE Parameters'!$F$10:$F$11))))/1000,0) -> 0
D22: 2018 | E22: =IF(OFFSET('Savings Results'!$A$1,5,16 +E$17-MIN('Savings Results'!$G:$G))=E$17,(SUMIFS(OFFSET('Savings Results'!$A$1,6,16 +E$17-MIN('Savings Results'!$G:$G),2000),OFFSET('Savings Results'!$A$1,6,4,2000),"Dx",OFFSET('Savings Results'!$A$1,6,6,2000),$D22)/(1/(1-SUM('CE Parameters'!$F$10:$F$11))))/1000,0) -> 0 | F22: =IF(OFFSET('Savings Results'!$A$1,5,16 +MAX('Savings Results'!$G:$G)-MIN('Savings Results'!$G:$G)+MAX('Savings Results'!$J:$J)+E$17-MIN('Savings Results'!$G:$G))=E$17,(SUMIFS(OFFSET('Savings Results'!$A$1,6,16 +MAX('Savings Results'!$G:$G)-MIN('Savings Results'!$G:$G)+MAX('Savings Results'!$J:$J)+E$17-MIN('Savings Results'!$G:$G),2000),OFFSET('Savings Results'!$A$1,6,4,2000),"Dx",OFFSET('Savings Results'!$A$1,6,6,2000),$D22)/(1/(1-SUM('CE Parameters'!$F$10:$F$11))))/1000,0) -> 0 | G22: =IF(OFFSET('Savings Results'!$A$1,5,16 +G$17-MIN('Savings Results'!$G:$G))=G$17,(SUMIFS(OFFSET('Savings Results'!$A$1,6,16 +G$17-MIN('Savings Results'!$G:$G),2000),OFFSET('Savings Results'!$A$1,6,4,2000),"Dx",OFFSET('Savings Results'!$A$1,6,6,2000),$D22)/(1/(1-SUM('CE Parameters'!$F$10:$F$11))))/1000,0) -> 0 | H22: =IF(OFFSET('Savings Results'!$A$1,5,16 +MAX('Savings Results'!$G:$G)-MIN('Savings Results'!$G:$G)+MAX('Savings Results'!$J:$J)+G$17-MIN('Savings Results'!$G:$G))=G$17,(SUMIFS(OFFSET('Savings Results'!$A$1,6,16 +MAX('Savings Results'!$G:$G)-MIN('Savings Results'!$G:$G)+MAX('Savings Results'!$J:$J)+G$17-MIN('Savings Results'!$G:$G),2000),OFFSET('Savings Results'!$A$1,6,4,2000),"Dx",OFFSET('Savings Results'!$A$1,6,6,2000),$D22)/(1/(1-SUM('CE Parameters'!$F$10:$F$11))))/1000,0) -> 0 | I22: =IF(OFFSET('Savings Results'!$A$1,5,16 +I$17-MIN('Savings Results'!$G:$G))=I$17,(SUMIFS(OFFSET('Savings Results'!$A$1,6,16 +I$17-MIN('Savings Results'!$G:$G),2000),OFFSET('Savings Results'!$A$1,6,4,2000),"Dx",OFFSET('Savings Results'!$A$1,6,6,2000),$D22)/(1/(1-SUM('CE Parameters'!$F$10:$F$11))))/1000,0) -> 0 | J22: =IF(OFFSET('Savings Results'!$A$1,5,16 +MAX('Savings Results'!$G:$G)-MIN('Savings Results'!$G:$G)+MAX('Savings Results'!$J:$J)+I$17-MIN('Savings Results'!$G:$G))=I$17,(SUMIFS(OFFSET('Savings Results'!$A$1,6,16 +MAX('Savings Results'!$G:$G)-MIN('Savings Results'!$G:$G)+MAX('Savings Results'!$J:$J)+I$17-MIN('Savings Results'!$G:$G),2000),OFFSET('Savings Results'!$A$1,6,4,2000),"Dx",OFFSET('Savings Results'!$A$1,6,6,2000),$D22)/(1/(1-SUM('CE Parameters'!$F$10:$F$11))))/1000,0) -> 0 | K22: =IF(OFFSET('Savings Results'!$A$1,5,16 +K$17-MIN('Savings Results'!$G:$G))=K$17,(SUMIFS(OFFSET('Savings Results'!$A$1,6,16 +K$17-MIN('Savings Results'!$G:$G),2000),OFFSET('Savings Results'!$A$1,6,4,2000),"Dx",OFFSET('Savings Results'!$A$1,6,6,2000),$D22)/(1/(1-SUM('CE Parameters'!$F$10:$F$11))))/1000,0) -> 0 | L22: =IF(OFFSET('Savings Results'!$A$1,5,16 +MAX('Savings Results'!$G:$G)-MIN('Savings Results'!$G:$G)+MAX('Savings Results'!$J:$J)+K$17-MIN('Savings Results'!$G:$G))=K$17,(SUMIFS(OFFSET('Savings Results'!$A$1,6,16 +MAX('Savings Results'!$G:$G)-MIN('Savings Results'!$G:$G)+MAX('Savings Results'!$J:$J)+K$17-MIN('Savings Results'!$G:$G),2000),OFFSET('Savings Results'!$A$1,6,4,2000),"Dx",OFFSET('Savings Results'!$A$1,6,6,2000),$D22)/(1/(1-SUM('CE Parameters'!$F$10:$F$11))))/1000,0) -> 0 | M22: =IF(OFFSET('Savings Results'!$A$1,5,16 +M$17-MIN('Savings Results'!$G:$G))=M$17,(SUMIFS(OFFSET('Savings Results'!$A$1,6,16 +M$17-MIN('Savings Results'!$G:$G),2000),OFFSET('Savings Results'!$A$1,6,4,2000),"Dx",OFFSET('Savings Results'!$A$1,6,6,2000),$D22)/(1/(1-SUM('CE Parameters'!$F$10:$F$11))))/1000,0) -> 0 | N22: =IF(OFFSET('Savings Results'!$A$1,5,16 +MAX('Savings Results'!$G:$G)-MIN('Savings Results'!$G:$G)+MAX('Savings Results'!$J:$J)+M$17-MIN('Savings Results'!$G:$G))=M$17,(SUMIFS(OFFSET('Savings Results'!$A$1,6,16 +MAX('Savings Results'!$G:$G)-MIN('Savings Results'!$G:$G)+MAX('Savings Results'!$J:$J)+M$17-MIN('Savings Results'!$G:$G),2000),OFFSET('Savings Results'!$A$1,6,4,2000),"Dx",OFFSET('Savings Results'!$A$1,6,6,2000),$D22)/(1/(1-SUM('CE Parameters'!$F$10:$F$11))))/1000,0) -> 0 | O22: =IF(OFFSET('Savings Results'!$A$1,5,16 +O$17-MIN('Savings Results'!$G:$G))=O$17,(SUMIFS(OFFSET('Savings Results'!$A$1,6,16 +O$17-MIN('Savings Results'!$G:$G),2000),OFFSET('Savings Results'!$A$1,6,4,2000),"Dx",OFFSET('Savings Results'!$A$1,6,6,2000),$D22)/(1/(1-SUM('CE Parameters'!$F$10:$F$11))))/1000,0) -> 0 | P22: =IF(OFFSET('Savings Results'!$A$1,5,16 +MAX('Savings Results'!$G:$G)-MIN('Savings Results'!$G:$G)+MAX('Savings Results'!$J:$J)+O$17-MIN('Savings Results'!$G:$G))=O$17,(SUMIFS(OFFSET('Savings Results'!$A$1,6,16 +MAX('Savings Results'!$G:$G)-MIN('Savings Results'!$G:$G)+MAX('Savings Results'!$J:$J)+O$17-MIN('Savings Results'!$G:$G),2000),OFFSET('Savings Results'!$A$1,6,4,2000),"Dx",OFFSET('Savings Results'!$A$1,6,6,2000),$D22)/(1/(1-SUM('CE Parameters'!$F$10:$F$11))))/1000,0) -> 0 | Q22: =IF(OFFSET('Savings Results'!$A$1,5,16 +Q$17-MIN('Savings Results'!$G:$G))=Q$17,(SUMIFS(OFFSET('Savings Results'!$A$1,6,16 +Q$17-MIN('Savings Results'!$G:$G),2000),OFFSET('Savings Results'!$A$1,6,4,2000),"Dx",OFFSET('Savings Results'!$A$1,6,6,2000),$D22)/(1/(1-SUM('CE Parameters'!$F$10:$F$11))))/1000,0) -> 0 | R22: =IF(OFFSET('Savings Results'!$A$1,5,16 +MAX('Savings Results'!$G:$G)-MIN('Savings Results'!$G:$G)+MAX('Savings Results'!$J:$J)+Q$17-MIN('Savings Results'!$G:$G))=Q$17,(SUMIFS(OFFSET('Savings Results'!$A$1,6,16 +MAX('Savings Results'!$G:$G)-MIN('Savings Results'!$G:$G)+MAX('Savings Results'!$J:$J)+Q$17-MIN('Savings Results'!$G:$G),2000),OFFSET('Savings Results'!$A$1,6,4,2000),"Dx",OFFSET('Savings Results'!$A$1,6,6,2000),$D22)/(1/(1-SUM('CE Parameters'!$F$10:$F$11))))/1000,0) -> 0 | S22: =IF(OFFSET('Savings Results'!$A$1,5,16 +S$17-MIN('Savings Results'!$G:$G))=S$17,(SUMIFS(OFFSET('Savings Results'!$A$1,6,16 +S$17-MIN('Savings Results'!$G:$G),2000),OFFSET('Savings Results'!$A$1,6,4,2000),"Dx",OFFSET('Savings Results'!$A$1,6,6,2000),$D22)/(1/(1-SUM('CE Parameters'!$F$10:$F$11))))/1000,0) -> 0 | T22: =IF(OFFSET('Savings Results'!$A$1,5,16 +MAX('Savings Results'!$G:$G)-MIN('Savings Results'!$G:$G)+MAX('Savings Results'!$J:$J)+S$17-MIN('Savings Results'!$G:$G))=S$17,(SUMIFS(OFFSET('Savings Results'!$A$1,6,16 +MAX('Savings Results'!$G:$G)-MIN('Savings Results'!$G:$G)+MAX('Savings Results'!$J:$J)+S$17-MIN('Savings Results'!$G:$G),2000),OFFSET('Savings Results'!$A$1,6,4,2000),"Dx",OFFSET('Savings Results'!$A$1,6,6,2000),$D22)/(1/(1-SUM('CE Parameters'!$F$10:$F$11))))/1000,0) -> 0 | U22: =IF(OFFSET('Savings Results'!$A$1,5,16 +U$17-MIN('Savings Results'!$G:$G))=U$17,(SUMIFS(OFFSET('Savings Results'!$A$1,6,16 +U$17-MIN('Savings Results'!$G:$G),2000),OFFSET('Savings Results'!$A$1,6,4,2000),"Dx",OFFSET('Savings Results'!$A$1,6,6,2000),$D22)/(1/(1-SUM('CE Parameters'!$F$10:$F$11))))/1000,0) -> 0 | V22: =IF(OFFSET('Savings Results'!$A$1,5,16 +MAX('Savings Results'!$G:$G)-MIN('Savings Results'!$G:$G)+MAX('Savings Results'!$J:$J)+U$17-MIN('Savings Results'!$G:$G))=U$17,(SUMIFS(OFFSET('Savings Results'!$A$1,6,16 +MAX('Savings Results'!$G:$G)-MIN('Savings Results'!$G:$G)+MAX('Savings Results'!$J:$J)+U$17-MIN('Savings Results'!$G:$G),2000),OFFSET('Savings Results'!$A$1,6,4,2000),"Dx",OFFSET('Savings Results'!$A$1,6,6,2000),$D22)/(1/(1-SUM('CE Parameters'!$F$10:$F$11))))/1000,0) -> 0 | W22: =IF(OFFSET('Savings Results'!$A$1,5,16 +W$17-MIN('Savings Results'!$G:$G))=W$17,(SUMIFS(OFFSET('Savings Results'!$A$1,6,16 +W$17-MIN('Savings Results'!$G:$G),2000),OFFSET('Savings Results'!$A$1,6,4,2000),"Dx",OFFSET('Savings Results'!$A$1,6,6,2000),$D22)/(1/(1-SUM('CE Parameters'!$F$10:$F$11))))/1000,0) -> 0 | X22: =IF(OFFSET('Savings Results'!$A$1,5,16 +MAX('Savings Results'!$G:$G)-MIN('Savings Results'!$G:$G)+MAX('Savings Results'!$J:$J)+W$17-MIN('Savings Results'!$G:$G))=W$17,(SUMIFS(OFFSET('Savings Results'!$A$1,6,16 +MAX('Savings Results'!$G:$G)-MIN('Savings Results'!$G:$G)+MAX('Savings Results'!$J:$J)+W$17-MIN('Savings Results'!$G:$G),2000),OFFSET('Savings Results'!$A$1,6,4,2000),"Dx",OFFSET('Savings Results'!$A$1,6,6,2000),$D22)/(1/(1-SUM('CE Parameters'!$F$10:$F$11))))/1000,0) -> 0 | Y22: =IF(OFFSET('Savings Results'!$A$1,5,16 +Y$17-MIN('Savings Results'!$G:$G))=Y$17,(SUMIFS(OFFSET('Savings Results'!$A$1,6,16 +Y$17-MIN('Savings Results'!$G:$G),2000),OFFSET('Savings Results'!$A$1,6,4,2000),"Dx",OFFSET('Savings Results'!$A$1,6,6,2000),$D22)/(1/(1-SUM('CE Parameters'!$F$10:$F$11))))/1000,0) -> 0 | Z22: =IF(OFFSET('Savings Results'!$A$1,5,16 +MAX('Savings Results'!$G:$G)-MIN('Savings Results'!$G:$G)+MAX('Savings Results'!$J:$J)+Y$17-MIN('Savings Results'!$G:$G))=Y$17,(SUMIFS(OFFSET('Savings Results'!$A$1,6,16 +MAX('Savings Results'!$G:$G)-MIN('Savings Results'!$G:$G)+MAX('Savings Results'!$J:$J)+Y$17-MIN('Savings Results'!$G:$G),2000),OFFSET('Savings Results'!$A$1,6,4,2000),"Dx",OFFSET('Savings Results'!$A$1,6,6,2000),$D22)/(1/(1-SUM('CE Parameters'!$F$10:$F$11))))/1000,0) -> 0 | AA22: =IF(OFFSET('Savings Results'!$A$1,5,16 +AA$17-MIN('Savings Results'!$G:$G))=AA$17,(SUMIFS(OFFSET('Savings Results'!$A$1,6,16 +AA$17-MIN('Savings Results'!$G:$G),2000),OFFSET('Savings Results'!$A$1,6,4,2000),"Dx",OFFSET('Savings Results'!$A$1,6,6,2000),$D22)/(1/(1-SUM('CE Parameters'!$F$10:$F$11))))/1000,0) -> 0 | AB22: =IF(OFFSET('Savings Results'!$A$1,5,16 +MAX('Savings Results'!$G:$G)-MIN('Savings Results'!$G:$G)+MAX('Savings Results'!$J:$J)+AA$17-MIN('Savings Results'!$G:$G))=AA$17,(SUMIFS(OFFSET('Savings Results'!$A$1,6,16 +MAX('Savings Results'!$G:$G)-MIN('Savings Results'!$G:$G)+MAX('Savings Results'!$J:$J)+AA$17-MIN('Savings Results'!$G:$G),2000),OFFSET('Savings Results'!$A$1,6,4,2000),"Dx",OFFSET('Savings Results'!$A$1,6,6,2000),$D22)/(1/(1-SUM('CE Parameters'!$F$10:$F$11))))/1000,0) -> 0 | AC22: =IF(OFFSET('Savings Results'!$A$1,5,16 +AC$17-MIN('Savings Results'!$G:$G))=AC$17,(SUMIFS(OFFSET('Savings Results'!$A$1,6,16 +AC$17-MIN('Savings Results'!$G:$G),2000),OFFSET('Savings Results'!$A$1,6,4,2000),"Dx",OFFSET('Savings Results'!$A$1,6,6,2000),$D22)/(1/(1-SUM('CE Parameters'!$F$10:$F$11))))/1000,0) -> 0 | AD22: =IF(OFFSET('Savings Results'!$A$1,5,16 +MAX('Savings Results'!$G:$G)-MIN('Savings Results'!$G:$G)+MAX('Savings Results'!$J:$J)+AC$17-MIN('Savings Results'!$G:$G))=AC$17,(SUMIFS(OFFSET('Savings Results'!$A$1,6,16 +MAX('Savings Results'!$G:$G)-MIN('Savings Results'!$G:$G)+MAX('Savings Results'!$J:$J)+AC$17-MIN('Savings Results'!$G:$G),2000),OFFSET('Savings Results'!$A$1,6,4,2000),"Dx",OFFSET('Savings Results'!$A$1,6,6,2000),$D22)/(1/(1-SUM('CE Parameters'!$F$10:$F$11))))/1000,0) -> 0 | AE22: =IF(OFFSET('Savings Results'!$A$1,5,16 +AE$17-MIN('Savings Results'!$G:$G))=AE$17,(SUMIFS(OFFSET('Savings Results'!$A$1,6,16 +AE$17-MIN('Savings Results'!$G:$G),2000),OFFSET('Savings Results'!$A$1,6,4,2000),"Dx",OFFSET('Savings Results'!$A$1,6,6,2000),$D22)/(1/(1-SUM('CE Parameters'!$F$10:$F$11))))/1000,0) -> 0 | AF22: =IF(OFFSET('Savings Results'!$A$1,5,16 +MAX('Savings Results'!$G:$G)-MIN('Savings Results'!$G:$G)+MAX('Savings Results'!$J:$J)+AE$17-MIN('Savings Results'!$G:$G))=AE$17,(SUMIFS(OFFSET('Savings Results'!$A$1,6,16 +MAX('Savings Results'!$G:$G)-MIN('Savings Results'!$G:$G)+MAX('Savings Results'!$J:$J)+AE$17-MIN('Savings Results'!$G:$G),2000),OFFSET('Savings Results'!$A$1,6,4,2000),"Dx",OFFSET('Savings Results'!$A$1,6,6,2000),$D22)/(1/(1-SUM('CE Parameters'!$F$10:$F$11))))/1000,0) -> 0 | AG22: =IF(OFFSET('Savings Results'!$A$1,5,16 +AG$17-MIN('Savings Results'!$G:$G))=AG$17,(SUMIFS(OFFSET('Savings Results'!$A$1,6,16 +AG$17-MIN('Savings Results'!$G:$G),2000),OFFSET('Savings Results'!$A$1,6,4,2000),"Dx",OFFSET('Savings Results'!$A$1,6,6,2000),$D22)/(1/(1-SUM('CE Parameters'!$F$10:$F$11))))/1000,0) -> 0 | AH22: =IF(OFFSET('Savings Results'!$A$1,5,16 +MAX('Savings Results'!$G:$G)-MIN('Savings Results'!$G:$G)+MAX('Savings Results'!$J:$J)+AG$17-MIN('Savings Results'!$G:$G))=AG$17,(SUMIFS(OFFSET('Savings Results'!$A$1,6,16 +MAX('Savings Results'!$G:$G)-MIN('Savings Results'!$G:$G)+MAX('Savings Results'!$J:$J)+AG$17-MIN('Savings Results'!$G:$G),2000),OFFSET('Savings Results'!$A$1,6,4,2000),"Dx",OFFSET('Savings Results'!$A$1,6,6,2000),$D22)/(1/(1-SUM('CE Parameters'!$F$10:$F$11))))/1000,0) -> 0 | AI22: =IF(OFFSET('Savings Results'!$A$1,5,16 +AI$17-MIN('Savings Results'!$G:$G))=AI$17,(SUMIFS(OFFSET('Savings Results'!$A$1,6,16 +AI$17-MIN('Savings Results'!$G:$G),2000),OFFSET('Savings Results'!$A$1,6,4,2000),"Dx",OFFSET('Savings Results'!$A$1,6,6,2000),$D22)/(1/(1-SUM('CE Parameters'!$F$10:$F$11))))/1000,0) -> 0 | AJ22: =IF(OFFSET('Savings Results'!$A$1,5,16 +MAX('Savings Results'!$G:$G)-MIN('Savings Results'!$G:$G)+MAX('Savings Results'!$J:$J)+AI$17-MIN('Savings Results'!$G:$G))=AI$17,(SUMIFS(OFFSET('Savings Results'!$A$1,6,16 +MAX('Savings Results'!$G:$G)-MIN('Savings Results'!$G:$G)+MAX('Savings Results'!$J:$J)+AI$17-MIN('Savings Results'!$G:$G),2000),OFFSET('Savings Results'!$A$1,6,4,2000),"Dx",OFFSET('Savings Results'!$A$1,6,6,2000),$D22)/(1/(1-SUM('CE Parameters'!$F$10:$F$11))))/1000,0) -> 0 | AK22: =IF(OFFSET('Savings Results'!$A$1,5,16 +AK$17-MIN('Savings Results'!$G:$G))=AK$17,(SUMIFS(OFFSET('Savings Results'!$A$1,6,16 +AK$17-MIN('Savings Results'!$G:$G),2000),OFFSET('Savings Results'!$A$1,6,4,2000),"Dx",OFFSET('Savings Results'!$A$1,6,6,2000),$D22)/(1/(1-SUM('CE Parameters'!$F$10:$F$11))))/1000,0) -> 0 | AL22: =IF(OFFSET('Savings Results'!$A$1,5,16 +MAX('Savings Results'!$G:$G)-MIN('Savings Results'!$G:$G)+MAX('Savings Results'!$J:$J)+AK$17-MIN('Savings Results'!$G:$G))=AK$17,(SUMIFS(OFFSET('Savings Results'!$A$1,6,16 +MAX('Savings Results'!$G:$G)-MIN('Savings Results'!$G:$G)+MAX('Savings Results'!$J:$J)+AK$17-MIN('Savings Results'!$G:$G),2000),OFFSET('Savings Results'!$A$1,6,4,2000),"Dx",OFFSET('Savings Results'!$A$1,6,6,2000),$D22)/(1/(1-SUM('CE Parameters'!$F$10:$F$11))))/1000,0) -> 0 | AM22: =IF(OFFSET('Savings Results'!$A$1,5,16 +AM$17-MIN('Savings Results'!$G:$G))=AM$17,(SUMIFS(OFFSET('Savings Results'!$A$1,6,16 +AM$17-MIN('Savings Results'!$G:$G),2000),OFFSET('Savings Results'!$A$1,6,4,2000),"Dx",OFFSET('Savings Results'!$A$1,6,6,2000),$D22)/(1/(1-SUM('CE Parameters'!$F$10:$F$11))))/1000,0) -> 0 | AN22: =IF(OFFSET('Savings Results'!$A$1,5,16 +MAX('Savings Results'!$G:$G)-MIN('Savings Results'!$G:$G)+MAX('Savings Results'!$J:$J)+AM$17-MIN('Savings Results'!$G:$G))=AM$17,(SUMIFS(OFFSET('Savings Results'!$A$1,6,16 +MAX('Savings Results'!$G:$G)-MIN('Savings Results'!$G:$G)+MAX('Savings Results'!$J:$J)+AM$17-MIN('Savings Results'!$G:$G),2000),OFFSET('Savings Results'!$A$1,6,4,2000),"Dx",OFFSET('Savings Results'!$A$1,6,6,2000),$D22)/(1/(1-SUM('CE Parameters'!$F$10:$F$11))))/1000,0) -> 0
D23: 2019 | E23: =IF(OFFSET('Savings Results'!$A$1,5,16 +E$17-MIN('Savings Results'!$G:$G))=E$17,(SUMIFS(OFFSET('Savings Results'!$A$1,6,16 +E$17-MIN('Savings Results'!$G:$G),2000),OFFSET('Savings Results'!$A$1,6,4,2000),"Dx",OFFSET('Savings Results'!$A$1,6,6,2000),$D23)/(1/(1-SUM('CE Parameters'!$F$10:$F$11))))/1000,0) -> 0 | F23: =IF(OFFSET('Savings Results'!$A$1,5,16 +MAX('Savings Results'!$G:$G)-MIN('Savings Results'!$G:$G)+MAX('Savings Results'!$J:$J)+E$17-MIN('Savings Results'!$G:$G))=E$17,(SUMIFS(OFFSET('Savings Results'!$A$1,6,16 +MAX('Savings Results'!$G:$G)-MIN('Savings Results'!$G:$G)+MAX('Savings Results'!$J:$J)+E$17-MIN('Savings Results'!$G:$G),2000),OFFSET('Savings Results'!$A$1,6,4,2000),"Dx",OFFSET('Savings Results'!$A$1,6,6,2000),$D23)/(1/(1-SUM('CE Parameters'!$F$10:$F$11))))/1000,0) -> 0 | G23: =IF(OFFSET('Savings Results'!$A$1,5,16 +G$17-MIN('Savings Results'!$G:$G))=G$17,(SUMIFS(OFFSET('Savings Results'!$A$1,6,16 +G$17-MIN('Savings Results'!$G:$G),2000),OFFSET('Savings Results'!$A$1,6,4,2000),"Dx",OFFSET('Savings Results'!$A$1,6,6,2000),$D23)/(1/(1-SUM('CE Parameters'!$F$10:$F$11))))/1000,0) -> 0 | H23: =IF(OFFSET('Savings Results'!$A$1,5,16 +MAX('Savings Results'!$G:$G)-MIN('Savings Results'!$G:$G)+MAX('Savings Results'!$J:$J)+G$17-MIN('Savings Results'!$G:$G))=G$17,(SUMIFS(OFFSET('Savings Results'!$A$1,6,16 +MAX('Savings Results'!$G:$G)-MIN('Savings Results'!$G:$G)+MAX('Savings Results'!$J:$J)+G$17-MIN('Savings Results'!$G:$G),2000),OFFSET('Savings Results'!$A$1,6,4,2000),"Dx",OFFSET('Savings Results'!$A$1,6,6,2000),$D23)/(1/(1-SUM('CE Parameters'!$F$10:$F$11))))/1000,0) -> 0 | I23: =IF(OFFSET('Savings Results'!$A$1,5,16 +I$17-MIN('Savings Results'!$G:$G))=I$17,(SUMIFS(OFFSET('Savings Results'!$A$1,6,16 +I$17-MIN('Savings Results'!$G:$G),2000),OFFSET('Savings Results'!$A$1,6,4,2000),"Dx",OFFSET('Savings Results'!$A$1,6,6,2000),$D23)/(1/(1-SUM('CE Parameters'!$F$10:$F$11))))/1000,0) -> 0 | J23: =IF(OFFSET('Savings Results'!$A$1,5,16 +MAX('Savings Results'!$G:$G)-MIN('Savings Results'!$G:$G)+MAX('Savings Results'!$J:$J)+I$17-MIN('Savings Results'!$G:$G))=I$17,(SUMIFS(OFFSET('Savings Results'!$A$1,6,16 +MAX('Savings Results'!$G:$G)-MIN('Savings Results'!$G:$G)+MAX('Savings Results'!$J:$J)+I$17-MIN('Savings Results'!$G:$G),2000),OFFSET('Savings Results'!$A$1,6,4,2000),"Dx",OFFSET('Savings Results'!$A$1,6,6,2000),$D23)/(1/(1-SUM('CE Parameters'!$F$10:$F$11))))/1000,0) -> 0 | K23: =IF(OFFSET('Savings Results'!$A$1,5,16 +K$17-MIN('Savings Results'!$G:$G))=K$17,(SUMIFS(OFFSET('Savings Results'!$A$1,6,16 +K$17-MIN('Savings Results'!$G:$G),2000),OFFSET('Savings Results'!$A$1,6,4,2000),"Dx",OFFSET('Savings Results'!$A$1,6,6,2000),$D23)/(1/(1-SUM('CE Parameters'!$F$10:$F$11))))/1000,0) -> 0 | L23: =IF(OFFSET('Savings Results'!$A$1,5,16 +MAX('Savings Results'!$G:$G)-MIN('Savings Results'!$G:$G)+MAX('Savings Results'!$J:$J)+K$17-MIN('Savings Results'!$G:$G))=K$17,(SUMIFS(OFFSET('Savings Results'!$A$1,6,16 +MAX('Savings Results'!$G:$G)-MIN('Savings Results'!$G:$G)+MAX('Savings Results'!$J:$J)+K$17-MIN('Savings Results'!$G:$G),2000),OFFSET('Savings Results'!$A$1,6,4,2000),"Dx",OFFSET('Savings Results'!$A$1,6,6,2000),$D23)/(1/(1-SUM('CE Parameters'!$F$10:$F$11))))/1000,0) -> 0 | M23: =IF(OFFSET('Savings Results'!$A$1,5,16 +M$17-MIN('Savings Results'!$G:$G))=M$17,(SUMIFS(OFFSET('Savings Results'!$A$1,6,16 +M$17-MIN('Savings Results'!$G:$G),2000),OFFSET('Savings Results'!$A$1,6,4,2000),"Dx",OFFSET('Savings Results'!$A$1,6,6,2000),$D23)/(1/(1-SUM('CE Parameters'!$F$10:$F$11))))/1000,0) -> 0 | N23: =IF(OFFSET('Savings Results'!$A$1,5,16 +MAX('Savings Results'!$G:$G)-MIN('Savings Results'!$G:$G)+MAX('Savings Results'!$J:$J)+M$17-MIN('Savings Results'!$G:$G))=M$17,(SUMIFS(OFFSET('Savings Results'!$A$1,6,16 +MAX('Savings Results'!$G:$G)-MIN('Savings Results'!$G:$G)+MAX('Savings Results'!$J:$J)+M$17-MIN('Savings Results'!$G:$G),2000),OFFSET('Savings Results'!$A$1,6,4,2000),"Dx",OFFSET('Savings Results'!$A$1,6,6,2000),$D23)/(1/(1-SUM('CE Parameters'!$F$10:$F$11))))/1000,0) -> 0 | O23: =IF(OFFSET('Savings Results'!$A$1,5,16 +O$17-MIN('Savings Results'!$G:$G))=O$17,(SUMIFS(OFFSET('Savings Results'!$A$1,6,16 +O$17-MIN('Savings Results'!$G:$G),2000),OFFSET('Savings Results'!$A$1,6,4,2000),"Dx",OFFSET('Savings Results'!$A$1,6,6,2000),$D23)/(1/(1-SUM('CE Parameters'!$F$10:$F$11))))/1000,0) -> 0 | P23: =IF(OFFSET('Savings Results'!$A$1,5,16 +MAX('Savings Results'!$G:$G)-MIN('Savings Results'!$G:$G)+MAX('Savings Results'!$J:$J)+O$17-MIN('Savings Results'!$G:$G))=O$17,(SUMIFS(OFFSET('Savings Results'!$A$1,6,16 +MAX('Savings Results'!$G:$G)-MIN('Savings Results'!$G:$G)+MAX('Savings Results'!$J:$J)+O$17-MIN('Savings Results'!$G:$G),2000),OFFSET('Savings Results'!$A$1,6,4,2000),"Dx",OFFSET('Savings Results'!$A$1,6,6,2000),$D23)/(1/(1-SUM('CE Parameters'!$F$10:$F$11))))/1000,0) -> 0 | Q23: =IF(OFFSET('Savings Results'!$A$1,5,16 +Q$17-MIN('Savings Results'!$G:$G))=Q$17,(SUMIFS(OFFSET('Savings Results'!$A$1,6,16 +Q$17-MIN('Savings Results'!$G:$G),2000),OFFSET('Savings Results'!$A$1,6,4,2000),"Dx",OFFSET('Savings Results'!$A$1,6,6,2000),$D23)/(1/(1-SUM('CE Parameters'!$F$10:$F$11))))/1000,0) -> 0 | R23: =IF(OFFSET('Savings Results'!$A$1,5,16 +MAX('Savings Results'!$G:$G)-MIN('Savings Results'!$G:$G)+MAX('Savings Results'!$J:$J)+Q$17-MIN('Savings Results'!$G:$G))=Q$17,(SUMIFS(OFFSET('Savings Results'!$A$1,6,16 +MAX('Savings Results'!$G:$G)-MIN('Savings Results'!$G:$G)+MAX('Savings Results'!$J:$J)+Q$17-MIN('Savings Results'!$G:$G),2000),OFFSET('Savings Results'!$A$1,6,4,2000),"Dx",OFFSET('Savings Results'!$A$1,6,6,2000),$D23)/(1/(1-SUM('CE Parameters'!$F$10:$F$11))))/1000,0) -> 0 | S23: =IF(OFFSET('Savings Results'!$A$1,5,16 +S$17-MIN('Savings Results'!$G:$G))=S$17,(SUMIFS(OFFSET('Savings Results'!$A$1,6,16 +S$17-MIN('Savings Results'!$G:$G),2000),OFFSET('Savings Results'!$A$1,6,4,2000),"Dx",OFFSET('Savings Results'!$A$1,6,6,2000),$D23)/(1/(1-SUM('CE Parameters'!$F$10:$F$11))))/1000,0) -> 0 | T23: =IF(OFFSET('Savings Results'!$A$1,5,16 +MAX('Savings Results'!$G:$G)-MIN('Savings Results'!$G:$G)+MAX('Savings Results'!$J:$J)+S$17-MIN('Savings Results'!$G:$G))=S$17,(SUMIFS(OFFSET('Savings Results'!$A$1,6,16 +MAX('Savings Results'!$G:$G)-MIN('Savings Results'!$G:$G)+MAX('Savings Results'!$J:$J)+S$17-MIN('Savings Results'!$G:$G),2000),OFFSET('Savings Results'!$A$1,6,4,2000),"Dx",OFFSET('Savings Results'!$A$1,6,6,2000),$D23)/(1/(1-SUM('CE Parameters'!$F$10:$F$11))))/1000,0) -> 0 | U23: =IF(OFFSET('Savings Results'!$A$1,5,16 +U$17-MIN('Savings Results'!$G:$G))=U$17,(SUMIFS(OFFSET('Savings Results'!$A$1,6,16 +U$17-MIN('Savings Results'!$G:$G),2000),OFFSET('Savings Results'!$A$1,6,4,2000),"Dx",OFFSET('Savings Results'!$A$1,6,6,2000),$D23)/(1/(1-SUM('CE Parameters'!$F$10:$F$11))))/1000,0) -> 0 | V23: =IF(OFFSET('Savings Results'!$A$1,5,16 +MAX('Savings Results'!$G:$G)-MIN('Savings Results'!$G:$G)+MAX('Savings Results'!$J:$J)+U$17-MIN('Savings Results'!$G:$G))=U$17,(SUMIFS(OFFSET('Savings Results'!$A$1,6,16 +MAX('Savings Results'!$G:$G)-MIN('Savings Results'!$G:$G)+MAX('Savings Results'!$J:$J)+U$17-MIN('Savings Results'!$G:$G),2000),OFFSET('Savings Results'!$A$1,6,4,2000),"Dx",OFFSET('Savings Results'!$A$1,6,6,2000),$D23)/(1/(1-SUM('CE Parameters'!$F$10:$F$11))))/1000,0) -> 0 | W23: =IF(OFFSET('Savings Results'!$A$1,5,16 +W$17-MIN('Savings Results'!$G:$G))=W$17,(SUMIFS(OFFSET('Savings Results'!$A$1,6,16 +W$17-MIN('Savings Results'!$G:$G),2000),OFFSET('Savings Results'!$A$1,6,4,2000),"Dx",OFFSET('Savings Results'!$A$1,6,6,2000),$D23)/(1/(1-SUM('CE Parameters'!$F$10:$F$11))))/1000,0) -> 0 | X23: =IF(OFFSET('Savings Results'!$A$1,5,16 +MAX('Savings Results'!$G:$G)-MIN('Savings Results'!$G:$G)+MAX('Savings Results'!$J:$J)+W$17-MIN('Savings Results'!$G:$G))=W$17,(SUMIFS(OFFSET('Savings Results'!$A$1,6,16 +MAX('Savings Results'!$G:$G)-MIN('Savings Results'!$G:$G)+MAX('Savings Results'!$J:$J)+W$17-MIN('Savings Results'!$G:$G),2000),OFFSET('Savings Results'!$A$1,6,4,2000),"Dx",OFFSET('Savings Results'!$A$1,6,6,2000),$D23)/(1/(1-SUM('CE Parameters'!$F$10:$F$11))))/1000,0) -> 0 | Y23: =IF(OFFSET('Savings Results'!$A$1,5,16 +Y$17-MIN('Savings Results'!$G:$G))=Y$17,(SUMIFS(OFFSET('Savings Results'!$A$1,6,16 +Y$17-MIN('Savings Results'!$G:$G),2000),OFFSET('Savings Results'!$A$1,6,4,2000),"Dx",OFFSET('Savings Results'!$A$1,6,6,2000),$D23)/(1/(1-SUM('CE Parameters'!$F$10:$F$11))))/1000,0) -> 0 | Z23: =IF(OFFSET('Savings Results'!$A$1,5,16 +MAX('Savings Results'!$G:$G)-MIN('Savings Results'!$G:$G)+MAX('Savings Results'!$J:$J)+Y$17-MIN('Savings Results'!$G:$G))=Y$17,(SUMIFS(OFFSET('Savings Results'!$A$1,6,16 +MAX('Savings Results'!$G:$G)-MIN('Savings Results'!$G:$G)+MAX('Savings Results'!$J:$J)+Y$17-MIN('Savings Results'!$G:$G),2000),OFFSET('Savings Results'!$A$1,6,4,2000),"Dx",OFFSET('Savings Results'!$A$1,6,6,2000),$D23)/(1/(1-SUM('CE Parameters'!$F$10:$F$11))))/1000,0) -> 0 | AA23: =IF(OFFSET('Savings Results'!$A$1,5,16 +AA$17-MIN('Savings Results'!$G:$G))=AA$17,(SUMIFS(OFFSET('Savings Results'!$A$1,6,16 +AA$17-MIN('Savings Results'!$G:$G),2000),OFFSET('Savings Results'!$A$1,6,4,2000),"Dx",OFFSET('Savings Results'!$A$1,6,6,2000),$D23)/(1/(1-SUM('CE Parameters'!$F$10:$F$11))))/1000,0) -> 0 | AB23: =IF(OFFSET('Savings Results'!$A$1,5,16 +MAX('Savings Results'!$G:$G)-MIN('Savings Results'!$G:$G)+MAX('Savings Results'!$J:$J)+AA$17-MIN('Savings Results'!$G:$G))=AA$17,(SUMIFS(OFFSET('Savings Results'!$A$1,6,16 +MAX('Savings Results'!$G:$G)-MIN('Savings Results'!$G:$G)+MAX('Savings Results'!$J:$J)+AA$17-MIN('Savings Results'!$G:$G),2000),OFFSET('Savings Results'!$A$1,6,4,2000),"Dx",OFFSET('Savings Results'!$A$1,6,6,2000),$D23)/(1/(1-SUM('CE Parameters'!$F$10:$F$11))))/1000,0) -> 0 | AC23: =IF(OFFSET('Savings Results'!$A$1,5,16 +AC$17-MIN('Savings Results'!$G:$G))=AC$17,(SUMIFS(OFFSET('Savings Results'!$A$1,6,16 +AC$17-MIN('Savings Results'!$G:$G),2000),OFFSET('Savings Results'!$A$1,6,4,2000),"Dx",OFFSET('Savings Results'!$A$1,6,6,2000),$D23)/(1/(1-SUM('CE Parameters'!$F$10:$F$11))))/1000,0) -> 0 | AD23: =IF(OFFSET('Savings Results'!$A$1,5,16 +MAX('Savings Results'!$G:$G)-MIN('Savings Results'!$G:$G)+MAX('Savings Results'!$J:$J)+AC$17-MIN('Savings Results'!$G:$G))=AC$17,(SUMIFS(OFFSET('Savings Results'!$A$1,6,16 +MAX('Savings Results'!$G:$G)-MIN('Savings Results'!$G:$G)+MAX('Savings Results'!$J:$J)+AC$17-MIN('Savings Results'!$G:$G),2000),OFFSET('Savings Results'!$A$1,6,4,2000),"Dx",OFFSET('Savings Results'!$A$1,6,6,2000),$D23)/(1/(1-SUM('CE Parameters'!$F$10:$F$11))))/1000,0) -> 0 | AE23: =IF(OFFSET('Savings Results'!$A$1,5,16 +AE$17-MIN('Savings Results'!$G:$G))=AE$17,(SUMIFS(OFFSET('Savings Results'!$A$1,6,16 +AE$17-MIN('Savings Results'!$G:$G),2000),OFFSET('Savings Results'!$A$1,6,4,2000),"Dx",OFFSET('Savings Results'!$A$1,6,6,2000),$D23)/(1/(1-SUM('CE Parameters'!$F$10:$F$11))))/1000,0) -> 0 | AF23: =IF(OFFSET('Savings Results'!$A$1,5,16 +MAX('Savings Results'!$G:$G)-MIN('Savings Results'!$G:$G)+MAX('Savings Results'!$J:$J)+AE$17-MIN('Savings Results'!$G:$G))=AE$17,(SUMIFS(OFFSET('Savings Results'!$A$1,6,16 +MAX('Savings Results'!$G:$G)-MIN('Savings Results'!$G:$G)+MAX('Savings Results'!$J:$J)+AE$17-MIN('Savings Results'!$G:$G),2000),OFFSET('Savings Results'!$A$1,6,4,2000),"Dx",OFFSET('Savings Results'!$A$1,6,6,2000),$D23)/(1/(1-SUM('CE Parameters'!$F$10:$F$11))))/1000,0) -> 0 | AG23: =IF(OFFSET('Savings Results'!$A$1,5,16 +AG$17-MIN('Savings Results'!$G:$G))=AG$17,(SUMIFS(OFFSET('Savings Results'!$A$1,6,16 +AG$17-MIN('Savings Results'!$G:$G),2000),OFFSET('Savings Results'!$A$1,6,4,2000),"Dx",OFFSET('Savings Results'!$A$1,6,6,2000),$D23)/(1/(1-SUM('CE Parameters'!$F$10:$F$11))))/1000,0) -> 0 | AH23: =IF(OFFSET('Savings Results'!$A$1,5,16 +MAX('Savings Results'!$G:$G)-MIN('Savings Results'!$G:$G)+MAX('Savings Results'!$J:$J)+AG$17-MIN('Savings Results'!$G:$G))=AG$17,(SUMIFS(OFFSET('Savings Results'!$A$1,6,16 +MAX('Savings Results'!$G:$G)-MIN('Savings Results'!$G:$G)+MAX('Savings Results'!$J:$J)+AG$17-MIN('Savings Results'!$G:$G),2000),OFFSET('Savings Results'!$A$1,6,4,2000),"Dx",OFFSET('Savings Results'!$A$1,6,6,2000),$D23)/(1/(1-SUM('CE Parameters'!$F$10:$F$11))))/1000,0) -> 0 | AI23: =IF(OFFSET('Savings Results'!$A$1,5,16 +AI$17-MIN('Savings Results'!$G:$G))=AI$17,(SUMIFS(OFFSET('Savings Results'!$A$1,6,16 +AI$17-MIN('Savings Results'!$G:$G),2000),OFFSET('Savings Results'!$A$1,6,4,2000),"Dx",OFFSET('Savings Results'!$A$1,6,6,2000),$D23)/(1/(1-SUM('CE Parameters'!$F$10:$F$11))))/1000,0) -> 0 | AJ23: =IF(OFFSET('Savings Results'!$A$1,5,16 +MAX('Savings Results'!$G:$G)-MIN('Savings Results'!$G:$G)+MAX('Savings Results'!$J:$J)+AI$17-MIN('Savings Results'!$G:$G))=AI$17,(SUMIFS(OFFSET('Savings Results'!$A$1,6,16 +MAX('Savings Results'!$G:$G)-MIN('Savings Results'!$G:$G)+MAX('Savings Results'!$J:$J)+AI$17-MIN('Savings Results'!$G:$G),2000),OFFSET('Savings Results'!$A$1,6,4,2000),"Dx",OFFSET('Savings Results'!$A$1,6,6,2000),$D23)/(1/(1-SUM('CE Parameters'!$F$10:$F$11))))/1000,0) -> 0 | AK23: =IF(OFFSET('Savings Results'!$A$1,5,16 +AK$17-MIN('Savings Results'!$G:$G))=AK$17,(SUMIFS(OFFSET('Savings Results'!$A$1,6,16 +AK$17-MIN('Savings Results'!$G:$G),2000),OFFSET('Savings Results'!$A$1,6,4,2000),"Dx",OFFSET('Savings Results'!$A$1,6,6,2000),$D23)/(1/(1-SUM('CE Parameters'!$F$10:$F$11))))/1000,0) -> 0 | AL23: =IF(OFFSET('Savings Results'!$A$1,5,16 +MAX('Savings Results'!$G:$G)-MIN('Savings Results'!$G:$G)+MAX('Savings Results'!$J:$J)+AK$17-MIN('Savings Results'!$G:$G))=AK$17,(SUMIFS(OFFSET('Savings Results'!$A$1,6,16 +MAX('Savings Results'!$G:$G)-MIN('Savings Results'!$G:$G)+MAX('Savings Results'!$J:$J)+AK$17-MIN('Savings Results'!$G:$G),2000),OFFSET('Savings Results'!$A$1,6,4,2000),"Dx",OFFSET('Savings Results'!$A$1,6,6,2000),$D23)/(1/(1-SUM('CE Parameters'!$F$10:$F$11))))/1000,0) -> 0 | AM23: =IF(OFFSET('Savings Results'!$A$1,5,16 +AM$17-MIN('Savings Results'!$G:$G))=AM$17,(SUMIFS(OFFSET('Savings Results'!$A$1,6,16 +AM$17-MIN('Savings Results'!$G:$G),2000),OFFSET('Savings Results'!$A$1,6,4,2000),"Dx",OFFSET('Savings Results'!$A$1,6,6,2000),$D23)/(1/(1-SUM('CE Parameters'!$F$10:$F$11))))/1000,0) -> 0 | AN23: =IF(OFFSET('Savings Results'!$A$1,5,16 +MAX('Savings Results'!$G:$G)-MIN('Savings Results'!$G:$G)+MAX('Savings Results'!$J:$J)+AM$17-MIN('Savings Results'!$G:$G))=AM$17,(SUMIFS(OFFSET('Savings Results'!$A$1,6,16 +MAX('Savings Results'!$G:$G)-MIN('Savings Results'!$G:$G)+MAX('Savings Results'!$J:$J)+AM$17-MIN('Savings Results'!$G:$G),2000),OFFSET('Savings Results'!$A$1,6,4,2000),"Dx",OFFSET('Savings Results'!$A$1,6,6,2000),$D23)/(1/(1-SUM('CE Parameters'!$F$10:$F$11))))/1000,0) -> 0
D24: 2020 | E24: =IF(OFFSET('Savings Results'!$A$1,5,16 +E$17-MIN('Savings Results'!$G:$G))=E$17,(SUMIFS(OFFSET('Savings Results'!$A$1,6,16 +E$17-MIN('Savings Results'!$G:$G),2000),OFFSET('Savings Results'!$A$1,6,4,2000),"Dx",OFFSET('Savings Results'!$A$1,6,6,2000),$D24)/(1/(1-SUM('CE Parameters'!$F$10:$F$11))))/1000,0) -> 0 | F24: =IF(OFFSET('Savings Results'!$A$1,5,16 +MAX('Savings Results'!$G:$G)-MIN('Savings Results'!$G:$G)+MAX('Savings Results'!$J:$J)+E$17-MIN('Savings Results'!$G:$G))=E$17,(SUMIFS(OFFSET('Savings Results'!$A$1,6,16 +MAX('Savings Results'!$G:$G)-MIN('Savings Results'!$G:$G)+MAX('Savings Results'!$J:$J)+E$17-MIN('Savings Results'!$G:$G),2000),OFFSET('Savings Results'!$A$1,6,4,2000),"Dx",OFFSET('Savings Results'!$A$1,6,6,2000),$D24)/(1/(1-SUM('CE Parameters'!$F$10:$F$11))))/1000,0) -> 0 | G24: =IF(OFFSET('Savings Results'!$A$1,5,16 +G$17-MIN('Savings Results'!$G:$G))=G$17,(SUMIFS(OFFSET('Savings Results'!$A$1,6,16 +G$17-MIN('Savings Results'!$G:$G),2000),OFFSET('Savings Results'!$A$1,6,4,2000),"Dx",OFFSET('Savings Results'!$A$1,6,6,2000),$D24)/(1/(1-SUM('CE Parameters'!$F$10:$F$11))))/1000,0) -> 0 | H24: =IF(OFFSET('Savings Results'!$A$1,5,16 +MAX('Savings Results'!$G:$G)-MIN('Savings Results'!$G:$G)+MAX('Savings Results'!$J:$J)+G$17-MIN('Savings Results'!$G:$G))=G$17,(SUMIFS(OFFSET('Savings Results'!$A$1,6,16 +MAX('Savings Results'!$G:$G)-MIN('Savings Results'!$G:$G)+MAX('Savings Results'!$J:$J)+G$17-MIN('Savings Results'!$G:$G),2000),OFFSET('Savings Results'!$A$1,6,4,2000),"Dx",OFFSET('Savings Results'!$A$1,6,6,2000),$D24)/(1/(1-SUM('CE Parameters'!$F$10:$F$11))))/1000,0) -> 0 | I24: =IF(OFFSET('Savings Results'!$A$1,5,16 +I$17-MIN('Savings Results'!$G:$G))=I$17,(SUMIFS(OFFSET('Savings Results'!$A$1,6,16 +I$17-MIN('Savings Results'!$G:$G),2000),OFFSET('Savings Results'!$A$1,6,4,2000),"Dx",OFFSET('Savings Results'!$A$1,6,6,2000),$D24)/(1/(1-SUM('CE Parameters'!$F$10:$F$11))))/1000,0) -> 0 | J24: =IF(OFFSET('Savings Results'!$A$1,5,16 +MAX('Savings Results'!$G:$G)-MIN('Savings Results'!$G:$G)+MAX('Savings Results'!$J:$J)+I$17-MIN('Savings Results'!$G:$G))=I$17,(SUMIFS(OFFSET('Savings Results'!$A$1,6,16 +MAX('Savings Results'!$G:$G)-MIN('Savings Results'!$G:$G)+MAX('Savings Results'!$J:$J)+I$17-MIN('Savings Results'!$G:$G),2000),OFFSET('Savings Results'!$A$1,6,4,2000),"Dx",OFFSET('Savings Results'!$A$1,6,6,2000),$D24)/(1/(1-SUM('CE Parameters'!$F$10:$F$11))))/1000,0) -> 0 | K24: =IF(OFFSET('Savings Results'!$A$1,5,16 +K$17-MIN('Savings Results'!$G:$G))=K$17,(SUMIFS(OFFSET('Savings Results'!$A$1,6,16 +K$17-MIN('Savings Results'!$G:$G),2000),OFFSET('Savings Results'!$A$1,6,4,2000),"Dx",OFFSET('Savings Results'!$A$1,6,6,2000),$D24)/(1/(1-SUM('CE Parameters'!$F$10:$F$11))))/1000,0) -> 0 | L24: =IF(OFFSET('Savings Results'!$A$1,5,16 +MAX('Savings Results'!$G:$G)-MIN('Savings Results'!$G:$G)+MAX('Savings Results'!$J:$J)+K$17-MIN('Savings Results'!$G:$G))=K$17,(SUMIFS(OFFSET('Savings Results'!$A$1,6,16 +MAX('Savings Results'!$G:$G)-MIN('Savings Results'!$G:$G)+MAX('Savings Results'!$J:$J)+K$17-MIN('Savings Results'!$G:$G),2000),OFFSET('Savings Results'!$A$1,6,4,2000),"Dx",OFFSET('Savings Results'!$A$1,6,6,2000),$D24)/(1/(1-SUM('CE Parameters'!$F$10:$F$11))))/1000,0) -> 0 | M24: =IF(OFFSET('Savings Results'!$A$1,5,16 +M$17-MIN('Savings Results'!$G:$G))=M$17,(SUMIFS(OFFSET('Savings Results'!$A$1,6,16 +M$17-MIN('Savings Results'!$G:$G),2000),OFFSET('Savings Results'!$A$1,6,4,2000),"Dx",OFFSET('Savings Results'!$A$1,6,6,2000),$D24)/(1/(1-SUM('CE Parameters'!$F$10:$F$11))))/1000,0) -> 0 | N24: =IF(OFFSET('Savings Results'!$A$1,5,16 +MAX('Savings Results'!$G:$G)-MIN('Savings Results'!$G:$G)+MAX('Savings Results'!$J:$J)+M$17-MIN('Savings Results'!$G:$G))=M$17,(SUMIFS(OFFSET('Savings Results'!$A$1,6,16 +MAX('Savings Results'!$G:$G)-MIN('Savings Results'!$G:$G)+MAX('Savings Results'!$J:$J)+M$17-MIN('Savings Results'!$G:$G),2000),OFFSET('Savings Results'!$A$1,6,4,2000),"Dx",OFFSET('Savings Results'!$A$1,6,6,2000),$D24)/(1/(1-SUM('CE Parameters'!$F$10:$F$11))))/1000,0) -> 0 | O24: =IF(OFFSET('Savings Results'!$A$1,5,16 +O$17-MIN('Savings Results'!$G:$G))=O$17,(SUMIFS(OFFSET('Savings Results'!$A$1,6,16 +O$17-MIN('Savings Results'!$G:$G),2000),OFFSET('Savings Results'!$A$1,6,4,2000),"Dx",OFFSET('Savings Results'!$A$1,6,6,2000),$D24)/(1/(1-SUM('CE Parameters'!$F$10:$F$11))))/1000,0) -> 0 | P24: =IF(OFFSET('Savings Results'!$A$1,5,16 +MAX('Savings Results'!$G:$G)-MIN('Savings Results'!$G:$G)+MAX('Savings Results'!$J:$J)+O$17-MIN('Savings Results'!$G:$G))=O$17,(SUMIFS(OFFSET('Savings Results'!$A$1,6,16 +MAX('Savings Results'!$G:$G)-MIN('Savings Results'!$G:$G)+MAX('Savings Results'!$J:$J)+O$17-MIN('Savings Results'!$G:$G),2000),OFFSET('Savings Results'!$A$1,6,4,2000),"Dx",OFFSET('Savings Results'!$A$1,6,6,2000),$D24)/(1/(1-SUM('CE Parameters'!$F$10:$F$11))))/1000,0) -> 0 | Q24: =IF(OFFSET('Savings Results'!$A$1,5,16 +Q$17-MIN('Savings Results'!$G:$G))=Q$17,(SUMIFS(OFFSET('Savings Results'!$A$1,6,16 +Q$17-MIN('Savings Results'!$G:$G),2000),OFFSET('Savings Results'!$A$1,6,4,2000),"Dx",OFFSET('Savings Results'!$A$1,6,6,2000),$D24)/(1/(1-SUM('CE Parameters'!$F$10:$F$11))))/1000,0) -> 0 | R24: =IF(OFFSET('Savings Results'!$A$1,5,16 +MAX('Savings Results'!$G:$G)-MIN('Savings Results'!$G:$G)+MAX('Savings Results'!$J:$J)+Q$17-MIN('Savings Results'!$G:$G))=Q$17,(SUMIFS(OFFSET('Savings Results'!$A$1,6,16 +MAX('Savings Results'!$G:$G)-MIN('Savings Results'!$G:$G)+MAX('Savings Results'!$J:$J)+Q$17-MIN('Savings Results'!$G:$G),2000),OFFSET('Savings Results'!$A$1,6,4,2000),"Dx",OFFSET('Savings Results'!$A$1,6,6,2000),$D24)/(1/(1-SUM('CE Parameters'!$F$10:$F$11))))/1000,0) -> 0 | S24: =IF(OFFSET('Savings Results'!$A$1,5,16 +S$17-MIN('Savings Results'!$G:$G))=S$17,(SUMIFS(OFFSET('Savings Results'!$A$1,6,16 +S$17-MIN('Savings Results'!$G:$G),2000),OFFSET('Savings Results'!$A$1,6,4,2000),"Dx",OFFSET('Savings Results'!$A$1,6,6,2000),$D24)/(1/(1-SUM('CE Parameters'!$F$10:$F$11))))/1000,0) -> 0 | T24: =IF(OFFSET('Savings Results'!$A$1,5,16 +MAX('Savings Results'!$G:$G)-MIN('Savings Results'!$G:$G)+MAX('Savings Results'!$J:$J)+S$17-MIN('Savings Results'!$G:$G))=S$17,(SUMIFS(OFFSET('Savings Results'!$A$1,6,16 +MAX('Savings Results'!$G:$G)-MIN('Savings Results'!$G:$G)+MAX('Savings Results'!$J:$J)+S$17-MIN('Savings Results'!$G:$G),2000),OFFSET('Savings Results'!$A$1,6,4,2000),"Dx",OFFSET('Savings Results'!$A$1,6,6,2000),$D24)/(1/(1-SUM('CE Parameters'!$F$10:$F$11))))/1000,0) -> 0 | U24: =IF(OFFSET('Savings Results'!$A$1,5,16 +U$17-MIN('Savings Results'!$G:$G))=U$17,(SUMIFS(OFFSET('Savings Results'!$A$1,6,16 +U$17-MIN('Savings Results'!$G:$G),2000),OFFSET('Savings Results'!$A$1,6,4,2000),"Dx",OFFSET('Savings Results'!$A$1,6,6,2000),$D24)/(1/(1-SUM('CE Parameters'!$F$10:$F$11))))/1000,0) -> 0 | V24: =IF(OFFSET('Savings Results'!$A$1,5,16 +MAX('Savings Results'!$G:$G)-MIN('Savings Results'!$G:$G)+MAX('Savings Results'!$J:$J)+U$17-MIN('Savings Results'!$G:$G))=U$17,(SUMIFS(OFFSET('Savings Results'!$A$1,6,16 +MAX('Savings Results'!$G:$G)-MIN('Savings Results'!$G:$G)+MAX('Savings Results'!$J:$J)+U$17-MIN('Savings Results'!$G:$G),2000),OFFSET('Savings Results'!$A$1,6,4,2000),"Dx",OFFSET('Savings Results'!$A$1,6,6,2000),$D24)/(1/(1-SUM('CE Parameters'!$F$10:$F$11))))/1000,0) -> 0 | W24: =IF(OFFSET('Savings Results'!$A$1,5,16 +W$17-MIN('Savings Results'!$G:$G))=W$17,(SUMIFS(OFFSET('Savings Results'!$A$1,6,16 +W$17-MIN('Savings Results'!$G:$G),2000),OFFSET('Savings Results'!$A$1,6,4,2000),"Dx",OFFSET('Savings Results'!$A$1,6,6,2000),$D24)/(1/(1-SUM('CE Parameters'!$F$10:$F$11))))/1000,0) -> 0 | X24: =IF(OFFSET('Savings Results'!$A$1,5,16 +MAX('Savings Results'!$G:$G)-MIN('Savings Results'!$G:$G)+MAX('Savings Results'!$J:$J)+W$17-MIN('Savings Results'!$G:$G))=W$17,(SUMIFS(OFFSET('Savings Results'!$A$1,6,16 +MAX('Savings Results'!$G:$G)-MIN('Savings Results'!$G:$G)+MAX('Savings Results'!$J:$J)+W$17-MIN('Savings Results'!$G:$G),2000),OFFSET('Savings Results'!$A$1,6,4,2000),"Dx",OFFSET('Savings Results'!$A$1,6,6,2000),$D24)/(1/(1-SUM('CE Parameters'!$F$10:$F$11))))/1000,0) -> 0 | Y24: =IF(OFFSET('Savings Results'!$A$1,5,16 +Y$17-MIN('Savings Results'!$G:$G))=Y$17,(SUMIFS(OFFSET('Savings Results'!$A$1,6,16 +Y$17-MIN('Savings Results'!$G:$G),2000),OFFSET('Savings Results'!$A$1,6,4,2000),"Dx",OFFSET('Savings Results'!$A$1,6,6,2000),$D24)/(1/(1-SUM('CE Parameters'!$F$10:$F$11))))/1000,0) -> 0 | Z24: =IF(OFFSET('Savings Results'!$A$1,5,16 +MAX('Savings Results'!$G:$G)-MIN('Savings Results'!$G:$G)+MAX('Savings Results'!$J:$J)+Y$17-MIN('Savings Results'!$G:$G))=Y$17,(SUMIFS(OFFSET('Savings Results'!$A$1,6,16 +MAX('Savings Results'!$G:$G)-MIN('Savings Results'!$G:$G)+MAX('Savings Results'!$J:$J)+Y$17-MIN('Savings Results'!$G:$G),2000),OFFSET('Savings Results'!$A$1,6,4,2000),"Dx",OFFSET('Savings Results'!$A$1,6,6,2000),$D24)/(1/(1-SUM('CE Parameters'!$F$10:$F$11))))/1000,0) -> 0 | AA24: =IF(OFFSET('Savings Results'!$A$1,5,16 +AA$17-MIN('Savings Results'!$G:$G))=AA$17,(SUMIFS(OFFSET('Savings Results'!$A$1,6,16 +AA$17-MIN('Savings Results'!$G:$G),2000),OFFSET('Savings Results'!$A$1,6,4,2000),"Dx",OFFSET('Savings Results'!$A$1,6,6,2000),$D24)/(1/(1-SUM('CE Parameters'!$F$10:$F$11))))/1000,0) -> 0 | AB24: =IF(OFFSET('Savings Results'!$A$1,5,16 +MAX('Savings Results'!$G:$G)-MIN('Savings Results'!$G:$G)+MAX('Savings Results'!$J:$J)+AA$17-MIN('Savings Results'!$G:$G))=AA$17,(SUMIFS(OFFSET('Savings Results'!$A$1,6,16 +MAX('Savings Results'!$G:$G)-MIN('Savings Results'!$G:$G)+MAX('Savings Results'!$J:$J)+AA$17-MIN('Savings Results'!$G:$G),2000),OFFSET('Savings Results'!$A$1,6,4,2000),"Dx",OFFSET('Savings Results'!$A$1,6,6,2000),$D24)/(1/(1-SUM('CE Parameters'!$F$10:$F$11))))/1000,0) -> 0 | AC24: =IF(OFFSET('Savings Results'!$A$1,5,16 +AC$17-MIN('Savings Results'!$G:$G))=AC$17,(SUMIFS(OFFSET('Savings Results'!$A$1,6,16 +AC$17-MIN('Savings Results'!$G:$G),2000),OFFSET('Savings Results'!$A$1,6,4,2000),"Dx",OFFSET('Savings Results'!$A$1,6,6,2000),$D24)/(1/(1-SUM('CE Parameters'!$F$10:$F$11))))/1000,0) -> 0 | AD24: =IF(OFFSET('Savings Results'!$A$1,5,16 +MAX('Savings Results'!$G:$G)-MIN('Savings Results'!$G:$G)+MAX('Savings Results'!$J:$J)+AC$17-MIN('Savings Results'!$G:$G))=AC$17,(SUMIFS(OFFSET('Savings Results'!$A$1,6,16 +MAX('Savings Results'!$G:$G)-MIN('Savings Results'!$G:$G)+MAX('Savings Results'!$J:$J)+AC$17-MIN('Savings Results'!$G:$G),2000),OFFSET('Savings Results'!$A$1,6,4,2000),"Dx",OFFSET('Savings Results'!$A$1,6,6,2000),$D24)/(1/(1-SUM('CE Parameters'!$F$10:$F$11))))/1000,0) -> 0 | AE24: =IF(OFFSET('Savings Results'!$A$1,5,16 +AE$17-MIN('Savings Results'!$G:$G))=AE$17,(SUMIFS(OFFSET('Savings Results'!$A$1,6,16 +AE$17-MIN('Savings Results'!$G:$G),2000),OFFSET('Savings Results'!$A$1,6,4,2000),"Dx",OFFSET('Savings Results'!$A$1,6,6,2000),$D24)/(1/(1-SUM('CE Parameters'!$F$10:$F$11))))/1000,0) -> 0 | AF24: =IF(OFFSET('Savings Results'!$A$1,5,16 +MAX('Savings Results'!$G:$G)-MIN('Savings Results'!$G:$G)+MAX('Savings Results'!$J:$J)+AE$17-MIN('Savings Results'!$G:$G))=AE$17,(SUMIFS(OFFSET('Savings Results'!$A$1,6,16 +MAX('Savings Results'!$G:$G)-MIN('Savings Results'!$G:$G)+MAX('Savings Results'!$J:$J)+AE$17-MIN('Savings Results'!$G:$G),2000),OFFSET('Savings Results'!$A$1,6,4,2000),"Dx",OFFSET('Savings Results'!$A$1,6,6,2000),$D24)/(1/(1-SUM('CE Parameters'!$F$10:$F$11))))/1000,0) -> 0 | AG24: =IF(OFFSET('Savings Results'!$A$1,5,16 +AG$17-MIN('Savings Results'!$G:$G))=AG$17,(SUMIFS(OFFSET('Savings Results'!$A$1,6,16 +AG$17-MIN('Savings Results'!$G:$G),2000),OFFSET('Savings Results'!$A$1,6,4,2000),"Dx",OFFSET('Savings Results'!$A$1,6,6,2000),$D24)/(1/(1-SUM('CE Parameters'!$F$10:$F$11))))/1000,0) -> 0 | AH24: =IF(OFFSET('Savings Results'!$A$1,5,16 +MAX('Savings Results'!$G:$G)-MIN('Savings Results'!$G:$G)+MAX('Savings Results'!$J:$J)+AG$17-MIN('Savings Results'!$G:$G))=AG$17,(SUMIFS(OFFSET('Savings Results'!$A$1,6,16 +MAX('Savings Results'!$G:$G)-MIN('Savings Results'!$G:$G)+MAX('Savings Results'!$J:$J)+AG$17-MIN('Savings Results'!$G:$G),2000),OFFSET('Savings Results'!$A$1,6,4,2000),"Dx",OFFSET('Savings Results'!$A$1,6,6,2000),$D24)/(1/(1-SUM('CE Parameters'!$F$10:$F$11))))/1000,0) -> 0 | AI24: =IF(OFFSET('Savings Results'!$A$1,5,16 +AI$17-MIN('Savings Results'!$G:$G))=AI$17,(SUMIFS(OFFSET('Savings Results'!$A$1,6,16 +AI$17-MIN('Savings Results'!$G:$G),2000),OFFSET('Savings Results'!$A$1,6,4,2000),"Dx",OFFSET('Savings Results'!$A$1,6,6,2000),$D24)/(1/(1-SUM('CE Parameters'!$F$10:$F$11))))/1000,0) -> 0 | AJ24: =IF(OFFSET('Savings Results'!$A$1,5,16 +MAX('Savings Results'!$G:$G)-MIN('Savings Results'!$G:$G)+MAX('Savings Results'!$J:$J)+AI$17-MIN('Savings Results'!$G:$G))=AI$17,(SUMIFS(OFFSET('Savings Results'!$A$1,6,16 +MAX('Savings Results'!$G:$G)-MIN('Savings Results'!$G:$G)+MAX('Savings Results'!$J:$J)+AI$17-MIN('Savings Results'!$G:$G),2000),OFFSET('Savings Results'!$A$1,6,4,2000),"Dx",OFFSET('Savings Results'!$A$1,6,6,2000),$D24)/(1/(1-SUM('CE Parameters'!$F$10:$F$11))))/1000,0) -> 0 | AK24: =IF(OFFSET('Savings Results'!$A$1,5,16 +AK$17-MIN('Savings Results'!$G:$G))=AK$17,(SUMIFS(OFFSET('Savings Results'!$A$1,6,16 +AK$17-MIN('Savings Results'!$G:$G),2000),OFFSET('Savings Results'!$A$1,6,4,2000),"Dx",OFFSET('Savings Results'!$A$1,6,6,2000),$D24)/(1/(1-SUM('CE Parameters'!$F$10:$F$11))))/1000,0) -> 0 | AL24: =IF(OFFSET('Savings Results'!$A$1,5,16 +MAX('Savings Results'!$G:$G)-MIN('Savings Results'!$G:$G)+MAX('Savings Results'!$J:$J)+AK$17-MIN('Savings Results'!$G:$G))=AK$17,(SUMIFS(OFFSET('Savings Results'!$A$1,6,16 +MAX('Savings Results'!$G:$G)-MIN('Savings Results'!$G:$G)+MAX('Savings Results'!$J:$J)+AK$17-MIN('Savings Results'!$G:$G),2000),OFFSET('Savings Results'!$A$1,6,4,2000),"Dx",OFFSET('Savings Results'!$A$1,6,6,2000),$D24)/(1/(1-SUM('CE Parameters'!$F$10:$F$11))))/1000,0) -> 0 | AM24: =IF(OFFSET('Savings Results'!$A$1,5,16 +AM$17-MIN('Savings Results'!$G:$G))=AM$17,(SUMIFS(OFFSET('Savings Results'!$A$1,6,16 +AM$17-MIN('Savings Results'!$G:$G),2000),OFFSET('Savings Results'!$A$1,6,4,2000),"Dx",OFFSET('Savings Results'!$A$1,6,6,2000),$D24)/(1/(1-SUM('CE Parameters'!$F$10:$F$11))))/1000,0) -> 0 | AN24: =IF(OFFSET('Savings Results'!$A$1,5,16 +MAX('Savings Results'!$G:$G)-MIN('Savings Results'!$G:$G)+MAX('Savings Results'!$J:$J)+AM$17-MIN('Savings Results'!$G:$G))=AM$17,(SUMIFS(OFFSET('Savings Results'!$A$1,6,16 +MAX('Savings Results'!$G:$G)-MIN('Savings Results'!$G:$G)+MAX('Savings Results'!$J:$J)+AM$17-MIN('Savings Results'!$G:$G),2000),OFFSET('Savings Results'!$A$1,6,4,2000),"Dx",OFFSET('Savings Results'!$A$1,6,6,2000),$D24)/(1/(1-SUM('CE Parameters'!$F$10:$F$11))))/1000,0) -> 0
D25: Plan Total | E25: =SUM(E19:E24) -> 0 | F25: 0 | G25: 0 | H25: 0 | I25: 0 | J25: 0 | K25: 0 | L25: 0 | M25: 0 | N25: 0 | O25: 0 | P25: 0 | Q25: 0 | R25: 0 | S25: 0 | T25: 0 | U25: 0 | V25: 0 | W25: 0 | X25: 0 | Y25: 0 | Z25: 0 | AA25: 0 | AB25: 0 | AC25: 0 | AD25: 0 | AE25: 0 | AF25: 0 | AG25: 0 | AH25: 0 | AI25: 0 | AJ25: 0 | AK25: 0 | AL25: 0 | AM25: 0 | AN25: 0
B27: TABLE 13
B28: SUMMARY OF CDM PORTFOLIO COSTS
C29: CDM Plan Costs | D29: Implementation Year
D31: 2015
D32: 2016
D33: 2017
D34: 2018
D35: 2019
D36: 2020
D37: Plan Total

Sheet OPA ADMIN ONLY (hidden)
A1: OPA ADMIN ONLY: LOCKING AND UNLOCKING SHEETS
A2: This sheet will become hidden when you navigate away from it. The sheet can then be unlocked using the password in cell B3. Please remember this password.
A3: Admin Password | B3: opaADMIN702
A4: Unlocks VBA code *Must be changed manually*
A5: Unhides this sheet *Using password in cell B3 (automatically locks when user navigates away from this page)
A8: Tool Password | B8: opaTOOL989
A10: Locks and Unlocks all sheets
A11: User input cells will remain unlocked
A12: Individual sheets can also be unlocked manually using the password above
A14: To change the password: "Unlock All Sheets," modify the password in cell B8 and "Lock All Sheets"
A15: **Do not change the password without unlocking first**

Sheet BMG (hidden)
A1: Table 14: Behind-the-Meter as % of Portfolio
A2: Metric | B2: 2020
A3: % of 2020 Target | B3: =$G$11/$G$22 -> 
A4: % of Total Incentives | B4: =SUM($B$12:$G$12)/SUM($B$23:$G$23) -> 0
A5: % of Total Budget | B5: =SUM($B$12:$G$14)/SUM($B$23:$G$26) -> 0
A7: Table 15: Behind-the-Meter Summary
A8: Metric | B8: 2015 | C8: 2016 | D8: 2017 | E8: 2018 | F8: 2019 | G8: 2020
A9: Number of Projects | B9: =SUMIFS('Program Design'!$K:$K,'Program Design'!$J:$J,BMG!B$8,'Program Design'!$R:$R,"TRUE") -> 0 | C9: =SUMIFS('Program Design'!$K:$K,'Program Design'!$J:$J,BMG!C$8,'Program Design'!$R:$R,"TRUE") -> 0 | D9: =SUMIFS('Program Design'!$K:$K,'Program Design'!$J:$J,BMG!D$8,'Program Design'!$R:$R,"TRUE") -> 0 | E9: =SUMIFS('Program Design'!$K:$K,'Program Design'!$J:$J,BMG!E$8,'Program Design'!$R:$R,"TRUE") -> 0 | F9: =SUMIFS('Program Design'!$K:$K,'Program Design'!$J:$J,BMG!F$8,'Program Design'!$R:$R,"TRUE") -> 0 | G9: =SUMIFS('Program Design'!$K:$K,'Program Design'!$J:$J,BMG!G$8,'Program Design'!$R:$R,"TRUE") -> 0
A10: Incremental (first year) savings (MWh) | B10: =IF(MIN('Savings Results'!$G:$G)<=B8,(SUMIFS(OFFSET('Savings Results'!$A$1,6,16+MAX('Savings Results'!$G:$G)-MIN('Savings Results'!$G:$G)+MAX('Savings Results'!$J:$J)+B$8-MIN('Savings Results'!$G:$G),2000),OFFSET('Savings Results'!$A$1,6,6,2000),B$8,OFFSET('Savings Results'!$A$1,6,5,2000),"TRUE")/(1/(1-SUM('CE Parameters'!$F$10:$F$11)))),0)/1000 -> 0 | C10: =IF(MIN('Savings Results'!$G:$G)<=C8,(SUMIFS(OFFSET('Savings Results'!$A$1,6,16+MAX('Savings Results'!$G:$G)-MIN('Savings Results'!$G:$G)+MAX('Savings Results'!$J:$J)+C$8-MIN('Savings Results'!$G:$G),2000),OFFSET('Savings Results'!$A$1,6,6,2000),C$8,OFFSET('Savings Results'!$A$1,6,5,2000),"TRUE")/(1/(1-SUM('CE Parameters'!$F$10:$F$11)))),0)/1000 -> 0 | D10: =IF(MIN('Savings Results'!$G:$G)<=D8,(SUMIFS(OFFSET('Savings Results'!$A$1,6,16+MAX('Savings Results'!$G:$G)-MIN('Savings Results'!$G:$G)+MAX('Savings Results'!$J:$J)+D$8-MIN('Savings Results'!$G:$G),2000),OFFSET('Savings Results'!$A$1,6,6,2000),D$8,OFFSET('Savings Results'!$A$1,6,5,2000),"TRUE")/(1/(1-SUM('CE Parameters'!$F$10:$F$11)))),0)/1000 -> 0 | E10: =IF(MIN('Savings Results'!$G:$G)<=E8,(SUMIFS(OFFSET('Savings Results'!$A$1,6,16+MAX('Savings Results'!$G:$G)-MIN('Savings Results'!$G:$G)+MAX('Savings Results'!$J:$J)+E$8-MIN('Savings Results'!$G:$G),2000),OFFSET('Savings Results'!$A$1,6,6,2000),E$8,OFFSET('Savings Results'!$A$1,6,5,2000),"TRUE")/(1/(1-SUM('CE Parameters'!$F$10:$F$11)))),0)/1000 -> 0 | F10: =IF(MIN('Savings Results'!$G:$G)<=F8,(SUMIFS(OFFSET('Savings Results'!$A$1,6,16+MAX('Savings Results'!$G:$G)-MIN('Savings Results'!$G:$G)+MAX('Savings Results'!$J:$J)+F$8-MIN('Savings Results'!$G:$G),2000),OFFSET('Savings Results'!$A$1,6,6,2000),F$8,OFFSET('Savings Results'!$A$1,6,5,2000),"TRUE")/(1/(1-SUM('CE Parameters'!$F$10:$F$11)))),0)/1000 -> 0 | G10: =IF(MIN('Savings Results'!$G:$G)<=G8,(SUMIFS(OFFSET('Savings Results'!$A$1,6,16+MAX('Savings Results'!$G:$G)-MIN('Savings Results'!$G:$G)+MAX('Savings Results'!$J:$J)+G$8-MIN('Savings Results'!$G:$G),2000),OFFSET('Savings Results'!$A$1,6,6,2000),G$8,OFFSET('Savings Results'!$A$1,6,5,2000),"TRUE")/(1/(1-SUM('CE Parameters'!$F$10:$F$11)))),0)/1000 -> 0
A11: Annual savings (MWh) | B11: =IF(MIN('Savings Results'!$G:$G)<=B8,(SUMIFS(OFFSET('Savings Results'!$A$1,6,16+MAX('Savings Results'!$G:$G)-MIN('Savings Results'!$G:$G)+MAX('Savings Results'!$J:$J)+B$8-MIN('Savings Results'!$G:$G),2000),OFFSET('Savings Results'!$A$1,6,5,2000),"TRUE")/(1/(1-SUM('CE Parameters'!$F$10:$F$11)))),0)/1000 -> 0 | C11: =IF(MIN('Savings Results'!$G:$G)<=C8,(SUMIFS(OFFSET('Savings Results'!$A$1,6,16+MAX('Savings Results'!$G:$G)-MIN('Savings Results'!$G:$G)+MAX('Savings Results'!$J:$J)+C$8-MIN('Savings Results'!$G:$G),2000),OFFSET('Savings Results'!$A$1,6,5,2000),"TRUE")/(1/(1-SUM('CE Parameters'!$F$10:$F$11)))),0)/1000 -> 0 | D11: =IF(MIN('Savings Results'!$G:$G)<=D8,(SUMIFS(OFFSET('Savings Results'!$A$1,6,16+MAX('Savings Results'!$G:$G)-MIN('Savings Results'!$G:$G)+MAX('Savings Results'!$J:$J)+D$8-MIN('Savings Results'!$G:$G),2000),OFFSET('Savings Results'!$A$1,6,5,2000),"TRUE")/(1/(1-SUM('CE Parameters'!$F$10:$F$11)))),0)/1000 -> 0 | E11: =IF(MIN('Savings Results'!$G:$G)<=E8,(SUMIFS(OFFSET('Savings Results'!$A$1,6,16+MAX('Savings Results'!$G:$G)-MIN('Savings Results'!$G:$G)+MAX('Savings Results'!$J:$J)+E$8-MIN('Savings Results'!$G:$G),2000),OFFSET('Savings Results'!$A$1,6,5,2000),"TRUE")/(1/(1-SUM('CE Parameters'!$F$10:$F$11)))),0)/1000 -> 0 | F11: =IF(MIN('Savings Results'!$G:$G)<=F8,(SUMIFS(OFFSET('Savings Results'!$A$1,6,16+MAX('Savings Results'!$G:$G)-MIN('Savings Results'!$G:$G)+MAX('Savings Results'!$J:$J)+F$8-MIN('Savings Results'!$G:$G),2000),OFFSET('Savings Results'!$A$1,6,5,2000),"TRUE")/(1/(1-SUM('CE Parameters'!$F$10:$F$11)))),0)/1000 -> 0 | G11: =IF(MIN('Savings Results'!$G:$G)<=G8,(SUMIFS(OFFSET('Savings Results'!$A$1,6,16+MAX('Savings Results'!$G:$G)-MIN('Savings Results'!$G:$G)+MAX('Savings Results'!$J:$J)+G$8-MIN('Savings Results'!$G:$G),2000),OFFSET('Savings Results'!$A$1,6,5,2000),"TRUE")/(1/(1-SUM('CE Parameters'!$F$10:$F$11)))),0)/1000 -> 0
A12: Incentive Costs ($) | B12: =SUMIFS('Program Design'!$U:$U,'Program Design'!$J:$J,BMG!B$8,'Program Design'!$R:$R,"TRUE") -> 0 | C12: =SUMIFS('Program Design'!$U:$U,'Program Design'!$J:$J,BMG!C$8,'Program Design'!$R:$R,"TRUE") -> 0 | D12: =SUMIFS('Program Design'!$U:$U,'Program Design'!$J:$J,BMG!D$8,'Program Design'!$R:$R,"TRUE") -> 0 | E12: =SUMIFS('Program Design'!$U:$U,'Program Design'!$J:$J,BMG!E$8,'Program Design'!$R:$R,"TRUE") -> 0 | F12: =SUMIFS('Program Design'!$U:$U,'Program Design'!$J:$J,BMG!F$8,'Program Design'!$R:$R,"TRUE") -> 0 | G12: =SUMIFS('Program Design'!$U:$U,'Program Design'!$J:$J,BMG!G$8,'Program Design'!$R:$R,"TRUE") -> 0
A13: IESO Variable Program Costs ($) | B13: =SUMIFS('Program Design'!$V:$V,'Program Design'!$J:$J,BMG!B$8,'Program Design'!$R:$R,"TRUE") -> 0 | C13: =SUMIFS('Program Design'!$V:$V,'Program Design'!$J:$J,BMG!C$8,'Program Design'!$R:$R,"TRUE") -> 0 | D13: =SUMIFS('Program Design'!$V:$V,'Program Design'!$J:$J,BMG!D$8,'Program Design'!$R:$R,"TRUE") -> 0 | E13: =SUMIFS('Program Design'!$V:$V,'Program Design'!$J:$J,BMG!E$8,'Program Design'!$R:$R,"TRUE") -> 0 | F13: =SUMIFS('Program Design'!$V:$V,'Program Design'!$J:$J,BMG!F$8,'Program Design'!$R:$R,"TRUE") -> 0 | G13: =SUMIFS('Program Design'!$V:$V,'Program Design'!$J:$J,BMG!G$8,'Program Design'!$R:$R,"TRUE") -> 0
A14: LDC Variable Program Costs ($) | B14: =SUMIFS('Program Design'!$W:$W,'Program Design'!$J:$J,BMG!B$8,'Program Design'!$R:$R,"TRUE") -> 0 | C14: =SUMIFS('Program Design'!$W:$W,'Program Design'!$J:$J,BMG!C$8,'Program Design'!$R:$R,"="&TRUE) -> 0 | D14: =SUMIFS('Program Design'!$W:$W,'Program Design'!$J:$J,BMG!D$8,'Program Design'!$R:$R,"TRUE") -> 0 | E14: =SUMIFS('Program Design'!$W:$W,'Program Design'!$J:$J,BMG!E$8,'Program Design'!$R:$R,"TRUE") -> 0 | F14: =SUMIFS('Program Design'!$W:$W,'Program Design'!$J:$J,BMG!F$8,'Program Design'!$R:$R,"TRUE") -> 0 | G14: =SUMIFS('Program Design'!$W:$W,'Program Design'!$J:$J,BMG!G$8,'Program Design'!$R:$R,"TRUE") -> 0
A15: TRC (ratio) | B15: =IFERROR(SUMIFS('Program Design'!$X:$X,'Program Design'!$J:$J,BMG!B$8,'Program Design'!$R:$R,"="&TRUE)/SUMIFS('Program Design'!$Y:$Y,'Program Design'!$J:$J,BMG!B$8,'Program Design'!$R:$R,"="&TRUE),0) -> 0 | C15: =IFERROR(SUMIFS('Program Design'!$X:$X,'Program Design'!$J:$J,BMG!C$8,'Program Design'!$R:$R,"="&TRUE)/SUMIFS('Program Design'!$Y:$Y,'Program Design'!$J:$J,BMG!C$8,'Program Design'!$R:$R,"="&TRUE),0) -> 0 | D15: =IFERROR(SUMIFS('Program Design'!$X:$X,'Program Design'!$J:$J,BMG!D$8,'Program Design'!$R:$R,"="&TRUE)/SUMIFS('Program Design'!$Y:$Y,'Program Design'!$J:$J,BMG!D$8,'Program Design'!$R:$R,"="&TRUE),0) -> 0 | E15: =IFERROR(SUMIFS('Program Design'!$X:$X,'Program Design'!$J:$J,BMG!E$8,'Program Design'!$R:$R,"="&TRUE)/SUMIFS('Program Design'!$Y:$Y,'Program Design'!$J:$J,BMG!E$8,'Program Design'!$R:$R,"="&TRUE),0) -> 0 | F15: =IFERROR(SUMIFS('Program Design'!$X:$X,'Program Design'!$J:$J,BMG!F$8,'Program Design'!$R:$R,"="&TRUE)/SUMIFS('Program Design'!$Y:$Y,'Program Design'!$J:$J,BMG!F$8,'Program Design'!$R:$R,"="&TRUE),0) -> 0 | G15: =IFERROR(SUMIFS('Program Design'!$X:$X,'Program Design'!$J:$J,BMG!G$8,'Program Design'!$R:$R,"="&TRUE)/SUMIFS('Program Design'!$Y:$Y,'Program Design'!$J:$J,BMG!G$8,'Program Design'!$R:$R,"="&TRUE),0) -> 0
A16: PAC (ratio) | B16: =IFERROR(SUMIFS('Program Design'!$AF:$AF,'Program Design'!$J:$J,BMG!B$8,'Program Design'!$R:$R,"="&TRUE)/SUMIFS('Program Design'!$AG:$AG,'Program Design'!$J:$J,BMG!B$8,'Program Design'!$R:$R,"="&TRUE),0) -> 0 | C16: =IFERROR(SUMIFS('Program Design'!$AF:$AF,'Program Design'!$J:$J,BMG!C$8,'Program Design'!$R:$R,"="&TRUE)/SUMIFS('Program Design'!$AG:$AG,'Program Design'!$J:$J,BMG!C$8,'Program Design'!$R:$R,"="&TRUE),0) -> 0 | D16: =IFERROR(SUMIFS('Program Design'!$AF:$AF,'Program Design'!$J:$J,BMG!D$8,'Program Design'!$R:$R,"="&TRUE)/SUMIFS('Program Design'!$AG:$AG,'Program Design'!$J:$J,BMG!D$8,'Program Design'!$R:$R,"="&TRUE),0) -> 0 | E16: =IFERROR(SUMIFS('Program Design'!$AF:$AF,'Program Design'!$J:$J,BMG!E$8,'Program Design'!$R:$R,"="&TRUE)/SUMIFS('Program Design'!$AG:$AG,'Program Design'!$J:$J,BMG!E$8,'Program Design'!$R:$R,"="&TRUE),0) -> 0 | F16: =IFERROR(SUMIFS('Program Design'!$AF:$AF,'Program Design'!$J:$J,BMG!F$8,'Program Design'!$R:$R,"="&TRUE)/SUMIFS('Program Design'!$AG:$AG,'Program Design'!$J:$J,BMG!F$8,'Program Design'!$R:$R,"="&TRUE),0) -> 0 | G16: =IFERROR(SUMIFS('Program Design'!$AF:$AF,'Program Design'!$J:$J,BMG!G$8,'Program Design'!$R:$R,"="&TRUE)/SUMIFS('Program Design'!$AG:$AG,'Program Design'!$J:$J,BMG!G$8,'Program Design'!$R:$R,"="&TRUE),0) -> 0
A17: Levelized Cost ($/kWh) | B17: =IFERROR(SUMIFS('Program Design'!$AT:$AT,'Program Design'!$J:$J,BMG!B$8,'Program Design'!$R:$R,"="&TRUE)/SUMIFS('Program Design'!$AS:$AS,'Program Design'!$J:$J,BMG!B$8,'Program Design'!$R:$R,"="&TRUE),0) -> 0 | C17: =IFERROR(SUMIFS('Program Design'!$AT:$AT,'Program Design'!$J:$J,BMG!C$8,'Program Design'!$R:$R,"="&TRUE)/SUMIFS('Program Design'!$AS:$AS,'Program Design'!$J:$J,BMG!C$8,'Program Design'!$R:$R,"="&TRUE),0) -> 0 | D17: =IFERROR(SUMIFS('Program Design'!$AT:$AT,'Program Design'!$J:$J,BMG!D$8,'Program Design'!$R:$R,"="&TRUE)/SUMIFS('Program Design'!$AS:$AS,'Program Design'!$J:$J,BMG!D$8,'Program Design'!$R:$R,"="&TRUE),0) -> 0 | E17: =IFERROR(SUMIFS('Program Design'!$AT:$AT,'Program Design'!$J:$J,BMG!E$8,'Program Design'!$R:$R,"="&TRUE)/SUMIFS('Program Design'!$AS:$AS,'Program Design'!$J:$J,BMG!E$8,'Program Design'!$R:$R,"="&TRUE),0) -> 0 | F17: =IFERROR(SUMIFS('Program Design'!$AT:$AT,'Program Design'!$J:$J,BMG!F$8,'Program Design'!$R:$R,"="&TRUE)/SUMIFS('Program Design'!$AS:$AS,'Program Design'!$J:$J,BMG!F$8,'Program Design'!$R:$R,"="&TRUE),0) -> 0 | G17: =IFERROR(SUMIFS('Program Design'!$AT:$AT,'Program Design'!$J:$J,BMG!G$8,'Program Design'!$R:$R,"="&TRUE)/SUMIFS('Program Design'!$AS:$AS,'Program Design'!$J:$J,BMG!G$8,'Program Design'!$R:$R,"="&TRUE),0) -> 0
A19: Table 16: Total Portfolio Summary
A20: Metric | B20: 2015 | C20: 2016 | D20: 2017 | E20: 2018 | F20: 2019 | G20: 2020
A21: Incremental (first year) savings (MWh) | B21: =IF(MIN('Savings Results'!$G:$G)<=B20,(SUMIFS(OFFSET('Savings Results'!$A$1,6,16+MAX('Savings Results'!$G:$G)-MIN('Savings Results'!$G:$G)+MAX('Savings Results'!$J:$J)+B$20-MIN('Savings Results'!$G:$G),2000),OFFSET('Savings Results'!$A$1,6,6,2000),B$20)/(1/(1-SUM('CE Parameters'!$F$10:$F$11)))),0)/1000 -> 0 | C21: =IF(MIN('Savings Results'!$G:$G)<=C20,(SUMIFS(OFFSET('Savings Results'!$A$1,6,16+MAX('Savings Results'!$G:$G)-MIN('Savings Results'!$G:$G)+MAX('Savings Results'!$J:$J)+C$20-MIN('Savings Results'!$G:$G),2000),OFFSET('Savings Results'!$A$1,6,6,2000),C$20)/(1/(1-SUM('CE Parameters'!$F$10:$F$11)))),0)/1000 -> 0 | D21: =IF(MIN('Savings Results'!$G:$G)<=D20,(SUMIFS(OFFSET('Savings Results'!$A$1,6,16+MAX('Savings Results'!$G:$G)-MIN('Savings Results'!$G:$G)+MAX('Savings Results'!$J:$J)+D$20-MIN('Savings Results'!$G:$G),2000),OFFSET('Savings Results'!$A$1,6,6,2000),D$20)/(1/(1-SUM('CE Parameters'!$F$10:$F$11)))),0)/1000 -> 0 | E21: =IF(MIN('Savings Results'!$G:$G)<=E20,(SUMIFS(OFFSET('Savings Results'!$A$1,6,16+MAX('Savings Results'!$G:$G)-MIN('Savings Results'!$G:$G)+MAX('Savings Results'!$J:$J)+E$20-MIN('Savings Results'!$G:$G),2000),OFFSET('Savings Results'!$A$1,6,6,2000),E$20)/(1/(1-SUM('CE Parameters'!$F$10:$F$11)))),0)/1000 -> 0 | F21: =IF(MIN('Savings Results'!$G:$G)<=F20,(SUMIFS(OFFSET('Savings Results'!$A$1,6,16+MAX('Savings Results'!$G:$G)-MIN('Savings Results'!$G:$G)+MAX('Savings Results'!$J:$J)+F$20-MIN('Savings Results'!$G:$G),2000),OFFSET('Savings Results'!$A$1,6,6,2000),F$20)/(1/(1-SUM('CE Parameters'!$F$10:$F$11)))),0)/1000 -> 0 | G21: =IF(MIN('Savings Results'!$G:$G)<=G20,(SUMIFS(OFFSET('Savings Results'!$A$1,6,16+MAX('Savings Results'!$G:$G)-MIN('Savings Results'!$G:$G)+MAX('Savings Results'!$J:$J)+G$20-MIN('Savings Results'!$G:$G),2000),OFFSET('Savings Results'!$A$1,6,6,2000),G$20)/(1/(1-SUM('CE Parameters'!$F$10:$F$11)))),0)/1000 -> 0
A22: Annual savings (MWh) | B22: =IF(MIN('Savings Results'!$G:$G)<=B20,(SUM(OFFSET('Savings Results'!$A$1,6,16+MAX('Savings Results'!$G:$G)-MIN('Savings Results'!$G:$G)+MAX('Savings Results'!$J:$J)+B$20-MIN('Savings Results'!$G:$G),2000))/(1/(1-SUM('CE Parameters'!$F$10:$F$11)))),0)/1000 -> 0 | C22: =IF(MIN('Savings Results'!$G:$G)<=C20,(SUM(OFFSET('Savings Results'!$A$1,6,16+MAX('Savings Results'!$G:$G)-MIN('Savings Results'!$G:$G)+MAX('Savings Results'!$J:$J)+C$20-MIN('Savings Results'!$G:$G),2000))/(1/(1-SUM('CE Parameters'!$F$10:$F$11)))),0)/1000 -> 0 | D22: =IF(MIN('Savings Results'!$G:$G)<=D20,(SUM(OFFSET('Savings Results'!$A$1,6,16+MAX('Savings Results'!$G:$G)-MIN('Savings Results'!$G:$G)+MAX('Savings Results'!$J:$J)+D$20-MIN('Savings Results'!$G:$G),2000))/(1/(1-SUM('CE Parameters'!$F$10:$F$11)))),0)/1000 -> 0 | E22: =IF(MIN('Savings Results'!$G:$G)<=E20,(SUM(OFFSET('Savings Results'!$A$1,6,16+MAX('Savings Results'!$G:$G)-MIN('Savings Results'!$G:$G)+MAX('Savings Results'!$J:$J)+E$20-MIN('Savings Results'!$G:$G),2000))/(1/(1-SUM('CE Parameters'!$F$10:$F$11)))),0)/1000 -> 0 | F22: =IF(MIN('Savings Results'!$G:$G)<=F20,(SUM(OFFSET('Savings Results'!$A$1,6,16+MAX('Savings Results'!$G:$G)-MIN('Savings Results'!$G:$G)+MAX('Savings Results'!$J:$J)+F$20-MIN('Savings Results'!$G:$G),2000))/(1/(1-SUM('CE Parameters'!$F$10:$F$11)))),0)/1000 -> 0 | G22: =IF(MIN('Savings Results'!$G:$G)<=G20,(SUM(OFFSET('Savings Results'!$A$1,6,16+MAX('Savings Results'!$G:$G)-MIN('Savings Results'!$G:$G)+MAX('Savings Results'!$J:$J)+G$20-MIN('Savings Results'!$G:$G),2000))/(1/(1-SUM('CE Parameters'!$F$10:$F$11)))),0)/1000 -> 0
A23: Incentive Costs ($) | B23: =SUMIFS('Program Design'!$U:$U,'Program Design'!$J:$J,BMG!B$8) -> 0 | C23: =SUMIFS('Program Design'!$U:$U,'Program Design'!$J:$J,BMG!C$8) -> 0 | D23: =SUMIFS('Program Design'!$U:$U,'Program Design'!$J:$J,BMG!D$8) -> 5417400 | E23: =SUMIFS('Program Design'!$U:$U,'Program Design'!$J:$J,BMG!E$8) -> 0 | F23: =SUMIFS('Program Design'!$U:$U,'Program Design'!$J:$J,BMG!F$8) -> 0 | G23: =SUMIFS('Program Design'!$U:$U,'Program Design'!$J:$J,BMG!G$8) -> 0
A24: IESO Variable Program Costs ($) | B24: =SUMIFS('Program Design'!$V:$V,'Program Design'!$J:$J,BMG!B$8) -> 0 | C24: =SUMIFS('Program Design'!$V:$V,'Program Design'!$J:$J,BMG!C$8) -> 0 | D24: =SUMIFS('Program Design'!$V:$V,'Program Design'!$J:$J,BMG!D$8) -> 0 | E24: =SUMIFS('Program Design'!$V:$V,'Program Design'!$J:$J,BMG!E$8) -> 0 | F24: =SUMIFS('Program Design'!$V:$V,'Program Design'!$J:$J,BMG!F$8) -> 0 | G24: =SUMIFS('Program Design'!$V:$V,'Program Design'!$J:$J,BMG!G$8) -> 0
A25: LDC Variable Program Costs ($) | B25: =SUMIFS('Program Design'!$W:$W,'Program Design'!$J:$J,BMG!B$8) -> 0 | C25: =SUMIFS('Program Design'!$W:$W,'Program Design'!$J:$J,BMG!C$8) -> 0 | D25: =SUMIFS('Program Design'!$W:$W,'Program Design'!$J:$J,BMG!D$8) -> 0 | E25: =SUMIFS('Program Design'!$W:$W,'Program Design'!$J:$J,BMG!E$8) -> 0 | F25: =SUMIFS('Program Design'!$W:$W,'Program Design'!$J:$J,BMG!F$8) -> 0 | G25: =SUMIFS('Program Design'!$W:$W,'Program Design'!$J:$J,BMG!G$8) -> 0
A26: Fixed Program Costs ($) | B26: =IFERROR(SUM(INDIRECT(ADDRESS(8,MATCH(B20& " Sub-Total",Budget!7:7,0),1,,"Budget Result")):INDIRECT(ADDRESS(20000,MATCH(B20& " Sub-Total",Budget!7:7,0),1,,"Budget Result")))/2,0) -> 0 | C26: =IFERROR(SUM(INDIRECT(ADDRESS(8,MATCH(C20& " Sub-Total",Budget!7:7,0),1,,"Budget Result")):INDIRECT(ADDRESS(20000,MATCH(C20& " Sub-Total",Budget!7:7,0),1,,"Budget Result")))/2,0) -> 0 | D26: =IFERROR(SUM(INDIRECT(ADDRESS(8,MATCH(D20& " Sub-Total",Budget!7:7,0),1,,"Budget Result")):INDIRECT(ADDRESS(20000,MATCH(D20& " Sub-Total",Budget!7:7,0),1,,"Budget Result")))/2,0) -> 0 | E26: =IFERROR(SUM(INDIRECT(ADDRESS(8,MATCH(E20& " Sub-Total",Budget!7:7,0),1,,"Budget Result")):INDIRECT(ADDRESS(20000,MATCH(E20& " Sub-Total",Budget!7:7,0),1,,"Budget Result")))/2,0) -> 0 | F26: =IFERROR(SUM(INDIRECT(ADDRESS(8,MATCH(F20& " Sub-Total",Budget!7:7,0),1,,"Budget Result")):INDIRECT(ADDRESS(20000,MATCH(F20& " Sub-Total",Budget!7:7,0),1,,"Budget Result")))/2,0) -> 0 | G26: =IFERROR(SUM(INDIRECT(ADDRESS(8,MATCH(G20& " Sub-Total",Budget!7:7,0),1,,"Budget Result")):INDIRECT(ADDRESS(20000,MATCH(G20& " Sub-Total",Budget!7:7,0),1,,"Budget Result")))/2,0) -> 0
A28: Table 17: Behind-the-Meter as % of Total Portfolio
A29: Metric | B29: 2015 | C29: 2016 | D29: 2017 | E29: 2018 | F29: 2019 | G29: 2020
A30: Incremental (first year) savings (%) | B30: =IFERROR(B10/B21,0) -> 0 | C30: 0 | D30: 0 | E30: 0 | F30: 0 | G30: 0
A31: Annual savings (kWh) | B31: =IFERROR(B11/B22,0) -> 0 | C31: 0 | D31: 0 | E31: 0 | F31: 0 | G31: 0
A32: Incentive Costs (%) | B32: 0 | C32: 0 | D32: 0 | E32: 0 | F32: 0 | G32: 0
A33: IESO Variable Program Costs (%) | B33: 0 | C33: 0 | D33: 0 | E33: 0 | F33: 0 | G33: 0
A34: LDC Variable Program Costs (%) | B34: 0 | C34: 0 | D34: 0 | E34: 0 | F34: 0 | G34: 0

Sheet PROGRAM DESIGN >>
A1: Program Design Module
A2: INSTRUCTIONS:
A4: 1 | B4: Begin with the "Measure" worksheet to quickly create any new measures needed. A measure is defined as the combination of the technology (measure), program, and assumptions. For a more step-by-step measure creation approach, please refer to the "Custom Measure Input" worksheet.
A5: =A4+1 -> 2 | B5: Next, move to the "Program Design" worksheet and select the measures to be included in your program(s), specify the participation, incentive levels, variable LDC admin costs and program years for each measure. If a measure does not appear, it has not been added in Step 1. Central Services Costs (IESO variable program costs) will be automatically populated, if applicable.
A6: =A5+1 -> 3 | B6: Next, input any program-level budgets in the "Budget Inputs" worksheet (this worksheet will not populate until the measures have been selected). This worksheet will populate with only the programs and program years selected in step 2. If an additional program is added, the existing budgets will remain intact.
A7: =A6+1 -> 4 | B7: Finally, if necessary, populate the "External Input" worksheet with any externally calculated cost-effectiveness results (i.e. behind the meter generation). Ensure that the assumptions align with the "CE Parameters" worksheet (i.e., inflation rate, base year, etc.).
A8: =A7+1 -> 5 | B8: To calculate Cost Effectiveness, activate the "CE Results" worksheet and click the appropriate buttons. This will populate both the "CE Results" cost effectiveness and "Summary CE Results."
A9: =A8+1 -> 6 | B9: To view measure level savings for the life of a measure, activate the "Measure Savings Results" worksheet and click the appropriate buttons.
A10: 7 | B10: Summary results from various perspectives can be found in the "SUMMARIES>>>" section.

Sheet Measures
B1: Defined Inputs Module: Formatted Measure List | C1: This tab contains all measures available for use in the "Program Design" worksheet. To add custom measures, select the rows of measures you wish to modify and click "Add Custom Measure," the selected measures will be copied to the bottom of the sheet and the user can modify the fields of this sheet. Before moving on to program design click "Validate Custom Measure" to ensure no errors will occur when cost effectiveness is run.
B2: Users can add measures to this worksheet through the "Custom Measure Input" worksheet.
B3: Click here to return to "Custom Measure Input" tab
X4: DUAL BASELINE
A5: Look Up Value | B5: SOURCE | C5: SECTOR | D5: PROGRAM | E5: END-USE | F5: CONSERVATION MEASURE | G5: MEASURE DESCRIPTION | H5: BASE MEASURE | I5: ASSUMED ANNUAL OPERATING HOURS | J5: BASE CASE KW | K5: BASE CASE KWH | L5: CONSERVATION CASE KW | M5: CONSERVATION CASE KWH | N5: FIRST YEAR DEMAND SAVINGS (KW) | O5: FIRST YEAR ENERGY SAVINGS (KWH) | P5: PEAK DEMAND SAVINGS (KW) | Q5: EFFECTIVE USEFUL LIFE (YEAR) | R5: END USE LOAD PROFILE | S5: INCREMENTAL LIFE CYCLE COST ($) | T5: NET-TO-GROSS (ENERGY) | U5: NET-TO-GROSS (DEMAND) | V5: FIRST YEAR NATURAL GAS SAVINGS (MMBtu) | W5: FIRST YEAR WATER SAVINGS (Litre) | X5: EARLY REPLACEMENT | Y5: REMAINNG USEFUL LIFE (YEARS) | Z5: REMAINNG USEFUL LIFE ANNUAL DEMAND SAVINGS (KW) | AA5: REMAINNG USEFUL LIFE ANNUAL ENERGY SAVINGS (KWH) | AB5: REMAINNG USEFUL LIFE PEAK DEMAND SAVINGS (KW) | AC5: REMAINING LIFE NATURAL GAS SAVINGS (MMBtu) | AD5: REMAINING USEFUL LIFE WATER SAVINGS (Litre) | AE5: REMAINING USEFUL LIFE INCREMENTAL LIFE CYCLE COST ($) | AF5: Weather Sensitive Peak Demand | AG5: Distribution (Dx) or Transmission (Tx) Connected | AH5: Behind the Meter Project (True/False) | AI5: IESO Variable Program Costs
A6: =CONCATENATE(TRIM(LEFT(B6,1)),TRIM(LEFT(C6,20)),TRIM(LEFT(D6,10)),TRIM(RIGHT(D6,10)),TRIM(LEFT(F6,20)),TRIM(RIGHT(F6,20)),TRIM(LEFT(G6,105)),TRIM(LEFT(H6,20)),TRIM(RIGHT(H6,20)),TRIM(LEFT(R6,1)),TRIM(RIGHT(R6,25)),TRIM(LEFT(X6,1)),TRIM(LEFT(AF6,1)),TRIM(LEFT(AG6,1))) -> INon-ResidentialRetrofitRetrofitPRESCRIPTIVE LIGHTINRESCRIPTIVE LIGHTINGARCHETYPE - PRESCRIPTIVE LIGHTINGHISTORICAL PERFORMANSTORICAL PERFORMANCEPLighting_Interior_GeneralNND | B6: IESO - Archetype | C6: Non-Residential | D6: Retrofit | E6: Lighting | F6: PRESCRIPTIVE LIGHTING | G6: ARCHETYPE - PRESCRIPTIVE LIGHTING | H6: HISTORICAL PERFORMANCE | I6: 4940 | J6: 11.97601043 | K6: 59881.44144 | L6: 1 | M6: 4940 | N6: 10.97601043 | O6: 54941.44144 | P6: 10.97601043 | Q6: 11 | R6: PSP-Business-Commercial-Lighting_Interior_General | S6: 4986.07 | T6: 0.777 | U6: 0.767 | V6: 26.4 | W6: 0 | X6: No | AF6: No | AG6: Dx | AH6: FALSE | AI6: 0
A7: INon-ResidentialRetrofitRetrofitPRESCRIPTIVE NON-LIGRIPTIVE NON-LIGHTINGARCHETYPE - PRESCRIPTIVE NON-LIGHTINGHISTORICAL PERFORMANSTORICAL PERFORMANCEPl-Miscellaneous_EquipmentNND | B7: IESO - Archetype | C7: Non-Residential | D7: Retrofit | E7: Non-Lighting | F7: PRESCRIPTIVE NON-LIGHTING | G7: ARCHETYPE - PRESCRIPTIVE NON-LIGHTING | H7: HISTORICAL PERFORMANCE | I7: 2148 | J7: 5.856358382 | K7: 13733.97361 | L7: 1 | M7: 2148 | N7: 4.856358382 | O7: 11585.97361 | P7: 4.856358382 | Q7: 16 | R7: PSP-Business-Commercial-Miscellaneous_Equipment | S7: 76614.92 | T7: 0.682 | U7: 0.692 | V7: 0 | W7: 0 | X7: No | AF7: No | AG7: Dx | AH7: FALSE | AI7: 0
A8: INon-ResidentialRetrofitRetrofitENGINEERED LIGHTINGENGINEERED LIGHTINGARCHETYPE - ENGINEERED LIGHTINGHISTORICAL PERFORMANSTORICAL PERFORMANCEPLighting_Interior_GeneralNND | B8: IESO - Archetype | C8: Non-Residential | D8: Retrofit | E8: Lighting | F8: ENGINEERED LIGHTING | G8: ARCHETYPE - ENGINEERED LIGHTING | H8: HISTORICAL PERFORMANCE | I8: 6037 | J8: 12.99858757 | K8: 78414.93844 | L8: 1 | M8: 6037 | N8: 11.99858757 | O8: 72377.93844 | P8: 11.99858757 | Q8: 9 | R8: PSP-Business-Commercial-Lighting_Interior_General | S8: 16101.4 | T8: 0.731 | U8: 0.708 | V8: 30.7 | W8: 0 | X8: No | AF8: No | AG8: Dx | AH8: FALSE | AI8: 0
A9: INon-ResidentialRetrofitRetrofitENGINEERED NON-LIGHTINEERED NON-LIGHTINGARCHETYPE - ENGINEERED NON-LIGHTINGHISTORICAL PERFORMANSTORICAL PERFORMANCEPl-Miscellaneous_EquipmentNND | B9: IESO - Archetype | C9: Non-Residential | D9: Retrofit | E9: Non-Lighting | F9: ENGINEERED NON-LIGHTING | G9: ARCHETYPE - ENGINEERED NON-LIGHTING | H9: HISTORICAL PERFORMANCE | I9: 3610 | J9: 5.692082111 | K9: 21629.10128 | L9: 1 | M9: 3610 | N9: 4.692082111 | O9: 18019.10128 | P9: 4.692082111 | Q9: 16 | R9: PSP-Business-Commercial-Miscellaneous_Equipment | S9: 29017.77 | T9: 0.701 | U9: 0.682 | V9: 0 | W9: 0 | X9: No | AF9: No | AG9: Dx | AH9: FALSE | AI9: 0
A10: INon-ResidentialRetrofitRetrofitCUSTOM LIGHTINGCUSTOM LIGHTINGARCHETYPE - CUSTOM LIGHTINGHISTORICAL PERFORMANSTORICAL PERFORMANCEPLighting_Interior_GeneralNND | B10: IESO - Archetype | C10: Non-Residential | D10: Retrofit | E10: Lighting | F10: CUSTOM LIGHTING | G10: ARCHETYPE - CUSTOM LIGHTING | H10: HISTORICAL PERFORMANCE | I10: 8760 | J10: 5.235294118 | K10: 52766.11765 | L10: 1 | M10: 8760 | N10: 4.235294118 | O10: 44006.11765 | P10: 4.235294118 | Q10: 10 | R10: PSP-Business-Commercial-Lighting_Interior_General | S10: 50111.14 | T10: 0.68 | U10: 0.731 | V10: 31.3 | W10: 0 | X10: No | AF10: No | AG10: Dx | AH10: FALSE | AI10: 0
A11: INon-ResidentialRetrofitRetrofitCUSTOM NON-LIGHTINGCUSTOM NON-LIGHTINGARCHETYPE - CUSTOM NON-LIGHTINGHISTORICAL PERFORMANSTORICAL PERFORMANCEPl-Miscellaneous_EquipmentNND | B11: IESO - Archetype | C11: Non-Residential | D11: Retrofit | E11: Non-Lighting | F11: CUSTOM NON-LIGHTING | G11: ARCHETYPE - CUSTOM NON-LIGHTING | H11: HISTORICAL PERFORMANCE | I11: 5691 | J11: 21.942 | K11: 126766.1585 | L11: 1 | M11: 5691 | N11: 20.942 | O11: 121075.1585 | P11: 20.942 | Q11: 16 | R11: PSP-Business-Commercial-Miscellaneous_Equipment | S11: 26212.66 | T11: 0.656 | U11: 0.65 | V11: 0 | W11: 0 | X11: No | AF11: No | AG11: Dx | AH11: FALSE | AI11: 0
A12: IResidentialHeating anng ProgramCAC 14.5 SEERCAC 14.5 SEERARCHETYPE - CAC 14.5 SEERHISTORICAL PERFORMANSTORICAL PERFORMANCEPer-Residential-AC_CentralNND | B12: IESO - Archetype | C12: Residential | D12: Heating and Cooling Program | E12: Space Cooling | F12: CAC 14.5 SEER | G12: ARCHETYPE - CAC 14.5 SEER | H12: HISTORICAL PERFORMANCE | I12: 895 | J12: 1.164714869 | K12: 1041.55142 | L12: 1 | M12: 894.2544203 | N12: 0.1647148693 | O12: 147.297 | P12: 0.8352851307 | Q12: 18 | R12: PSP-Consumer-Residential-AC_Central | S12: 475 | T12: 0.5136427972 | U12: 0.5136427972 | V12: 0 | W12: 0 | X12: No | AF12: No | AG12: Dx | AH12: FALSE | AI12: 13
A13: IResidentialHeating anng ProgramCAC 15 SEERCAC 15 SEERARCHETYPE - CAC 15 SEERHISTORICAL PERFORMANSTORICAL PERFORMANCEPer-Residential-AC_CentralNND | B13: IESO - Archetype | C13: Residential | D13: Heating and Cooling Program | E13: Space Cooling | F13: CAC 15 SEER | G13: ARCHETYPE - CAC 15 SEER | H13: HISTORICAL PERFORMANCE | I13: 895 | J13: 1.233600187 | K13: 1103.15242 | L13: 1 | M13: 894.2544203 | N13: 0.2336001872 | O13: 208.898 | P13: 0.7663998128 | Q13: 18 | R13: PSP-Consumer-Residential-AC_Central | S13: 475 | T13: 0.566530864 | U13: 0.566530864 | V13: 0 | W13: 0 | X13: No | AF13: No | AG13: Dx | AH13: FALSE | AI13: 13
A14: IResidentialHeating anng ProgramECM FURNACEECM FURNACEARCHETYPE - ECM FURNACEHISTORICAL PERFORMANSTORICAL PERFORMANCEPResidential-Furnace_ECM_3NND | B14: IESO - Archetype | C14: Residential | D14: Heating and Cooling Program | E14: Space Cooling and Heating | F14: ECM FURNACE | G14: ARCHETYPE - ECM FURNACE | H14: HISTORICAL PERFORMANCE | I14: 1942 | J14: 1.561110337 | K14: 3031.253012 | L14: 1 | M14: 1941.728871 | N14: 0.5611103368 | O14: 1089.524141 | P14: 0.4388896632 | Q14: 19 | R14: PSP-Consumer-Residential-Furnace_ECM_3 | S14: 959 | T14: 0.4686012018 | U14: 0.4686012018 | V14: 0 | W14: 0 | X14: No | AF14: No | AG14: Dx | AH14: FALSE | AI14: 13
A15: IResidentialApplianceRetirementAIR CONDITIONER - ROR CONDITIONER - ROOMARCHETYPE - AIR CONDITIONER ROOMHISTORICAL PERFORMANSTORICAL PERFORMANCEPsumer-Residential-AC_RoomNND | B15: IESO - Archetype | C15: Residential | D15: Appliance Retirement | E15: Space Cooling | F15: AIR CONDITIONER - ROOM | G15: ARCHETYPE - AIR CONDITIONER ROOM | H15: HISTORICAL PERFORMANCE | I15: 1080 | J15: 1.273428897 | K15: 1246.212361 | L15: 1 | M15: 978.6273605 | N15: 0.2734288972 | O15: 267.585 | P15: 0.7265711028 | Q15: 3 | R15: PSP-Consumer-Residential-AC_Room | S15: 116.43 | T15: 0.3832222222 | U15: 0.3832222222 | V15: 0 | W15: 0 | X15: No | AF15: No | AG15: Dx | AH15: FALSE | AI15: 0
A16: =CONCATENATE(TRIM(LEFT(B16,1)),TRIM(LEFT(C16,20)),TRIM(LEFT(D16,10)),TRIM(RIGHT(D16,10)),TRIM(LEFT(F16,20)),TRIM(RIGHT(F16,20)),TRIM(LEFT(G16,105)),TRIM(LEFT(H16,20)),TRIM(RIGHT(H16,20)),TRIM(LEFT(R16,1)),TRIM(RIGHT(R16,25)),TRIM(LEFT(X16,1)),TRIM(LEFT(AF16,1)),TRIM(LEFT(AG16,1))) -> IResidentialApplianceRetirementDEHUMIDIFIERDEHUMIDIFIERARCHETYPE - DEHUMIDIFIERHISTORICAL PERFORMANSTORICAL PERFORMANCEPResidential-DehumidifiersNND | B16: IESO - Archetype | C16: Residential | D16: Appliance Retirement | E16: Space Cooling and Heating | F16: DEHUMIDIFIER | G16: ARCHETYPE - DEHUMIDIFIER | H16: HISTORICAL PERFORMANCE | I16: 2060 | J16: 1.441743831 | K16: 2687.705231 | L16: 1 | M16: 1864.204426 | N16: 0.4417438305 | O16: 823.5008042 | P16: 0.5582561695 | Q16: 4 | R16: PSP-Consumer-Residential-Dehumidifiers | S16: 116.43 | T16: 0.3832222222 | U16: 0.3832222222 | V16: 0 | W16: 0 | X16: No | AF16: No | AG16: Dx | AH16: FALSE | AI16: 0
A17: IResidentialApplianceRetirementFREEZERFREEZERARCHETYPE - FREEZERHISTORICAL PERFORMANSTORICAL PERFORMANCEPumer-Residential-FreezersNND | B17: IESO - Archetype | C17: Residential | D17: Appliance Retirement | E17: Household Appliances | F17: FREEZER | G17: ARCHETYPE - FREEZER | H17: HISTORICAL PERFORMANCE | I17: 7821 | J17: 1.13359335 | K17: 8207.860375 | L17: 1 | M17: 7240.568565 | N17: 0.13359335 | O17: 967.2918107 | P17: 0.86640665 | Q17: 4 | R17: PSP-Consumer-Residential-Freezers | S17: 109.43 | T17: 0.4845294118 | U17: 0.4845294118 | V17: 0 | W17: 0 | X17: No | AF17: No | AG17: Dx | AH17: FALSE | AI17: 0
A18: IResidentialApplianceRetirementREFRIGERATORREFRIGERATORARCHETYPE - REFRIGERATORHISTORICAL PERFORMANSTORICAL PERFORMANCEPResidential-RefrigeratorsNND | B18: IESO - Archetype | C18: Residential | D18: Appliance Retirement | E18: Household Appliances | F18: REFRIGERATOR | G18: ARCHETYPE - REFRIGERATOR | H18: HISTORICAL PERFORMANCE | I18: 7375 | J18: 1.130404417 | K18: 7691.458417 | L18: 1 | M18: 6804.165217 | N18: 0.1304044173 | O18: 887.2932001 | P18: 0.8695955827 | Q18: 5 | R18: PSP-Consumer-Residential-Refrigerators | S18: 106.43 | T18: 0.4653696525 | U18: 0.4653696525 | V18: 0 | W18: 0 | X18: No | AF18: No | AG18: Dx | AH18: FALSE | AI18: 0
A19: IResidentialCoupon Proon ProgramCOUPONSCOUPONSARCHETYPE - COUPONSHISTORICAL PERFORMANSTORICAL PERFORMANCEPumer-Residential-LightingNND | B19: IESO - Archetype | C19: Residential | D19: Coupon Program | E19: Miscellaneous | F19: COUPONS | G19: ARCHETYPE - COUPONS | H19: HISTORICAL PERFORMANCE | I19: 2000 | J19: 1.001960095 | K19: 2028.921602 | L19: 1 | M19: 2000 | N19: 0.001960095314 | O19: 28.92 | P19: 0.001960095314 | Q19: 10 | R19: PSP-Consumer-Residential-Lighting | S19: 5 | T19: 1 | U19: 1 | V19: 0 | W19: 0 | X19: No | AF19: No | AG19: Dx | AH19: FALSE | AI19: 1.75
A20: IResidentialCoupon Proon ProgramBI-ANNUAL COUPONSBI-ANNUAL COUPONSARCHETYPE - BI-ANNUAL COUPONSHISTORICAL PERFORMANSTORICAL PERFORMANCEPumer-Residential-LightingNND | B20: IESO - Archetype | C20: Residential | D20: Coupon Program | E20: Miscellaneous | F20: BI-ANNUAL COUPONS | G20: ARCHETYPE - BI-ANNUAL COUPONS | H20: HISTORICAL PERFORMANCE | I20: 2000 | J20: 1.002322566 | K20: 2033.446838 | L20: 1 | M20: 2000 | N20: 0.002322565623 | O20: 33.44683842 | P20: 0.002322565623 | Q20: 10 | R20: PSP-Consumer-Residential-Lighting | S20: 5 | T20: 0.99 | U20: 0.99 | V20: 0 | W20: 0 | X20: No | AF20: No | AG20: Dx | AH20: FALSE | AI20: 1.75
A21: IResidentialNew Constron ProgramNEW HOME CONSTRUCTIOEW HOME CONSTRUCTIONARCHETYPE - NEW HOME CONSTRUCTIONHISTORICAL PERFORMANSTORICAL PERFORMANCEPResidential-Furnace_ECM_3NND | B21: IESO - Archetype | C21: Residential | D21: New Construction Program | E21: New Home | F21: NEW HOME CONSTRUCTION | G21: ARCHETYPE - NEW HOME CONSTRUCTION | H21: HISTORICAL PERFORMANCE | I21: 8760 | J21: 1.325966416 | K21: 11679.39284 | L21: 1 | M21: 8760 | N21: 0.325966416 | O21: 2919.392842 | P21: 0.674033584 | Q21: 13 | R21: PSP-Consumer-Residential-Furnace_ECM_3 | S21: 540 | T21: 0.63 | U21: 0.63 | V21: 0 | W21: 0 | X21: No | AF21: No | AG21: Dx | AH21: FALSE | AI21: 0
A22: IResidentialHome Assisce ProgramHAP HOMEHAP HOMEARCHETYPE - HAP HOMEHISTORICAL PERFORMANSTORICAL PERFORMANCEPResidential-Furnace_ECM_3NND | B22: IESO - Archetype | C22: Residential | D22: Home Assistance Program | E22: HAP Home | F22: HAP HOME | G22: ARCHETYPE - HAP HOME | H22: HISTORICAL PERFORMANCE | I22: 8760 | J22: 1.088255056 | K22: 9544.395083 | L22: 1 | M22: 8760 | N22: 0.08825505555 | O22: 784.3950833 | P22: 0.9117449444 | Q22: 9 | R22: PSP-Consumer-Residential-Furnace_ECM_3 | S22: 484 | T22: 1 | U22: 1 | V22: 0 | W22: 0 | X22: No | AF22: No | AG22: Dx | AH22: FALSE | AI22: 0
A23: =CONCATENATE(TRIM(LEFT(B23,1)),TRIM(LEFT(C23,20)),TRIM(LEFT(D23,10)),TRIM(RIGHT(D23,10)),TRIM(LEFT(F23,20)),TRIM(RIGHT(F23,20)),TRIM(LEFT(G23,105)),TRIM(LEFT(H23,20)),TRIM(RIGHT(H23,20)),TRIM(LEFT(R23,1)),TRIM(RIGHT(R23,25)),TRIM(LEFT(X23,1)),TRIM(LEFT(AF23,1)),TRIM(LEFT(AG23,1))) -> INon-ResidentialHigh PerfonstructionHPNC PROJECTHPNC PROJECTARCHETYPE - HPNC PROJECTHISTORICAL PERFORMANSTORICAL PERFORMANCEPLighting_Interior_GeneralNND | B23: IESO - Archetype | C23: Non-Residential | D23: High Performance New Construction | E23: HPNC Project | F23: HPNC PROJECT | G23: ARCHETYPE - HPNC PROJECT | H23: HISTORICAL PERFORMANCE | I23: 3130 | J23: 34.7238 | K23: 108685.49 | L23: 1 | M23: 3130 | N23: 33.72 | O23: 105555.49 | P23: 33.7238 | Q23: 14 | R23: PSP-Business-Commercial-Lighting_Interior_General | S23: 90639 | T23: 0.54 | U23: 0.54 | V23: 0 | W23: 0 | X23: No | AF23: No | AG23: Dx | AH23: FALSE | AI23: 0
A24: =CONCATENATE(TRIM(LEFT(B24,1)),TRIM(LEFT(C24,20)),TRIM(LEFT(D24,10)),TRIM(RIGHT(D24,10)),TRIM(LEFT(F24,20)),TRIM(RIGHT(F24,20)),TRIM(LEFT(G24,105)),TRIM(LEFT(H24,20)),TRIM(RIGHT(H24,20)),TRIM(LEFT(R24,1)),TRIM(RIGHT(R24,25)),TRIM(LEFT(X24,1)),TRIM(LEFT(AF24,1)),TRIM(LEFT(AG24,1))) -> INon-ResidentialSmall Busis LightingPast ParticipantPast ParticipantARCHETYPE - PAST PARTICIPANTBUSINESS CASEBUSINESS CASEPl-Lighting_Small BusinessNND | B24: IESO - Archetype | C24: Non-Residential | D24: Small Business Lighting | E24: Lighting | F24: Past Participant | G24: ARCHETYPE - PAST PARTICIPANT | H24: BUSINESS CASE | I24: 3440 | N24: 0.16 | O24: 1126.6 | P24: 0.16 | Q24: 9 | R24: PSP-Business-Commercial-Lighting_Small Business | S24: 383.4 | T24: 0.94 | U24: 0.94 | V24: 0 | W24: 0 | X24: No | AF24: No | AG24: Dx | AH24: FALSE | AI24: 37
A25: =CONCATENATE(TRIM(LEFT(B25,1)),TRIM(LEFT(C25,20)),TRIM(LEFT(D25,10)),TRIM(RIGHT(D25,10)),TRIM(LEFT(F25,20)),TRIM(RIGHT(F25,20)),TRIM(LEFT(G25,105)),TRIM(LEFT(H25,20)),TRIM(RIGHT(H25,20)),TRIM(LEFT(R25,1)),TRIM(RIGHT(R25,25)),TRIM(LEFT(X25,1)),TRIM(LEFT(AF25,1)),TRIM(LEFT(AG25,1))) -> INon-ResidentialSmall Busis LightingNew Participant GS >w Participant GS >50ARCHETYPE - NEW PARTICIPANT GS >50BUSINESS CASEBUSINESS CASEPl-Lighting_Small BusinessNND | B25: IESO - Archetype | C25: Non-Residential | D25: Small Business Lighting | E25: Lighting | F25: New Participant GS >50 | G25: ARCHETYPE - NEW PARTICIPANT GS >50 | H25: BUSINESS CASE | I25: 3440 | N25: 0.96 | O25: 6759.3 | P25: 0.96 | Q25: 9 | R25: PSP-Business-Commercial-Lighting_Small Business | S25: 2875.5 | T25: 0.94 | U25: 0.94 | V25: 0 | W25: 0 | X25: No | AF25: No | AG25: Dx | AH25: FALSE | AI25: 37
A26: =CONCATENATE(TRIM(LEFT(B26,1)),TRIM(LEFT(C26,20)),TRIM(LEFT(D26,10)),TRIM(RIGHT(D26,10)),TRIM(LEFT(F26,20)),TRIM(RIGHT(F26,20)),TRIM(LEFT(G26,105)),TRIM(LEFT(H26,20)),TRIM(RIGHT(H26,20)),TRIM(LEFT(R26,1)),TRIM(RIGHT(R26,25)),TRIM(LEFT(X26,1)),TRIM(LEFT(AF26,1)),TRIM(LEFT(AG26,1))) -> INon-ResidentialSmall Busis LightingNew Participant GS <w Participant GS <50ARCHETYPE - NEW PARTICIPANT GS <50BUSINESS CASEBUSINESS CASEPl-Lighting_Small BusinessNND | B26: IESO - Archetype | C26: Non-Residential | D26: Small Business Lighting | E26: Lighting | F26: New Participant GS <50 | G26: ARCHETYPE - NEW PARTICIPANT GS <50 | H26: BUSINESS CASE | I26: 3440 | N26: 0.64 | O26: 4506.2 | P26: 0.64 | Q26: 9 | R26: PSP-Business-Commercial-Lighting_Small Business | S26: 1917 | T26: 0.94 | U26: 0.94 | V26: 0 | W26: 0 | X26: No | AF26: No | AG26: Dx | AH26: FALSE | AI26: 37
A27: =CONCATENATE(TRIM(LEFT(B27,1)),TRIM(LEFT(C27,20)),TRIM(LEFT(D27,10)),TRIM(RIGHT(D27,10)),TRIM(LEFT(F27,20)),TRIM(RIGHT(F27,20)),TRIM(LEFT(G27,105)),TRIM(LEFT(H27,20)),TRIM(RIGHT(H27,20)),TRIM(LEFT(R27,1)),TRIM(RIGHT(R27,25)),TRIM(LEFT(X27,1)),TRIM(LEFT(AF27,1)),TRIM(LEFT(AG27,1))) -> INon-ResidentialAudit Fundit FundingAUDIT PROJECTAUDIT PROJECTARCHETYPE - AUDIT PROJECTHISTORICAL PERFORMANSTORICAL PERFORMANCEPl-Miscellaneous_EquipmentNND | B27: IESO - Archetype | C27: Non-Residential | D27: Audit Funding | E27: Miscellaneous | F27: AUDIT PROJECT | G27: ARCHETYPE - AUDIT PROJECT | H27: HISTORICAL PERFORMANCE | I27: 5740 | J27: 14.2149 | K27: 81593.53 | L27: 1 | M27: 5740 | N27: 13.21 | O27: 75853.53 | P27: 13.21 | Q27: 4 | R27: PSP-Business-Commercial-Miscellaneous_Equipment | S27: 57985.78 | T27: 1 | U27: 1 | V27: 346.06 | W27: 0 | X27: No | AF27: No | AG27: Dx | AH27: FALSE | AI27: 0
A28: =CONCATENATE(TRIM(LEFT(B28,1)),TRIM(LEFT(C28,20)),TRIM(LEFT(D28,10)),TRIM(RIGHT(D28,10)),TRIM(LEFT(F28,20)),TRIM(RIGHT(F28,20)),TRIM(LEFT(G28,105)),TRIM(LEFT(H28,20)),TRIM(RIGHT(H28,20)),TRIM(LEFT(R28,1)),TRIM(RIGHT(R28,25)),TRIM(LEFT(X28,1)),TRIM(LEFT(AF28,1)),TRIM(LEFT(AG28,1))) -> INon-ResidentialRetrofitRetrofitSINGLE CREEP HEAT PAINGLE CREEP HEAT PADUp to 100 Watt maximum175 W Heat Lamp175 W Heat LampPmmercial-Single_Creep_PadNND | B28: IESO - Measure | C28: Non-Residential | D28: Retrofit | E28: Agribusiness | F28: SINGLE CREEP HEAT PAD | G28: Up to 100 Watt maximum | H28: 175 W Heat Lamp | I28: 6900 | J28: 0.175 | K28: 1207.5 | L28: 0.08 | M28: 552 | N28: 0.095 | O28: 655.5 | P28: 0.04975076923 | Q28: 10 | R28: PSP-Business-Commercial-Single_Creep_Pad | S28: -21.00217629 | T28: 0.682 | U28: 0.692 | V28: 0 | W28: 0 | X28: No | AF28: No | AG28: Dx | AH28: FALSE | AI28: 0
A29: INon-ResidentialRetrofitRetrofitDOUBLE CREEP HEAT PAOUBLE CREEP HEAT PADUp to 200 Watt maximum2 - 175 W Heat Lamps2 - 175 W Heat LampsPmmercial-Double_Creep_PadNND | B29: IESO - Measure | C29: Non-Residential | D29: Retrofit | E29: Agribusiness | F29: DOUBLE CREEP HEAT PAD | G29: Up to 200 Watt maximum | H29: 2 - 175 W Heat Lamps | I29: 6900 | J29: 0.35 | K29: 2415 | L29: 0.16 | M29: 1104 | N29: 0.19 | O29: 1311 | P29: 0.1206792308 | Q29: 10 | R29: PSP-Business-Commercial-Double_Creep_Pad | S29: -162.1739175 | T29: 0.682 | U29: 0.692 | V29: 0 | W29: 0 | X29: No | AF29: No | AG29: Dx | AH29: FALSE | AI29: 0
A30: INon-ResidentialRetrofitRetrofitHIGH TEMPERATURE CUTRE CUTOUT THERMOSTATOperating range 24 to 40 CelsiusPoorly Controlled Crled Creep Heat LampsPcial-HT_Cutout_ThermostatNND | B30: IESO - Measure | C30: Non-Residential | D30: Retrofit | E30: Agribusiness | F30: HIGH TEMPERATURE CUTOUT THERMOSTAT | G30: Operating range 24 to 40 Celsius | H30: Poorly Controlled Creep Heat Lamps | I30: 560 | J30: 1.575 | K30: 882 | L30: 0 | M30: 0 | N30: 1.575 | O30: 882 | P30: 0.7230138462 | Q30: 10 | R30: PSP-Business-Commercial-HT_Cutout_Thermostat | S30: 113.72 | T30: n/a | U30: n/a | V30: 0 | W30: 0 | X30: No | AF30: No | AG30: Dx | AH30: FALSE | AI30: 0
A31: INon-ResidentialRetrofitRetrofitCREEP HEAT CONTROLLEREEP HEAT CONTROLLERFor use in animal housing facilitiesPoorly Controlled Crled Creep Heat LampsPial-Creep_Heat_ControllerNND | B31: IESO - Measure | C31: Non-Residential | D31: Retrofit | E31: Agribusiness | F31: CREEP HEAT CONTROLLER | G31: For use in animal housing facilities | H31: Poorly Controlled Creep Heat Lamps | I31: 6900 | J31: 6.125 | K31: 42262.5 | L31: 4.778 | M31: 32968.2 | N31: 1.347 | O31: 9294.3 | P31: 1.060503462 | Q31: 15 | R31: PSP-Business-Commercial-Creep_Heat_Controller | S31: 400 | T31: n/a | U31: n/a | V31: 0 | W31: 0 | X31: No | AF31: No | AG31: Dx | AH31: FALSE | AI31: 0
A32: INon-ResidentialRetrofitRetrofitHIGH EFFICIENCY VENTILATION EXHAUST FANS18-20" FanMinimum fan groupingS Laboratory ratingsPcial-HE_Exhaust_Fans_≤24"NND | B32: IESO - Measure | C32: Non-Residential | D32: Retrofit | E32: Agribusiness | F32: HIGH EFFICIENCY VENTILATION EXHAUST FANS | G32: 18-20" Fan | H32: Minimum fan grouping in category from BESS Laboratory ratings | I32: 2804 | J32: 0.475 | K32: 1331.9 | L32: 0.38 | M32: 1065.52 | N32: 0.095 | O32: 266.38 | P32: 0.07813813333 | Q32: 10 | R32: PSP-Business-Commercial-HE_Exhaust_Fans_≤24" | S32: 285 | T32: n/a | U32: n/a | V32: 0 | W32: 0 | X32: No | AF32: No | AG32: Dx | AH32: FALSE | AI32: 0
A33: INon-ResidentialRetrofitRetrofitHIGH EFFICIENCY VENTILATION EXHAUST FANS24" FansMinimum fan groupingS Laboratory ratingsPcial-HE_Exhaust_Fans_≤24"NND | B33: IESO - Measure | C33: Non-Residential | D33: Retrofit | E33: Agribusiness | F33: HIGH EFFICIENCY VENTILATION EXHAUST FANS | G33: 24" Fans | H33: Minimum fan grouping in category from BESS Laboratory ratings | I33: 2804 | J33: 0.6823529412 | K33: 1913.317647 | L33: 0.487394958 | M33: 1366.655462 | N33: 0.1949579832 | O33: 546.6621849 | P33: 0.1603542409 | Q33: 10 | R33: PSP-Business-Commercial-HE_Exhaust_Fans_≤24" | S33: 285 | T33: n/a | U33: n/a | V33: 0 | W33: 0 | X33: No | AF33: No | AG33: Dx | AH33: FALSE | AI33: 0
A34: INon-ResidentialRetrofitRetrofitHIGH EFFICIENCY VENTILATION EXHAUST FANS36" FansMinimum fan groupingS Laboratory ratingsPcial-HE_Exhaust_Fans_>24"NND | B34: IESO - Measure | C34: Non-Residential | D34: Retrofit | E34: Agribusiness | F34: HIGH EFFICIENCY VENTILATION EXHAUST FANS | G34: 36" Fans | H34: Minimum fan grouping in category from BESS Laboratory ratings | I34: 1342 | J34: 0.9 | K34: 1207.8 | L34: 0.6666666667 | M34: 894.6666667 | N34: 0.2333333333 | O34: 313.1333333 | P34: 0.1555228889 | Q34: 10 | R34: PSP-Business-Commercial-HE_Exhaust_Fans_>24" | S34: 285 | T34: n/a | U34: n/a | V34: 0 | W34: 0 | X34: No | AF34: No | AG34: Dx | AH34: FALSE | AI34: 0
A35: INon-ResidentialRetrofitRetrofitHIGH EFFICIENCY VENTILATION EXHAUST FANS≥ 48" FansMinimum fan groupingS Laboratory ratingsPcial-HE_Exhaust_Fans_>24"NND | B35: IESO - Measure | C35: Non-Residential | D35: Retrofit | E35: Agribusiness | F35: HIGH EFFICIENCY VENTILATION EXHAUST FANS | G35: ≥ 48" Fans | H35: Minimum fan grouping in category from BESS Laboratory ratings | I35: 1342 | J35: 1.306666667 | K35: 1753.546667 | L35: 1.113636364 | M35: 1494.5 | N35: 0.193030303 | O35: 259.0466667 | P35: 0.1286598444 | Q35: 10 | R35: PSP-Business-Commercial-HE_Exhaust_Fans_>24" | S35: 285 | T35: n/a | U35: n/a | V35: 0 | W35: 0 | X35: No | AF35: No | AG35: Dx | AH35: FALSE | AI35: 0
A36: INon-ResidentialRetrofitRetrofitHIGH VOLUME LOW SPEEVOLUME LOW SPEED FAN≥10 ft to <11 ft, 1 hp2 units Box fan, 1 hunits Box fan, 1 hpP-Business-Commercial-HVLSNND | B36: IESO - Measure | C36: Non-Residential | D36: Retrofit | E36: Agribusiness | F36: HIGH VOLUME LOW SPEED FAN | G36: ≥10 ft to <11 ft, 1 hp | H36: 2 units Box fan, 1 hp | I36: 2900 | J36: 1.808484848 | K36: 5244.606061 | L36: 0.9042424242 | M36: 2622.30303 | N36: 0.9042424242 | O36: 2622.30303 | P36: 0.8956173427 | Q36: 15 | R36: PSP-Business-Commercial-HVLS | S36: 4900 | T36: n/a | U36: n/a | V36: 0 | W36: 0 | X36: No | AF36: No | AG36: Dx | AH36: FALSE | AI36: 0
A37: INon-ResidentialRetrofitRetrofitHIGH VOLUME LOW SPEEVOLUME LOW SPEED FAN≥11 ft to <19 ft, 1.5 hp4 units Box fan, 1 hunits Box fan, 1 hpP-Business-Commercial-HVLSNND | B37: IESO - Measure | C37: Non-Residential | D37: Retrofit | E37: Agribusiness | F37: HIGH VOLUME LOW SPEED FAN | G37: ≥11 ft to <19 ft, 1.5 hp | H37: 4 units Box fan, 1 hp | I37: 2900 | J37: 3.616969697 | K37: 10489.21212 | L37: 1.356363636 | M37: 3933.454545 | N37: 2.260606061 | O37: 6555.757576 | P37: 2.239043357 | Q37: 15 | R37: PSP-Business-Commercial-HVLS | S37: 2900 | T37: n/a | U37: n/a | V37: 0 | W37: 0 | X37: No | AF37: No | AG37: Dx | AH37: FALSE | AI37: 0
A38: INon-ResidentialRetrofitRetrofitHIGH VOLUME LOW SPEEVOLUME LOW SPEED FAN≥19 ft to <25 ft, 2 hp4 units Box fan, 1 hunits Box fan, 1 hpP-Business-Commercial-HVLSNND | B38: IESO - Measure | C38: Non-Residential | D38: Retrofit | E38: Agribusiness | F38: HIGH VOLUME LOW SPEED FAN | G38: ≥19 ft to <25 ft, 2 hp | H38: 4 units Box fan, 1 hp | I38: 2900 | J38: 3.616969697 | K38: 10489.21212 | L38: 1.808484848 | M38: 5244.606061 | N38: 1.808484848 | O38: 5244.606061 | P38: 1.791234685 | Q38: 15 | R38: PSP-Business-Commercial-HVLS | S38: 2900 | T38: n/a | U38: n/a | V38: 0 | W38: 0 | X38: No | AF38: No | AG38: Dx | AH38: FALSE | AI38: 0
A39: INon-ResidentialRetrofitRetrofitLOW ENERGY LIVESTOCKY LIVESTOCK WATERERS300 W maximum1500 W (Max) electriric heated WaterersPmercial-Livestock_WatererNND | B39: IESO - Measure | C39: Non-Residential | D39: Retrofit | E39: Agribusiness | F39: LOW ENERGY LIVESTOCK WATERERS | G39: 300 W maximum | H39: 1500 W (Max) electric heated Waterers | I39: 1400 | J39: 1 | K39: 1400 | L39: 0.3 | M39: 420 | N39: 0.7 | O39: 980 | P39: 0 | Q39: 10 | R39: PSP-Business-Commercial-Livestock_Waterer | S39: 320 | T39: 0.682 | U39: 0.692 | V39: 0 | W39: 0 | X39: No | AF39: No | AG39: Dx | AH39: FALSE | AI39: 0
A40: INon-ResidentialRetrofitRetrofitPHOTOCELL AND TIMERFOR LIGHTING CONTROL-250 W Metal Halide (Lamps per Photocell)Pommercial-Timer_PhotocellNND | B40: IESO - Measure | C40: Non-Residential | D40: Retrofit | E40: Agribusiness | F40: PHOTOCELL AND TIMER FOR LIGHTING CONTROL | G40: - | H40: 250 W Metal Halide (Assume 4 Lamps per Photocell) | I40: 6570 | J40: 1.1 | K40: 7227 | L40: 1.1 | M40: 3842.003286 | N40: 0 | O40: 3384.996714 | P40: 0.633601949 | Q40: 8 | R40: PSP-Business-Commercial-Timer_Photocell | S40: 250 | T40: n/a | U40: n/a | V40: 0 | W40: 0 | X40: No | AF40: No | AG40: Dx | AH40: FALSE | AI40: 0
A41: INon-ResidentialRetrofitRetrofitDUAL AND NATURAL EXHT VENTILATION SYSTEMEgg layersFans: 400W/1000 birdans: 400W/1000 birdsP_Exhaust_Fans_(non-dairy)NND | B41: IESO - Measure | C41: Non-Residential | D41: Retrofit | E41: Agribusiness | F41: DUAL AND NATURAL EXHAUST VENTILATION SYSTEM | G41: Egg layers | H41: Fans: 400W/1000 birds | I41: 7008 | J41: 0.4 | K41: 2803.2 | L41: 0 | M41: 0 | N41: 0.4 | O41: 2803.2 | P41: 0.4039483077 | Q41: 15 | R41: PSP-Business-Commercial-D&N_Exhaust_Fans_(non-dairy) | S41: 0 | T41: 0.682 | U41: 0.692 | V41: 0 | W41: 0 | X41: No | AF41: No | AG41: Dx | AH41: FALSE | AI41: 0
A42: INon-ResidentialRetrofitRetrofitDUAL AND NATURAL EXHT VENTILATION SYSTEMChicken broilersFans: 340W 1000 birdans: 340W 1000 birdsP_Exhaust_Fans_(non-dairy)NND | B42: IESO - Measure | C42: Non-Residential | D42: Retrofit | E42: Agribusiness | F42: DUAL AND NATURAL EXHAUST VENTILATION SYSTEM | G42: Chicken broilers | H42: Fans: 340W 1000 birds | I42: 7008 | J42: 0.34 | K42: 2382.72 | L42: 0 | M42: 0 | N42: 0.34 | O42: 2382.72 | P42: 0.3433560615 | Q42: 15 | R42: PSP-Business-Commercial-D&N_Exhaust_Fans_(non-dairy) | S42: 0 | T42: 0.682 | U42: 0.692 | V42: 0 | W42: 0 | X42: No | AF42: No | AG42: Dx | AH42: FALSE | AI42: 0
A43: INon-ResidentialRetrofitRetrofitDUAL AND NATURAL EXHT VENTILATION SYSTEMTurkeysFans: 1,130W/1000 bis: 1,130W/1000 birdsP_Exhaust_Fans_(non-dairy)NND | B43: IESO - Measure | C43: Non-Residential | D43: Retrofit | E43: Agribusiness | F43: DUAL AND NATURAL EXHAUST VENTILATION SYSTEM | G43: Turkeys | H43: Fans: 1,130W/1000 birds | I43: 7008 | J43: 1.13 | K43: 7919.04 | L43: 0 | M43: 0 | N43: 1.13 | O43: 7919.04 | P43: 1.141153969 | Q43: 15 | R43: PSP-Business-Commercial-D&N_Exhaust_Fans_(non-dairy) | S43: 0 | T43: 0.682 | U43: 0.692 | V43: 0 | W43: 0 | X43: No | AF43: No | AG43: Dx | AH43: FALSE | AI43: 0
A44: INon-ResidentialRetrofitRetrofitDUAL AND NATURAL EXHT VENTILATION SYSTEMSwine - breeding & gestationFans: 17W/sowFans: 17W/sowP_Exhaust_Fans_(non-dairy)NND | B44: IESO - Measure | C44: Non-Residential | D44: Retrofit | E44: Agribusiness | F44: DUAL AND NATURAL EXHAUST VENTILATION SYSTEM | G44: Swine - breeding & gestation | H44: Fans: 17W/sow | I44: 7008 | J44: 0.015 | K44: 105.12 | L44: 0 | M44: 0 | N44: 0.015 | O44: 105.12 | P44: 0.01514806154 | Q44: 15 | R44: PSP-Business-Commercial-D&N_Exhaust_Fans_(non-dairy) | S44: 0 | T44: 0.682 | U44: 0.692 | V44: 0 | W44: 0 | X44: No | AF44: No | AG44: Dx | AH44: FALSE | AI44: 0
A45: INon-ResidentialRetrofitRetrofitDUAL AND NATURAL EXHT VENTILATION SYSTEMSwine - growing & finishingFans: 5W/market-weig5W/market-weight hogP_Exhaust_Fans_(non-dairy)NND | B45: IESO - Measure | C45: Non-Residential | D45: Retrofit | E45: Agribusiness | F45: DUAL AND NATURAL EXHAUST VENTILATION SYSTEM | G45: Swine - growing & finishing | H45: Fans: 5W/market-weight hog | I45: 7008 | J45: 0.005 | K45: 35.04 | L45: 0 | M45: 0 | N45: 0.005 | O45: 35.04 | P45: 0.005049353846 | Q45: 15 | R45: PSP-Business-Commercial-D&N_Exhaust_Fans_(non-dairy) | S45: 0 | T45: 0.682 | U45: 0.692 | V45: 0 | W45: 0 | X45: No | AF45: No | AG45: Dx | AH45: FALSE | AI45: 0
A46: INon-ResidentialRetrofitRetrofitDUAL AND NATURAL EXHT VENTILATION SYSTEMDairy -tie stall, year round housingFans: 35W/cowFans: 35W/cowP-D&N_Exhaust_Fans_(dairy)NND | B46: IESO - Measure | C46: Non-Residential | D46: Retrofit | E46: Agribusiness | F46: DUAL AND NATURAL EXHAUST VENTILATION SYSTEM | G46: Dairy -tie stall, year round housing | H46: Fans: 35W/cow | I46: 7008 | J46: 0.035 | K46: 245.28 | L46: 0 | M46: 0 | N46: 0.035 | O46: 245.28 | P46: 0 | Q46: 15 | R46: PSP-Business-Commercial-D&N_Exhaust_Fans_(dairy) | S46: 0 | T46: 0.682 | U46: 0.692 | V46: 0 | W46: 0 | X46: No | AF46: No | AG46: Dx | AH46: FALSE | AI46: 0
A47: INon-ResidentialRetrofitRetrofitDUAL AND NATURAL EXHT VENTILATION SYSTEMDairy -tie stall, outside in summer50% in barn; 50% onbarn; 50% on pastureP-D&N_Exhaust_Fans_(dairy)NND | B47: IESO - Measure | C47: Non-Residential | D47: Retrofit | E47: Agribusiness | F47: DUAL AND NATURAL EXHAUST VENTILATION SYSTEM | G47: Dairy -tie stall, outside in summer | H47: 50% in barn; 50% on pasture | I47: 3500 | J47: 0.035 | K47: 122.5 | L47: 0 | M47: 0 | N47: 0.035 | O47: 122.5 | P47: 0 | Q47: 15 | R47: PSP-Business-Commercial-D&N_Exhaust_Fans_(dairy) | S47: 0 | T47: n/a | U47: n/a | V47: 0 | W47: 0 | X47: No | AF47: No | AG47: Dx | AH47: FALSE | AI47: 0
A48: INon-ResidentialRetrofitRetrofitDUAL AND NATURAL EXHT VENTILATION SYSTEMGreenhouse - FlowersFans: 1260W/1000 sq.260W/1000 sq. metersP_Exhaust_Fans_(non-dairy)NND | B48: IESO - Measure | C48: Non-Residential | D48: Retrofit | E48: Agribusiness | F48: DUAL AND NATURAL EXHAUST VENTILATION SYSTEM | G48: Greenhouse - Flowers | H48: Fans: 1260W/1000 sq. meters | I48: 7008 | J48: 1.26 | K48: 8830.08 | L48: 0 | M48: 0 | N48: 1.26 | O48: 8830.08 | P48: 1.272437169 | Q48: 15 | R48: PSP-Business-Commercial-D&N_Exhaust_Fans_(non-dairy) | S48: 0 | T48: 0.682 | U48: 0.692 | V48: 0 | W48: 0 | X48: No | AF48: No | AG48: Dx | AH48: FALSE | AI48: 0
A49: INon-ResidentialHigh PerfonstructionSINGLE CREEP HEAT PAINGLE CREEP HEAT PADUp to 100 Watt maximum175 W Heat Lamp175 W Heat LampPmmercial-Single_Creep_PadNND | B49: IESO - Measure | C49: Non-Residential | D49: High Performance New Construction | E49: Agribusiness | F49: SINGLE CREEP HEAT PAD | G49: Up to 100 Watt maximum | H49: 175 W Heat Lamp | I49: 6900 | J49: 0.175 | K49: 1207.5 | L49: 0.08 | M49: 552 | N49: 0.095 | O49: 655.5 | P49: 0.04975076923 | Q49: 10 | R49: PSP-Business-Commercial-Single_Creep_Pad | S49: -21.00217629 | T49: 0.54 | U49: 0.54 | V49: 0 | W49: 0 | X49: No | AF49: No | AG49: Dx | AH49: FALSE | AI49: 0
A50: INon-ResidentialHigh PerfonstructionDOUBLE CREEP HEAT PAOUBLE CREEP HEAT PADUp to 200 Watt maximum2 - 175 W Heat Lamps2 - 175 W Heat LampsPmmercial-Double_Creep_PadNND | B50: IESO - Measure | C50: Non-Residential | D50: High Performance New Construction | E50: Agribusiness | F50: DOUBLE CREEP HEAT PAD | G50: Up to 200 Watt maximum | H50: 2 - 175 W Heat Lamps | I50: 6900 | J50: 0.35 | K50: 2415 | L50: 0.16 | M50: 1104 | N50: 0.19 | O50: 1311 | P50: 0.1206792308 | Q50: 10 | R50: PSP-Business-Commercial-Double_Creep_Pad | S50: -162.1739175 | T50: 0.54 | U50: 0.54 | V50: 0 | W50: 0 | X50: No | AF50: No | AG50: Dx | AH50: FALSE | AI50: 0
A51: INon-ResidentialHigh PerfonstructionLOW ENERGY LIVESTOCKY LIVESTOCK WATERERS300 W maximum1500 W (Max) electriric heated WaterersPmercial-Livestock_WatererNND | B51: IESO - Measure | C51: Non-Residential | D51: High Performance New Construction | E51: Agribusiness | F51: LOW ENERGY LIVESTOCK WATERERS | G51: 300 W maximum | H51: 1500 W (Max) electric heated Waterers | I51: 1400 | J51: 1 | K51: 1400 | L51: 0.3 | M51: 420 | N51: 0.7 | O51: 980 | P51: 0 | Q51: 10 | R51: PSP-Business-Commercial-Livestock_Waterer | S51: 320 | T51: 0.54 | U51: 0.54 | V51: 0 | W51: 0 | X51: No | AF51: No | AG51: Dx | AH51: FALSE | AI51: 0
A52: INon-ResidentialHigh PerfonstructionDUAL AND NATURAL EXHT VENTILATION SYSTEMEgg layersFans: 400W/1000 birdans: 400W/1000 birdsP_Exhaust_Fans_(non-dairy)NND | B52: IESO - Measure | C52: Non-Residential | D52: High Performance New Construction | E52: Agribusiness | F52: DUAL AND NATURAL EXHAUST VENTILATION SYSTEM | G52: Egg layers | H52: Fans: 400W/1000 birds | I52: 7008 | J52: 0.4 | K52: 2803.2 | L52: 0 | M52: 0 | N52: 0.4 | O52: 2803.2 | P52: 0.4039483077 | Q52: 15 | R52: PSP-Business-Commercial-D&N_Exhaust_Fans_(non-dairy) | S52: 0 | T52: 0.54 | U52: 0.54 | V52: 0 | W52: 0 | X52: No | AF52: No | AG52: Dx | AH52: FALSE | AI52: 0
A53: INon-ResidentialHigh PerfonstructionDUAL AND NATURAL EXHT VENTILATION SYSTEMChicken broilersFans: 340W 1000 birdans: 340W 1000 birdsP_Exhaust_Fans_(non-dairy)NND | B53: IESO - Measure | C53: Non-Residential | D53: High Performance New Construction | E53: Agribusiness | F53: DUAL AND NATURAL EXHAUST VENTILATION SYSTEM | G53: Chicken broilers | H53: Fans: 340W 1000 birds | I53: 7008 | J53: 0.34 | K53: 2382.72 | L53: 0 | M53: 0 | N53: 0.34 | O53: 2382.72 | P53: 0.3433560615 | Q53: 15 | R53: PSP-Business-Commercial-D&N_Exhaust_Fans_(non-dairy) | S53: 0 | T53: 0.54 | U53: 0.54 | V53: 0 | W53: 0 | X53: No | AF53: No | AG53: Dx | AH53: FALSE | AI53: 0
A54: INon-ResidentialHigh PerfonstructionDUAL AND NATURAL EXHT VENTILATION SYSTEMTurkeysFans: 1,130W/1000 bis: 1,130W/1000 birdsP_Exhaust_Fans_(non-dairy)NND | B54: IESO - Measure | C54: Non-Residential | D54: High Performance New Construction | E54: Agribusiness | F54: DUAL AND NATURAL EXHAUST VENTILATION SYSTEM | G54: Turkeys | H54: Fans: 1,130W/1000 birds | I54: 7008 | J54: 1.13 | K54: 7919.04 | L54: 0 | M54: 0 | N54: 1.13 | O54: 7919.04 | P54: 1.141153969 | Q54: 15 | R54: PSP-Business-Commercial-D&N_Exhaust_Fans_(non-dairy) | S54: 0 | T54: 0.54 | U54: 0.54 | V54: 0 | W54: 0 | X54: No | AF54: No | AG54: Dx | AH54: FALSE | AI54: 0
A55: INon-ResidentialHigh PerfonstructionDUAL AND NATURAL EXHT VENTILATION SYSTEMSwine - breeding & gestationFans: 17W/sowFans: 17W/sowP_Exhaust_Fans_(non-dairy)NND | B55: IESO - Measure | C55: Non-Residential | D55: High Performance New Construction | E55: Agribusiness | F55: DUAL AND NATURAL EXHAUST VENTILATION SYSTEM | G55: Swine - breeding & gestation | H55: Fans: 17W/sow | I55: 7008 | J55: 0.015 | K55: 105.12 | L55: 0 | M55: 0 | N55: 0.015 | O55: 105.12 | P55: 0.01514806154 | Q55: 15 | R55: PSP-Business-Commercial-D&N_Exhaust_Fans_(non-dairy) | S55: 0 | T55: 0.54 | U55: 0.54 | V55: 0 | W55: 0 | X55: No | AF55: No | AG55: Dx | AH55: FALSE | AI55: 0
A56: INon-ResidentialHigh PerfonstructionDUAL AND NATURAL EXHT VENTILATION SYSTEMSwine - growing & finishingFans: 5W/market-weig5W/market-weight hogP_Exhaust_Fans_(non-dairy)NND | B56: IESO - Measure | C56: Non-Residential | D56: High Performance New Construction | E56: Agribusiness | F56: DUAL AND NATURAL EXHAUST VENTILATION SYSTEM | G56: Swine - growing & finishing | H56: Fans: 5W/market-weight hog | I56: 7008 | J56: 0.005 | K56: 35.04 | L56: 0 | M56: 0 | N56: 0.005 | O56: 35.04 | P56: 0.005049353846 | Q56: 15 | R56: PSP-Business-Commercial-D&N_Exhaust_Fans_(non-dairy) | S56: 0 | T56: 0.54 | U56: 0.54 | V56: 0 | W56: 0 | X56: No | AF56: No | AG56: Dx | AH56: FALSE | AI56: 0
A57: INon-ResidentialHigh PerfonstructionDUAL AND NATURAL EXHT VENTILATION SYSTEMDairy -tie stall, year round housingFans: 35W/cowFans: 35W/cowP-D&N_Exhaust_Fans_(dairy)NND | B57: IESO - Measure | C57: Non-Residential | D57: High Performance New Construction | E57: Agribusiness | F57: DUAL AND NATURAL EXHAUST VENTILATION SYSTEM | G57: Dairy -tie stall, year round housing | H57: Fans: 35W/cow | I57: 7008 | J57: 0.035 | K57: 245.28 | L57: 0 | M57: 0 | N57: 0.035 | O57: 245.28 | P57: 0 | Q57: 15 | R57: PSP-Business-Commercial-D&N_Exhaust_Fans_(dairy) | S57: 0 | T57: 0.54 | U57: 0.54 | V57: 0 | W57: 0 | X57: No | AF57: No | AG57: Dx | AH57: FALSE | AI57: 0
A58: INon-ResidentialHigh PerfonstructionDUAL AND NATURAL EXHT VENTILATION SYSTEMGreenhouse - FlowersFans: 1260W/1000 sq.260W/1000 sq. metersP_Exhaust_Fans_(non-dairy)NND | B58: IESO - Measure | C58: Non-Residential | D58: High Performance New Construction | E58: Agribusiness | F58: DUAL AND NATURAL EXHAUST VENTILATION SYSTEM | G58: Greenhouse - Flowers | H58: Fans: 1260W/1000 sq. meters | I58: 7008 | J58: 1.26 | K58: 8830.08 | L58: 0 | M58: 0 | N58: 1.26 | O58: 8830.08 | P58: 1.272437169 | Q58: 15 | R58: PSP-Business-Commercial-D&N_Exhaust_Fans_(non-dairy) | S58: 0 | T58: 0.54 | U58: 0.54 | V58: 0 | W58: 0 | X58: No | AF58: No | AG58: Dx | AH58: FALSE | AI58: 0
A59: INon-ResidentialRetrofitRetrofitREFRIGERATED DISPLAYCASE LED STRIP LIGHTPer linear foot60 W (T8 Lighting)60 W (T8 Lighting)P_Display_Case_Food RetailNND | B59: IESO - Measure | C59: Non-Residential | D59: Retrofit | E59: Lighting | F59: REFRIGERATED DISPLAY CASE LED STRIP LIGHT | G59: Per linear foot | H59: 60 W (T8 Lighting) | I59: 4800 | J59: 0.015 | K59: 72 | L59: 0.0075 | M59: 36 | N59: 0.0075 | O59: 36 | P59: 0.006886153846 | Q59: 10 | R59: PSP-Business-Commercial-Refrigerated_Display_Case_Food Retail | S59: 16 | T59: n/a | U59: n/a | V59: 0 | W59: 0 | X59: No | AF59: No | AG59: Dx | AH59: FALSE | AI59: 0
A60: INon-ResidentialRetrofitRetrofitLED RECESSED DOWNLIGRECESSED DOWNLIGHTSLED Downlight with Light Output > 350 and ≤600 lumensENERGY STAR® 15 or 1STAR® 15 or 18W CFLPLighting_Interior_GeneralNND | B60: IESO - Measure | C60: Non-Residential | D60: Retrofit | E60: Lighting -Food Retail | F60: LED RECESSED DOWNLIGHTS | G60: LED Downlight with Light Output > 350 and ≤600 lumens | H60: ENERGY STAR® 15 or 18W CFL | I60: 6074 | J60: 0.018 | K60: 109.332 | L60: 0.011 | M60: 66.814 | N60: 0.007 | O60: 42.518 | P60: 0.006039712241 | Q60: 6 | R60: PSP-Business-Food_Retail-Lighting_Interior_General | S60: 17.88 | T60: n/a | U60: n/a | V60: 0 | W60: 0 | X60: No | AF60: No | AG60: Dx | AH60: FALSE | AI60: 0
A61: INon-ResidentialRetrofitRetrofitLED RECESSED DOWNLIGRECESSED DOWNLIGHTSLED Downlight with Light Output > 350 and ≤600 lumensENERGY STAR® 15 or 1STAR® 15 or 18W CFLPLighting_Interior_GeneralNND | B61: IESO - Measure | C61: Non-Residential | D61: Retrofit | E61: Lighting -Hospital | F61: LED RECESSED DOWNLIGHTS | G61: LED Downlight with Light Output > 350 and ≤600 lumens | H61: ENERGY STAR® 15 or 18W CFL | I61: 5182 | J61: 0.018 | K61: 93.276 | L61: 0.011 | M61: 57.002 | N61: 0.007 | O61: 36.274 | P61: 0.004841748285 | Q61: 7 | R61: PSP-Business-Hospital-Lighting_Interior_General | S61: 17.88 | T61: n/a | U61: n/a | V61: 0 | W61: 0 | X61: No | AF61: No | AG61: Dx | AH61: FALSE | AI61: 0
A62: INon-ResidentialRetrofitRetrofitLED RECESSED DOWNLIGRECESSED DOWNLIGHTSLED Downlight with Light Output > 350 and ≤600 lumensENERGY STAR® 15 or 1STAR® 15 or 18W CFLPLighting_Interior_GeneralNND | B62: IESO - Measure | C62: Non-Residential | D62: Retrofit | E62: Lighting -Large Hotel (Corridor/Lobby) | F62: LED RECESSED DOWNLIGHTS | G62: LED Downlight with Light Output > 350 and ≤600 lumens | H62: ENERGY STAR® 15 or 18W CFL | I62: 7884 | J62: 0.018 | K62: 141.912 | L62: 0.011 | M62: 86.724 | N62: 0.007 | O62: 55.188 | P62: 0.006665861659 | Q62: 5 | R62: PSP-Business-Large_Hotel (Corridor/Lobby)-Lighting_Interior_General | S62: 17.88 | T62: n/a | U62: n/a | V62: 0 | W62: 0 | X62: No | AF62: No | AG62: Dx | AH62: FALSE | AI62: 0
A63: INon-ResidentialRetrofitRetrofitLED RECESSED DOWNLIGRECESSED DOWNLIGHTSLED Downlight with Light Output > 350 and ≤600 lumensENERGY STAR® 15 or 1STAR® 15 or 18W CFLPLighting_Interior_GeneralNND | B63: IESO - Measure | C63: Non-Residential | D63: Retrofit | E63: Lighting -Large Non-Food Retail | F63: LED RECESSED DOWNLIGHTS | G63: LED Downlight with Light Output > 350 and ≤600 lumens | H63: ENERGY STAR® 15 or 18W CFL | I63: 4089 | J63: 0.018 | K63: 73.602 | L63: 0.011 | M63: 44.979 | N63: 0.007 | O63: 28.623 | P63: 0.00424482533 | Q63: 9 | R63: PSP-Business-Large_Non_Food_Retail-Lighting_Interior_General | S63: 17.88 | T63: n/a | U63: n/a | V63: 0 | W63: 0 | X63: No | AF63: No | AG63: Dx | AH63: FALSE | AI63: 0
A64: INon-ResidentialRetrofitRetrofitLED RECESSED DOWNLIGRECESSED DOWNLIGHTSLED Downlight with Light Output > 350 and ≤600 lumensENERGY STAR® 15 or 1STAR® 15 or 18W CFLPLighting_Interior_GeneralNND | B64: IESO - Measure | C64: Non-Residential | D64: Retrofit | E64: Lighting -Large Office | F64: LED RECESSED DOWNLIGHTS | G64: LED Downlight with Light Output > 350 and ≤600 lumens | H64: ENERGY STAR® 15 or 18W CFL | I64: 3610 | J64: 0.018 | K64: 64.98 | L64: 0.011 | M64: 39.71 | N64: 0.007 | O64: 25.27 | P64: 0.004271116141 | Q64: 11 | R64: PSP-Business-Large_Office-Lighting_Interior_General | S64: 17.88 | T64: n/a | U64: n/a | V64: 0 | W64: 0 | X64: No | AF64: No | AG64: Dx | AH64: FALSE | AI64: 0
A65: INon-ResidentialRetrofitRetrofitLED RECESSED DOWNLIGRECESSED DOWNLIGHTSLED Downlight with Light Output > 350 and ≤600 lumensENERGY STAR® 15 or 1STAR® 15 or 18W CFLPLighting_Interior_GeneralNND | B65: IESO - Measure | C65: Non-Residential | D65: Retrofit | E65: Lighting -Nursing Home | F65: LED RECESSED DOWNLIGHTS | G65: LED Downlight with Light Output > 350 and ≤600 lumens | H65: ENERGY STAR® 15 or 18W CFL | I65: 4308 | J65: 0.018 | K65: 77.544 | L65: 0.011 | M65: 47.388 | N65: 0.007 | O65: 30.156 | P65: 0.004559798233 | Q65: 9 | R65: PSP-Business-Nursing_Home-Lighting_Interior_General | S65: 17.88 | T65: n/a | U65: n/a | V65: 0 | W65: 0 | X65: No | AF65: No | AG65: Dx | AH65: FALSE | AI65: 0
A66: INon-ResidentialRetrofitRetrofitLED RECESSED DOWNLIGRECESSED DOWNLIGHTSLED Downlight with Light Output > 350 and ≤600 lumensENERGY STAR® 15 or 1STAR® 15 or 18W CFLPLighting_Interior_GeneralNND | B66: IESO - Measure | C66: Non-Residential | D66: Retrofit | E66: Lighting -Other Commercial Buildings | F66: LED RECESSED DOWNLIGHTS | G66: LED Downlight with Light Output > 350 and ≤600 lumens | H66: ENERGY STAR® 15 or 18W CFL | I66: 2857 | J66: 0.018 | K66: 51.426 | L66: 0.011 | M66: 31.427 | N66: 0.007 | O66: 19.999 | P66: 0.003383519172 | Q66: 13 | R66: PSP-Business-Other_Commercial_Buildings-Lighting_Interior_General | S66: 17.88 | T66: n/a | U66: n/a | V66: 0 | W66: 0 | X66: No | AF66: No | AG66: Dx | AH66: FALSE | AI66: 0
A67: INon-ResidentialRetrofitRetrofitLED RECESSED DOWNLIGRECESSED DOWNLIGHTSLED Downlight with Light Output > 350 and ≤600 lumensENERGY STAR® 15 or 1STAR® 15 or 18W CFLPLighting_Interior_GeneralNND | B67: IESO - Measure | C67: Non-Residential | D67: Retrofit | E67: Lighting -Other Hotel Motel (Corridor/Lobby) | F67: LED RECESSED DOWNLIGHTS | G67: LED Downlight with Light Output > 350 and ≤600 lumens | H67: ENERGY STAR® 15 or 18W CFL | I67: 7884 | J67: 0.018 | K67: 141.912 | L67: 0.011 | M67: 86.724 | N67: 0.007 | O67: 55.188 | P67: 0.006665861835 | Q67: 5 | R67: PSP-Business-Other_Hotel_Motel (Corridor/Lobby)-Lighting_Interior_General | S67: 17.88 | T67: n/a | U67: n/a | V67: 0 | W67: 0 | X67: No | AF67: No | AG67: Dx | AH67: FALSE | AI67: 0
A68: INon-ResidentialRetrofitRetrofitLED RECESSED DOWNLIGRECESSED DOWNLIGHTSLED Downlight with Light Output > 350 and ≤600 lumensENERGY STAR® 15 or 1STAR® 15 or 18W CFLPLighting_Interior_GeneralNND | B68: IESO - Measure | C68: Non-Residential | D68: Retrofit | E68: Lighting -Other Non-Food Retail | F68: LED RECESSED DOWNLIGHTS | G68: LED Downlight with Light Output > 350 and ≤600 lumens | H68: ENERGY STAR® 15 or 18W CFL | I68: 4089 | J68: 0.018 | K68: 73.602 | L68: 0.011 | M68: 44.979 | N68: 0.007 | O68: 28.623 | P68: 0.00626216925 | Q68: 9 | R68: PSP-Business-Other_Non_Food_Retail-Lighting_Interior_General | S68: 17.88 | T68: n/a | U68: n/a | V68: 0 | W68: 0 | X68: No | AF68: No | AG68: Dx | AH68: FALSE | AI68: 0
A69: INon-ResidentialRetrofitRetrofitLED RECESSED DOWNLIGRECESSED DOWNLIGHTSLED Downlight with Light Output > 350 and ≤600 lumensENERGY STAR® 15 or 1STAR® 15 or 18W CFLPLighting_Interior_GeneralNND | B69: IESO - Measure | C69: Non-Residential | D69: Retrofit | E69: Lighting -Other Office | F69: LED RECESSED DOWNLIGHTS | G69: LED Downlight with Light Output > 350 and ≤600 lumens | H69: ENERGY STAR® 15 or 18W CFL | I69: 3610 | J69: 0.018 | K69: 64.98 | L69: 0.011 | M69: 39.71 | N69: 0.007 | O69: 25.27 | P69: 0.004271116141 | Q69: 11 | R69: PSP-Business-Other_Office-Lighting_Interior_General | S69: 17.88 | T69: n/a | U69: n/a | V69: 0 | W69: 0 | X69: No | AF69: No | AG69: Dx | AH69: FALSE | AI69: 0
A70: INon-ResidentialRetrofitRetrofitLED RECESSED DOWNLIGRECESSED DOWNLIGHTSLED Downlight with Light Output > 350 and ≤600 lumensENERGY STAR® 15 or 1STAR® 15 or 18W CFLPLighting_Interior_GeneralNND | B70: IESO - Measure | C70: Non-Residential | D70: Retrofit | E70: Lighting -Restaurant | F70: LED RECESSED DOWNLIGHTS | G70: LED Downlight with Light Output > 350 and ≤600 lumens | H70: ENERGY STAR® 15 or 18W CFL | I70: 5110 | J70: 0.018 | K70: 91.98 | L70: 0.011 | M70: 56.21 | N70: 0.007 | O70: 35.77 | P70: 0.005861403783 | Q70: 7 | R70: PSP-Business-Restaurant-Lighting_Interior_General | S70: 17.88 | T70: n/a | U70: n/a | V70: 0 | W70: 0 | X70: No | AF70: No | AG70: Dx | AH70: FALSE | AI70: 0
A71: INon-ResidentialRetrofitRetrofitLED RECESSED DOWNLIGRECESSED DOWNLIGHTSLED Downlight with Light Output > 350 and ≤600 lumensENERGY STAR® 15 or 1STAR® 15 or 18W CFLPLighting_Interior_GeneralNND | B71: IESO - Measure | C71: Non-Residential | D71: Retrofit | E71: Lighting -Schools | F71: LED RECESSED DOWNLIGHTS | G71: LED Downlight with Light Output > 350 and ≤600 lumens | H71: ENERGY STAR® 15 or 18W CFL | I71: 2596 | J71: 0.018 | K71: 46.728 | L71: 0.011 | M71: 28.556 | N71: 0.007 | O71: 18.172 | P71: 0.0009152963488 | Q71: 15 | R71: PSP-Business-Schools-Lighting_Interior_General | S71: 17.88 | T71: n/a | U71: n/a | V71: 0 | W71: 0 | X71: No | AF71: No | AG71: Dx | AH71: FALSE | AI71: 0
A72: INon-ResidentialRetrofitRetrofitLED RECESSED DOWNLIGRECESSED DOWNLIGHTSLED Downlight with Light Output > 350 and ≤600 lumensENERGY STAR® 15 or 1STAR® 15 or 18W CFLPLighting_Interior_GeneralNND | B72: IESO - Measure | C72: Non-Residential | D72: Retrofit | E72: Lighting -University Colleges | F72: LED RECESSED DOWNLIGHTS | G72: LED Downlight with Light Output > 350 and ≤600 lumens | H72: ENERGY STAR® 15 or 18W CFL | I72: 3255 | J72: 0.018 | K72: 58.59 | L72: 0.011 | M72: 35.805 | N72: 0.007 | O72: 22.785 | P72: 0.003020920049 | Q72: 12 | R72: PSP-Business-University_Colleges-Lighting_Interior_General | S72: 17.88 | T72: n/a | U72: n/a | V72: 0 | W72: 0 | X72: No | AF72: No | AG72: Dx | AH72: FALSE | AI72: 0
A73: INon-ResidentialRetrofitRetrofitLED RECESSED DOWNLIGRECESSED DOWNLIGHTSLED Downlight with Light Output > 350 and ≤600 lumensENERGY STAR® 15 or 1STAR® 15 or 18W CFLPLighting_Interior_GeneralNND | B73: IESO - Measure | C73: Non-Residential | D73: Retrofit | E73: Lighting -Warehouse Wholesale | F73: LED RECESSED DOWNLIGHTS | G73: LED Downlight with Light Output > 350 and ≤600 lumens | H73: ENERGY STAR® 15 or 18W CFL | I73: 3759 | J73: 0.018 | K73: 67.662 | L73: 0.011 | M73: 41.349 | N73: 0.007 | O73: 26.313 | P73: 0.005120914615 | Q73: 10 | R73: PSP-Business-Warehouse_Wholesale-Lighting_Interior_General | S73: 17.88 | T73: n/a | U73: n/a | V73: 0 | W73: 0 | X73: No | AF73: No | AG73: Dx | AH73: FALSE | AI73: 0
A74: INon-ResidentialRetrofitRetrofitLED RECESSED DOWNLIGRECESSED DOWNLIGHTSLED Downlight with Light Output >600 and ≤800 lumensENERGY STAR® 20W CFLENERGY STAR® 20W CFLPLighting_Interior_GeneralNND | B74: IESO - Measure | C74: Non-Residential | D74: Retrofit | E74: Lighting -Food Retail | F74: LED RECESSED DOWNLIGHTS | G74: LED Downlight with Light Output >600 and ≤800 lumens | H74: ENERGY STAR® 20W CFL | I74: 6074 | J74: 0.02 | K74: 121.48 | L74: 0.014 | M74: 85.036 | N74: 0.006 | O74: 36.444 | P74: 0.005176896207 | Q74: 6 | R74: PSP-Business-Food_Retail-Lighting_Interior_General | S74: 22.88 | T74: n/a | U74: n/a | V74: 0 | W74: 0 | X74: No | AF74: No | AG74: Dx | AH74: FALSE | AI74: 0
A75: INon-ResidentialRetrofitRetrofitLED RECESSED DOWNLIGRECESSED DOWNLIGHTSLED Downlight with Light Output >600 and ≤800 lumensENERGY STAR® 20W CFLENERGY STAR® 20W CFLPLighting_Interior_GeneralNND | B75: IESO - Measure | C75: Non-Residential | D75: Retrofit | E75: Lighting -Hospital | F75: LED RECESSED DOWNLIGHTS | G75: LED Downlight with Light Output >600 and ≤800 lumens | H75: ENERGY STAR® 20W CFL | I75: 5182 | J75: 0.02 | K75: 103.64 | L75: 0.014 | M75: 72.548 | N75: 0.006 | O75: 31.092 | P75: 0.004150069958 | Q75: 8 | R75: PSP-Business-Hospital-Lighting_Interior_General | S75: 22.88 | T75: n/a | U75: n/a | V75: 0 | W75: 0 | X75: No | AF75: No | AG75: Dx | AH75: FALSE | AI75: 0
A76: INon-ResidentialRetrofitRetrofitLED RECESSED DOWNLIGRECESSED DOWNLIGHTSLED Downlight with Light Output >600 and ≤800 lumensENERGY STAR® 20W CFLENERGY STAR® 20W CFLPLighting_Interior_GeneralNND | B76: IESO - Measure | C76: Non-Residential | D76: Retrofit | E76: Lighting -Large Hotel (Corridor/Lobby) | F76: LED RECESSED DOWNLIGHTS | G76: LED Downlight with Light Output >600 and ≤800 lumens | H76: ENERGY STAR® 20W CFL | I76: 7884 | J76: 0.02 | K76: 157.68 | L76: 0.014 | M76: 110.376 | N76: 0.006 | O76: 47.304 | P76: 0.005713595707 | Q76: 5 | R76: PSP-Business-Large_Hotel (Corridor/Lobby)-Lighting_Interior_General | S76: 22.88 | T76: n/a | U76: n/a | V76: 0 | W76: 0 | X76: No | AF76: No | AG76: Dx | AH76: FALSE | AI76: 0
A77: INon-ResidentialRetrofitRetrofitLED RECESSED DOWNLIGRECESSED DOWNLIGHTSLED Downlight with Light Output >600 and ≤800 lumensENERGY STAR® 20W CFLENERGY STAR® 20W CFLPLighting_Interior_GeneralNND | B77: IESO - Measure | C77: Non-Residential | D77: Retrofit | E77: Lighting -Large Non-Food Retail | F77: LED RECESSED DOWNLIGHTS | G77: LED Downlight with Light Output >600 and ≤800 lumens | H77: ENERGY STAR® 20W CFL | I77: 4089 | J77: 0.02 | K77: 81.78 | L77: 0.014 | M77: 57.246 | N77: 0.006 | O77: 24.534 | P77: 0.003638421712 | Q77: 10 | R77: PSP-Business-Large_Non_Food_Retail-Lighting_Interior_General | S77: 22.88 | T77: n/a | U77: n/a | V77: 0 | W77: 0 | X77: No | AF77: No | AG77: Dx | AH77: FALSE | AI77: 0
A78: INon-ResidentialRetrofitRetrofitLED RECESSED DOWNLIGRECESSED DOWNLIGHTSLED Downlight with Light Output >600 and ≤800 lumensENERGY STAR® 20W CFLENERGY STAR® 20W CFLPLighting_Interior_GeneralNND | B78: IESO - Measure | C78: Non-Residential | D78: Retrofit | E78: Lighting -Large Office | F78: LED RECESSED DOWNLIGHTS | G78: LED Downlight with Light Output >600 and ≤800 lumens | H78: ENERGY STAR® 20W CFL | I78: 3610 | J78: 0.02 | K78: 72.2 | L78: 0.014 | M78: 50.54 | N78: 0.006 | O78: 21.66 | P78: 0.003660956692 | Q78: 11 | R78: PSP-Business-Large_Office-Lighting_Interior_General | S78: 22.88 | T78: n/a | U78: n/a | V78: 0 | W78: 0 | X78: No | AF78: No | AG78: Dx | AH78: FALSE | AI78: 0
A79: INon-ResidentialRetrofitRetrofitLED RECESSED DOWNLIGRECESSED DOWNLIGHTSLED Downlight with Light Output >600 and ≤800 lumensENERGY STAR® 20W CFLENERGY STAR® 20W CFLPLighting_Interior_GeneralNND | B79: IESO - Measure | C79: Non-Residential | D79: Retrofit | E79: Lighting -Nursing Home | F79: LED RECESSED DOWNLIGHTS | G79: LED Downlight with Light Output >600 and ≤800 lumens | H79: ENERGY STAR® 20W CFL | I79: 4308 | J79: 0.02 | K79: 86.16 | L79: 0.014 | M79: 60.312 | N79: 0.006 | O79: 25.848 | P79: 0.003908398486 | Q79: 9 | R79: PSP-Business-Nursing_Home-Lighting_Interior_General | S79: 22.88 | T79: n/a | U79: n/a | V79: 0 | W79: 0 | X79: No | AF79: No | AG79: Dx | AH79: FALSE | AI79: 0
A80: INon-ResidentialRetrofitRetrofitLED RECESSED DOWNLIGRECESSED DOWNLIGHTSLED Downlight with Light Output >600 and ≤800 lumensENERGY STAR® 20W CFLENERGY STAR® 20W CFLPLighting_Interior_GeneralNND | B80: IESO - Measure | C80: Non-Residential | D80: Retrofit | E80: Lighting -Other Commercial Buildings | F80: LED RECESSED DOWNLIGHTS | G80: LED Downlight with Light Output >600 and ≤800 lumens | H80: ENERGY STAR® 20W CFL | I80: 2857 | J80: 0.02 | K80: 57.14 | L80: 0.014 | M80: 39.998 | N80: 0.006 | O80: 17.142 | P80: 0.00290015929 | Q80: 14 | R80: PSP-Business-Other_Commercial_Buildings-Lighting_Interior_General | S80: 22.88 | T80: n/a | U80: n/a | V80: 0 | W80: 0 | X80: No | AF80: No | AG80: Dx | AH80: FALSE | AI80: 0
A81: INon-ResidentialRetrofitRetrofitLED RECESSED DOWNLIGRECESSED DOWNLIGHTSLED Downlight with Light Output >600 and ≤800 lumensENERGY STAR® 20W CFLENERGY STAR® 20W CFLPLighting_Interior_GeneralNND | B81: IESO - Measure | C81: Non-Residential | D81: Retrofit | E81: Lighting -Other Hotel Motel (Corridor/Lobby) | F81: LED RECESSED DOWNLIGHTS | G81: LED Downlight with Light Output >600 and ≤800 lumens | H81: ENERGY STAR® 20W CFL | I81: 7884 | J81: 0.02 | K81: 157.68 | L81: 0.014 | M81: 110.376 | N81: 0.006 | O81: 47.304 | P81: 0.005713595858 | Q81: 5 | R81: PSP-Business-Other_Hotel_Motel (Corridor/Lobby)-Lighting_Interior_General | S81: 22.88 | T81: n/a | U81: n/a | V81: 0 | W81: 0 | X81: No | AF81: No | AG81: Dx | AH81: FALSE | AI81: 0
A82: INon-ResidentialRetrofitRetrofitLED RECESSED DOWNLIGRECESSED DOWNLIGHTSLED Downlight with Light Output >600 and ≤800 lumensENERGY STAR® 20W CFLENERGY STAR® 20W CFLPLighting_Interior_GeneralNND | B82: IESO - Measure | C82: Non-Residential | D82: Retrofit | E82: Lighting -Other Non-Food Retail | F82: LED RECESSED DOWNLIGHTS | G82: LED Downlight with Light Output >600 and ≤800 lumens | H82: ENERGY STAR® 20W CFL | I82: 4089 | J82: 0.02 | K82: 81.78 | L82: 0.014 | M82: 57.246 | N82: 0.006 | O82: 24.534 | P82: 0.005367573643 | Q82: 10 | R82: PSP-Business-Other_Non_Food_Retail-Lighting_Interior_General | S82: 22.88 | T82: n/a | U82: n/a | V82: 0 | W82: 0 | X82: No | AF82: No | AG82: Dx | AH82: FALSE | AI82: 0
A83: INon-ResidentialRetrofitRetrofitLED RECESSED DOWNLIGRECESSED DOWNLIGHTSLED Downlight with Light Output >600 and ≤800 lumensENERGY STAR® 20W CFLENERGY STAR® 20W CFLPLighting_Interior_GeneralNND | B83: IESO - Measure | C83: Non-Residential | D83: Retrofit | E83: Lighting -Other Office | F83: LED RECESSED DOWNLIGHTS | G83: LED Downlight with Light Output >600 and ≤800 lumens | H83: ENERGY STAR® 20W CFL | I83: 3610 | J83: 0.02 | K83: 72.2 | L83: 0.014 | M83: 50.54 | N83: 0.006 | O83: 21.66 | P83: 0.003660956692 | Q83: 11 | R83: PSP-Business-Other_Office-Lighting_Interior_General | S83: 22.88 | T83: n/a | U83: n/a | V83: 0 | W83: 0 | X83: No | AF83: No | AG83: Dx | AH83: FALSE | AI83: 0
A84: INon-ResidentialRetrofitRetrofitLED RECESSED DOWNLIGRECESSED DOWNLIGHTSLED Downlight with Light Output >600 and ≤800 lumensENERGY STAR® 20W CFLENERGY STAR® 20W CFLPLighting_Interior_GeneralNND | B84: IESO - Measure | C84: Non-Residential | D84: Retrofit | E84: Lighting -Restaurant | F84: LED RECESSED DOWNLIGHTS | G84: LED Downlight with Light Output >600 and ≤800 lumens | H84: ENERGY STAR® 20W CFL | I84: 5110 | J84: 0.02 | K84: 102.2 | L84: 0.014 | M84: 71.54 | N84: 0.006 | O84: 30.66 | P84: 0.005024060386 | Q84: 8 | R84: PSP-Business-Restaurant-Lighting_Interior_General | S84: 22.88 | T84: n/a | U84: n/a | V84: 0 | W84: 0 | X84: No | AF84: No | AG84: Dx | AH84: FALSE | AI84: 0
A85: INon-ResidentialRetrofitRetrofitLED RECESSED DOWNLIGRECESSED DOWNLIGHTSLED Downlight with Light Output >600 and ≤800 lumensENERGY STAR® 20W CFLENERGY STAR® 20W CFLPLighting_Interior_GeneralNND | B85: IESO - Measure | C85: Non-Residential | D85: Retrofit | E85: Lighting -Schools | F85: LED RECESSED DOWNLIGHTS | G85: LED Downlight with Light Output >600 and ≤800 lumens | H85: ENERGY STAR® 20W CFL | I85: 2596 | J85: 0.02 | K85: 51.92 | L85: 0.014 | M85: 36.344 | N85: 0.006 | O85: 15.576 | P85: 0.0007845397275 | Q85: 15 | R85: PSP-Business-Schools-Lighting_Interior_General | S85: 22.88 | T85: n/a | U85: n/a | V85: 0 | W85: 0 | X85: No | AF85: No | AG85: Dx | AH85: FALSE | AI85: 0
A86: INon-ResidentialRetrofitRetrofitLED RECESSED DOWNLIGRECESSED DOWNLIGHTSLED Downlight with Light Output >600 and ≤800 lumensENERGY STAR® 20W CFLENERGY STAR® 20W CFLPLighting_Interior_GeneralNND | B86: IESO - Measure | C86: Non-Residential | D86: Retrofit | E86: Lighting -University Colleges | F86: LED RECESSED DOWNLIGHTS | G86: LED Downlight with Light Output >600 and ≤800 lumens | H86: ENERGY STAR® 20W CFL | I86: 3255 | J86: 0.02 | K86: 65.1 | L86: 0.014 | M86: 45.57 | N86: 0.006 | O86: 19.53 | P86: 0.002589360042 | Q86: 12 | R86: PSP-Business-University_Colleges-Lighting_Interior_General | S86: 22.88 | T86: n/a | U86: n/a | V86: 0 | W86: 0 | X86: No | AF86: No | AG86: Dx | AH86: FALSE | AI86: 0
A87: INon-ResidentialRetrofitRetrofitLED RECESSED DOWNLIGRECESSED DOWNLIGHTSLED Downlight with Light Output >600 and ≤800 lumensENERGY STAR® 20W CFLENERGY STAR® 20W CFLPLighting_Interior_GeneralNND | B87: IESO - Measure | C87: Non-Residential | D87: Retrofit | E87: Lighting -Warehouse Wholesale | F87: LED RECESSED DOWNLIGHTS | G87: LED Downlight with Light Output >600 and ≤800 lumens | H87: ENERGY STAR® 20W CFL | I87: 3759 | J87: 0.02 | K87: 75.18 | L87: 0.014 | M87: 52.626 | N87: 0.006 | O87: 22.554 | P87: 0.004389355385 | Q87: 10 | R87: PSP-Business-Warehouse_Wholesale-Lighting_Interior_General | S87: 22.88 | T87: n/a | U87: n/a | V87: 0 | W87: 0 | X87: No | AF87: No | AG87: Dx | AH87: FALSE | AI87: 0
A88: INon-ResidentialRetrofitRetrofitLED RECESSED DOWNLIGRECESSED DOWNLIGHTSLED Downlight with Light Output >800 lumensENERGY STAR® 25W CFLENERGY STAR® 25W CFLPLighting_Interior_GeneralNND | B88: IESO - Measure | C88: Non-Residential | D88: Retrofit | E88: Lighting -Food Retail | F88: LED RECESSED DOWNLIGHTS | G88: LED Downlight with Light Output >800 lumens | H88: ENERGY STAR® 25W CFL | I88: 6074 | J88: 0.025 | K88: 151.85 | L88: 0.02 | M88: 121.48 | N88: 0.005 | O88: 30.37 | P88: 0.004314080172 | Q88: 7 | R88: PSP-Business-Food_Retail-Lighting_Interior_General | S88: 47.88 | T88: n/a | U88: n/a | V88: 0 | W88: 0 | X88: No | AF88: No | AG88: Dx | AH88: FALSE | AI88: 0
A89: INon-ResidentialRetrofitRetrofitLED RECESSED DOWNLIGRECESSED DOWNLIGHTSLED Downlight with Light Output >800 lumensENERGY STAR® 25W CFLENERGY STAR® 25W CFLPLighting_Interior_GeneralNND | B89: IESO - Measure | C89: Non-Residential | D89: Retrofit | E89: Lighting -Hospital | F89: LED RECESSED DOWNLIGHTS | G89: LED Downlight with Light Output >800 lumens | H89: ENERGY STAR® 25W CFL | I89: 5182 | J89: 0.025 | K89: 129.55 | L89: 0.02 | M89: 103.64 | N89: 0.005 | O89: 25.91 | P89: 0.003458391632 | Q89: 8 | R89: PSP-Business-Hospital-Lighting_Interior_General | S89: 47.88 | T89: n/a | U89: n/a | V89: 0 | W89: 0 | X89: No | AF89: No | AG89: Dx | AH89: FALSE | AI89: 0
A90: INon-ResidentialRetrofitRetrofitLED RECESSED DOWNLIGRECESSED DOWNLIGHTSLED Downlight with Light Output >800 lumensENERGY STAR® 25W CFLENERGY STAR® 25W CFLPLighting_Interior_GeneralNND | B90: IESO - Measure | C90: Non-Residential | D90: Retrofit | E90: Lighting -Large Hotel (Corridor/Lobby) | F90: LED RECESSED DOWNLIGHTS | G90: LED Downlight with Light Output >800 lumens | H90: ENERGY STAR® 25W CFL | I90: 7884 | J90: 0.025 | K90: 197.1 | L90: 0.02 | M90: 157.68 | N90: 0.005 | O90: 39.42 | P90: 0.004761329756 | Q90: 5 | R90: PSP-Business-Large_Hotel (Corridor/Lobby)-Lighting_Interior_General | S90: 47.88 | T90: n/a | U90: n/a | V90: 0 | W90: 0 | X90: No | AF90: No | AG90: Dx | AH90: FALSE | AI90: 0
A91: INon-ResidentialRetrofitRetrofitLED RECESSED DOWNLIGRECESSED DOWNLIGHTSLED Downlight with Light Output >800 lumensENERGY STAR® 25W CFLENERGY STAR® 25W CFLPLighting_Interior_GeneralNND | B91: IESO - Measure | C91: Non-Residential | D91: Retrofit | E91: Lighting -Large Non-Food Retail | F91: LED RECESSED DOWNLIGHTS | G91: LED Downlight with Light Output >800 lumens | H91: ENERGY STAR® 25W CFL | I91: 4089 | J91: 0.025 | K91: 102.225 | L91: 0.02 | M91: 81.78 | N91: 0.005 | O91: 20.445 | P91: 0.003032018093 | Q91: 10 | R91: PSP-Business-Large_Non_Food_Retail-Lighting_Interior_General | S91: 47.88 | T91: n/a | U91: n/a | V91: 0 | W91: 0 | X91: No | AF91: No | AG91: Dx | AH91: FALSE | AI91: 0
A92: =CONCATENATE(TRIM(LEFT(B92,1)),TRIM(LEFT(C92,20)),TRIM(LEFT(D92,10)),TRIM(RIGHT(D92,10)),TRIM(LEFT(F92,20)),TRIM(RIGHT(F92,20)),TRIM(LEFT(G92,105)),TRIM(LEFT(H92,20)),TRIM(RIGHT(H92,20)),TRIM(LEFT(R92,1)),TRIM(RIGHT(R92,25)),TRIM(LEFT(X92,1)),TRIM(LEFT(AF92,1)),TRIM(LEFT(AG92,1))) -> INon-ResidentialRetrofitRetrofitLED RECESSED DOWNLIGRECESSED DOWNLIGHTSLED Downlight with Light Output >800 lumensENERGY STAR® 25W CFLENERGY STAR® 25W CFLPLighting_Interior_GeneralNND | B92: IESO - Measure | C92: Non-Residential | D92: Retrofit | E92: Lighting -Large Office | F92: LED RECESSED DOWNLIGHTS | G92: LED Downlight with Light Output >800 lumens | H92: ENERGY STAR® 25W CFL | I92: 3610 | J92: 0.025 | K92: 90.25 | L92: 0.02 | M92: 72.2 | N92: 0.005 | O92: 18.05 | P92: 0.003050797243 | Q92: 11 | R92: PSP-Business-Large_Office-Lighting_Interior_General | S92: 47.88 | T92: n/a | U92: n/a | V92: 0 | W92: 0 | X92: No | AF92: No | AG92: Dx | AH92: FALSE | AI92: 0
A93: INon-ResidentialRetrofitRetrofitLED RECESSED DOWNLIGRECESSED DOWNLIGHTSLED Downlight with Light Output >800 lumensENERGY STAR® 25W CFLENERGY STAR® 25W CFLPLighting_Interior_GeneralNND | B93: IESO - Measure | C93: Non-Residential | D93: Retrofit | E93: Lighting -Nursing Home | F93: LED RECESSED DOWNLIGHTS | G93: LED Downlight with Light Output >800 lumens | H93: ENERGY STAR® 25W CFL | I93: 4308 | J93: 0.025 | K93: 107.7 | L93: 0.02 | M93: 86.16 | N93: 0.005 | O93: 21.54 | P93: 0.003256998738 | Q93: 10 | R93: PSP-Business-Nursing_Home-Lighting_Interior_General | S93: 47.88 | T93: n/a | U93: n/a | V93: 0 | W93: 0 | X93: No | AF93: No | AG93: Dx | AH93: FALSE | AI93: 0
A94: INon-ResidentialRetrofitRetrofitLED RECESSED DOWNLIGRECESSED DOWNLIGHTSLED Downlight with Light Output >800 lumensENERGY STAR® 25W CFLENERGY STAR® 25W CFLPLighting_Interior_GeneralNND | B94: IESO - Measure | C94: Non-Residential | D94: Retrofit | E94: Lighting -Other Commercial Buildings | F94: LED RECESSED DOWNLIGHTS | G94: LED Downlight with Light Output >800 lumens | H94: ENERGY STAR® 25W CFL | I94: 2857 | J94: 0.025 | K94: 71.425 | L94: 0.02 | M94: 57.14 | N94: 0.005 | O94: 14.285 | P94: 0.002416799409 | Q94: 14 | R94: PSP-Business-Other_Commercial_Buildings-Lighting_Interior_General | S94: 47.88 | T94: n/a | U94: n/a | V94: 0 | W94: 0 | X94: No | AF94: No | AG94: Dx | AH94: FALSE | AI94: 0
A95: INon-ResidentialRetrofitRetrofitLED RECESSED DOWNLIGRECESSED DOWNLIGHTSLED Downlight with Light Output >800 lumensENERGY STAR® 25W CFLENERGY STAR® 25W CFLPLighting_Interior_GeneralNND | B95: IESO - Measure | C95: Non-Residential | D95: Retrofit | E95: Lighting -Other Hotel Motel (Corridor/Lobby) | F95: LED RECESSED DOWNLIGHTS | G95: LED Downlight with Light Output >800 lumens | H95: ENERGY STAR® 25W CFL | I95: 7884 | J95: 0.025 | K95: 197.1 | L95: 0.02 | M95: 157.68 | N95: 0.005 | O95: 39.42 | P95: 0.004761329882 | Q95: 5 | R95: PSP-Business-Other_Hotel_Motel (Corridor/Lobby)-Lighting_Interior_General | S95: 47.88 | T95: n/a | U95: n/a | V95: 0 | W95: 0 | X95: No | AF95: No | AG95: Dx | AH95: FALSE | AI95: 0
A96: INon-ResidentialRetrofitRetrofitLED RECESSED DOWNLIGRECESSED DOWNLIGHTSLED Downlight with Light Output >800 lumensENERGY STAR® 25W CFLENERGY STAR® 25W CFLPLighting_Interior_GeneralNND | B96: IESO - Measure | C96: Non-Residential | D96: Retrofit | E96: Lighting -Other Non-Food Retail | F96: LED RECESSED DOWNLIGHTS | G96: LED Downlight with Light Output >800 lumens | H96: ENERGY STAR® 25W CFL | I96: 4089 | J96: 0.025 | K96: 102.225 | L96: 0.02 | M96: 81.78 | N96: 0.005 | O96: 20.445 | P96: 0.004472978036 | Q96: 10 | R96: PSP-Business-Other_Non_Food_Retail-Lighting_Interior_General | S96: 47.88 | T96: n/a | U96: n/a | V96: 0 | W96: 0 | X96: No | AF96: No | AG96: Dx | AH96: FALSE | AI96: 0
A97: INon-ResidentialRetrofitRetrofitLED RECESSED DOWNLIGRECESSED DOWNLIGHTSLED Downlight with Light Output >800 lumensENERGY STAR® 25W CFLENERGY STAR® 25W CFLPLighting_Interior_GeneralNND | B97: IESO - Measure | C97: Non-Residential | D97: Retrofit | E97: Lighting -Other Office | F97: LED RECESSED DOWNLIGHTS | G97: LED Downlight with Light Output >800 lumens | H97: ENERGY STAR® 25W CFL | I97: 3610 | J97: 0.025 | K97: 90.25 | L97: 0.02 | M97: 72.2 | N97: 0.005 | O97: 18.05 | P97: 0.003050797243 | Q97: 11 | R97: PSP-Business-Other_Office-Lighting_Interior_General | S97: 47.88 | T97: n/a | U97: n/a | V97: 0 | W97: 0 | X97: No | AF97: No | AG97: Dx | AH97: FALSE | AI97: 0
A98: INon-ResidentialRetrofitRetrofitLED RECESSED DOWNLIGRECESSED DOWNLIGHTSLED Downlight with Light Output >800 lumensENERGY STAR® 25W CFLENERGY STAR® 25W CFLPLighting_Interior_GeneralNND | B98: IESO - Measure | C98: Non-Residential | D98: Retrofit | E98: Lighting -Restaurant | F98: LED RECESSED DOWNLIGHTS | G98: LED Downlight with Light Output >800 lumens | H98: ENERGY STAR® 25W CFL | I98: 5110 | J98: 0.025 | K98: 127.75 | L98: 0.02 | M98: 102.2 | N98: 0.005 | O98: 25.55 | P98: 0.004186716988 | Q98: 8 | R98: PSP-Business-Restaurant-Lighting_Interior_General | S98: 47.88 | T98: n/a | U98: n/a | V98: 0 | W98: 0 | X98: No | AF98: No | AG98: Dx | AH98: FALSE | AI98: 0
A99: INon-ResidentialRetrofitRetrofitLED RECESSED DOWNLIGRECESSED DOWNLIGHTSLED Downlight with Light Output >800 lumensENERGY STAR® 25W CFLENERGY STAR® 25W CFLPLighting_Interior_GeneralNND | B99: IESO - Measure | C99: Non-Residential | D99: Retrofit | E99: Lighting -Schools | F99: LED RECESSED DOWNLIGHTS | G99: LED Downlight with Light Output >800 lumens | H99: ENERGY STAR® 25W CFL | I99: 2596 | J99: 0.025 | K99: 64.9 | L99: 0.02 | M99: 51.92 | N99: 0.005 | O99: 12.98 | P99: 0.0006537831063 | Q99: 16 | R99: PSP-Business-Schools-Lighting_Interior_General | S99: 47.88 | T99: n/a | U99: n/a | V99: 0 | W99: 0 | X99: No | AF99: No | AG99: Dx | AH99: FALSE | AI99: 0
A100: INon-ResidentialRetrofitRetrofitLED RECESSED DOWNLIGRECESSED DOWNLIGHTSLED Downlight with Light Output >800 lumensENERGY STAR® 25W CFLENERGY STAR® 25W CFLPLighting_Interior_GeneralNND | B100: IESO - Measure | C100: Non-Residential | D100: Retrofit | E100: Lighting -University Colleges | F100: LED RECESSED DOWNLIGHTS | G100: LED Downlight with Light Output >800 lumens | H100: ENERGY STAR® 25W CFL | I100: 3255 | J100: 0.025 | K100: 81.375 | L100: 0.02 | M100: 65.1 | N100: 0.005 | O100: 16.275 | P100: 0.002157800035 | Q100: 13 | R100: PSP-Business-University_Colleges-Lighting_Interior_General | S100: 47.88 | T100: n/a | U100: n/a | V100: 0 | W100: 0 | X100: No | AF100: No | AG100: Dx | AH100: FALSE | AI100: 0
A101: INon-ResidentialRetrofitRetrofitLED RECESSED DOWNLIGRECESSED DOWNLIGHTSLED Downlight with Light Output >800 lumensENERGY STAR® 25W CFLENERGY STAR® 25W CFLPLighting_Interior_GeneralNND | B101: IESO - Measure | C101: Non-Residential | D101: Retrofit | E101: Lighting -Warehouse Wholesale | F101: LED RECESSED DOWNLIGHTS | G101: LED Downlight with Light Output >800 lumens | H101: ENERGY STAR® 25W CFL | I101: 3759 | J101: 0.025 | K101: 93.975 | L101: 0.02 | M101: 75.18 | N101: 0.005 | O101: 18.795 | P101: 0.003657796154 | Q101: 11 | R101: PSP-Business-Warehouse_Wholesale-Lighting_Interior_General | S101: 47.88 | T101: n/a | U101: n/a | V101: 0 | W101: 0 | X101: No | AF101: No | AG101: Dx | AH101: FALSE | AI101: 0
A102: INon-ResidentialRetrofitRetrofitLED LIGHT BULBLED LIGHT BULBLED MR16 lamp ≤6W20W Halogen MR1620W Halogen MR16PLighting_Interior_GeneralNND | B102: IESO - Measure | C102: Non-Residential | D102: Retrofit | E102: Lighting -Food Retail | F102: LED LIGHT BULB | G102: LED MR16 lamp ≤6W | H102: 20W Halogen MR16 | I102: 6074 | J102: 0.02 | K102: 121.48 | L102: 0.006 | M102: 36.444 | N102: 0.014 | O102: 85.036 | P102: 0.01207942448 | Q102: 5 | R102: PSP-Business-Food_Retail-Lighting_Interior_General | S102: -69.73 | T102: n/a | U102: n/a | V102: 0 | W102: 0 | X102: No | AF102: No | AG102: Dx | AH102: FALSE | AI102: 0
A103: INon-ResidentialRetrofitRetrofitLED LIGHT BULBLED LIGHT BULBLED MR16 lamp ≤6W20W Halogen MR1620W Halogen MR16PLighting_Interior_GeneralNND | B103: IESO - Measure | C103: Non-Residential | D103: Retrofit | E103: Lighting -Hospital | F103: LED LIGHT BULB | G103: LED MR16 lamp ≤6W | H103: 20W Halogen MR16 | I103: 5182 | J103: 0.02 | K103: 103.64 | L103: 0.006 | M103: 31.092 | N103: 0.014 | O103: 72.548 | P103: 0.009683496569 | Q103: 5 | R103: PSP-Business-Hospital-Lighting_Interior_General | S103: -69.73 | T103: n/a | U103: n/a | V103: 0 | W103: 0 | X103: No | AF103: No | AG103: Dx | AH103: FALSE | AI103: 0
A104: INon-ResidentialRetrofitRetrofitLED LIGHT BULBLED LIGHT BULBLED MR16 lamp ≤6W20W Halogen MR1620W Halogen MR16PLighting_Interior_GeneralNND | B104: IESO - Measure | C104: Non-Residential | D104: Retrofit | E104: Lighting -Large Hotel (Corridor/Lobby) | F104: LED LIGHT BULB | G104: LED MR16 lamp ≤6W | H104: 20W Halogen MR16 | I104: 7884 | J104: 0.02 | K104: 157.68 | L104: 0.006 | M104: 47.304 | N104: 0.014 | O104: 110.376 | P104: 0.01333172332 | Q104: 4 | R104: PSP-Business-Large_Hotel (Corridor/Lobby)-Lighting_Interior_General | S104: -69.73 | T104: n/a | U104: n/a | V104: 0 | W104: 0 | X104: No | AF104: No | AG104: Dx | AH104: FALSE | AI104: 0
A105: INon-ResidentialRetrofitRetrofitLED LIGHT BULBLED LIGHT BULBLED MR16 lamp ≤6W20W Halogen MR1620W Halogen MR16PLighting_Interior_GeneralNND | B105: IESO - Measure | C105: Non-Residential | D105: Retrofit | E105: Lighting -Large Non-Food Retail | F105: LED LIGHT BULB | G105: LED MR16 lamp ≤6W | H105: 20W Halogen MR16 | I105: 4089 | J105: 0.02 | K105: 81.78 | L105: 0.006 | M105: 24.534 | N105: 0.014 | O105: 57.246 | P105: 0.008489650661 | Q105: 7 | R105: PSP-Business-Large_Non_Food_Retail-Lighting_Interior_General | S105: -69.73 | T105: n/a | U105: n/a | V105: 0 | W105: 0 | X105: No | AF105: No | AG105: Dx | AH105: FALSE | AI105: 0
A106: INon-ResidentialRetrofitRetrofitLED LIGHT BULBLED LIGHT BULBLED MR16 lamp ≤6W20W Halogen MR1620W Halogen MR16PLighting_Interior_GeneralNND | B106: IESO - Measure | C106: Non-Residential | D106: Retrofit | E106: Lighting -Large Office | F106: LED LIGHT BULB | G106: LED MR16 lamp ≤6W | H106: 20W Halogen MR16 | I106: 3610 | J106: 0.02 | K106: 72.2 | L106: 0.006 | M106: 21.66 | N106: 0.014 | O106: 50.54 | P106: 0.008542232281 | Q106: 8 | R106: PSP-Business-Large_Office-Lighting_Interior_General | S106: -69.73 | T106: n/a | U106: n/a | V106: 0 | W106: 0 | X106: No | AF106: No | AG106: Dx | AH106: FALSE | AI106: 0
A107: INon-ResidentialRetrofitRetrofitLED LIGHT BULBLED LIGHT BULBLED MR16 lamp ≤6W20W Halogen MR1620W Halogen MR16PLighting_Interior_GeneralNND | B107: IESO - Measure | C107: Non-Residential | D107: Retrofit | E107: Lighting -Nursing Home | F107: LED LIGHT BULB | G107: LED MR16 lamp ≤6W | H107: 20W Halogen MR16 | I107: 4308 | J107: 0.02 | K107: 86.16 | L107: 0.006 | M107: 25.848 | N107: 0.014 | O107: 60.312 | P107: 0.009119596467 | Q107: 6 | R107: PSP-Business-Nursing_Home-Lighting_Interior_General | S107: -69.73 | T107: n/a | U107: n/a | V107: 0 | W107: 0 | X107: No | AF107: No | AG107: Dx | AH107: FALSE | AI107: 0
A108: INon-ResidentialRetrofitRetrofitLED LIGHT BULBLED LIGHT BULBLED MR16 lamp ≤6W20W Halogen MR1620W Halogen MR16PLighting_Interior_GeneralNND | B108: IESO - Measure | C108: Non-Residential | D108: Retrofit | E108: Lighting -Other Commercial Buildings | F108: LED LIGHT BULB | G108: LED MR16 lamp ≤6W | H108: 20W Halogen MR16 | I108: 2857 | J108: 0.02 | K108: 57.14 | L108: 0.006 | M108: 17.142 | N108: 0.014 | O108: 39.998 | P108: 0.006767038344 | Q108: 10 | R108: PSP-Business-Other_Commercial_Buildings-Lighting_Interior_General | S108: -69.73 | T108: n/a | U108: n/a | V108: 0 | W108: 0 | X108: No | AF108: No | AG108: Dx | AH108: FALSE | AI108: 0
A109: INon-ResidentialRetrofitRetrofitLED LIGHT BULBLED LIGHT BULBLED MR16 lamp ≤6W20W Halogen MR1620W Halogen MR16PLighting_Interior_GeneralNND | B109: IESO - Measure | C109: Non-Residential | D109: Retrofit | E109: Lighting -Other Hotel Motel (Corridor/Lobby) | F109: LED LIGHT BULB | G109: LED MR16 lamp ≤6W | H109: 20W Halogen MR16 | I109: 7884 | J109: 0.02 | K109: 157.68 | L109: 0.006 | M109: 47.304 | N109: 0.014 | O109: 110.376 | P109: 0.01333172367 | Q109: 4 | R109: PSP-Business-Other_Hotel_Motel (Corridor/Lobby)-Lighting_Interior_General | S109: -69.73 | T109: n/a | U109: n/a | V109: 0 | W109: 0 | X109: No | AF109: No | AG109: Dx | AH109: FALSE | AI109: 0
A110: INon-ResidentialRetrofitRetrofitLED LIGHT BULBLED LIGHT BULBLED MR16 lamp ≤6W20W Halogen MR1620W Halogen MR16PLighting_Interior_GeneralNND | B110: IESO - Measure | C110: Non-Residential | D110: Retrofit | E110: Lighting -Other Non-Food Retail | F110: LED LIGHT BULB | G110: LED MR16 lamp ≤6W | H110: 20W Halogen MR16 | I110: 4089 | J110: 0.02 | K110: 81.78 | L110: 0.006 | M110: 24.534 | N110: 0.014 | O110: 57.246 | P110: 0.0125243385 | Q110: 7 | R110: PSP-Business-Other_Non_Food_Retail-Lighting_Interior_General | S110: -69.73 | T110: n/a | U110: n/a | V110: 0 | W110: 0 | X110: No | AF110: No | AG110: Dx | AH110: FALSE | AI110: 0
A111: INon-ResidentialRetrofitRetrofitLED LIGHT BULBLED LIGHT BULBLED MR16 lamp ≤6W20W Halogen MR1620W Halogen MR16PLighting_Interior_GeneralNND | B111: IESO - Measure | C111: Non-Residential | D111: Retrofit | E111: Lighting -Other Office | F111: LED LIGHT BULB | G111: LED MR16 lamp ≤6W | H111: 20W Halogen MR16 | I111: 3610 | J111: 0.02 | K111: 72.2 | L111: 0.006 | M111: 21.66 | N111: 0.014 | O111: 50.54 | P111: 0.008542232281 | Q111: 8 | R111: PSP-Business-Other_Office-Lighting_Interior_General | S111: -69.73 | T111: n/a | U111: n/a | V111: 0 | W111: 0 | X111: No | AF111: No | AG111: Dx | AH111: FALSE | AI111: 0
A112: INon-ResidentialRetrofitRetrofitLED LIGHT BULBLED LIGHT BULBLED MR16 lamp ≤6W20W Halogen MR1620W Halogen MR16PLighting_Interior_GeneralNND | B112: IESO - Measure | C112: Non-Residential | D112: Retrofit | E112: Lighting -Restaurant | F112: LED LIGHT BULB | G112: LED MR16 lamp ≤6W | H112: 20W Halogen MR16 | I112: 5110 | J112: 0.02 | K112: 102.2 | L112: 0.006 | M112: 30.66 | N112: 0.014 | O112: 71.54 | P112: 0.01172280757 | Q112: 5 | R112: PSP-Business-Restaurant-Lighting_Interior_General | S112: -69.73 | T112: n/a | U112: n/a | V112: 0 | W112: 0 | X112: No | AF112: No | AG112: Dx | AH112: FALSE | AI112: 0
A113: INon-ResidentialRetrofitRetrofitLED LIGHT BULBLED LIGHT BULBLED MR16 lamp ≤6W20W Halogen MR1620W Halogen MR16PLighting_Interior_GeneralNND | B113: IESO - Measure | C113: Non-Residential | D113: Retrofit | E113: Lighting -Schools | F113: LED LIGHT BULB | G113: LED MR16 lamp ≤6W | H113: 20W Halogen MR16 | I113: 2596 | J113: 0.02 | K113: 51.92 | L113: 0.006 | M113: 15.576 | N113: 0.014 | O113: 36.344 | P113: 0.001830592698 | Q113: 11 | R113: PSP-Business-Schools-Lighting_Interior_General | S113: -69.73 | T113: n/a | U113: n/a | V113: 0 | W113: 0 | X113: No | AF113: No | AG113: Dx | AH113: FALSE | AI113: 0
A114: INon-ResidentialRetrofitRetrofitLED LIGHT BULBLED LIGHT BULBLED MR16 lamp ≤6W20W Halogen MR1620W Halogen MR16PLighting_Interior_GeneralNND | B114: IESO - Measure | C114: Non-Residential | D114: Retrofit | E114: Lighting -University Colleges | F114: LED LIGHT BULB | G114: LED MR16 lamp ≤6W | H114: 20W Halogen MR16 | I114: 3255 | J114: 0.02 | K114: 65.1 | L114: 0.006 | M114: 19.53 | N114: 0.014 | O114: 45.57 | P114: 0.006041840097 | Q114: 9 | R114: PSP-Business-University_Colleges-Lighting_Interior_General | S114: -69.73 | T114: n/a | U114: n/a | V114: 0 | W114: 0 | X114: No | AF114: No | AG114: Dx | AH114: FALSE | AI114: 0
A115: INon-ResidentialRetrofitRetrofitLED LIGHT BULBLED LIGHT BULBLED MR16 lamp ≤6W20W Halogen MR1620W Halogen MR16PLighting_Interior_GeneralNND | B115: IESO - Measure | C115: Non-Residential | D115: Retrofit | E115: Lighting -Warehouse Wholesale | F115: LED LIGHT BULB | G115: LED MR16 lamp ≤6W | H115: 20W Halogen MR16 | I115: 3759 | J115: 0.02 | K115: 75.18 | L115: 0.006 | M115: 22.554 | N115: 0.014 | O115: 52.626 | P115: 0.01024182923 | Q115: 7 | R115: PSP-Business-Warehouse_Wholesale-Lighting_Interior_General | S115: -69.73 | T115: n/a | U115: n/a | V115: 0 | W115: 0 | X115: No | AF115: No | AG115: Dx | AH115: FALSE | AI115: 0
A116: INon-ResidentialRetrofitRetrofitLED LIGHT BULBLED LIGHT BULBLED MR16 lamp 7W to 10 W35W Halogen MR1635W Halogen MR16PLighting_Interior_GeneralNND | B116: IESO - Measure | C116: Non-Residential | D116: Retrofit | E116: Lighting -Food Retail | F116: LED LIGHT BULB | G116: LED MR16 lamp 7W to 10 W | H116: 35W Halogen MR16 | I116: 6074 | J116: 0.035 | K116: 212.59 | L116: 0.0075 | M116: 45.555 | N116: 0.0275 | O116: 167.035 | P116: 0.02372744095 | Q116: 5 | R116: PSP-Business-Food_Retail-Lighting_Interior_General | S116: -69.73 | T116: n/a | U116: n/a | V116: 0 | W116: 0 | X116: No | AF116: No | AG116: Dx | AH116: FALSE | AI116: 0
A117: INon-ResidentialRetrofitRetrofitLED LIGHT BULBLED LIGHT BULBLED MR16 lamp 7W to 10 W35W Halogen MR1635W Halogen MR16PLighting_Interior_GeneralNND | B117: IESO - Measure | C117: Non-Residential | D117: Retrofit | E117: Lighting -Hospital | F117: LED LIGHT BULB | G117: LED MR16 lamp 7W to 10 W | H117: 35W Halogen MR16 | I117: 5182 | J117: 0.035 | K117: 181.37 | L117: 0.0075 | M117: 38.865 | N117: 0.0275 | O117: 142.505 | P117: 0.01902115398 | Q117: 5 | R117: PSP-Business-Hospital-Lighting_Interior_General | S117: -69.73 | T117: n/a | U117: n/a | V117: 0 | W117: 0 | X117: No | AF117: No | AG117: Dx | AH117: FALSE | AI117: 0
A118: INon-ResidentialRetrofitRetrofitLED LIGHT BULBLED LIGHT BULBLED MR16 lamp 7W to 10 W35W Halogen MR1635W Halogen MR16PLighting_Interior_GeneralNND | B118: IESO - Measure | C118: Non-Residential | D118: Retrofit | E118: Lighting -Large Hotel (Corridor/Lobby) | F118: LED LIGHT BULB | G118: LED MR16 lamp 7W to 10 W | H118: 35W Halogen MR16 | I118: 7884 | J118: 0.035 | K118: 275.94 | L118: 0.0075 | M118: 59.13 | N118: 0.0275 | O118: 216.81 | P118: 0.02618731366 | Q118: 4 | R118: PSP-Business-Large_Hotel (Corridor/Lobby)-Lighting_Interior_General | S118: -69.73 | T118: n/a | U118: n/a | V118: 0 | W118: 0 | X118: No | AF118: No | AG118: Dx | AH118: FALSE | AI118: 0
A119: INon-ResidentialRetrofitRetrofitLED LIGHT BULBLED LIGHT BULBLED MR16 lamp 7W to 10 W35W Halogen MR1635W Halogen MR16PLighting_Interior_GeneralNND | B119: IESO - Measure | C119: Non-Residential | D119: Retrofit | E119: Lighting -Large Non-Food Retail | F119: LED LIGHT BULB | G119: LED MR16 lamp 7W to 10 W | H119: 35W Halogen MR16 | I119: 4089 | J119: 0.035 | K119: 143.115 | L119: 0.0075 | M119: 30.6675 | N119: 0.0275 | O119: 112.4475 | P119: 0.01667609951 | Q119: 7 | R119: PSP-Business-Large_Non_Food_Retail-Lighting_Interior_General | S119: -69.73 | T119: n/a | U119: n/a | V119: 0 | W119: 0 | X119: No | AF119: No | AG119: Dx | AH119: FALSE | AI119: 0
A120: INon-ResidentialRetrofitRetrofitLED LIGHT BULBLED LIGHT BULBLED MR16 lamp 7W to 10 W35W Halogen MR1635W Halogen MR16PLighting_Interior_GeneralNND | B120: IESO - Measure | C120: Non-Residential | D120: Retrofit | E120: Lighting -Large Office | F120: LED LIGHT BULB | G120: LED MR16 lamp 7W to 10 W | H120: 35W Halogen MR16 | I120: 3610 | J120: 0.035 | K120: 126.35 | L120: 0.0075 | M120: 27.075 | N120: 0.0275 | O120: 99.275 | P120: 0.01677938484 | Q120: 8 | R120: PSP-Business-Large_Office-Lighting_Interior_General | S120: -69.73 | T120: n/a | U120: n/a | V120: 0 | W120: 0 | X120: No | AF120: No | AG120: Dx | AH120: FALSE | AI120: 0
A121: INon-ResidentialRetrofitRetrofitLED LIGHT BULBLED LIGHT BULBLED MR16 lamp 7W to 10 W35W Halogen MR1635W Halogen MR16PLighting_Interior_GeneralNND | B121: IESO - Measure | C121: Non-Residential | D121: Retrofit | E121: Lighting -Nursing Home | F121: LED LIGHT BULB | G121: LED MR16 lamp 7W to 10 W | H121: 35W Halogen MR16 | I121: 4308 | J121: 0.035 | K121: 150.78 | L121: 0.0075 | M121: 32.31 | N121: 0.0275 | O121: 118.47 | P121: 0.01791349306 | Q121: 6 | R121: PSP-Business-Nursing_Home-Lighting_Interior_General | S121: -69.73 | T121: n/a | U121: n/a | V121: 0 | W121: 0 | X121: No | AF121: No | AG121: Dx | AH121: FALSE | AI121: 0
A122: INon-ResidentialRetrofitRetrofitLED LIGHT BULBLED LIGHT BULBLED MR16 lamp 7W to 10 W35W Halogen MR1635W Halogen MR16PLighting_Interior_GeneralNND | B122: IESO - Measure | C122: Non-Residential | D122: Retrofit | E122: Lighting -Other Commercial Buildings | F122: LED LIGHT BULB | G122: LED MR16 lamp 7W to 10 W | H122: 35W Halogen MR16 | I122: 2857 | J122: 0.035 | K122: 99.995 | L122: 0.0075 | M122: 21.4275 | N122: 0.0275 | O122: 78.5675 | P122: 0.01329239675 | Q122: 10 | R122: PSP-Business-Other_Commercial_Buildings-Lighting_Interior_General | S122: -69.73 | T122: n/a | U122: n/a | V122: 0 | W122: 0 | X122: No | AF122: No | AG122: Dx | AH122: FALSE | AI122: 0
A123: INon-ResidentialRetrofitRetrofitLED LIGHT BULBLED LIGHT BULBLED MR16 lamp 7W to 10 W35W Halogen MR1635W Halogen MR16PLighting_Interior_GeneralNND | B123: IESO - Measure | C123: Non-Residential | D123: Retrofit | E123: Lighting -Other Hotel Motel (Corridor/Lobby) | F123: LED LIGHT BULB | G123: LED MR16 lamp 7W to 10 W | H123: 35W Halogen MR16 | I123: 7884 | J123: 0.035 | K123: 275.94 | L123: 0.0075 | M123: 59.13 | N123: 0.0275 | O123: 216.81 | P123: 0.02618731435 | Q123: 4 | R123: PSP-Business-Other_Hotel_Motel (Corridor/Lobby)-Lighting_Interior_General | S123: -69.73 | T123: n/a | U123: n/a | V123: 0 | W123: 0 | X123: No | AF123: No | AG123: Dx | AH123: FALSE | AI123: 0
A124: INon-ResidentialRetrofitRetrofitLED LIGHT BULBLED LIGHT BULBLED MR16 lamp 7W to 10 W35W Halogen MR1635W Halogen MR16PLighting_Interior_GeneralNND | B124: IESO - Measure | C124: Non-Residential | D124: Retrofit | E124: Lighting -Other Non-Food Retail | F124: LED LIGHT BULB | G124: LED MR16 lamp 7W to 10 W | H124: 35W Halogen MR16 | I124: 4089 | J124: 0.035 | K124: 143.115 | L124: 0.0075 | M124: 30.6675 | N124: 0.0275 | O124: 112.4475 | P124: 0.0246013792 | Q124: 7 | R124: PSP-Business-Other_Non_Food_Retail-Lighting_Interior_General | S124: -69.73 | T124: n/a | U124: n/a | V124: 0 | W124: 0 | X124: No | AF124: No | AG124: Dx | AH124: FALSE | AI124: 0
A125: INon-ResidentialRetrofitRetrofitLED LIGHT BULBLED LIGHT BULBLED MR16 lamp 7W to 10 W35W Halogen MR1635W Halogen MR16PLighting_Interior_GeneralNND | B125: IESO - Measure | C125: Non-Residential | D125: Retrofit | E125: Lighting -Other Office | F125: LED LIGHT BULB | G125: LED MR16 lamp 7W to 10 W | H125: 35W Halogen MR16 | I125: 3610 | J125: 0.035 | K125: 126.35 | L125: 0.0075 | M125: 27.075 | N125: 0.0275 | O125: 99.275 | P125: 0.01677938484 | Q125: 8 | R125: PSP-Business-Other_Office-Lighting_Interior_General | S125: -69.73 | T125: n/a | U125: n/a | V125: 0 | W125: 0 | X125: No | AF125: No | AG125: Dx | AH125: FALSE | AI125: 0
A126: INon-ResidentialRetrofitRetrofitLED LIGHT BULBLED LIGHT BULBLED MR16 lamp 7W to 10 W35W Halogen MR1635W Halogen MR16PLighting_Interior_GeneralNND | B126: IESO - Measure | C126: Non-Residential | D126: Retrofit | E126: Lighting -Restaurant | F126: LED LIGHT BULB | G126: LED MR16 lamp 7W to 10 W | H126: 35W Halogen MR16 | I126: 5110 | J126: 0.035 | K126: 178.85 | L126: 0.0075 | M126: 38.325 | N126: 0.0275 | O126: 140.525 | P126: 0.02302694343 | Q126: 5 | R126: PSP-Business-Restaurant-Lighting_Interior_General | S126: -69.73 | T126: n/a | U126: n/a | V126: 0 | W126: 0 | X126: No | AF126: No | AG126: Dx | AH126: FALSE | AI126: 0
A127: INon-ResidentialRetrofitRetrofitLED LIGHT BULBLED LIGHT BULBLED MR16 lamp 7W to 10 W35W Halogen MR1635W Halogen MR16PLighting_Interior_GeneralNND | B127: IESO - Measure | C127: Non-Residential | D127: Retrofit | E127: Lighting -Schools | F127: LED LIGHT BULB | G127: LED MR16 lamp 7W to 10 W | H127: 35W Halogen MR16 | I127: 2596 | J127: 0.035 | K127: 90.86 | L127: 0.0075 | M127: 19.47 | N127: 0.0275 | O127: 71.39 | P127: 0.003595807084 | Q127: 11 | R127: PSP-Business-Schools-Lighting_Interior_General | S127: -69.73 | T127: n/a | U127: n/a | V127: 0 | W127: 0 | X127: No | AF127: No | AG127: Dx | AH127: FALSE | AI127: 0
A128: INon-ResidentialRetrofitRetrofitLED LIGHT BULBLED LIGHT BULBLED MR16 lamp 7W to 10 W35W Halogen MR1635W Halogen MR16PLighting_Interior_GeneralNND | B128: IESO - Measure | C128: Non-Residential | D128: Retrofit | E128: Lighting -University Colleges | F128: LED LIGHT BULB | G128: LED MR16 lamp 7W to 10 W | H128: 35W Halogen MR16 | I128: 3255 | J128: 0.035 | K128: 113.925 | L128: 0.0075 | M128: 24.4125 | N128: 0.0275 | O128: 89.5125 | P128: 0.01186790019 | Q128: 9 | R128: PSP-Business-University_Colleges-Lighting_Interior_General | S128: -69.73 | T128: n/a | U128: n/a | V128: 0 | W128: 0 | X128: No | AF128: No | AG128: Dx | AH128: FALSE | AI128: 0
A129: INon-ResidentialRetrofitRetrofitLED LIGHT BULBLED LIGHT BULBLED MR16 lamp 7W to 10 W35W Halogen MR1635W Halogen MR16PLighting_Interior_GeneralNND | B129: IESO - Measure | C129: Non-Residential | D129: Retrofit | E129: Lighting -Warehouse Wholesale | F129: LED LIGHT BULB | G129: LED MR16 lamp 7W to 10 W | H129: 35W Halogen MR16 | I129: 3759 | J129: 0.035 | K129: 131.565 | L129: 0.0075 | M129: 28.1925 | N129: 0.0275 | O129: 103.3725 | P129: 0.02011787885 | Q129: 7 | R129: PSP-Business-Warehouse_Wholesale-Lighting_Interior_General | S129: -69.73 | T129: n/a | U129: n/a | V129: 0 | W129: 0 | X129: No | AF129: No | AG129: Dx | AH129: FALSE | AI129: 0
A130: INon-ResidentialRetrofitRetrofitLED LIGHT BULBLED LIGHT BULBLED PAR lamp ≤16W50 W Incandescent oror Halogen PAR LampPLighting_Interior_GeneralNND | B130: IESO - Measure | C130: Non-Residential | D130: Retrofit | E130: Lighting -Food Retail | F130: LED LIGHT BULB | G130: LED PAR lamp ≤16W | H130: 50 W Incandescent or Halogen PAR Lamp | I130: 6074 | J130: 0.05 | K130: 303.7 | L130: 0.011 | M130: 66.814 | N130: 0.039 | O130: 236.886 | P130: 0.03364982534 | Q130: 5 | R130: PSP-Business-Food_Retail-Lighting_Interior_General | S130: -22.55 | T130: n/a | U130: n/a | V130: 0 | W130: 0 | X130: No | AF130: No | AG130: Dx | AH130: FALSE | AI130: 0
A131: INon-ResidentialRetrofitRetrofitLED LIGHT BULBLED LIGHT BULBLED PAR lamp ≤16W50 W Incandescent oror Halogen PAR LampPLighting_Interior_GeneralNND | B131: IESO - Measure | C131: Non-Residential | D131: Retrofit | E131: Lighting -Hospital | F131: LED LIGHT BULB | G131: LED PAR lamp ≤16W | H131: 50 W Incandescent or Halogen PAR Lamp | I131: 5182 | J131: 0.05 | K131: 259.1 | L131: 0.011 | M131: 57.002 | N131: 0.039 | O131: 202.098 | P131: 0.02697545473 | Q131: 6 | R131: PSP-Business-Hospital-Lighting_Interior_General | S131: -22.55 | T131: n/a | U131: n/a | V131: 0 | W131: 0 | X131: No | AF131: No | AG131: Dx | AH131: FALSE | AI131: 0
A132: INon-ResidentialRetrofitRetrofitLED LIGHT BULBLED LIGHT BULBLED PAR lamp ≤16W50 W Incandescent oror Halogen PAR LampPLighting_Interior_GeneralNND | B132: IESO - Measure | C132: Non-Residential | D132: Retrofit | E132: Lighting -Large Hotel (Corridor/Lobby) | F132: LED LIGHT BULB | G132: LED PAR lamp ≤16W | H132: 50 W Incandescent or Halogen PAR Lamp | I132: 7884 | J132: 0.05 | K132: 394.2 | L132: 0.011 | M132: 86.724 | N132: 0.039 | O132: 307.476 | P132: 0.0371383721 | Q132: 4 | R132: PSP-Business-Large_Hotel (Corridor/Lobby)-Lighting_Interior_General | S132: -22.55 | T132: n/a | U132: n/a | V132: 0 | W132: 0 | X132: No | AF132: No | AG132: Dx | AH132: FALSE | AI132: 0
A133: INon-ResidentialRetrofitRetrofitLED LIGHT BULBLED LIGHT BULBLED PAR lamp ≤16W50 W Incandescent oror Halogen PAR LampPLighting_Interior_GeneralNND | B133: IESO - Measure | C133: Non-Residential | D133: Retrofit | E133: Lighting -Large Non-Food Retail | F133: LED LIGHT BULB | G133: LED PAR lamp ≤16W | H133: 50 W Incandescent or Halogen PAR Lamp | I133: 4089 | J133: 0.05 | K133: 204.45 | L133: 0.011 | M133: 44.979 | N133: 0.039 | O133: 159.471 | P133: 0.02364974113 | Q133: 8 | R133: PSP-Business-Large_Non_Food_Retail-Lighting_Interior_General | S133: -22.55 | T133: n/a | U133: n/a | V133: 0 | W133: 0 | X133: No | AF133: No | AG133: Dx | AH133: FALSE | AI133: 0
A134: INon-ResidentialRetrofitRetrofitLED LIGHT BULBLED LIGHT BULBLED PAR lamp ≤16W50 W Incandescent oror Halogen PAR LampPLighting_Interior_GeneralNND | B134: IESO - Measure | C134: Non-Residential | D134: Retrofit | E134: Lighting -Large Office | F134: LED LIGHT BULB | G134: LED PAR lamp ≤16W | H134: 50 W Incandescent or Halogen PAR Lamp | I134: 3610 | J134: 0.05 | K134: 180.5 | L134: 0.011 | M134: 39.71 | N134: 0.039 | O134: 140.79 | P134: 0.0237962185 | Q134: 9 | R134: PSP-Business-Large_Office-Lighting_Interior_General | S134: -22.55 | T134: n/a | U134: n/a | V134: 0 | W134: 0 | X134: No | AF134: No | AG134: Dx | AH134: FALSE | AI134: 0
A135: INon-ResidentialRetrofitRetrofitLED LIGHT BULBLED LIGHT BULBLED PAR lamp ≤16W50 W Incandescent oror Halogen PAR LampPLighting_Interior_GeneralNND | B135: IESO - Measure | C135: Non-Residential | D135: Retrofit | E135: Lighting -Nursing Home | F135: LED LIGHT BULB | G135: LED PAR lamp ≤16W | H135: 50 W Incandescent or Halogen PAR Lamp | I135: 4308 | J135: 0.05 | K135: 215.4 | L135: 0.011 | M135: 47.388 | N135: 0.039 | O135: 168.012 | P135: 0.02540459016 | Q135: 7 | R135: PSP-Business-Nursing_Home-Lighting_Interior_General | S135: -22.55 | T135: n/a | U135: n/a | V135: 0 | W135: 0 | X135: No | AF135: No | AG135: Dx | AH135: FALSE | AI135: 0
A136: INon-ResidentialRetrofitRetrofitLED LIGHT BULBLED LIGHT BULBLED PAR lamp ≤16W50 W Incandescent oror Halogen PAR LampPLighting_Interior_GeneralNND | B136: IESO - Measure | C136: Non-Residential | D136: Retrofit | E136: Lighting -Other Commercial Buildings | F136: LED LIGHT BULB | G136: LED PAR lamp ≤16W | H136: 50 W Incandescent or Halogen PAR Lamp | I136: 2857 | J136: 0.05 | K136: 142.85 | L136: 0.011 | M136: 31.427 | N136: 0.039 | O136: 111.423 | P136: 0.01885103539 | Q136: 11 | R136: PSP-Business-Other_Commercial_Buildings-Lighting_Interior_General | S136: -22.55 | T136: n/a | U136: n/a | V136: 0 | W136: 0 | X136: No | AF136: No | AG136: Dx | AH136: FALSE | AI136: 0
A137: INon-ResidentialRetrofitRetrofitLED LIGHT BULBLED LIGHT BULBLED PAR lamp ≤16W50 W Incandescent oror Halogen PAR LampPLighting_Interior_GeneralNND | B137: IESO - Measure | C137: Non-Residential | D137: Retrofit | E137: Lighting -Other Hotel Motel (Corridor/Lobby) | F137: LED LIGHT BULB | G137: LED PAR lamp ≤16W | H137: 50 W Incandescent or Halogen PAR Lamp | I137: 7884 | J137: 0.05 | K137: 394.2 | L137: 0.011 | M137: 86.724 | N137: 0.039 | O137: 307.476 | P137: 0.03713837308 | Q137: 4 | R137: PSP-Business-Other_Hotel_Motel (Corridor/Lobby)-Lighting_Interior_General | S137: -22.55 | T137: n/a | U137: n/a | V137: 0 | W137: 0 | X137: No | AF137: No | AG137: Dx | AH137: FALSE | AI137: 0
A138: INon-ResidentialRetrofitRetrofitLED LIGHT BULBLED LIGHT BULBLED PAR lamp ≤16W50 W Incandescent oror Halogen PAR LampPLighting_Interior_GeneralNND | B138: IESO - Measure | C138: Non-Residential | D138: Retrofit | E138: Lighting -Other Non-Food Retail | F138: LED LIGHT BULB | G138: LED PAR lamp ≤16W | H138: 50 W Incandescent or Halogen PAR Lamp | I138: 4089 | J138: 0.05 | K138: 204.45 | L138: 0.011 | M138: 44.979 | N138: 0.039 | O138: 159.471 | P138: 0.03488922868 | Q138: 8 | R138: PSP-Business-Other_Non_Food_Retail-Lighting_Interior_General | S138: -22.55 | T138: n/a | U138: n/a | V138: 0 | W138: 0 | X138: No | AF138: No | AG138: Dx | AH138: FALSE | AI138: 0
A139: INon-ResidentialRetrofitRetrofitLED LIGHT BULBLED LIGHT BULBLED PAR lamp ≤16W50 W Incandescent oror Halogen PAR LampPLighting_Interior_GeneralNND | B139: IESO - Measure | C139: Non-Residential | D139: Retrofit | E139: Lighting -Other Office | F139: LED LIGHT BULB | G139: LED PAR lamp ≤16W | H139: 50 W Incandescent or Halogen PAR Lamp | I139: 3610 | J139: 0.05 | K139: 180.5 | L139: 0.011 | M139: 39.71 | N139: 0.039 | O139: 140.79 | P139: 0.0237962185 | Q139: 9 | R139: PSP-Business-Other_Office-Lighting_Interior_General | S139: -22.55 | T139: n/a | U139: n/a | V139: 0 | W139: 0 | X139: No | AF139: No | AG139: Dx | AH139: FALSE | AI139: 0
A140: INon-ResidentialRetrofitRetrofitLED LIGHT BULBLED LIGHT BULBLED PAR lamp ≤16W50 W Incandescent oror Halogen PAR LampPLighting_Interior_GeneralNND | B140: IESO - Measure | C140: Non-Residential | D140: Retrofit | E140: Lighting -Restaurant | F140: LED LIGHT BULB | G140: LED PAR lamp ≤16W | H140: 50 W Incandescent or Halogen PAR Lamp | I140: 5110 | J140: 0.05 | K140: 255.5 | L140: 0.011 | M140: 56.21 | N140: 0.039 | O140: 199.29 | P140: 0.03265639251 | Q140: 6 | R140: PSP-Business-Restaurant-Lighting_Interior_General | S140: -22.55 | T140: n/a | U140: n/a | V140: 0 | W140: 0 | X140: No | AF140: No | AG140: Dx | AH140: FALSE | AI140: 0
A141: INon-ResidentialRetrofitRetrofitLED LIGHT BULBLED LIGHT BULBLED PAR lamp ≤16W50 W Incandescent oror Halogen PAR LampPLighting_Interior_GeneralNND | B141: IESO - Measure | C141: Non-Residential | D141: Retrofit | E141: Lighting -Schools | F141: LED LIGHT BULB | G141: LED PAR lamp ≤16W | H141: 50 W Incandescent or Halogen PAR Lamp | I141: 2596 | J141: 0.05 | K141: 129.8 | L141: 0.011 | M141: 28.556 | N141: 0.039 | O141: 101.244 | P141: 0.005099508229 | Q141: 12 | R141: PSP-Business-Schools-Lighting_Interior_General | S141: -22.55 | T141: n/a | U141: n/a | V141: 0 | W141: 0 | X141: No | AF141: No | AG141: Dx | AH141: FALSE | AI141: 0
A142: INon-ResidentialRetrofitRetrofitLED LIGHT BULBLED LIGHT BULBLED PAR lamp ≤16W50 W Incandescent oror Halogen PAR LampPLighting_Interior_GeneralNND | B142: IESO - Measure | C142: Non-Residential | D142: Retrofit | E142: Lighting -University Colleges | F142: LED LIGHT BULB | G142: LED PAR lamp ≤16W | H142: 50 W Incandescent or Halogen PAR Lamp | I142: 3255 | J142: 0.05 | K142: 162.75 | L142: 0.011 | M142: 35.805 | N142: 0.039 | O142: 126.945 | P142: 0.01683084027 | Q142: 10 | R142: PSP-Business-University_Colleges-Lighting_Interior_General | S142: -22.55 | T142: n/a | U142: n/a | V142: 0 | W142: 0 | X142: No | AF142: No | AG142: Dx | AH142: FALSE | AI142: 0
A143: INon-ResidentialRetrofitRetrofitLED LIGHT BULBLED LIGHT BULBLED PAR lamp ≤16W50 W Incandescent oror Halogen PAR LampPLighting_Interior_GeneralNND | B143: IESO - Measure | C143: Non-Residential | D143: Retrofit | E143: Lighting -Warehouse Wholesale | F143: LED LIGHT BULB | G143: LED PAR lamp ≤16W | H143: 50 W Incandescent or Halogen PAR Lamp | I143: 3759 | J143: 0.05 | K143: 187.95 | L143: 0.011 | M143: 41.349 | N143: 0.039 | O143: 146.601 | P143: 0.02853081 | Q143: 8 | R143: PSP-Business-Warehouse_Wholesale-Lighting_Interior_General | S143: -22.55 | T143: n/a | U143: n/a | V143: 0 | W143: 0 | X143: No | AF143: No | AG143: Dx | AH143: FALSE | AI143: 0
A144: INon-ResidentialRetrofitRetrofitLED LIGHT BULBLED LIGHT BULBLED PAR lamp >16W to ≤25W75 W Incandescent oror Halogen Par LampPLighting_Interior_GeneralNND | B144: IESO - Measure | C144: Non-Residential | D144: Retrofit | E144: Lighting -Food Retail | F144: LED LIGHT BULB | G144: LED PAR lamp >16W to ≤25W | H144: 75 W Incandescent or Halogen Par Lamp | I144: 6074 | J144: 0.075 | K144: 455.55 | L144: 0.018 | M144: 109.332 | N144: 0.057 | O144: 346.218 | P144: 0.04918051397 | Q144: 5 | R144: PSP-Business-Food_Retail-Lighting_Interior_General | S144: -22.55 | T144: n/a | U144: n/a | V144: 0 | W144: 0 | X144: No | AF144: No | AG144: Dx | AH144: FALSE | AI144: 0
A145: INon-ResidentialRetrofitRetrofitLED LIGHT BULBLED LIGHT BULBLED PAR lamp >16W to ≤25W75 W Incandescent oror Halogen Par LampPLighting_Interior_GeneralNND | B145: IESO - Measure | C145: Non-Residential | D145: Retrofit | E145: Lighting -Hospital | F145: LED LIGHT BULB | G145: LED PAR lamp >16W to ≤25W | H145: 75 W Incandescent or Halogen Par Lamp | I145: 5182 | J145: 0.075 | K145: 388.65 | L145: 0.018 | M145: 93.276 | N145: 0.057 | O145: 295.374 | P145: 0.0394256646 | Q145: 6 | R145: PSP-Business-Hospital-Lighting_Interior_General | S145: -22.55 | T145: n/a | U145: n/a | V145: 0 | W145: 0 | X145: No | AF145: No | AG145: Dx | AH145: FALSE | AI145: 0
A146: INon-ResidentialRetrofitRetrofitLED LIGHT BULBLED LIGHT BULBLED PAR lamp >16W to ≤25W75 W Incandescent oror Halogen Par LampPLighting_Interior_GeneralNND | B146: IESO - Measure | C146: Non-Residential | D146: Retrofit | E146: Lighting -Large Hotel (Corridor/Lobby) | F146: LED LIGHT BULB | G146: LED PAR lamp >16W to ≤25W | H146: 75 W Incandescent or Halogen Par Lamp | I146: 7884 | J146: 0.075 | K146: 591.3 | L146: 0.018 | M146: 141.912 | N146: 0.057 | O146: 449.388 | P146: 0.05427915922 | Q146: 4 | R146: PSP-Business-Large_Hotel (Corridor/Lobby)-Lighting_Interior_General | S146: -22.55 | T146: n/a | U146: n/a | V146: 0 | W146: 0 | X146: No | AF146: No | AG146: Dx | AH146: FALSE | AI146: 0
A147: INon-ResidentialRetrofitRetrofitLED LIGHT BULBLED LIGHT BULBLED PAR lamp >16W to ≤25W75 W Incandescent oror Halogen Par LampPLighting_Interior_GeneralNND | B147: IESO - Measure | C147: Non-Residential | D147: Retrofit | E147: Lighting -Large Non-Food Retail | F147: LED LIGHT BULB | G147: LED PAR lamp >16W to ≤25W | H147: 75 W Incandescent or Halogen Par Lamp | I147: 4089 | J147: 0.075 | K147: 306.675 | L147: 0.018 | M147: 73.602 | N147: 0.057 | O147: 233.073 | P147: 0.03456500626 | Q147: 8 | R147: PSP-Business-Large_Non_Food_Retail-Lighting_Interior_General | S147: -22.55 | T147: n/a | U147: n/a | V147: 0 | W147: 0 | X147: No | AF147: No | AG147: Dx | AH147: FALSE | AI147: 0
A148: INon-ResidentialRetrofitRetrofitLED LIGHT BULBLED LIGHT BULBLED PAR lamp >16W to ≤25W75 W Incandescent oror Halogen Par LampPLighting_Interior_GeneralNND | B148: IESO - Measure | C148: Non-Residential | D148: Retrofit | E148: Lighting -Large Office | F148: LED LIGHT BULB | G148: LED PAR lamp >16W to ≤25W | H148: 75 W Incandescent or Halogen Par Lamp | I148: 3610 | J148: 0.075 | K148: 270.75 | L148: 0.018 | M148: 64.98 | N148: 0.057 | O148: 205.77 | P148: 0.03477908857 | Q148: 9 | R148: PSP-Business-Large_Office-Lighting_Interior_General | S148: -22.55 | T148: n/a | U148: n/a | V148: 0 | W148: 0 | X148: No | AF148: No | AG148: Dx | AH148: FALSE | AI148: 0
A149: INon-ResidentialRetrofitRetrofitLED LIGHT BULBLED LIGHT BULBLED PAR lamp >16W to ≤25W75 W Incandescent oror Halogen Par LampPLighting_Interior_GeneralNND | B149: IESO - Measure | C149: Non-Residential | D149: Retrofit | E149: Lighting -Nursing Home | F149: LED LIGHT BULB | G149: LED PAR lamp >16W to ≤25W | H149: 75 W Incandescent or Halogen Par Lamp | I149: 4308 | J149: 0.075 | K149: 323.1 | L149: 0.018 | M149: 77.544 | N149: 0.057 | O149: 245.556 | P149: 0.03712978561 | Q149: 7 | R149: PSP-Business-Nursing_Home-Lighting_Interior_General | S149: -22.55 | T149: n/a | U149: n/a | V149: 0 | W149: 0 | X149: No | AF149: No | AG149: Dx | AH149: FALSE | AI149: 0
A150: INon-ResidentialRetrofitRetrofitLED LIGHT BULBLED LIGHT BULBLED PAR lamp >16W to ≤25W75 W Incandescent oror Halogen Par LampPLighting_Interior_GeneralNND | B150: IESO - Measure | C150: Non-Residential | D150: Retrofit | E150: Lighting -Other Commercial Buildings | F150: LED LIGHT BULB | G150: LED PAR lamp >16W to ≤25W | H150: 75 W Incandescent or Halogen Par Lamp | I150: 2857 | J150: 0.075 | K150: 214.275 | L150: 0.018 | M150: 51.426 | N150: 0.057 | O150: 162.849 | P150: 0.02755151326 | Q150: 11 | R150: PSP-Business-Other_Commercial_Buildings-Lighting_Interior_General | S150: -22.55 | T150: n/a | U150: n/a | V150: 0 | W150: 0 | X150: No | AF150: No | AG150: Dx | AH150: FALSE | AI150: 0
A151: INon-ResidentialRetrofitRetrofitLED LIGHT BULBLED LIGHT BULBLED PAR lamp >16W to ≤25W75 W Incandescent oror Halogen Par LampPLighting_Interior_GeneralNND | B151: IESO - Measure | C151: Non-Residential | D151: Retrofit | E151: Lighting -Other Hotel Motel (Corridor/Lobby) | F151: LED LIGHT BULB | G151: LED PAR lamp >16W to ≤25W | H151: 75 W Incandescent or Halogen Par Lamp | I151: 7884 | J151: 0.075 | K151: 591.3 | L151: 0.018 | M151: 141.912 | N151: 0.057 | O151: 449.388 | P151: 0.05427916065 | Q151: 4 | R151: PSP-Business-Other_Hotel_Motel (Corridor/Lobby)-Lighting_Interior_General | S151: -22.55 | T151: n/a | U151: n/a | V151: 0 | W151: 0 | X151: No | AF151: No | AG151: Dx | AH151: FALSE | AI151: 0
A152: INon-ResidentialRetrofitRetrofitLED LIGHT BULBLED LIGHT BULBLED PAR lamp >16W to ≤25W75 W Incandescent oror Halogen Par LampPLighting_Interior_GeneralNND | B152: IESO - Measure | C152: Non-Residential | D152: Retrofit | E152: Lighting -Other Non-Food Retail | F152: LED LIGHT BULB | G152: LED PAR lamp >16W to ≤25W | H152: 75 W Incandescent or Halogen Par Lamp | I152: 4089 | J152: 0.075 | K152: 306.675 | L152: 0.018 | M152: 73.602 | N152: 0.057 | O152: 233.073 | P152: 0.05099194961 | Q152: 8 | R152: PSP-Business-Other_Non_Food_Retail-Lighting_Interior_General | S152: -22.55 | T152: n/a | U152: n/a | V152: 0 | W152: 0 | X152: No | AF152: No | AG152: Dx | AH152: FALSE | AI152: 0
A153: INon-ResidentialRetrofitRetrofitLED LIGHT BULBLED LIGHT BULBLED PAR lamp >16W to ≤25W75 W Incandescent oror Halogen Par LampPLighting_Interior_GeneralNND | B153: IESO - Measure | C153: Non-Residential | D153: Retrofit | E153: Lighting -Other Office | F153: LED LIGHT BULB | G153: LED PAR lamp >16W to ≤25W | H153: 75 W Incandescent or Halogen Par Lamp | I153: 3610 | J153: 0.075 | K153: 270.75 | L153: 0.018 | M153: 64.98 | N153: 0.057 | O153: 205.77 | P153: 0.03477908857 | Q153: 9 | R153: PSP-Business-Other_Office-Lighting_Interior_General | S153: -22.55 | T153: n/a | U153: n/a | V153: 0 | W153: 0 | X153: No | AF153: No | AG153: Dx | AH153: FALSE | AI153: 0
A154: INon-ResidentialRetrofitRetrofitLED LIGHT BULBLED LIGHT BULBLED PAR lamp >16W to ≤25W75 W Incandescent oror Halogen Par LampPLighting_Interior_GeneralNND | B154: IESO - Measure | C154: Non-Residential | D154: Retrofit | E154: Lighting -Restaurant | F154: LED LIGHT BULB | G154: LED PAR lamp >16W to ≤25W | H154: 75 W Incandescent or Halogen Par Lamp | I154: 5110 | J154: 0.075 | K154: 383.25 | L154: 0.018 | M154: 91.98 | N154: 0.057 | O154: 291.27 | P154: 0.04772857366 | Q154: 6 | R154: PSP-Business-Restaurant-Lighting_Interior_General | S154: -22.55 | T154: n/a | U154: n/a | V154: 0 | W154: 0 | X154: No | AF154: No | AG154: Dx | AH154: FALSE | AI154: 0
A155: INon-ResidentialRetrofitRetrofitLED LIGHT BULBLED LIGHT BULBLED PAR lamp >16W to ≤25W75 W Incandescent oror Halogen Par LampPLighting_Interior_GeneralNND | B155: IESO - Measure | C155: Non-Residential | D155: Retrofit | E155: Lighting -Schools | F155: LED LIGHT BULB | G155: LED PAR lamp >16W to ≤25W | H155: 75 W Incandescent or Halogen Par Lamp | I155: 2596 | J155: 0.075 | K155: 194.7 | L155: 0.018 | M155: 46.728 | N155: 0.057 | O155: 147.972 | P155: 0.007453127411 | Q155: 12 | R155: PSP-Business-Schools-Lighting_Interior_General | S155: -22.55 | T155: n/a | U155: n/a | V155: 0 | W155: 0 | X155: No | AF155: No | AG155: Dx | AH155: FALSE | AI155: 0
A156: =CONCATENATE(TRIM(LEFT(B156,1)),TRIM(LEFT(C156,20)),TRIM(LEFT(D156,10)),TRIM(RIGHT(D156,10)),TRIM(LEFT(F156,20)),TRIM(RIGHT(F156,20)),TRIM(LEFT(G156,105)),TRIM(LEFT(H156,20)),TRIM(RIGHT(H156,20)),TRIM(LEFT(R156,1)),TRIM(RIGHT(R156,25)),TRIM(LEFT(X156,1)),TRIM(LEFT(AF156,1)),TRIM(LEFT(AG156,1))) -> INon-ResidentialRetrofitRetrofitLED LIGHT BULBLED LIGHT BULBLED PAR lamp >16W to ≤25W75 W Incandescent oror Halogen Par LampPLighting_Interior_GeneralNND | B156: IESO - Measure | C156: Non-Residential | D156: Retrofit | E156: Lighting -University Colleges | F156: LED LIGHT BULB | G156: LED PAR lamp >16W to ≤25W | H156: 75 W Incandescent or Halogen Par Lamp | I156: 3255 | J156: 0.075 | K156: 244.125 | L156: 0.018 | M156: 58.59 | N156: 0.057 | O156: 185.535 | P156: 0.0245989204 | Q156: 10 | R156: PSP-Business-University_Colleges-Lighting_Interior_General | S156: -22.55 | T156: n/a | U156: n/a | V156: 0 | W156: 0 | X156: No | AF156: No | AG156: Dx | AH156: FALSE | AI156: 0
A157: INon-ResidentialRetrofitRetrofitLED LIGHT BULBLED LIGHT BULBLED PAR lamp >16W to ≤25W75 W Incandescent oror Halogen Par LampPLighting_Interior_GeneralNND | B157: IESO - Measure | C157: Non-Residential | D157: Retrofit | E157: Lighting -Warehouse Wholesale | F157: LED LIGHT BULB | G157: LED PAR lamp >16W to ≤25W | H157: 75 W Incandescent or Halogen Par Lamp | I157: 3759 | J157: 0.075 | K157: 281.925 | L157: 0.018 | M157: 67.662 | N157: 0.057 | O157: 214.263 | P157: 0.04169887615 | Q157: 8 | R157: PSP-Business-Warehouse_Wholesale-Lighting_Interior_General | S157: -22.55 | T157: n/a | U157: n/a | V157: 0 | W157: 0 | X157: No | AF157: No | AG157: Dx | AH157: FALSE | AI157: 0
A158: INon-ResidentialRetrofitRetrofitREDUCED WATTAGE T8 FWATTAGE T8 FIXTURESSingle-lamp Reduced Watt. T8 fixtures (28W)Single-lamp Std. T8d. T8 fixtures (32W)PLighting_Interior_GeneralNND | B158: IESO - Measure | C158: Non-Residential | D158: Retrofit | E158: Lighting -Food Retail | F158: REDUCED WATTAGE T8 FIXTURES | G158: Single-lamp Reduced Watt. T8 fixtures (28W) | H158: Single-lamp Std. T8 fixtures (32W) | I158: 6074 | J158: 0.03 | K158: 182.22 | L158: 0.025 | M158: 151.85 | N158: 0.005 | O158: 30.37 | P158: 0.004314080172 | Q158: 8 | R158: PSP-Business-Food_Retail-Lighting_Interior_General | S158: -1.182860497 | T158: n/a | U158: n/a | V158: 0 | W158: 0 | X158: No | AF158: No | AG158: Dx | AH158: FALSE | AI158: 0
A159: INon-ResidentialRetrofitRetrofitREDUCED WATTAGE T8 FWATTAGE T8 FIXTURESSingle-lamp Reduced Watt. T8 fixtures (28W)Single-lamp Std. T8d. T8 fixtures (32W)PLighting_Interior_GeneralNND | B159: IESO - Measure | C159: Non-Residential | D159: Retrofit | E159: Lighting -Hospital | F159: REDUCED WATTAGE T8 FIXTURES | G159: Single-lamp Reduced Watt. T8 fixtures (28W) | H159: Single-lamp Std. T8 fixtures (32W) | I159: 5182 | J159: 0.03 | K159: 155.46 | L159: 0.025 | M159: 129.55 | N159: 0.005 | O159: 25.91 | P159: 0.003458391632 | Q159: 10 | R159: PSP-Business-Hospital-Lighting_Interior_General | S159: -1.00764333 | T159: n/a | U159: n/a | V159: 0 | W159: 0 | X159: No | AF159: No | AG159: Dx | AH159: FALSE | AI159: 0
A160: INon-ResidentialRetrofitRetrofitREDUCED WATTAGE T8 FWATTAGE T8 FIXTURESSingle-lamp Reduced Watt. T8 fixtures (28W)Single-lamp Std. T8d. T8 fixtures (32W)PLighting_Interior_GeneralNND | B160: IESO - Measure | C160: Non-Residential | D160: Retrofit | E160: Lighting -Large Hotel (Corridor/Lobby) | F160: REDUCED WATTAGE T8 FIXTURES | G160: Single-lamp Reduced Watt. T8 fixtures (28W) | H160: Single-lamp Std. T8 fixtures (32W) | I160: 7884 | J160: 0.03 | K160: 236.52 | L160: 0.025 | M160: 197.1 | N160: 0.005 | O160: 39.42 | P160: 0.004761329756 | Q160: 6 | R160: PSP-Business-Large_Hotel (Corridor/Lobby)-Lighting_Interior_General | S160: -1.037145153 | T160: n/a | U160: n/a | V160: 0 | W160: 0 | X160: No | AF160: No | AG160: Dx | AH160: FALSE | AI160: 0
A161: INon-ResidentialRetrofitRetrofitREDUCED WATTAGE T8 FWATTAGE T8 FIXTURESSingle-lamp Reduced Watt. T8 fixtures (28W)Single-lamp Std. T8d. T8 fixtures (32W)PLighting_Interior_GeneralNND | B161: IESO - Measure | C161: Non-Residential | D161: Retrofit | E161: Lighting -Large Non-Food Retail | F161: REDUCED WATTAGE T8 FIXTURES | G161: Single-lamp Reduced Watt. T8 fixtures (28W) | H161: Single-lamp Std. T8 fixtures (32W) | I161: 4089 | J161: 0.03 | K161: 122.67 | L161: 0.025 | M161: 102.225 | N161: 0.005 | O161: 20.445 | P161: 0.003032018093 | Q161: 12 | R161: PSP-Business-Large_Non_Food_Retail-Lighting_Interior_General | S161: -0.8526967552 | T161: n/a | U161: n/a | V161: 0 | W161: 0 | X161: No | AF161: No | AG161: Dx | AH161: FALSE | AI161: 0
A162: INon-ResidentialRetrofitRetrofitREDUCED WATTAGE T8 FWATTAGE T8 FIXTURESSingle-lamp Reduced Watt. T8 fixtures (28W)Single-lamp Std. T8d. T8 fixtures (32W)PLighting_Interior_GeneralNND | B162: IESO - Measure | C162: Non-Residential | D162: Retrofit | E162: Lighting -Large Office | F162: REDUCED WATTAGE T8 FIXTURES | G162: Single-lamp Reduced Watt. T8 fixtures (28W) | H162: Single-lamp Std. T8 fixtures (32W) | I162: 3610 | J162: 0.03 | K162: 108.3 | L162: 0.025 | M162: 90.25 | N162: 0.005 | O162: 18.05 | P162: 0.003050797243 | Q162: 14 | R162: PSP-Business-Large_Office-Lighting_Interior_General | S162: -0.7157345532 | T162: n/a | U162: n/a | V162: 0 | W162: 0 | X162: No | AF162: No | AG162: Dx | AH162: FALSE | AI162: 0
A163: INon-ResidentialRetrofitRetrofitREDUCED WATTAGE T8 FWATTAGE T8 FIXTURESSingle-lamp Reduced Watt. T8 fixtures (28W)Single-lamp Std. T8d. T8 fixtures (32W)PLighting_Interior_GeneralNND | B163: IESO - Measure | C163: Non-Residential | D163: Retrofit | E163: Lighting -Nursing Home | F163: REDUCED WATTAGE T8 FIXTURES | G163: Single-lamp Reduced Watt. T8 fixtures (28W) | H163: Single-lamp Std. T8 fixtures (32W) | I163: 4308 | J163: 0.03 | K163: 129.24 | L163: 0.025 | M163: 107.7 | N163: 0.005 | O163: 21.54 | P163: 0.003256998738 | Q163: 12 | R163: PSP-Business-Nursing_Home-Lighting_Interior_General | S163: -0.8526967552 | T163: n/a | U163: n/a | V163: 0 | W163: 0 | X163: No | AF163: No | AG163: Dx | AH163: FALSE | AI163: 0
A164: INon-ResidentialRetrofitRetrofitREDUCED WATTAGE T8 FWATTAGE T8 FIXTURESSingle-lamp Reduced Watt. T8 fixtures (28W)Single-lamp Std. T8d. T8 fixtures (32W)PLighting_Interior_GeneralNND | B164: IESO - Measure | C164: Non-Residential | D164: Retrofit | E164: Lighting -Other Commercial Buildings | F164: REDUCED WATTAGE T8 FIXTURES | G164: Single-lamp Reduced Watt. T8 fixtures (28W) | H164: Single-lamp Std. T8 fixtures (32W) | I164: 2857 | J164: 0.03 | K164: 85.71 | L164: 0.025 | M164: 71.425 | N164: 0.005 | O164: 14.285 | P164: 0.002416799409 | Q164: 18 | R164: PSP-Business-Other_Commercial_Buildings-Lighting_Interior_General | S164: -0.8063357375 | T164: n/a | U164: n/a | V164: 0 | W164: 0 | X164: No | AF164: No | AG164: Dx | AH164: FALSE | AI164: 0
A165: INon-ResidentialRetrofitRetrofitREDUCED WATTAGE T8 FWATTAGE T8 FIXTURESSingle-lamp Reduced Watt. T8 fixtures (28W)Single-lamp Std. T8d. T8 fixtures (32W)PLighting_Interior_GeneralNND | B165: IESO - Measure | C165: Non-Residential | D165: Retrofit | E165: Lighting -Other Hotel Motel (Corridor/Lobby) | F165: REDUCED WATTAGE T8 FIXTURES | G165: Single-lamp Reduced Watt. T8 fixtures (28W) | H165: Single-lamp Std. T8 fixtures (32W) | I165: 7884 | J165: 0.03 | K165: 236.52 | L165: 0.025 | M165: 197.1 | N165: 0.005 | O165: 39.42 | P165: 0.004761329882 | Q165: 6 | R165: PSP-Business-Other_Hotel_Motel (Corridor/Lobby)-Lighting_Interior_General | S165: -1.037145153 | T165: n/a | U165: n/a | V165: 0 | W165: 0 | X165: No | AF165: No | AG165: Dx | AH165: FALSE | AI165: 0
A166: INon-ResidentialRetrofitRetrofitREDUCED WATTAGE T8 FWATTAGE T8 FIXTURESSingle-lamp Reduced Watt. T8 fixtures (28W)Single-lamp Std. T8d. T8 fixtures (32W)PLighting_Interior_GeneralNND | B166: IESO - Measure | C166: Non-Residential | D166: Retrofit | E166: Lighting -Other Non-Food Retail | F166: REDUCED WATTAGE T8 FIXTURES | G166: Single-lamp Reduced Watt. T8 fixtures (28W) | H166: Single-lamp Std. T8 fixtures (32W) | I166: 4089 | J166: 0.03 | K166: 122.67 | L166: 0.025 | M166: 102.225 | N166: 0.005 | O166: 20.445 | P166: 0.004472978036 | Q166: 12 | R166: PSP-Business-Other_Non_Food_Retail-Lighting_Interior_General | S166: -0.8526967552 | T166: n/a | U166: n/a | V166: 0 | W166: 0 | X166: No | AF166: No | AG166: Dx | AH166: FALSE | AI166: 0
A167: INon-ResidentialRetrofitRetrofitREDUCED WATTAGE T8 FWATTAGE T8 FIXTURESSingle-lamp Reduced Watt. T8 fixtures (28W)Single-lamp Std. T8d. T8 fixtures (32W)PLighting_Interior_GeneralNND | B167: IESO - Measure | C167: Non-Residential | D167: Retrofit | E167: Lighting -Other Office | F167: REDUCED WATTAGE T8 FIXTURES | G167: Single-lamp Reduced Watt. T8 fixtures (28W) | H167: Single-lamp Std. T8 fixtures (32W) | I167: 3610 | J167: 0.03 | K167: 108.3 | L167: 0.025 | M167: 90.25 | N167: 0.005 | O167: 18.05 | P167: 0.003050797243 | Q167: 14 | R167: PSP-Business-Other_Office-Lighting_Interior_General | S167: -0.7157345532 | T167: n/a | U167: n/a | V167: 0 | W167: 0 | X167: No | AF167: No | AG167: Dx | AH167: FALSE | AI167: 0
A168: INon-ResidentialRetrofitRetrofitREDUCED WATTAGE T8 FWATTAGE T8 FIXTURESSingle-lamp Reduced Watt. T8 fixtures (28W)Single-lamp Std. T8d. T8 fixtures (32W)PLighting_Interior_GeneralNND | B168: IESO - Measure | C168: Non-Residential | D168: Retrofit | E168: Lighting -Restaurant | F168: REDUCED WATTAGE T8 FIXTURES | G168: Single-lamp Reduced Watt. T8 fixtures (28W) | H168: Single-lamp Std. T8 fixtures (32W) | I168: 5110 | J168: 0.03 | K168: 153.3 | L168: 0.025 | M168: 127.75 | N168: 0.005 | O168: 25.55 | P168: 0.004186716988 | Q168: 10 | R168: PSP-Business-Restaurant-Lighting_Interior_General | S168: -1.00764333 | T168: n/a | U168: n/a | V168: 0 | W168: 0 | X168: No | AF168: No | AG168: Dx | AH168: FALSE | AI168: 0
A169: INon-ResidentialRetrofitRetrofitREDUCED WATTAGE T8 FWATTAGE T8 FIXTURESSingle-lamp Reduced Watt. T8 fixtures (28W)Single-lamp Std. T8d. T8 fixtures (32W)PLighting_Interior_GeneralNND | B169: IESO - Measure | C169: Non-Residential | D169: Retrofit | E169: Lighting -Schools | F169: REDUCED WATTAGE T8 FIXTURES | G169: Single-lamp Reduced Watt. T8 fixtures (28W) | H169: Single-lamp Std. T8 fixtures (32W) | I169: 2596 | J169: 0.03 | K169: 77.88 | L169: 0.025 | M169: 64.9 | N169: 0.005 | O169: 12.98 | P169: 0.0006537831063 | Q169: 19 | R169: PSP-Business-Schools-Lighting_Interior_General | S169: -0.687496206 | T169: n/a | U169: n/a | V169: 0 | W169: 0 | X169: No | AF169: No | AG169: Dx | AH169: FALSE | AI169: 0
A170: INon-ResidentialRetrofitRetrofitREDUCED WATTAGE T8 FWATTAGE T8 FIXTURESSingle-lamp Reduced Watt. T8 fixtures (28W)Single-lamp Std. T8d. T8 fixtures (32W)PLighting_Interior_GeneralNND | B170: IESO - Measure | C170: Non-Residential | D170: Retrofit | E170: Lighting -University Colleges | F170: REDUCED WATTAGE T8 FIXTURES | G170: Single-lamp Reduced Watt. T8 fixtures (28W) | H170: Single-lamp Std. T8 fixtures (32W) | I170: 3255 | J170: 0.03 | K170: 97.65 | L170: 0.025 | M170: 81.375 | N170: 0.005 | O170: 16.275 | P170: 0.002157800035 | Q170: 15 | R170: PSP-Business-University_Colleges-Lighting_Interior_General | S170: -0.8311547536 | T170: n/a | U170: n/a | V170: 0 | W170: 0 | X170: No | AF170: No | AG170: Dx | AH170: FALSE | AI170: 0
A171: INon-ResidentialRetrofitRetrofitREDUCED WATTAGE T8 FWATTAGE T8 FIXTURESSingle-lamp Reduced Watt. T8 fixtures (28W)Single-lamp Std. T8d. T8 fixtures (32W)PLighting_Interior_GeneralNND | B171: IESO - Measure | C171: Non-Residential | D171: Retrofit | E171: Lighting -Warehouse Wholesale | F171: REDUCED WATTAGE T8 FIXTURES | G171: Single-lamp Reduced Watt. T8 fixtures (28W) | H171: Single-lamp Std. T8 fixtures (32W) | I171: 3759 | J171: 0.03 | K171: 112.77 | L171: 0.025 | M171: 93.975 | N171: 0.005 | O171: 18.795 | P171: 0.003657796154 | Q171: 13 | R171: PSP-Business-Warehouse_Wholesale-Lighting_Interior_General | S171: -0.9750421676 | T171: n/a | U171: n/a | V171: 0 | W171: 0 | X171: No | AF171: No | AG171: Dx | AH171: FALSE | AI171: 0
A172: INon-ResidentialRetrofitRetrofitREDUCED WATTAGE T8 FWATTAGE T8 FIXTURESTwo-lamp Reduced Watt. T-8 fixtures (28W)Two-lamp Std. T8 fixd. T8 fixtures (32W)PLighting_Interior_GeneralNND | B172: IESO - Measure | C172: Non-Residential | D172: Retrofit | E172: Lighting -Food Retail | F172: REDUCED WATTAGE T8 FIXTURES | G172: Two-lamp Reduced Watt. T-8 fixtures (28W) | H172: Two-lamp Std. T8 fixtures (32W) | I172: 6074 | J172: 0.058 | K172: 352.292 | L172: 0.049 | M172: 297.626 | N172: 0.009 | O172: 54.666 | P172: 0.00776534431 | Q172: 8 | R172: PSP-Business-Food_Retail-Lighting_Interior_General | S172: -4.365720994 | T172: n/a | U172: n/a | V172: 0 | W172: 0 | X172: No | AF172: No | AG172: Dx | AH172: FALSE | AI172: 0
A173: INon-ResidentialRetrofitRetrofitREDUCED WATTAGE T8 FWATTAGE T8 FIXTURESTwo-lamp Reduced Watt. T-8 fixtures (28W)Two-lamp Std. T8 fixd. T8 fixtures (32W)PLighting_Interior_GeneralNND | B173: IESO - Measure | C173: Non-Residential | D173: Retrofit | E173: Lighting -Hospital | F173: REDUCED WATTAGE T8 FIXTURES | G173: Two-lamp Reduced Watt. T-8 fixtures (28W) | H173: Two-lamp Std. T8 fixtures (32W) | I173: 5182 | J173: 0.058 | K173: 300.556 | L173: 0.049 | M173: 253.918 | N173: 0.009 | O173: 46.638 | P173: 0.006225104937 | Q173: 10 | R173: PSP-Business-Hospital-Lighting_Interior_General | S173: -4.01528666 | T173: n/a | U173: n/a | V173: 0 | W173: 0 | X173: No | AF173: No | AG173: Dx | AH173: FALSE | AI173: 0
A174: INon-ResidentialRetrofitRetrofitREDUCED WATTAGE T8 FWATTAGE T8 FIXTURESTwo-lamp Reduced Watt. T-8 fixtures (28W)Two-lamp Std. T8 fixd. T8 fixtures (32W)PLighting_Interior_GeneralNND | B174: IESO - Measure | C174: Non-Residential | D174: Retrofit | E174: Lighting -Large Hotel (Corridor/Lobby) | F174: REDUCED WATTAGE T8 FIXTURES | G174: Two-lamp Reduced Watt. T-8 fixtures (28W) | H174: Two-lamp Std. T8 fixtures (32W) | I174: 7884 | J174: 0.058 | K174: 457.272 | L174: 0.049 | M174: 386.316 | N174: 0.009 | O174: 70.956 | P174: 0.008570393561 | Q174: 6 | R174: PSP-Business-Large_Hotel (Corridor/Lobby)-Lighting_Interior_General | S174: -4.074290306 | T174: n/a | U174: n/a | V174: 0 | W174: 0 | X174: No | AF174: No | AG174: Dx | AH174: FALSE | AI174: 0
A175: INon-ResidentialRetrofitRetrofitREDUCED WATTAGE T8 FWATTAGE T8 FIXTURESTwo-lamp Reduced Watt. T-8 fixtures (28W)Two-lamp Std. T8 fixd. T8 fixtures (32W)PLighting_Interior_GeneralNND | B175: IESO - Measure | C175: Non-Residential | D175: Retrofit | E175: Lighting -Large Non-Food Retail | F175: REDUCED WATTAGE T8 FIXTURES | G175: Two-lamp Reduced Watt. T-8 fixtures (28W) | H175: Two-lamp Std. T8 fixtures (32W) | I175: 4089 | J175: 0.058 | K175: 237.162 | L175: 0.049 | M175: 200.361 | N175: 0.009 | O175: 36.801 | P175: 0.005457632568 | Q175: 12 | R175: PSP-Business-Large_Non_Food_Retail-Lighting_Interior_General | S175: -3.70539351 | T175: n/a | U175: n/a | V175: 0 | W175: 0 | X175: No | AF175: No | AG175: Dx | AH175: FALSE | AI175: 0
A176: INon-ResidentialRetrofitRetrofitREDUCED WATTAGE T8 FWATTAGE T8 FIXTURESTwo-lamp Reduced Watt. T-8 fixtures (28W)Two-lamp Std. T8 fixd. T8 fixtures (32W)PLighting_Interior_GeneralNND | B176: IESO - Measure | C176: Non-Residential | D176: Retrofit | E176: Lighting -Large Office | F176: REDUCED WATTAGE T8 FIXTURES | G176: Two-lamp Reduced Watt. T-8 fixtures (28W) | H176: Two-lamp Std. T8 fixtures (32W) | I176: 3610 | J176: 0.058 | K176: 209.38 | L176: 0.049 | M176: 176.89 | N176: 0.009 | O176: 32.49 | P176: 0.005491435038 | Q176: 14 | R176: PSP-Business-Large_Office-Lighting_Interior_General | S176: -3.431469106 | T176: n/a | U176: n/a | V176: 0 | W176: 0 | X176: No | AF176: No | AG176: Dx | AH176: FALSE | AI176: 0
A177: INon-ResidentialRetrofitRetrofitREDUCED WATTAGE T8 FWATTAGE T8 FIXTURESTwo-lamp Reduced Watt. T-8 fixtures (28W)Two-lamp Std. T8 fixd. T8 fixtures (32W)PLighting_Interior_GeneralNND | B177: IESO - Measure | C177: Non-Residential | D177: Retrofit | E177: Lighting -Nursing Home | F177: REDUCED WATTAGE T8 FIXTURES | G177: Two-lamp Reduced Watt. T-8 fixtures (28W) | H177: Two-lamp Std. T8 fixtures (32W) | I177: 4308 | J177: 0.058 | K177: 249.864 | L177: 0.049 | M177: 211.092 | N177: 0.009 | O177: 38.772 | P177: 0.005862597729 | Q177: 12 | R177: PSP-Business-Nursing_Home-Lighting_Interior_General | S177: -3.70539351 | T177: n/a | U177: n/a | V177: 0 | W177: 0 | X177: No | AF177: No | AG177: Dx | AH177: FALSE | AI177: 0
A178: INon-ResidentialRetrofitRetrofitREDUCED WATTAGE T8 FWATTAGE T8 FIXTURESTwo-lamp Reduced Watt. T-8 fixtures (28W)Two-lamp Std. T8 fixd. T8 fixtures (32W)PLighting_Interior_GeneralNND | B178: IESO - Measure | C178: Non-Residential | D178: Retrofit | E178: Lighting -Other Commercial Buildings | F178: REDUCED WATTAGE T8 FIXTURES | G178: Two-lamp Reduced Watt. T-8 fixtures (28W) | H178: Two-lamp Std. T8 fixtures (32W) | I178: 2857 | J178: 0.058 | K178: 165.706 | L178: 0.049 | M178: 139.993 | N178: 0.009 | O178: 25.713 | P178: 0.004350238936 | Q178: 18 | R178: PSP-Business-Other_Commercial_Buildings-Lighting_Interior_General | S178: -3.612671475 | T178: n/a | U178: n/a | V178: 0 | W178: 0 | X178: No | AF178: No | AG178: Dx | AH178: FALSE | AI178: 0
A179: INon-ResidentialRetrofitRetrofitREDUCED WATTAGE T8 FWATTAGE T8 FIXTURESTwo-lamp Reduced Watt. T-8 fixtures (28W)Two-lamp Std. T8 fixd. T8 fixtures (32W)PLighting_Interior_GeneralNND | B179: IESO - Measure | C179: Non-Residential | D179: Retrofit | E179: Lighting -Other Hotel Motel (Corridor/Lobby) | F179: REDUCED WATTAGE T8 FIXTURES | G179: Two-lamp Reduced Watt. T-8 fixtures (28W) | H179: Two-lamp Std. T8 fixtures (32W) | I179: 7884 | J179: 0.058 | K179: 457.272 | L179: 0.049 | M179: 386.316 | N179: 0.009 | O179: 70.956 | P179: 0.008570393788 | Q179: 6 | R179: PSP-Business-Other_Hotel_Motel (Corridor/Lobby)-Lighting_Interior_General | S179: -4.074290306 | T179: n/a | U179: n/a | V179: 0 | W179: 0 | X179: No | AF179: No | AG179: Dx | AH179: FALSE | AI179: 0
A180: INon-ResidentialRetrofitRetrofitREDUCED WATTAGE T8 FWATTAGE T8 FIXTURESTwo-lamp Reduced Watt. T-8 fixtures (28W)Two-lamp Std. T8 fixd. T8 fixtures (32W)PLighting_Interior_GeneralNND | B180: IESO - Measure | C180: Non-Residential | D180: Retrofit | E180: Lighting -Other Non-Food Retail | F180: REDUCED WATTAGE T8 FIXTURES | G180: Two-lamp Reduced Watt. T-8 fixtures (28W) | H180: Two-lamp Std. T8 fixtures (32W) | I180: 4089 | J180: 0.058 | K180: 237.162 | L180: 0.049 | M180: 200.361 | N180: 0.009 | O180: 36.801 | P180: 0.008051360464 | Q180: 12 | R180: PSP-Business-Other_Non_Food_Retail-Lighting_Interior_General | S180: -3.70539351 | T180: n/a | U180: n/a | V180: 0 | W180: 0 | X180: No | AF180: No | AG180: Dx | AH180: FALSE | AI180: 0
A181: INon-ResidentialRetrofitRetrofitREDUCED WATTAGE T8 FWATTAGE T8 FIXTURESTwo-lamp Reduced Watt. T-8 fixtures (28W)Two-lamp Std. T8 fixd. T8 fixtures (32W)PLighting_Interior_GeneralNND | B181: IESO - Measure | C181: Non-Residential | D181: Retrofit | E181: Lighting -Other Office | F181: REDUCED WATTAGE T8 FIXTURES | G181: Two-lamp Reduced Watt. T-8 fixtures (28W) | H181: Two-lamp Std. T8 fixtures (32W) | I181: 3610 | J181: 0.058 | K181: 209.38 | L181: 0.049 | M181: 176.89 | N181: 0.009 | O181: 32.49 | P181: 0.005491435038 | Q181: 14 | R181: PSP-Business-Other_Office-Lighting_Interior_General | S181: -3.431469106 | T181: n/a | U181: n/a | V181: 0 | W181: 0 | X181: No | AF181: No | AG181: Dx | AH181: FALSE | AI181: 0
A182: INon-ResidentialRetrofitRetrofitREDUCED WATTAGE T8 FWATTAGE T8 FIXTURESTwo-lamp Reduced Watt. T-8 fixtures (28W)Two-lamp Std. T8 fixd. T8 fixtures (32W)PLighting_Interior_GeneralNND | B182: IESO - Measure | C182: Non-Residential | D182: Retrofit | E182: Lighting -Restaurant | F182: REDUCED WATTAGE T8 FIXTURES | G182: Two-lamp Reduced Watt. T-8 fixtures (28W) | H182: Two-lamp Std. T8 fixtures (32W) | I182: 5110 | J182: 0.058 | K182: 296.38 | L182: 0.049 | M182: 250.39 | N182: 0.009 | O182: 45.99 | P182: 0.007536090578 | Q182: 10 | R182: PSP-Business-Restaurant-Lighting_Interior_General | S182: -4.01528666 | T182: n/a | U182: n/a | V182: 0 | W182: 0 | X182: No | AF182: No | AG182: Dx | AH182: FALSE | AI182: 0
A183: INon-ResidentialRetrofitRetrofitREDUCED WATTAGE T8 FWATTAGE T8 FIXTURESTwo-lamp Reduced Watt. T-8 fixtures (28W)Two-lamp Std. T8 fixd. T8 fixtures (32W)PLighting_Interior_GeneralNND | B183: IESO - Measure | C183: Non-Residential | D183: Retrofit | E183: Lighting -Schools | F183: REDUCED WATTAGE T8 FIXTURES | G183: Two-lamp Reduced Watt. T-8 fixtures (28W) | H183: Two-lamp Std. T8 fixtures (32W) | I183: 2596 | J183: 0.058 | K183: 150.568 | L183: 0.049 | M183: 127.204 | N183: 0.009 | O183: 23.364 | P183: 0.001176809591 | Q183: 19 | R183: PSP-Business-Schools-Lighting_Interior_General | S183: -3.374992412 | T183: n/a | U183: n/a | V183: 0 | W183: 0 | X183: No | AF183: No | AG183: Dx | AH183: FALSE | AI183: 0
A184: INon-ResidentialRetrofitRetrofitREDUCED WATTAGE T8 FWATTAGE T8 FIXTURESTwo-lamp Reduced Watt. T-8 fixtures (28W)Two-lamp Std. T8 fixd. T8 fixtures (32W)PLighting_Interior_GeneralNND | B184: IESO - Measure | C184: Non-Residential | D184: Retrofit | E184: Lighting -University Colleges | F184: REDUCED WATTAGE T8 FIXTURES | G184: Two-lamp Reduced Watt. T-8 fixtures (28W) | H184: Two-lamp Std. T8 fixtures (32W) | I184: 3255 | J184: 0.058 | K184: 188.79 | L184: 0.049 | M184: 159.495 | N184: 0.009 | O184: 29.295 | P184: 0.003884040062 | Q184: 15 | R184: PSP-Business-University_Colleges-Lighting_Interior_General | S184: -3.662309507 | T184: n/a | U184: n/a | V184: 0 | W184: 0 | X184: No | AF184: No | AG184: Dx | AH184: FALSE | AI184: 0
A185: INon-ResidentialRetrofitRetrofitREDUCED WATTAGE T8 FWATTAGE T8 FIXTURESTwo-lamp Reduced Watt. T-8 fixtures (28W)Two-lamp Std. T8 fixd. T8 fixtures (32W)PLighting_Interior_GeneralNND | B185: IESO - Measure | C185: Non-Residential | D185: Retrofit | E185: Lighting -Warehouse Wholesale | F185: REDUCED WATTAGE T8 FIXTURES | G185: Two-lamp Reduced Watt. T-8 fixtures (28W) | H185: Two-lamp Std. T8 fixtures (32W) | I185: 3759 | J185: 0.058 | K185: 218.022 | L185: 0.049 | M185: 184.191 | N185: 0.009 | O185: 33.831 | P185: 0.006584033077 | Q185: 13 | R185: PSP-Business-Warehouse_Wholesale-Lighting_Interior_General | S185: -3.950084335 | T185: n/a | U185: n/a | V185: 0 | W185: 0 | X185: No | AF185: No | AG185: Dx | AH185: FALSE | AI185: 0
A186: INon-ResidentialRetrofitRetrofitREDUCED WATTAGE T8 FWATTAGE T8 FIXTURESThree-lamp Reduced Watt. T-8 fixtures (28W)Three-lamp Std. T8 fd. T8 fixtures (32W)PLighting_Interior_GeneralNND | B186: IESO - Measure | C186: Non-Residential | D186: Retrofit | E186: Lighting -Food Retail | F186: REDUCED WATTAGE T8 FIXTURES | G186: Three-lamp Reduced Watt. T-8 fixtures (28W) | H186: Three-lamp Std. T8 fixtures (32W) | I186: 6074 | J186: 0.085 | K186: 516.29 | L186: 0.075 | M186: 455.55 | N186: 0.01 | O186: 60.74 | P186: 0.008628160345 | Q186: 8 | R186: PSP-Business-Food_Retail-Lighting_Interior_General | S186: -4.048581491 | T186: n/a | U186: n/a | V186: 0 | W186: 0 | X186: No | AF186: No | AG186: Dx | AH186: FALSE | AI186: 0
A187: INon-ResidentialRetrofitRetrofitREDUCED WATTAGE T8 FWATTAGE T8 FIXTURESThree-lamp Reduced Watt. T-8 fixtures (28W)Three-lamp Std. T8 fd. T8 fixtures (32W)PLighting_Interior_GeneralNND | B187: IESO - Measure | C187: Non-Residential | D187: Retrofit | E187: Lighting -Hospital | F187: REDUCED WATTAGE T8 FIXTURES | G187: Three-lamp Reduced Watt. T-8 fixtures (28W) | H187: Three-lamp Std. T8 fixtures (32W) | I187: 5182 | J187: 0.085 | K187: 440.47 | L187: 0.075 | M187: 388.65 | N187: 0.01 | O187: 51.82 | P187: 0.006916783264 | Q187: 10 | R187: PSP-Business-Hospital-Lighting_Interior_General | S187: -3.52292999 | T187: n/a | U187: n/a | V187: 0 | W187: 0 | X187: No | AF187: No | AG187: Dx | AH187: FALSE | AI187: 0
A188: INon-ResidentialRetrofitRetrofitREDUCED WATTAGE T8 FWATTAGE T8 FIXTURESThree-lamp Reduced Watt. T-8 fixtures (28W)Three-lamp Std. T8 fd. T8 fixtures (32W)PLighting_Interior_GeneralNND | B188: IESO - Measure | C188: Non-Residential | D188: Retrofit | E188: Lighting -Large Hotel (Corridor/Lobby) | F188: REDUCED WATTAGE T8 FIXTURES | G188: Three-lamp Reduced Watt. T-8 fixtures (28W) | H188: Three-lamp Std. T8 fixtures (32W) | I188: 7884 | J188: 0.085 | K188: 670.14 | L188: 0.075 | M188: 591.3 | N188: 0.01 | O188: 78.84 | P188: 0.009522659512 | Q188: 6 | R188: PSP-Business-Large_Hotel (Corridor/Lobby)-Lighting_Interior_General | S188: -3.611435459 | T188: n/a | U188: n/a | V188: 0 | W188: 0 | X188: No | AF188: No | AG188: Dx | AH188: FALSE | AI188: 0
A189: INon-ResidentialRetrofitRetrofitREDUCED WATTAGE T8 FWATTAGE T8 FIXTURESThree-lamp Reduced Watt. T-8 fixtures (28W)Three-lamp Std. T8 fd. T8 fixtures (32W)PLighting_Interior_GeneralNND | B189: IESO - Measure | C189: Non-Residential | D189: Retrofit | E189: Lighting -Large Non-Food Retail | F189: REDUCED WATTAGE T8 FIXTURES | G189: Three-lamp Reduced Watt. T-8 fixtures (28W) | H189: Three-lamp Std. T8 fixtures (32W) | I189: 4089 | J189: 0.085 | K189: 347.565 | L189: 0.075 | M189: 306.675 | N189: 0.01 | O189: 40.89 | P189: 0.006064036186 | Q189: 12 | R189: PSP-Business-Large_Non_Food_Retail-Lighting_Interior_General | S189: -3.058090266 | T189: n/a | U189: n/a | V189: 0 | W189: 0 | X189: No | AF189: No | AG189: Dx | AH189: FALSE | AI189: 0
A190: INon-ResidentialRetrofitRetrofitREDUCED WATTAGE T8 FWATTAGE T8 FIXTURESThree-lamp Reduced Watt. T-8 fixtures (28W)Three-lamp Std. T8 fd. T8 fixtures (32W)PLighting_Interior_GeneralNND | B190: IESO - Measure | C190: Non-Residential | D190: Retrofit | E190: Lighting -Large Office | F190: REDUCED WATTAGE T8 FIXTURES | G190: Three-lamp Reduced Watt. T-8 fixtures (28W) | H190: Three-lamp Std. T8 fixtures (32W) | I190: 3610 | J190: 0.085 | K190: 306.85 | L190: 0.075 | M190: 270.75 | N190: 0.01 | O190: 36.1 | P190: 0.006101594486 | Q190: 14 | R190: PSP-Business-Large_Office-Lighting_Interior_General | S190: -2.64720366 | T190: n/a | U190: n/a | V190: 0 | W190: 0 | X190: No | AF190: No | AG190: Dx | AH190: FALSE | AI190: 0
A191: INon-ResidentialRetrofitRetrofitREDUCED WATTAGE T8 FWATTAGE T8 FIXTURESThree-lamp Reduced Watt. T-8 fixtures (28W)Three-lamp Std. T8 fd. T8 fixtures (32W)PLighting_Interior_GeneralNND | B191: IESO - Measure | C191: Non-Residential | D191: Retrofit | E191: Lighting -Nursing Home | F191: REDUCED WATTAGE T8 FIXTURES | G191: Three-lamp Reduced Watt. T-8 fixtures (28W) | H191: Three-lamp Std. T8 fixtures (32W) | I191: 4308 | J191: 0.085 | K191: 366.18 | L191: 0.075 | M191: 323.1 | N191: 0.01 | O191: 43.08 | P191: 0.006513997476 | Q191: 12 | R191: PSP-Business-Nursing_Home-Lighting_Interior_General | S191: -3.058090266 | T191: n/a | U191: n/a | V191: 0 | W191: 0 | X191: No | AF191: No | AG191: Dx | AH191: FALSE | AI191: 0
A192: INon-ResidentialRetrofitRetrofitREDUCED WATTAGE T8 FWATTAGE T8 FIXTURESThree-lamp Reduced Watt. T-8 fixtures (28W)Three-lamp Std. T8 fd. T8 fixtures (32W)PLighting_Interior_GeneralNND | B192: IESO - Measure | C192: Non-Residential | D192: Retrofit | E192: Lighting -Other Commercial Buildings | F192: REDUCED WATTAGE T8 FIXTURES | G192: Three-lamp Reduced Watt. T-8 fixtures (28W) | H192: Three-lamp Std. T8 fixtures (32W) | I192: 2857 | J192: 0.085 | K192: 242.845 | L192: 0.075 | M192: 214.275 | N192: 0.01 | O192: 28.57 | P192: 0.004833598817 | Q192: 18 | R192: PSP-Business-Other_Commercial_Buildings-Lighting_Interior_General | S192: -2.919007212 | T192: n/a | U192: n/a | V192: 0 | W192: 0 | X192: No | AF192: No | AG192: Dx | AH192: FALSE | AI192: 0
A193: INon-ResidentialRetrofitRetrofitREDUCED WATTAGE T8 FWATTAGE T8 FIXTURESThree-lamp Reduced Watt. T-8 fixtures (28W)Three-lamp Std. T8 fd. T8 fixtures (32W)PLighting_Interior_GeneralNND | B193: IESO - Measure | C193: Non-Residential | D193: Retrofit | E193: Lighting -Other Hotel Motel (Corridor/Lobby) | F193: REDUCED WATTAGE T8 FIXTURES | G193: Three-lamp Reduced Watt. T-8 fixtures (28W) | H193: Three-lamp Std. T8 fixtures (32W) | I193: 7884 | J193: 0.085 | K193: 670.14 | L193: 0.075 | M193: 591.3 | N193: 0.01 | O193: 78.84 | P193: 0.009522659764 | Q193: 6 | R193: PSP-Business-Other_Hotel_Motel (Corridor/Lobby)-Lighting_Interior_General | S193: -3.611435459 | T193: n/a | U193: n/a | V193: 0 | W193: 0 | X193: No | AF193: No | AG193: Dx | AH193: FALSE | AI193: 0
A194: INon-ResidentialRetrofitRetrofitREDUCED WATTAGE T8 FWATTAGE T8 FIXTURESThree-lamp Reduced Watt. T-8 fixtures (28W)Three-lamp Std. T8 fd. T8 fixtures (32W)PLighting_Interior_GeneralNND | B194: IESO - Measure | C194: Non-Residential | D194: Retrofit | E194: Lighting -Other Non-Food Retail | F194: REDUCED WATTAGE T8 FIXTURES | G194: Three-lamp Reduced Watt. T-8 fixtures (28W) | H194: Three-lamp Std. T8 fixtures (32W) | I194: 4089 | J194: 0.085 | K194: 347.565 | L194: 0.075 | M194: 306.675 | N194: 0.01 | O194: 40.89 | P194: 0.008945956071 | Q194: 12 | R194: PSP-Business-Other_Non_Food_Retail-Lighting_Interior_General | S194: -3.058090266 | T194: n/a | U194: n/a | V194: 0 | W194: 0 | X194: No | AF194: No | AG194: Dx | AH194: FALSE | AI194: 0
A195: INon-ResidentialRetrofitRetrofitREDUCED WATTAGE T8 FWATTAGE T8 FIXTURESThree-lamp Reduced Watt. T-8 fixtures (28W)Three-lamp Std. T8 fd. T8 fixtures (32W)PLighting_Interior_GeneralNND | B195: IESO - Measure | C195: Non-Residential | D195: Retrofit | E195: Lighting -Other Office | F195: REDUCED WATTAGE T8 FIXTURES | G195: Three-lamp Reduced Watt. T-8 fixtures (28W) | H195: Three-lamp Std. T8 fixtures (32W) | I195: 3610 | J195: 0.085 | K195: 306.85 | L195: 0.075 | M195: 270.75 | N195: 0.01 | O195: 36.1 | P195: 0.006101594486 | Q195: 14 | R195: PSP-Business-Other_Office-Lighting_Interior_General | S195: -2.64720366 | T195: n/a | U195: n/a | V195: 0 | W195: 0 | X195: No | AF195: No | AG195: Dx | AH195: FALSE | AI195: 0
A196: INon-ResidentialRetrofitRetrofitREDUCED WATTAGE T8 FWATTAGE T8 FIXTURESThree-lamp Reduced Watt. T-8 fixtures (28W)Three-lamp Std. T8 fd. T8 fixtures (32W)PLighting_Interior_GeneralNND | B196: IESO - Measure | C196: Non-Residential | D196: Retrofit | E196: Lighting -Restaurant | F196: REDUCED WATTAGE T8 FIXTURES | G196: Three-lamp Reduced Watt. T-8 fixtures (28W) | H196: Three-lamp Std. T8 fixtures (32W) | I196: 5110 | J196: 0.085 | K196: 434.35 | L196: 0.075 | M196: 383.25 | N196: 0.01 | O196: 51.1 | P196: 0.008373433976 | Q196: 10 | R196: PSP-Business-Restaurant-Lighting_Interior_General | S196: -3.52292999 | T196: n/a | U196: n/a | V196: 0 | W196: 0 | X196: No | AF196: No | AG196: Dx | AH196: FALSE | AI196: 0
A197: INon-ResidentialRetrofitRetrofitREDUCED WATTAGE T8 FWATTAGE T8 FIXTURESThree-lamp Reduced Watt. T-8 fixtures (28W)Three-lamp Std. T8 fd. T8 fixtures (32W)PLighting_Interior_GeneralNND | B197: IESO - Measure | C197: Non-Residential | D197: Retrofit | E197: Lighting -Schools | F197: REDUCED WATTAGE T8 FIXTURES | G197: Three-lamp Reduced Watt. T-8 fixtures (28W) | H197: Three-lamp Std. T8 fixtures (32W) | I197: 2596 | J197: 0.085 | K197: 220.66 | L197: 0.075 | M197: 194.7 | N197: 0.01 | O197: 25.96 | P197: 0.001307566213 | Q197: 19 | R197: PSP-Business-Schools-Lighting_Interior_General | S197: -2.562488618 | T197: n/a | U197: n/a | V197: 0 | W197: 0 | X197: No | AF197: No | AG197: Dx | AH197: FALSE | AI197: 0
A198: INon-ResidentialRetrofitRetrofitREDUCED WATTAGE T8 FWATTAGE T8 FIXTURESThree-lamp Reduced Watt. T-8 fixtures (28W)Three-lamp Std. T8 fd. T8 fixtures (32W)PLighting_Interior_GeneralNND | B198: IESO - Measure | C198: Non-Residential | D198: Retrofit | E198: Lighting -University Colleges | F198: REDUCED WATTAGE T8 FIXTURES | G198: Three-lamp Reduced Watt. T-8 fixtures (28W) | H198: Three-lamp Std. T8 fixtures (32W) | I198: 3255 | J198: 0.085 | K198: 276.675 | L198: 0.075 | M198: 244.125 | N198: 0.01 | O198: 32.55 | P198: 0.004315600069 | Q198: 15 | R198: PSP-Business-University_Colleges-Lighting_Interior_General | S198: -2.993464261 | T198: n/a | U198: n/a | V198: 0 | W198: 0 | X198: No | AF198: No | AG198: Dx | AH198: FALSE | AI198: 0
